Workbook

Sheet 勘定入力
I1: 西暦 年 | J1: 2014 | K1: =IF(集計一覧!B3*3=(集計一覧!B62+集計一覧!B121+集計一覧!B180),"","入力確認要") ->  | M1: ＊各項目はプルダウンにて選択ください。 | P1: ="本日："&DATESTRING(TODAY()) -> 本日：平成27年03月09日
I2: 合計→ | J2: =SUBTOTAL(9,J4:J1000) -> 40500 | K2: =SUBTOTAL(9,K4:K1000) -> 35200 | L2: 【千円】 | M2: ＊行の挿入、移動、Ａ列編集は行わないでください。 | Q2: 並び替え
A3: 月 | B3: 年 | C3: 日 | D3: 項目A検索 | E3: 項目B検索 | F3: 項目C検索 | G3: 大項目A検索 | H3: 大項目 | I3: 月/日 | J3: 入金予定額 | K3: 支払予定金額 | L3: 勘定科目 | M3: 施工先 | N3: 施工者・メーカ | O3: 担当 | P3: 備考
A4: =IF(I4="","",MONTH(I4)) -> 1 | B4: =IF(I4="","",$J$1) -> 2014 | C4: =IF(I4="","",DAY(I4)) -> 1 | D4: =IF($I4="","",$A4&L4) -> 1繰越金 | E4: =IF($I4="","",$A4&M4) -> 1該当無 | F4: =IF($I4="","",$A4&N4) -> 1該当無 | G4: =IF($I4="","",$A4&H4) -> 1固定費 | H4: =IF($I4="","",VLOOKUP(L4,入力補助!C:E,3,FALSE)) -> 固定費 | I4: 2014-01-01 | J4: 10000 | L4: 繰越金 | M4: 該当無 | N4: 該当無 | O4: Aさん
A5: 1 | B5: 2014 | C5: 20 | D5: 1給料・手当 | E5: 1従業員（固定費） | F5: 1会社（固定費） | G5: 1固定費 | H5: =IF($I5="","",VLOOKUP(L5,入力補助!C:E,3,FALSE)) -> 固定費 | I5: 2014-01-20 | K5: 1000 | L5: 給料・手当 | M5: 従業員（固定費） | N5: 会社（固定費） | O5: Aさん
A6: 1 | B6: 2014 | C6: 20 | D6: 1車両費 | E6: 1○○会社 | F6: 1○○会社 | G6: 1固定費 | H6: =IF($I6="","",VLOOKUP(L6,入力補助!C:E,3,FALSE)) -> 固定費 | I6: 2014-01-20 | K6: 100 | L6: 車両費 | M6: ○○会社 | N6: ○○会社 | O6: Aさん
A7: 2 | B7: 2014 | C7: 10 | D7: 2○○ | E7: 2A1邸 | F7: 2○○会社 | G7: 2○○販売 | H7: =IF($I7="","",VLOOKUP(L7,入力補助!C:E,3,FALSE)) -> ○○販売 | I7: 2014-02-10 | J7: 5000 | L7: ○○ | M7: A1邸 | N7: ○○会社 | O7: Bさん
A8: 2 | B8: 2014 | C8: 20 | D8: 2給料・手当 | E8: 2従業員（固定費） | F8: 2会社（固定費） | G8: 2固定費 | H8: =IF($I8="","",VLOOKUP(L8,入力補助!C:E,3,FALSE)) -> 固定費 | I8: 2014-02-20 | K8: 1000 | L8: 給料・手当 | M8: 従業員（固定費） | N8: 会社（固定費） | O8: Aさん
A9: 2 | B9: 2014 | C9: 20 | D9: 2車両費 | E9: 2○○会社 | F9: 2○○会社 | G9: 2固定費 | H9: =IF($I9="","",VLOOKUP(L9,入力補助!C:E,3,FALSE)) -> 固定費 | I9: 2014-02-20 | K9: 100 | L9: 車両費 | M9: ○○会社 | N9: ○○会社 | O9: Aさん
A10: 3 | B10: 2014 | C10: 5 | D10: 3基礎工事 | E10: 3A1邸 | F10: 3自社施工 | G10: 3○○工事 | H10: =IF($I10="","",VLOOKUP(L10,入力補助!C:E,3,FALSE)) -> ○○工事 | I10: 2014-03-05 | K10: 1000 | L10: 基礎工事 | M10: A1邸 | N10: 自社施工 | O10: Bさん
A11: 3 | B11: 2014 | C11: 10 | D11: 3○○ | E11: 3A2邸 | F11: 3○○会社 | G11: 3○○販売 | H11: =IF($I11="","",VLOOKUP(L11,入力補助!C:E,3,FALSE)) -> ○○販売 | I11: 2014-03-10 | J11: 5000 | L11: ○○ | M11: A2邸 | N11: ○○会社 | O11: Cさん
A12: 3 | B12: 2014 | C12: 20 | D12: 3給料・手当 | E12: 3従業員（固定費） | F12: 3会社（固定費） | G12: 3固定費 | H12: =IF($I12="","",VLOOKUP(L12,入力補助!C:E,3,FALSE)) -> 固定費 | I12: 2014-03-20 | K12: 1000 | L12: 給料・手当 | M12: 従業員（固定費） | N12: 会社（固定費） | O12: Aさん
A13: 3 | B13: 2014 | C13: 20 | D13: 3車両費 | E13: 3○○会社 | F13: 3○○会社 | G13: 3固定費 | H13: =IF($I13="","",VLOOKUP(L13,入力補助!C:E,3,FALSE)) -> 固定費 | I13: 2014-03-20 | K13: 100 | L13: 車両費 | M13: ○○会社 | N13: ○○会社 | O13: Aさん
A14: 4 | B14: 2014 | C14: 6 | D14: 4木工事 | E14: 4A1邸 | F14: 4B5社 | G14: 4○○工事 | H14: =IF($I14="","",VLOOKUP(L14,入力補助!C:E,3,FALSE)) -> ○○工事 | I14: 2014-04-06 | K14: 2000 | L14: 木工事 | M14: A1邸 | N14: B5社 | O14: Bさん
A15: 4 | B15: 2014 | C15: 20 | D15: 4給料・手当 | E15: 4従業員（固定費） | F15: 4会社（固定費） | G15: 4固定費 | H15: =IF($I15="","",VLOOKUP(L15,入力補助!C:E,3,FALSE)) -> 固定費 | I15: 2014-04-20 | K15: 1000 | L15: 給料・手当 | M15: 従業員（固定費） | N15: 会社（固定費） | O15: Aさん
A16: 4 | B16: 2014 | C16: 20 | D16: 4車両費 | E16: 4○○会社 | F16: 4○○会社 | G16: 4固定費 | H16: =IF($I16="","",VLOOKUP(L16,入力補助!C:E,3,FALSE)) -> 固定費 | I16: 2014-04-20 | K16: 100 | L16: 車両費 | M16: ○○会社 | N16: ○○会社 | O16: Aさん
A17: 5 | B17: 2014 | C17: 5 | D17: 5基礎工事 | E17: 5A2邸 | F17: 5自社施工 | G17: 5○○工事 | H17: =IF($I17="","",VLOOKUP(L17,入力補助!C:E,3,FALSE)) -> ○○工事 | I17: 2014-05-05 | K17: 1000 | L17: 基礎工事 | M17: A2邸 | N17: 自社施工 | O17: Cさん
A18: 5 | B18: 2014 | C18: 20 | D18: 5給料・手当 | E18: 5従業員（固定費） | F18: 5会社（固定費） | G18: 5固定費 | H18: =IF($I18="","",VLOOKUP(L18,入力補助!C:E,3,FALSE)) -> 固定費 | I18: 2014-05-20 | K18: 1000 | L18: 給料・手当 | M18: 従業員（固定費） | N18: 会社（固定費） | O18: Aさん
A19: 5 | B19: 2014 | C19: 20 | D19: 5車両費 | E19: 5○○会社 | F19: 5○○会社 | G19: 5固定費 | H19: =IF($I19="","",VLOOKUP(L19,入力補助!C:E,3,FALSE)) -> 固定費 | I19: 2014-05-20 | K19: 100 | L19: 車両費 | M19: ○○会社 | N19: ○○会社 | O19: Aさん
A20: 5 | B20: 2014 | C20: 20 | D20: 5木工事 | E20: 5A2邸 | F20: 5B5社 | G20: 5○○工事 | H20: =IF($I20="","",VLOOKUP(L20,入力補助!C:E,3,FALSE)) -> ○○工事 | I20: 2014-05-20 | K20: 2000 | L20: 木工事 | M20: A2邸 | N20: B5社 | O20: Cさん
A21: 6 | B21: 2014 | C21: 10 | D21: 6屋根工事 | E21: 6A1邸 | F21: 6B1社 | G21: 6○○工事 | H21: =IF($I21="","",VLOOKUP(L21,入力補助!C:E,3,FALSE)) -> ○○工事 | I21: 2014-06-10 | K21: 2000 | L21: 屋根工事 | M21: A1邸 | N21: B1社 | O21: Bさん
A22: 6 | B22: 2014 | C22: 20 | D22: 6△△ | E22: 6一般ユーザ | F22: 6○○会社 | G22: 6△△販売 | H22: =IF($I22="","",VLOOKUP(L22,入力補助!C:E,3,FALSE)) -> △△販売 | I22: 2014-06-20 | J22: 200 | L22: △△ | M22: 一般ユーザ | N22: ○○会社 | O22: Aさん
A23: 6 | B23: 2014 | C23: 20 | D23: 6給料・手当 | E23: 6従業員（固定費） | F23: 6会社（固定費） | G23: 6固定費 | H23: =IF($I23="","",VLOOKUP(L23,入力補助!C:E,3,FALSE)) -> 固定費 | I23: 2014-06-20 | K23: 1000 | L23: 給料・手当 | M23: 従業員（固定費） | N23: 会社（固定費） | O23: Aさん
A24: 6 | B24: 2014 | C24: 20 | D24: 6車両費 | E24: 6○○会社 | F24: 6○○会社 | G24: 6固定費 | H24: =IF($I24="","",VLOOKUP(L24,入力補助!C:E,3,FALSE)) -> 固定費 | I24: 2014-06-20 | K24: 100 | L24: 車両費 | M24: ○○会社 | N24: ○○会社 | O24: Aさん
A25: 7 | B25: 2014 | C25: 5 | D25: 7電気工事 | E25: 7A1邸 | F25: 7B4社 | G25: 7○○工事 | H25: =IF($I25="","",VLOOKUP(L25,入力補助!C:E,3,FALSE)) -> ○○工事 | I25: 2014-07-05 | K25: 3000 | L25: 電気工事 | M25: A1邸 | N25: B4社 | O25: Bさん
A26: 7 | B26: 2014 | C26: 8 | D26: 7屋根工事 | E26: 7A2邸 | F26: 7B1社 | G26: 7○○工事 | H26: =IF($I26="","",VLOOKUP(L26,入力補助!C:E,3,FALSE)) -> ○○工事 | I26: 2014-07-08 | K26: 2000 | L26: 屋根工事 | M26: A2邸 | N26: B1社 | O26: Cさん
A27: 7 | B27: 2014 | C27: 20 | D27: 7給料・手当 | E27: 7従業員（固定費） | F27: 7会社（固定費） | G27: 7固定費 | H27: =IF($I27="","",VLOOKUP(L27,入力補助!C:E,3,FALSE)) -> 固定費 | I27: 2014-07-20 | K27: 1000 | L27: 給料・手当 | M27: 従業員（固定費） | N27: 会社（固定費） | O27: Aさん
A28: 7 | B28: 2014 | C28: 20 | D28: 7車両費 | E28: 7○○会社 | F28: 7○○会社 | G28: 7固定費 | H28: =IF($I28="","",VLOOKUP(L28,入力補助!C:E,3,FALSE)) -> 固定費 | I28: 2014-07-20 | K28: 100 | L28: 車両費 | M28: ○○会社 | N28: ○○会社 | O28: Aさん
A29: 8 | B29: 2014 | C29: 10 | D29: 8○○ | E29: 8A1邸 | F29: 8○○会社 | G29: 8○○販売 | H29: =IF($I29="","",VLOOKUP(L29,入力補助!C:E,3,FALSE)) -> ○○販売 | I29: 2014-08-10 | J29: 5000 | L29: ○○ | M29: A1邸 | N29: ○○会社 | O29: Bさん
A30: 8 | B30: 2014 | C30: 10 | D30: 8電気工事 | E30: 8A2邸 | F30: 8B4社 | G30: 8○○工事 | H30: =IF($I30="","",VLOOKUP(L30,入力補助!C:E,3,FALSE)) -> ○○工事 | I30: 2014-08-10 | K30: 3000 | L30: 電気工事 | M30: A2邸 | N30: B4社 | O30: Cさん
A31: 8 | B31: 2014 | C31: 20 | D31: 8給料・手当 | E31: 8従業員（固定費） | F31: 8会社（固定費） | G31: 8固定費 | H31: =IF($I31="","",VLOOKUP(L31,入力補助!C:E,3,FALSE)) -> 固定費 | I31: 2014-08-20 | K31: 1000 | L31: 給料・手当 | M31: 従業員（固定費） | N31: 会社（固定費） | O31: Aさん
A32: 8 | B32: 2014 | C32: 20 | D32: 8車両費 | E32: 8○○会社 | F32: 8○○会社 | G32: 8固定費 | H32: =IF($I32="","",VLOOKUP(L32,入力補助!C:E,3,FALSE)) -> 固定費 | I32: 2014-08-20 | K32: 100 | L32: 車両費 | M32: ○○会社 | N32: ○○会社 | O32: Aさん
A33: 9 | B33: 2014 | C33: 10 | D33: 9△△ | E33: 9一般ユーザ | F33: 9○○会社 | G33: 9△△販売 | H33: =IF($I33="","",VLOOKUP(L33,入力補助!C:E,3,FALSE)) -> △△販売 | I33: 2014-09-10 | J33: 300 | L33: △△ | M33: 一般ユーザ | N33: ○○会社 | O33: Aさん
A34: 9 | B34: 2014 | C34: 10 | D34: 9○○ | E34: 9A2邸 | F34: 9○○会社 | G34: 9○○販売 | H34: =IF($I34="","",VLOOKUP(L34,入力補助!C:E,3,FALSE)) -> ○○販売 | I34: 2014-09-10 | J34: 5000 | L34: ○○ | M34: A2邸 | N34: ○○会社 | O34: Cさん
A35: 9 | B35: 2014 | C35: 20 | D35: 9外壁工事 | E35: 9A1邸 | F35: 9B3社 | G35: 9○○工事 | H35: =IF($I35="","",VLOOKUP(L35,入力補助!C:E,3,FALSE)) -> ○○工事 | I35: 2014-09-20 | K35: 3000 | L35: 外壁工事 | M35: A1邸 | N35: B3社 | O35: Bさん
A36: 9 | B36: 2014 | C36: 20 | D36: 9給料・手当 | E36: 9従業員（固定費） | F36: 9会社（固定費） | G36: 9固定費 | H36: =IF($I36="","",VLOOKUP(L36,入力補助!C:E,3,FALSE)) -> 固定費 | I36: 2014-09-20 | K36: 1000 | L36: 給料・手当 | M36: 従業員（固定費） | N36: 会社（固定費） | O36: Aさん
A37: 9 | B37: 2014 | C37: 20 | D37: 9車両費 | E37: 9○○会社 | F37: 9○○会社 | G37: 9固定費 | H37: =IF($I37="","",VLOOKUP(L37,入力補助!C:E,3,FALSE)) -> 固定費 | I37: 2014-09-20 | K37: 100 | L37: 車両費 | M37: ○○会社 | N37: ○○会社 | O37: Aさん
A38: 10 | B38: 2014 | C38: 4 | D38: 10外壁工事 | E38: 10A2邸 | F38: 10B3社 | G38: 10○○工事 | H38: =IF($I38="","",VLOOKUP(L38,入力補助!C:E,3,FALSE)) -> ○○工事 | I38: 2014-10-04 | K38: 3000 | L38: 外壁工事 | M38: A2邸 | N38: B3社 | O38: Cさん
A39: 10 | B39: 2014 | C39: 20 | D39: 10給料・手当 | E39: 10従業員（固定費） | F39: 10会社（固定費） | G39: 10固定費 | H39: =IF($I39="","",VLOOKUP(L39,入力補助!C:E,3,FALSE)) -> 固定費 | I39: 2014-10-20 | K39: 1000 | L39: 給料・手当 | M39: 従業員（固定費） | N39: 会社（固定費） | O39: Aさん
A40: 10 | B40: 2014 | C40: 20 | D40: 10車両費 | E40: 10○○会社 | F40: 10○○会社 | G40: 10固定費 | H40: =IF($I40="","",VLOOKUP(L40,入力補助!C:E,3,FALSE)) -> 固定費 | I40: 2014-10-20 | K40: 100 | L40: 車両費 | M40: ○○会社 | N40: ○○会社 | O40: Aさん
A41: 11 | B41: 2014 | C41: 20 | D41: 11○○ | E41: 11A1邸 | F41: 11○○会社 | G41: 11○○販売 | H41: =IF($I41="","",VLOOKUP(L41,入力補助!C:E,3,FALSE)) -> ○○販売 | I41: 2014-11-20 | J41: 5000 | L41: ○○ | M41: A1邸 | N41: ○○会社 | O41: Bさん
A42: 11 | B42: 2014 | C42: 20 | D42: 11給料・手当 | E42: 11従業員（固定費） | F42: 11会社（固定費） | G42: 11固定費 | H42: =IF($I42="","",VLOOKUP(L42,入力補助!C:E,3,FALSE)) -> 固定費 | I42: 2014-11-20 | K42: 1000 | L42: 給料・手当 | M42: 従業員（固定費） | N42: 会社（固定費） | O42: Aさん
A43: 11 | B43: 2014 | C43: 20 | D43: 11車両費 | E43: 11○○会社 | F43: 11○○会社 | G43: 11固定費 | H43: =IF($I43="","",VLOOKUP(L43,入力補助!C:E,3,FALSE)) -> 固定費 | I43: 2014-11-20 | K43: 100 | L43: 車両費 | M43: ○○会社 | N43: ○○会社 | O43: Aさん
A44: 12 | B44: 2014 | C44: 6 | D44: 12○○ | E44: 12A2邸 | F44: 12○○会社 | G44: 12○○販売 | H44: =IF($I44="","",VLOOKUP(L44,入力補助!C:E,3,FALSE)) -> ○○販売 | I44: 2014-12-06 | J44: 5000 | L44: ○○ | M44: A2邸 | N44: ○○会社 | O44: Cさん
A45: 12 | B45: 2014 | C45: 20 | D45: 12給料・手当 | E45: 12従業員（固定費） | F45: 12会社（固定費） | G45: 12固定費 | H45: =IF($I45="","",VLOOKUP(L45,入力補助!C:E,3,FALSE)) -> 固定費 | I45: 2014-12-20 | K45: 1000 | L45: 給料・手当 | M45: 従業員（固定費） | N45: 会社（固定費） | O45: Aさん
A46: 12 | B46: 2014 | C46: 20 | D46: 12車両費 | E46: 12○○会社 | F46: 12○○会社 | G46: 12固定費 | H46: =IF($I46="","",VLOOKUP(L46,入力補助!C:E,3,FALSE)) -> 固定費 | I46: 2014-12-20 | K46: 100 | L46: 車両費 | M46: ○○会社 | N46: ○○会社 | O46: Aさん
H47: =IF($I47="","",VLOOKUP(L47,入力補助!C:E,3,FALSE)) -> 
H48: =IF($I48="","",VLOOKUP(L48,入力補助!C:E,3,FALSE)) -> 
H49: =IF($I49="","",VLOOKUP(L49,入力補助!C:E,3,FALSE)) -> 
H50: =IF($I50="","",VLOOKUP(L50,入力補助!C:E,3,FALSE)) -> 
H51: =IF($I51="","",VLOOKUP(L51,入力補助!C:E,3,FALSE)) -> 
H52: =IF($I52="","",VLOOKUP(L52,入力補助!C:E,3,FALSE)) -> 
H53: =IF($I53="","",VLOOKUP(L53,入力補助!C:E,3,FALSE)) -> 
H54: =IF($I54="","",VLOOKUP(L54,入力補助!C:E,3,FALSE)) -> 
H55: =IF($I55="","",VLOOKUP(L55,入力補助!C:E,3,FALSE)) -> 
H56: =IF($I56="","",VLOOKUP(L56,入力補助!C:E,3,FALSE)) -> 
H57: =IF($I57="","",VLOOKUP(L57,入力補助!C:E,3,FALSE)) -> 
H58: =IF($I58="","",VLOOKUP(L58,入力補助!C:E,3,FALSE)) -> 
H59: =IF($I59="","",VLOOKUP(L59,入力補助!C:E,3,FALSE)) -> 
H60: =IF($I60="","",VLOOKUP(L60,入力補助!C:E,3,FALSE)) -> 
H61: =IF($I61="","",VLOOKUP(L61,入力補助!C:E,3,FALSE)) -> 
H62: =IF($I62="","",VLOOKUP(L62,入力補助!C:E,3,FALSE)) -> 
H63: =IF($I63="","",VLOOKUP(L63,入力補助!C:E,3,FALSE)) -> 
H64: =IF($I64="","",VLOOKUP(L64,入力補助!C:E,3,FALSE)) -> 
H65: =IF($I65="","",VLOOKUP(L65,入力補助!C:E,3,FALSE)) -> 
H66: =IF($I66="","",VLOOKUP(L66,入力補助!C:E,3,FALSE)) -> 
H67: =IF($I67="","",VLOOKUP(L67,入力補助!C:E,3,FALSE)) -> 
A68: =IF(I68="","",MONTH(I68)) ->  | B68: =IF(I68="","",$J$1) ->  | C68: =IF(I68="","",DAY(I68)) ->  | D68: =IF($I68="","",$A68&L68) ->  | E68: =IF($I68="","",$A68&M68) ->  | F68: =IF($I68="","",$A68&N68) ->  | G68: =IF($I68="","",$A68&H68) ->  | H68: =IF($I68="","",VLOOKUP(L68,入力補助!C:E,3,FALSE)) -> 
H69: =IF($I69="","",VLOOKUP(L69,入力補助!C:E,3,FALSE)) -> 
H70: =IF($I70="","",VLOOKUP(L70,入力補助!C:E,3,FALSE)) -> 
H71: =IF($I71="","",VLOOKUP(L71,入力補助!C:E,3,FALSE)) -> 
H72: =IF($I72="","",VLOOKUP(L72,入力補助!C:E,3,FALSE)) -> 
H73: =IF($I73="","",VLOOKUP(L73,入力補助!C:E,3,FALSE)) -> 
H74: =IF($I74="","",VLOOKUP(L74,入力補助!C:E,3,FALSE)) -> 
H75: =IF($I75="","",VLOOKUP(L75,入力補助!C:E,3,FALSE)) -> 
H76: =IF($I76="","",VLOOKUP(L76,入力補助!C:E,3,FALSE)) -> 
H77: =IF($I77="","",VLOOKUP(L77,入力補助!C:E,3,FALSE)) -> 
H78: =IF($I78="","",VLOOKUP(L78,入力補助!C:E,3,FALSE)) -> 
H79: =IF($I79="","",VLOOKUP(L79,入力補助!C:E,3,FALSE)) -> 
H80: =IF($I80="","",VLOOKUP(L80,入力補助!C:E,3,FALSE)) -> 
H81: =IF($I81="","",VLOOKUP(L81,入力補助!C:E,3,FALSE)) -> 
H82: =IF($I82="","",VLOOKUP(L82,入力補助!C:E,3,FALSE)) -> 
H83: =IF($I83="","",VLOOKUP(L83,入力補助!C:E,3,FALSE)) -> 
H84: =IF($I84="","",VLOOKUP(L84,入力補助!C:E,3,FALSE)) -> 
H85: =IF($I85="","",VLOOKUP(L85,入力補助!C:E,3,FALSE)) -> 
H86: =IF($I86="","",VLOOKUP(L86,入力補助!C:E,3,FALSE)) -> 
H87: =IF($I87="","",VLOOKUP(L87,入力補助!C:E,3,FALSE)) -> 
H88: =IF($I88="","",VLOOKUP(L88,入力補助!C:E,3,FALSE)) -> 
H89: =IF($I89="","",VLOOKUP(L89,入力補助!C:E,3,FALSE)) -> 
H90: =IF($I90="","",VLOOKUP(L90,入力補助!C:E,3,FALSE)) -> 
H91: =IF($I91="","",VLOOKUP(L91,入力補助!C:E,3,FALSE)) -> 
H92: =IF($I92="","",VLOOKUP(L92,入力補助!C:E,3,FALSE)) -> 
H93: =IF($I93="","",VLOOKUP(L93,入力補助!C:E,3,FALSE)) -> 
H94: =IF($I94="","",VLOOKUP(L94,入力補助!C:E,3,FALSE)) -> 
H95: =IF($I95="","",VLOOKUP(L95,入力補助!C:E,3,FALSE)) -> 
H96: =IF($I96="","",VLOOKUP(L96,入力補助!C:E,3,FALSE)) -> 
H97: =IF($I97="","",VLOOKUP(L97,入力補助!C:E,3,FALSE)) -> 
H98: =IF($I98="","",VLOOKUP(L98,入力補助!C:E,3,FALSE)) -> 
H99: =IF($I99="","",VLOOKUP(L99,入力補助!C:E,3,FALSE)) -> 
H100: =IF($I100="","",VLOOKUP(L100,入力補助!C:E,3,FALSE)) -> 
H101: =IF($I101="","",VLOOKUP(L101,入力補助!C:E,3,FALSE)) -> 
H102: =IF($I102="","",VLOOKUP(L102,入力補助!C:E,3,FALSE)) -> 
H103: =IF($I103="","",VLOOKUP(L103,入力補助!C:E,3,FALSE)) -> 
H104: =IF($I104="","",VLOOKUP(L104,入力補助!C:E,3,FALSE)) -> 
H105: =IF($I105="","",VLOOKUP(L105,入力補助!C:E,3,FALSE)) -> 
H106: =IF($I106="","",VLOOKUP(L106,入力補助!C:E,3,FALSE)) -> 
H107: =IF($I107="","",VLOOKUP(L107,入力補助!C:E,3,FALSE)) -> 
H108: =IF($I108="","",VLOOKUP(L108,入力補助!C:E,3,FALSE)) -> 
H109: =IF($I109="","",VLOOKUP(L109,入力補助!C:E,3,FALSE)) -> 
H110: =IF($I110="","",VLOOKUP(L110,入力補助!C:E,3,FALSE)) -> 
H111: =IF($I111="","",VLOOKUP(L111,入力補助!C:E,3,FALSE)) -> 
H112: =IF($I112="","",VLOOKUP(L112,入力補助!C:E,3,FALSE)) -> 
H113: =IF($I113="","",VLOOKUP(L113,入力補助!C:E,3,FALSE)) -> 
H114: =IF($I114="","",VLOOKUP(L114,入力補助!C:E,3,FALSE)) -> 
H115: =IF($I115="","",VLOOKUP(L115,入力補助!C:E,3,FALSE)) -> 
H116: =IF($I116="","",VLOOKUP(L116,入力補助!C:E,3,FALSE)) -> 
H117: =IF($I117="","",VLOOKUP(L117,入力補助!C:E,3,FALSE)) -> 
H118: =IF($I118="","",VLOOKUP(L118,入力補助!C:E,3,FALSE)) -> 
H119: =IF($I119="","",VLOOKUP(L119,入力補助!C:E,3,FALSE)) -> 
H120: =IF($I120="","",VLOOKUP(L120,入力補助!C:E,3,FALSE)) -> 
H121: =IF($I121="","",VLOOKUP(L121,入力補助!C:E,3,FALSE)) -> 
H122: =IF($I122="","",VLOOKUP(L122,入力補助!C:E,3,FALSE)) -> 
H123: =IF($I123="","",VLOOKUP(L123,入力補助!C:E,3,FALSE)) -> 
H124: =IF($I124="","",VLOOKUP(L124,入力補助!C:E,3,FALSE)) -> 
H125: =IF($I125="","",VLOOKUP(L125,入力補助!C:E,3,FALSE)) -> 
H126: =IF($I126="","",VLOOKUP(L126,入力補助!C:E,3,FALSE)) -> 
H127: =IF($I127="","",VLOOKUP(L127,入力補助!C:E,3,FALSE)) -> 
H128: =IF($I128="","",VLOOKUP(L128,入力補助!C:E,3,FALSE)) -> 
H129: =IF($I129="","",VLOOKUP(L129,入力補助!C:E,3,FALSE)) -> 
H130: =IF($I130="","",VLOOKUP(L130,入力補助!C:E,3,FALSE)) -> 
H131: =IF($I131="","",VLOOKUP(L131,入力補助!C:E,3,FALSE)) -> 
A132: =IF(I132="","",MONTH(I132)) ->  | B132: =IF(I132="","",$J$1) ->  | C132: =IF(I132="","",DAY(I132)) ->  | D132: =IF($I132="","",$A132&L132) ->  | E132: =IF($I132="","",$A132&M132) ->  | F132: =IF($I132="","",$A132&N132) ->  | G132: =IF($I132="","",$A132&H132) ->  | H132: =IF($I132="","",VLOOKUP(L132,入力補助!C:E,3,FALSE)) -> 
H133: =IF($I133="","",VLOOKUP(L133,入力補助!C:E,3,FALSE)) -> 
H134: =IF($I134="","",VLOOKUP(L134,入力補助!C:E,3,FALSE)) -> 
H135: =IF($I135="","",VLOOKUP(L135,入力補助!C:E,3,FALSE)) -> 
H136: =IF($I136="","",VLOOKUP(L136,入力補助!C:E,3,FALSE)) -> 
H137: =IF($I137="","",VLOOKUP(L137,入力補助!C:E,3,FALSE)) -> 
H138: =IF($I138="","",VLOOKUP(L138,入力補助!C:E,3,FALSE)) -> 
H139: =IF($I139="","",VLOOKUP(L139,入力補助!C:E,3,FALSE)) -> 
H140: =IF($I140="","",VLOOKUP(L140,入力補助!C:E,3,FALSE)) -> 
H141: =IF($I141="","",VLOOKUP(L141,入力補助!C:E,3,FALSE)) -> 
H142: =IF($I142="","",VLOOKUP(L142,入力補助!C:E,3,FALSE)) -> 
H143: =IF($I143="","",VLOOKUP(L143,入力補助!C:E,3,FALSE)) -> 
H144: =IF($I144="","",VLOOKUP(L144,入力補助!C:E,3,FALSE)) -> 
H145: =IF($I145="","",VLOOKUP(L145,入力補助!C:E,3,FALSE)) -> 
H146: =IF($I146="","",VLOOKUP(L146,入力補助!C:E,3,FALSE)) -> 
H147: =IF($I147="","",VLOOKUP(L147,入力補助!C:E,3,FALSE)) -> 
H148: =IF($I148="","",VLOOKUP(L148,入力補助!C:E,3,FALSE)) -> 
H149: =IF($I149="","",VLOOKUP(L149,入力補助!C:E,3,FALSE)) -> 
H150: =IF($I150="","",VLOOKUP(L150,入力補助!C:E,3,FALSE)) -> 
H151: =IF($I151="","",VLOOKUP(L151,入力補助!C:E,3,FALSE)) -> 
H152: =IF($I152="","",VLOOKUP(L152,入力補助!C:E,3,FALSE)) -> 
H153: =IF($I153="","",VLOOKUP(L153,入力補助!C:E,3,FALSE)) -> 
H154: =IF($I154="","",VLOOKUP(L154,入力補助!C:E,3,FALSE)) -> 
H155: =IF($I155="","",VLOOKUP(L155,入力補助!C:E,3,FALSE)) -> 
H156: =IF($I156="","",VLOOKUP(L156,入力補助!C:E,3,FALSE)) -> 
H157: =IF($I157="","",VLOOKUP(L157,入力補助!C:E,3,FALSE)) -> 
H158: =IF($I158="","",VLOOKUP(L158,入力補助!C:E,3,FALSE)) -> 
H159: =IF($I159="","",VLOOKUP(L159,入力補助!C:E,3,FALSE)) -> 
H160: =IF($I160="","",VLOOKUP(L160,入力補助!C:E,3,FALSE)) -> 
H161: =IF($I161="","",VLOOKUP(L161,入力補助!C:E,3,FALSE)) -> 
H162: =IF($I162="","",VLOOKUP(L162,入力補助!C:E,3,FALSE)) -> 
H163: =IF($I163="","",VLOOKUP(L163,入力補助!C:E,3,FALSE)) -> 
H164: =IF($I164="","",VLOOKUP(L164,入力補助!C:E,3,FALSE)) -> 
H165: =IF($I165="","",VLOOKUP(L165,入力補助!C:E,3,FALSE)) -> 
H166: =IF($I166="","",VLOOKUP(L166,入力補助!C:E,3,FALSE)) -> 
H167: =IF($I167="","",VLOOKUP(L167,入力補助!C:E,3,FALSE)) -> 
H168: =IF($I168="","",VLOOKUP(L168,入力補助!C:E,3,FALSE)) -> 
H169: =IF($I169="","",VLOOKUP(L169,入力補助!C:E,3,FALSE)) -> 
H170: =IF($I170="","",VLOOKUP(L170,入力補助!C:E,3,FALSE)) -> 
H171: =IF($I171="","",VLOOKUP(L171,入力補助!C:E,3,FALSE)) -> 
H172: =IF($I172="","",VLOOKUP(L172,入力補助!C:E,3,FALSE)) -> 
H173: =IF($I173="","",VLOOKUP(L173,入力補助!C:E,3,FALSE)) -> 
H174: =IF($I174="","",VLOOKUP(L174,入力補助!C:E,3,FALSE)) -> 
H175: =IF($I175="","",VLOOKUP(L175,入力補助!C:E,3,FALSE)) -> 
H176: =IF($I176="","",VLOOKUP(L176,入力補助!C:E,3,FALSE)) -> 
H177: =IF($I177="","",VLOOKUP(L177,入力補助!C:E,3,FALSE)) -> 
H178: =IF($I178="","",VLOOKUP(L178,入力補助!C:E,3,FALSE)) -> 
H179: =IF($I179="","",VLOOKUP(L179,入力補助!C:E,3,FALSE)) -> 
H180: =IF($I180="","",VLOOKUP(L180,入力補助!C:E,3,FALSE)) -> 
H181: =IF($I181="","",VLOOKUP(L181,入力補助!C:E,3,FALSE)) -> 
H182: =IF($I182="","",VLOOKUP(L182,入力補助!C:E,3,FALSE)) -> 
H183: =IF($I183="","",VLOOKUP(L183,入力補助!C:E,3,FALSE)) -> 
H184: =IF($I184="","",VLOOKUP(L184,入力補助!C:E,3,FALSE)) -> 
H185: =IF($I185="","",VLOOKUP(L185,入力補助!C:E,3,FALSE)) -> 
H186: =IF($I186="","",VLOOKUP(L186,入力補助!C:E,3,FALSE)) -> 
H187: =IF($I187="","",VLOOKUP(L187,入力補助!C:E,3,FALSE)) -> 
H188: =IF($I188="","",VLOOKUP(L188,入力補助!C:E,3,FALSE)) -> 
H189: =IF($I189="","",VLOOKUP(L189,入力補助!C:E,3,FALSE)) -> 
H190: =IF($I190="","",VLOOKUP(L190,入力補助!C:E,3,FALSE)) -> 
H191: =IF($I191="","",VLOOKUP(L191,入力補助!C:E,3,FALSE)) -> 
H192: =IF($I192="","",VLOOKUP(L192,入力補助!C:E,3,FALSE)) -> 
H193: =IF($I193="","",VLOOKUP(L193,入力補助!C:E,3,FALSE)) -> 
H194: =IF($I194="","",VLOOKUP(L194,入力補助!C:E,3,FALSE)) -> 
H195: =IF($I195="","",VLOOKUP(L195,入力補助!C:E,3,FALSE)) -> 
A196: =IF(I196="","",MONTH(I196)) ->  | B196: =IF(I196="","",$J$1) ->  | C196: =IF(I196="","",DAY(I196)) ->  | D196: =IF($I196="","",$A196&L196) ->  | E196: =IF($I196="","",$A196&M196) ->  | F196: =IF($I196="","",$A196&N196) ->  | G196: =IF($I196="","",$A196&H196) ->  | H196: =IF($I196="","",VLOOKUP(L196,入力補助!C:E,3,FALSE)) -> 
H197: =IF($I197="","",VLOOKUP(L197,入力補助!C:E,3,FALSE)) -> 
H198: =IF($I198="","",VLOOKUP(L198,入力補助!C:E,3,FALSE)) -> 
H199: =IF($I199="","",VLOOKUP(L199,入力補助!C:E,3,FALSE)) -> 
H200: =IF($I200="","",VLOOKUP(L200,入力補助!C:E,3,FALSE)) -> 
... 800 more rows

Sheet 当月集計
A1: =勘定入力!L3 -> 勘定科目 | B1: 年間合計 | D1: =IF(MONTH(TODAY())=1,"－",MONTH(TODAY())-1)&"月" -> 2月 | F1: =IF(MONTH(TODAY())=12,"－",MONTH(TODAY()))&"月" -> 3月 | H1: =IF(MONTH(TODAY())=12,"－",MONTH(TODAY())+1)&"月" -> 4月
B2: 入金 | C2: 支払 | D2: 入金 | E2: 支払 | F2: 入金 | G2: 支払 | H2: 入金 | I2: 支払
A3: =入力補助!C3 -> ○○ | B3: =VLOOKUP($A3,検索範囲A,年間入金,FALSE) -> 30000 | C3: =VLOOKUP($A3,検索範囲A,年間支払,FALSE) -> 0 | D3: =VLOOKUP($A3,検索範囲A,先月入金,FALSE) -> 5000 | E3: =VLOOKUP($A3,検索範囲A,先月支払,FALSE) -> 0 | F3: =VLOOKUP($A3,検索範囲A,当月入金,FALSE) -> 5000 | G3: =VLOOKUP($A3,検索範囲A,当月支払,FALSE) -> 0 | H3: =VLOOKUP($A3,検索範囲A,来月入金,FALSE) -> 0 | I3: =VLOOKUP($A3,検索範囲A,来月支払,FALSE) -> 0
A4: =入力補助!C4 -> △△ | B4: 500 | C4: 0 | D4: 0 | E4: 0 | F4: 0 | G4: 0 | H4: 0 | I4: 0
A5: =入力補助!C5 -> 基礎工事 | B5: 0 | C5: 2000 | D5: 0 | E5: 0 | F5: 0 | G5: 1000 | H5: 0 | I5: 0
A6: =入力補助!C6 -> 屋根工事 | B6: 0 | C6: 4000 | D6: 0 | E6: 0 | F6: 0 | G6: 0 | H6: 0 | I6: 0
A7: =入力補助!C7 -> 外構工事 | B7: 0 | C7: 0 | D7: 0 | E7: 0 | F7: 0 | G7: 0 | H7: 0 | I7: 0
A8: =入力補助!C8 -> 外壁工事 | B8: 0 | C8: 6000 | D8: 0 | E8: 0 | F8: 0 | G8: 0 | H8: 0 | I8: 0
A9: =入力補助!C9 -> 左官工事 | B9: 0 | C9: 0 | D9: 0 | E9: 0 | F9: 0 | G9: 0 | H9: 0 | I9: 0
A10: =入力補助!C10 -> 電気工事 | B10: 0 | C10: 6000 | D10: 0 | E10: 0 | F10: 0 | G10: 0 | H10: 0 | I10: 0
A11: =入力補助!C11 -> 木工事 | B11: 0 | C11: 4000 | D11: 0 | E11: 0 | F11: 0 | G11: 0 | H11: 0 | I11: 2000
A12: =入力補助!C12 -> 内装工事 | B12: 0 | C12: 0 | D12: 0 | E12: 0 | F12: 0 | G12: 0 | H12: 0 | I12: 0
A13: =入力補助!C13 -> 住宅設備工事 | B13: 0 | C13: 0 | D13: 0 | E13: 0 | F13: 0 | G13: 0 | H13: 0 | I13: 0
A14: =入力補助!C14 -> サッシ工事 | B14: 0 | C14: 0 | D14: 0 | E14: 0 | F14: 0 | G14: 0 | H14: 0 | I14: 0
A15: =入力補助!C15 -> 衛生設備工事 | B15: 0 | C15: 0 | D15: 0 | E15: 0 | F15: 0 | G15: 0 | H15: 0 | I15: 0
A16: =入力補助!C16 -> 内部建具工事 | B16: 0 | C16: 0 | D16: 0 | E16: 0 | F16: 0 | G16: 0 | H16: 0 | I16: 0
A17: =入力補助!C17 -> 板金工事 | B17: 0 | C17: 0 | D17: 0 | E17: 0 | F17: 0 | G17: 0 | H17: 0 | I17: 0
A18: =入力補助!C18 -> 付帯工事 | B18: 0 | C18: 0 | D18: 0 | E18: 0 | F18: 0 | G18: 0 | H18: 0 | I18: 0
A19: =入力補助!C19 -> 仮設工事 | B19: 0 | C19: 0 | D19: 0 | E19: 0 | F19: 0 | G19: 0 | H19: 0 | I19: 0
A20: =入力補助!C20 -> 申請手続き | B20: 0 | C20: 0 | D20: 0 | E20: 0 | F20: 0 | G20: 0 | H20: 0 | I20: 0
A21: =入力補助!C21 -> 諸費用 | B21: 0 | C21: 0 | D21: 0 | E21: 0 | F21: 0 | G21: 0 | H21: 0 | I21: 0
A22: =入力補助!C22 -> 0 | B22: 0 | C22: 0 | D22: 0 | E22: 0 | F22: 0 | G22: 0 | H22: 0 | I22: 0
A23: =入力補助!C23 -> ----- | B23: 0 | C23: 0 | D23: 0 | E23: 0 | F23: 0 | G23: 0 | H23: 0 | I23: 0
A24: =入力補助!C24 -> 繰越金 | B24: 10000 | C24: 0 | D24: 0 | E24: 0 | F24: 0 | G24: 0 | H24: 0 | I24: 0
A25: =入力補助!C25 -> 給料・手当 | B25: 0 | C25: 12000 | D25: 0 | E25: 1000 | F25: 0 | G25: 1000 | H25: 0 | I25: 1000
A26: =入力補助!C26 -> 車両費 | B26: 0 | C26: 1200 | D26: 0 | E26: 100 | F26: 0 | G26: 100 | H26: 0 | I26: 100
A27: =入力補助!C27 -> 燃料 | B27: 0 | C27: 0 | D27: 0 | E27: 0 | F27: 0 | G27: 0 | H27: 0 | I27: 0
A28: =入力補助!C28 -> 水道 | B28: 0 | C28: 0 | D28: 0 | E28: 0 | F28: 0 | G28: 0 | H28: 0 | I28: 0
A29: =入力補助!C29 -> 電気 | B29: 0 | C29: 0 | D29: 0 | E29: 0 | F29: 0 | G29: 0 | H29: 0 | I29: 0
A30: =入力補助!C30 -> ガス | B30: 0 | C30: 0 | D30: 0 | E30: 0 | F30: 0 | G30: 0 | H30: 0 | I30: 0
A31: =入力補助!C31 -> 通信費 | B31: 0 | C31: 0 | D31: 0 | E31: 0 | F31: 0 | G31: 0 | H31: 0 | I31: 0
A32: =入力補助!C32 -> 事務用品費 | B32: 0 | C32: 0 | D32: 0 | E32: 0 | F32: 0 | G32: 0 | H32: 0 | I32: 0
A33: =入力補助!C33 -> 保険料 | B33: 0 | C33: 0 | D33: 0 | E33: 0 | F33: 0 | G33: 0 | H33: 0 | I33: 0
A34: =入力補助!C34 -> リース料 | B34: 0 | C34: 0 | D34: 0 | E34: 0 | F34: 0 | G34: 0 | H34: 0 | I34: 0
A35: =入力補助!C35 -> 0 | B35: =VLOOKUP($A35,検索範囲A,年間入金,FALSE) -> 0 | C35: =VLOOKUP($A35,検索範囲A,年間支払,FALSE) -> 0 | D35: =VLOOKUP($A35,検索範囲A,先月入金,FALSE) -> 0 | E35: =VLOOKUP($A35,検索範囲A,先月支払,FALSE) -> 0 | F35: =VLOOKUP($A35,検索範囲A,当月入金,FALSE) -> 0 | G35: =VLOOKUP($A35,検索範囲A,当月支払,FALSE) -> 0 | H35: =VLOOKUP($A35,検索範囲A,来月入金,FALSE) -> 0 | I35: =VLOOKUP($A35,検索範囲A,来月支払,FALSE) -> 0
A36: =入力補助!C36 -> 0 | B36: 0 | C36: 0 | D36: 0 | E36: 0 | F36: 0 | G36: 0 | H36: 0 | I36: 0
A37: =入力補助!C37 -> 0 | B37: 0 | C37: 0 | D37: 0 | E37: 0 | F37: 0 | G37: 0 | H37: 0 | I37: 0
A38: =入力補助!C38 -> 0 | B38: 0 | C38: 0 | D38: 0 | E38: 0 | F38: 0 | G38: 0 | H38: 0 | I38: 0
A39: =入力補助!C39 -> 0 | B39: 0 | C39: 0 | D39: 0 | E39: 0 | F39: 0 | G39: 0 | H39: 0 | I39: 0
A40: =入力補助!C40 -> 0 | B40: 0 | C40: 0 | D40: 0 | E40: 0 | F40: 0 | G40: 0 | H40: 0 | I40: 0
A41: =入力補助!C41 -> 0 | B41: 0 | C41: 0 | D41: 0 | E41: 0 | F41: 0 | G41: 0 | H41: 0 | I41: 0
A42: =入力補助!C42 -> 0 | B42: 0 | C42: 0 | D42: 0 | E42: 0 | F42: 0 | G42: 0 | H42: 0 | I42: 0
A43: =入力補助!C43 -> 0 | B43: 0 | C43: 0 | D43: 0 | E43: 0 | F43: 0 | G43: 0 | H43: 0 | I43: 0
A44: =入力補助!C44 -> 0 | B44: 0 | C44: 0 | D44: 0 | E44: 0 | F44: 0 | G44: 0 | H44: 0 | I44: 0
A45: =入力補助!C45 -> 0 | B45: 0 | C45: 0 | D45: 0 | E45: 0 | F45: 0 | G45: 0 | H45: 0 | I45: 0
A46: =入力補助!C46 -> 0 | B46: 0 | C46: 0 | D46: 0 | E46: 0 | F46: 0 | G46: 0 | H46: 0 | I46: 0
A47: =入力補助!C47 -> 0 | B47: 0 | C47: 0 | D47: 0 | E47: 0 | F47: 0 | G47: 0 | H47: 0 | I47: 0
A48: =入力補助!C48 -> 0 | B48: 0 | C48: 0 | D48: 0 | E48: 0 | F48: 0 | G48: 0 | H48: 0 | I48: 0
A49: =入力補助!C49 -> 0 | B49: 0 | C49: 0 | D49: 0 | E49: 0 | F49: 0 | G49: 0 | H49: 0 | I49: 0
A50: =入力補助!C50 -> 0 | B50: 0 | C50: 0 | D50: 0 | E50: 0 | F50: 0 | G50: 0 | H50: 0 | I50: 0
A51: =入力補助!C51 -> 0 | B51: 0 | C51: 0 | D51: 0 | E51: 0 | F51: 0 | G51: 0 | H51: 0 | I51: 0
A52: =入力補助!C52 -> 0 | B52: 0 | C52: 0 | D52: 0 | E52: 0 | F52: 0 | G52: 0 | H52: 0 | I52: 0
A53: =入力補助!C53 -> 0 | B53: 0 | C53: 0 | D53: 0 | E53: 0 | F53: 0 | G53: 0 | H53: 0 | I53: 0
A54: =入力補助!C54 -> 0 | B54: 0 | C54: 0 | D54: 0 | E54: 0 | F54: 0 | G54: 0 | H54: 0 | I54: 0
A55: =入力補助!C55 -> 0 | B55: 0 | C55: 0 | D55: 0 | E55: 0 | F55: 0 | G55: 0 | H55: 0 | I55: 0
A56: =入力補助!C56 -> 0 | B56: 0 | C56: 0 | D56: 0 | E56: 0 | F56: 0 | G56: 0 | H56: 0 | I56: 0
A57: =入力補助!C57 -> 0 | B57: 0 | C57: 0 | D57: 0 | E57: 0 | F57: 0 | G57: 0 | H57: 0 | I57: 0
A58: 合計 | B58: =SUM(B3:B57) -> 40500 | C58: 35200 | D58: 5000 | E58: 1100 | F58: 5000 | G58: 2100 | H58: 0 | I58: 3100
A60: =勘定入力!M3 -> 施工先 | B60: 年間合計 | D60: =IF(MONTH(TODAY())=1,"－",MONTH(TODAY())-1)&"月" -> 2月 | F60: 今月 | H60: =IF(MONTH(TODAY())=12,"－",MONTH(TODAY())+1)&"月" -> 4月
B61: 入金 | C61: 支払 | D61: 入金 | E61: 支払 | F61: 入金 | G61: 支払 | H61: 入金 | I61: 支払
A62: =入力補助!J3 -> ○○会社 | B62: =VLOOKUP($A62,検索範囲B,年間入金,FALSE) -> 0 | C62: =VLOOKUP($A62,検索範囲B,年間支払,FALSE) -> 1200 | D62: =VLOOKUP($A62,検索範囲B,先月入金,FALSE) -> 0 | E62: =VLOOKUP($A62,検索範囲B,先月支払,FALSE) -> 100 | F62: =VLOOKUP($A62,検索範囲B,当月入金,FALSE) -> 0 | G62: =VLOOKUP($A62,検索範囲B,当月支払,FALSE) -> 100 | H62: =VLOOKUP($A62,検索範囲B,来月入金,FALSE) -> 0 | I62: =VLOOKUP($A62,検索範囲B,来月支払,FALSE) -> 100
A63: =入力補助!J4 -> 従業員（固定費） | B63: 0 | C63: 12000 | D63: 0 | E63: 1000 | F63: 0 | G63: 1000 | H63: 0 | I63: 1000
A64: =入力補助!J5 -> 一般ユーザ | B64: 500 | C64: 0 | D64: 0 | E64: 0 | F64: 0 | G64: 0 | H64: 0 | I64: 0
A65: =入力補助!J6 -> A1邸 | B65: 15000 | C65: 11000 | D65: 5000 | E65: 0 | F65: 0 | G65: 1000 | H65: 0 | I65: 2000
A66: =入力補助!J7 -> A2邸 | B66: 15000 | C66: 11000 | D66: 0 | E66: 0 | F66: 5000 | G66: 0 | H66: 0 | I66: 0
A67: =入力補助!J8 -> A3邸 | B67: 0 | C67: 0 | D67: 0 | E67: 0 | F67: 0 | G67: 0 | H67: 0 | I67: 0
A68: =入力補助!J9 -> A4邸 | B68: 0 | C68: 0 | D68: 0 | E68: 0 | F68: 0 | G68: 0 | H68: 0 | I68: 0
A69: =入力補助!J10 -> A5邸 | B69: 0 | C69: 0 | D69: 0 | E69: 0 | F69: 0 | G69: 0 | H69: 0 | I69: 0
A70: =入力補助!J11 -> A6邸 | B70: 0 | C70: 0 | D70: 0 | E70: 0 | F70: 0 | G70: 0 | H70: 0 | I70: 0
A71: =入力補助!J12 -> A7邸 | B71: 0 | C71: 0 | D71: 0 | E71: 0 | F71: 0 | G71: 0 | H71: 0 | I71: 0
A72: =入力補助!J13 -> A8邸 | B72: 0 | C72: 0 | D72: 0 | E72: 0 | F72: 0 | G72: 0 | H72: 0 | I72: 0
A73: =入力補助!J14 -> A9邸 | B73: 0 | C73: 0 | D73: 0 | E73: 0 | F73: 0 | G73: 0 | H73: 0 | I73: 0
A74: =入力補助!J15 -> A10邸 | B74: 0 | C74: 0 | D74: 0 | E74: 0 | F74: 0 | G74: 0 | H74: 0 | I74: 0
A75: =入力補助!J16 -> A11邸 | B75: 0 | C75: 0 | D75: 0 | E75: 0 | F75: 0 | G75: 0 | H75: 0 | I75: 0
A76: =入力補助!J17 -> A12邸 | B76: 0 | C76: 0 | D76: 0 | E76: 0 | F76: 0 | G76: 0 | H76: 0 | I76: 0
A77: =入力補助!J18 -> A13邸 | B77: 0 | C77: 0 | D77: 0 | E77: 0 | F77: 0 | G77: 0 | H77: 0 | I77: 0
A78: =入力補助!J19 -> A14邸 | B78: 0 | C78: 0 | D78: 0 | E78: 0 | F78: 0 | G78: 0 | H78: 0 | I78: 0
A79: =入力補助!J20 -> A15邸 | B79: 0 | C79: 0 | D79: 0 | E79: 0 | F79: 0 | G79: 0 | H79: 0 | I79: 0
A80: =入力補助!J21 -> 0 | B80: 0 | C80: 0 | D80: 0 | E80: 0 | F80: 0 | G80: 0 | H80: 0 | I80: 0
A81: =入力補助!J22 -> 0 | B81: 0 | C81: 0 | D81: 0 | E81: 0 | F81: 0 | G81: 0 | H81: 0 | I81: 0
A82: =入力補助!J23 -> 0 | B82: 0 | C82: 0 | D82: 0 | E82: 0 | F82: 0 | G82: 0 | H82: 0 | I82: 0
A83: =入力補助!J24 -> 0 | B83: 0 | C83: 0 | D83: 0 | E83: 0 | F83: 0 | G83: 0 | H83: 0 | I83: 0
A84: =入力補助!J25 -> 0 | B84: 0 | C84: 0 | D84: 0 | E84: 0 | F84: 0 | G84: 0 | H84: 0 | I84: 0
A85: =入力補助!J26 -> 0 | B85: 0 | C85: 0 | D85: 0 | E85: 0 | F85: 0 | G85: 0 | H85: 0 | I85: 0
A86: =入力補助!J27 -> 0 | B86: 0 | C86: 0 | D86: 0 | E86: 0 | F86: 0 | G86: 0 | H86: 0 | I86: 0
A87: =入力補助!J28 -> 0 | B87: 0 | C87: 0 | D87: 0 | E87: 0 | F87: 0 | G87: 0 | H87: 0 | I87: 0
A88: =入力補助!J29 -> 0 | B88: 0 | C88: 0 | D88: 0 | E88: 0 | F88: 0 | G88: 0 | H88: 0 | I88: 0
A89: =入力補助!J30 -> 0 | B89: 0 | C89: 0 | D89: 0 | E89: 0 | F89: 0 | G89: 0 | H89: 0 | I89: 0
A90: =入力補助!J31 -> 0 | B90: 0 | C90: 0 | D90: 0 | E90: 0 | F90: 0 | G90: 0 | H90: 0 | I90: 0
A91: =入力補助!J32 -> 0 | B91: 0 | C91: 0 | D91: 0 | E91: 0 | F91: 0 | G91: 0 | H91: 0 | I91: 0
A92: =入力補助!J33 -> 0 | B92: 0 | C92: 0 | D92: 0 | E92: 0 | F92: 0 | G92: 0 | H92: 0 | I92: 0
A93: =入力補助!J34 -> 0 | B93: 0 | C93: 0 | D93: 0 | E93: 0 | F93: 0 | G93: 0 | H93: 0 | I93: 0
A94: =入力補助!J35 -> 0 | B94: =VLOOKUP($A94,検索範囲B,年間入金,FALSE) -> 0 | C94: =VLOOKUP($A94,検索範囲B,年間支払,FALSE) -> 0 | D94: =VLOOKUP($A94,検索範囲B,先月入金,FALSE) -> 0 | E94: =VLOOKUP($A94,検索範囲B,先月支払,FALSE) -> 0 | F94: =VLOOKUP($A94,検索範囲B,当月入金,FALSE) -> 0 | G94: =VLOOKUP($A94,検索範囲B,当月支払,FALSE) -> 0 | H94: =VLOOKUP($A94,検索範囲B,来月入金,FALSE) -> 0 | I94: =VLOOKUP($A94,検索範囲B,来月支払,FALSE) -> 0
A95: =入力補助!J36 -> 0 | B95: 0 | C95: 0 | D95: 0 | E95: 0 | F95: 0 | G95: 0 | H95: 0 | I95: 0
A96: =入力補助!J37 -> 0 | B96: 0 | C96: 0 | D96: 0 | E96: 0 | F96: 0 | G96: 0 | H96: 0 | I96: 0
A97: =入力補助!J38 -> 0 | B97: 0 | C97: 0 | D97: 0 | E97: 0 | F97: 0 | G97: 0 | H97: 0 | I97: 0
A98: =入力補助!J39 -> 0 | B98: 0 | C98: 0 | D98: 0 | E98: 0 | F98: 0 | G98: 0 | H98: 0 | I98: 0
A99: =入力補助!J40 -> 0 | B99: 0 | C99: 0 | D99: 0 | E99: 0 | F99: 0 | G99: 0 | H99: 0 | I99: 0
A100: =入力補助!J41 -> 0 | B100: 0 | C100: 0 | D100: 0 | E100: 0 | F100: 0 | G100: 0 | H100: 0 | I100: 0
A101: =入力補助!J42 -> 0 | B101: 0 | C101: 0 | D101: 0 | E101: 0 | F101: 0 | G101: 0 | H101: 0 | I101: 0
A102: =入力補助!J43 -> 0 | B102: 0 | C102: 0 | D102: 0 | E102: 0 | F102: 0 | G102: 0 | H102: 0 | I102: 0
A103: =入力補助!J44 -> 0 | B103: 0 | C103: 0 | D103: 0 | E103: 0 | F103: 0 | G103: 0 | H103: 0 | I103: 0
A104: =入力補助!J45 -> 0 | B104: 0 | C104: 0 | D104: 0 | E104: 0 | F104: 0 | G104: 0 | H104: 0 | I104: 0
A105: =入力補助!J46 -> 0 | B105: 0 | C105: 0 | D105: 0 | E105: 0 | F105: 0 | G105: 0 | H105: 0 | I105: 0
A106: =入力補助!J47 -> 0 | B106: 0 | C106: 0 | D106: 0 | E106: 0 | F106: 0 | G106: 0 | H106: 0 | I106: 0
A107: =入力補助!J48 -> 0 | B107: 0 | C107: 0 | D107: 0 | E107: 0 | F107: 0 | G107: 0 | H107: 0 | I107: 0
A108: =入力補助!J49 -> 0 | B108: 0 | C108: 0 | D108: 0 | E108: 0 | F108: 0 | G108: 0 | H108: 0 | I108: 0
A109: =入力補助!J50 -> 0 | B109: 0 | C109: 0 | D109: 0 | E109: 0 | F109: 0 | G109: 0 | H109: 0 | I109: 0
A110: =入力補助!J51 -> 0 | B110: 0 | C110: 0 | D110: 0 | E110: 0 | F110: 0 | G110: 0 | H110: 0 | I110: 0
A111: =入力補助!J52 -> 0 | B111: 0 | C111: 0 | D111: 0 | E111: 0 | F111: 0 | G111: 0 | H111: 0 | I111: 0
A112: =入力補助!J53 -> 0 | B112: 0 | C112: 0 | D112: 0 | E112: 0 | F112: 0 | G112: 0 | H112: 0 | I112: 0
A113: =入力補助!J54 -> 0 | B113: 0 | C113: 0 | D113: 0 | E113: 0 | F113: 0 | G113: 0 | H113: 0 | I113: 0
A114: =入力補助!J55 -> 0 | B114: 0 | C114: 0 | D114: 0 | E114: 0 | F114: 0 | G114: 0 | H114: 0 | I114: 0
A115: =入力補助!J56 -> その他 | B115: 0 | C115: 0 | D115: 0 | E115: 0 | F115: 0 | G115: 0 | H115: 0 | I115: 0
A116: =入力補助!J57 -> 該当無 | B116: 10000 | C116: 0 | D116: 0 | E116: 0 | F116: 0 | G116: 0 | H116: 0 | I116: 0
A117: 合計 | B117: =SUM(B62:B116) -> 40500 | C117: 35200 | D117: 5000 | E117: 1100 | F117: 5000 | G117: 2100 | H117: 0 | I117: 3100
A119: =勘定入力!N3 -> 施工者・メーカ | B119: 年間合計 | D119: =IF(MONTH(TODAY())=1,"－",MONTH(TODAY())-1)&"月" -> 2月 | F119: 今月 | H119: =IF(MONTH(TODAY())=12,"－",MONTH(TODAY())+1)&"月" -> 4月
B120: 入金 | C120: 支払 | D120: 入金 | E120: 支払 | F120: 入金 | G120: 支払 | H120: 入金 | I120: 支払
A121: =入力補助!M3 -> ○○会社 | B121: =VLOOKUP($A121,検索範囲C,年間入金,FALSE) -> 30500 | C121: =VLOOKUP($A121,検索範囲C,年間支払,FALSE) -> 1200 | D121: =VLOOKUP($A121,検索範囲C,先月入金,FALSE) -> 5000 | E121: =VLOOKUP($A121,検索範囲C,先月支払,FALSE) -> 100 | F121: =VLOOKUP($A121,検索範囲C,当月入金,FALSE) -> 5000 | G121: =VLOOKUP($A121,検索範囲C,当月支払,FALSE) -> 100 | H121: =VLOOKUP($A121,検索範囲C,来月入金,FALSE) -> 0 | I121: =VLOOKUP($A121,検索範囲C,来月支払,FALSE) -> 100
A122: =入力補助!M4 -> 会社（固定費） | B122: 0 | C122: 12000 | D122: 0 | E122: 1000 | F122: 0 | G122: 1000 | H122: 0 | I122: 1000
A123: =入力補助!M5 -> その他協力会社 | B123: 0 | C123: 0 | D123: 0 | E123: 0 | F123: 0 | G123: 0 | H123: 0 | I123: 0
A124: =入力補助!M6 -> 自社施工 | B124: 0 | C124: 2000 | D124: 0 | E124: 0 | F124: 0 | G124: 1000 | H124: 0 | I124: 0
A125: =入力補助!M7 -> B1社 | B125: 0 | C125: 4000 | D125: 0 | E125: 0 | F125: 0 | G125: 0 | H125: 0 | I125: 0
A126: =入力補助!M8 -> B2社 | B126: 0 | C126: 0 | D126: 0 | E126: 0 | F126: 0 | G126: 0 | H126: 0 | I126: 0
A127: =入力補助!M9 -> B3社 | B127: 0 | C127: 6000 | D127: 0 | E127: 0 | F127: 0 | G127: 0 | H127: 0 | I127: 0
A128: =入力補助!M10 -> B4社 | B128: 0 | C128: 6000 | D128: 0 | E128: 0 | F128: 0 | G128: 0 | H128: 0 | I128: 0
A129: =入力補助!M11 -> B5社 | B129: 0 | C129: 4000 | D129: 0 | E129: 0 | F129: 0 | G129: 0 | H129: 0 | I129: 2000
A130: =入力補助!M12 -> B6社 | B130: 0 | C130: 0 | D130: 0 | E130: 0 | F130: 0 | G130: 0 | H130: 0 | I130: 0
A131: =入力補助!M13 -> B7社 | B131: 0 | C131: 0 | D131: 0 | E131: 0 | F131: 0 | G131: 0 | H131: 0 | I131: 0
A132: =入力補助!M14 -> B8社 | B132: 0 | C132: 0 | D132: 0 | E132: 0 | F132: 0 | G132: 0 | H132: 0 | I132: 0
A133: =入力補助!M15 -> B9社 | B133: 0 | C133: 0 | D133: 0 | E133: 0 | F133: 0 | G133: 0 | H133: 0 | I133: 0
A134: =入力補助!M16 -> B10社 | B134: 0 | C134: 0 | D134: 0 | E134: 0 | F134: 0 | G134: 0 | H134: 0 | I134: 0
A135: =入力補助!M17 -> B11社 | B135: 0 | C135: 0 | D135: 0 | E135: 0 | F135: 0 | G135: 0 | H135: 0 | I135: 0
A136: =入力補助!M18 -> B12社 | B136: 0 | C136: 0 | D136: 0 | E136: 0 | F136: 0 | G136: 0 | H136: 0 | I136: 0
A137: =入力補助!M19 -> B13社 | B137: 0 | C137: 0 | D137: 0 | E137: 0 | F137: 0 | G137: 0 | H137: 0 | I137: 0
A138: =入力補助!M20 -> B14社 | B138: 0 | C138: 0 | D138: 0 | E138: 0 | F138: 0 | G138: 0 | H138: 0 | I138: 0
A139: =入力補助!M21 -> B15社 | B139: 0 | C139: 0 | D139: 0 | E139: 0 | F139: 0 | G139: 0 | H139: 0 | I139: 0
A140: =入力補助!M22 -> B16社 | B140: 0 | C140: 0 | D140: 0 | E140: 0 | F140: 0 | G140: 0 | H140: 0 | I140: 0
A141: =入力補助!M23 -> 0 | B141: 0 | C141: 0 | D141: 0 | E141: 0 | F141: 0 | G141: 0 | H141: 0 | I141: 0
A142: =入力補助!M24 -> 0 | B142: 0 | C142: 0 | D142: 0 | E142: 0 | F142: 0 | G142: 0 | H142: 0 | I142: 0
A143: =入力補助!M25 -> 0 | B143: 0 | C143: 0 | D143: 0 | E143: 0 | F143: 0 | G143: 0 | H143: 0 | I143: 0
A144: =入力補助!M26 -> 0 | B144: 0 | C144: 0 | D144: 0 | E144: 0 | F144: 0 | G144: 0 | H144: 0 | I144: 0
A145: =入力補助!M27 -> 0 | B145: 0 | C145: 0 | D145: 0 | E145: 0 | F145: 0 | G145: 0 | H145: 0 | I145: 0
A146: =入力補助!M28 -> 0 | B146: 0 | C146: 0 | D146: 0 | E146: 0 | F146: 0 | G146: 0 | H146: 0 | I146: 0
A147: =入力補助!M29 -> 0 | B147: 0 | C147: 0 | D147: 0 | E147: 0 | F147: 0 | G147: 0 | H147: 0 | I147: 0
A148: =入力補助!M30 -> 0 | B148: 0 | C148: 0 | D148: 0 | E148: 0 | F148: 0 | G148: 0 | H148: 0 | I148: 0
A149: =入力補助!M31 -> 0 | B149: 0 | C149: 0 | D149: 0 | E149: 0 | F149: 0 | G149: 0 | H149: 0 | I149: 0
A150: =入力補助!M32 -> 0 | B150: 0 | C150: 0 | D150: 0 | E150: 0 | F150: 0 | G150: 0 | H150: 0 | I150: 0
A151: =入力補助!M33 -> 0 | B151: 0 | C151: 0 | D151: 0 | E151: 0 | F151: 0 | G151: 0 | H151: 0 | I151: 0
A152: =入力補助!M34 -> 0 | B152: 0 | C152: 0 | D152: 0 | E152: 0 | F152: 0 | G152: 0 | H152: 0 | I152: 0
A153: =入力補助!M35 -> 0 | B153: =VLOOKUP($A153,検索範囲C,年間入金,FALSE) -> 0 | C153: =VLOOKUP($A153,検索範囲C,年間支払,FALSE) -> 0 | D153: =VLOOKUP($A153,検索範囲C,先月入金,FALSE) -> 0 | E153: =VLOOKUP($A153,検索範囲C,先月支払,FALSE) -> 0 | F153: =VLOOKUP($A153,検索範囲C,当月入金,FALSE) -> 0 | G153: =VLOOKUP($A153,検索範囲C,当月支払,FALSE) -> 0 | H153: =VLOOKUP($A153,検索範囲C,来月入金,FALSE) -> 0 | I153: =VLOOKUP($A153,検索範囲C,来月支払,FALSE) -> 0
A154: =入力補助!M36 -> 0 | B154: 0 | C154: 0 | D154: 0 | E154: 0 | F154: 0 | G154: 0 | H154: 0 | I154: 0
A155: =入力補助!M37 -> 0 | B155: 0 | C155: 0 | D155: 0 | E155: 0 | F155: 0 | G155: 0 | H155: 0 | I155: 0
A156: =入力補助!M38 -> 0 | B156: 0 | C156: 0 | D156: 0 | E156: 0 | F156: 0 | G156: 0 | H156: 0 | I156: 0
A157: =入力補助!M39 -> 0 | B157: 0 | C157: 0 | D157: 0 | E157: 0 | F157: 0 | G157: 0 | H157: 0 | I157: 0
A158: =入力補助!M40 -> 0 | B158: 0 | C158: 0 | D158: 0 | E158: 0 | F158: 0 | G158: 0 | H158: 0 | I158: 0
A159: =入力補助!M41 -> 0 | B159: 0 | C159: 0 | D159: 0 | E159: 0 | F159: 0 | G159: 0 | H159: 0 | I159: 0
A160: =入力補助!M42 -> 0 | B160: 0 | C160: 0 | D160: 0 | E160: 0 | F160: 0 | G160: 0 | H160: 0 | I160: 0
A161: =入力補助!M43 -> 0 | B161: 0 | C161: 0 | D161: 0 | E161: 0 | F161: 0 | G161: 0 | H161: 0 | I161: 0
A162: =入力補助!M44 -> 0 | B162: 0 | C162: 0 | D162: 0 | E162: 0 | F162: 0 | G162: 0 | H162: 0 | I162: 0
A163: =入力補助!M45 -> 0 | B163: 0 | C163: 0 | D163: 0 | E163: 0 | F163: 0 | G163: 0 | H163: 0 | I163: 0
A164: =入力補助!M46 -> 0 | B164: 0 | C164: 0 | D164: 0 | E164: 0 | F164: 0 | G164: 0 | H164: 0 | I164: 0
A165: =入力補助!M47 -> 0 | B165: 0 | C165: 0 | D165: 0 | E165: 0 | F165: 0 | G165: 0 | H165: 0 | I165: 0
A166: =入力補助!M48 -> 0 | B166: 0 | C166: 0 | D166: 0 | E166: 0 | F166: 0 | G166: 0 | H166: 0 | I166: 0
A167: =入力補助!M49 -> 0 | B167: 0 | C167: 0 | D167: 0 | E167: 0 | F167: 0 | G167: 0 | H167: 0 | I167: 0
A168: =入力補助!M50 -> 0 | B168: 0 | C168: 0 | D168: 0 | E168: 0 | F168: 0 | G168: 0 | H168: 0 | I168: 0
A169: =入力補助!M51 -> 0 | B169: 0 | C169: 0 | D169: 0 | E169: 0 | F169: 0 | G169: 0 | H169: 0 | I169: 0
A170: =入力補助!M52 -> 0 | B170: 0 | C170: 0 | D170: 0 | E170: 0 | F170: 0 | G170: 0 | H170: 0 | I170: 0
A171: =入力補助!M53 -> 0 | B171: 0 | C171: 0 | D171: 0 | E171: 0 | F171: 0 | G171: 0 | H171: 0 | I171: 0
A172: =入力補助!M54 -> 0 | B172: 0 | C172: 0 | D172: 0 | E172: 0 | F172: 0 | G172: 0 | H172: 0 | I172: 0
A173: =入力補助!M55 -> 0 | B173: 0 | C173: 0 | D173: 0 | E173: 0 | F173: 0 | G173: 0 | H173: 0 | I173: 0
A174: =入力補助!M56 -> その他 | B174: 0 | C174: 0 | D174: 0 | E174: 0 | F174: 0 | G174: 0 | H174: 0 | I174: 0
A175: =入力補助!M57 -> 該当無 | B175: 10000 | C175: 0 | D175: 0 | E175: 0 | F175: 0 | G175: 0 | H175: 0 | I175: 0
A176: 合計 | B176: =SUM(B121:B175) -> 40500 | C176: 35200 | D176: 5000 | E176: 1100 | F176: 5000 | G176: 2100 | H176: 0 | I176: 3100

Sheet 大分類集計
A1: 月別 | B1: 年間合計 | D1: １月 | F1: ２月 | H1: ３月 | J1: ４月 | L1: ５月 | N1: ６月 | P1: ７月 | R1: ８月 | T1: ９月 | V1: １０月 | X1: １１月 | Z1: １２月
A2: 単位千円 | B2: 入金 | C2: 支払 | D2: 入金 | E2: 支払 | F2: 入金 | G2: 支払 | H2: 入金 | I2: 支払 | J2: 入金 | K2: 支払 | L2: 入金 | M2: 支払 | N2: 入金 | O2: 支払 | P2: 入金 | Q2: 支払 | R2: 入金 | S2: 支払 | T2: 入金 | U2: 支払 | V2: 入金 | W2: 支払 | X2: 入金 | Y2: 支払 | Z2: 入金 | AA2: 支払
A3: 合計 | B3: =D3+F3+H3+J3+L3+N3+P3+R3+T3+V3+X3+Z3 -> 40500 | C3: =E3+G3+I3+K3+M3+O3+Q3+S3+U3+W3+Y3+AA3 -> 35200 | D3: =SUMIF(勘定入力!$A:$A,1,勘定入力!$J:$J) -> 10000 | E3: =SUMIF(勘定入力!$A:$A,1,勘定入力!$K:$K) -> 1100 | F3: =SUMIF(勘定入力!$A:$A,2,勘定入力!$J:$J) -> 5000 | G3: =SUMIF(勘定入力!$A:$A,2,勘定入力!$K:$K) -> 1100 | H3: =SUMIF(勘定入力!$A:$A,3,勘定入力!$J:$J) -> 5000 | I3: =SUMIF(勘定入力!$A:$A,3,勘定入力!$K:$K) -> 2100 | J3: =SUMIF(勘定入力!$A:$A,4,勘定入力!$J:$J) -> 0 | K3: =SUMIF(勘定入力!$A:$A,4,勘定入力!$K:$K) -> 3100 | L3: =SUMIF(勘定入力!$A:$A,5,勘定入力!$J:$J) -> 0 | M3: =SUMIF(勘定入力!$A:$A,5,勘定入力!$K:$K) -> 4100 | N3: =SUMIF(勘定入力!$A:$A,6,勘定入力!$J:$J) -> 200 | O3: =SUMIF(勘定入力!$A:$A,6,勘定入力!$K:$K) -> 3100 | P3: =SUMIF(勘定入力!$A:$A,7,勘定入力!$J:$J) -> 0 | Q3: =SUMIF(勘定入力!$A:$A,7,勘定入力!$K:$K) -> 6100 | R3: =SUMIF(勘定入力!$A:$A,8,勘定入力!$J:$J) -> 5000 | S3: =SUMIF(勘定入力!$A:$A,8,勘定入力!$K:$K) -> 4100 | T3: =SUMIF(勘定入力!$A:$A,9,勘定入力!$J:$J) -> 5300 | U3: =SUMIF(勘定入力!$A:$A,9,勘定入力!$K:$K) -> 4100 | V3: =SUMIF(勘定入力!$A:$A,10,勘定入力!$J:$J) -> 0 | W3: =SUMIF(勘定入力!$A:$A,10,勘定入力!$K:$K) -> 4100 | X3: =SUMIF(勘定入力!$A:$A,11,勘定入力!$J:$J) -> 5000 | Y3: =SUMIF(勘定入力!$A:$A,11,勘定入力!$K:$K) -> 1100 | Z3: =SUMIF(勘定入力!$A:$A,12,勘定入力!$J:$J) -> 5000 | AA3: =SUMIF(勘定入力!$A:$A,12,勘定入力!$K:$K) -> 1100
A5: =入力補助!E1 -> 大分類選択 | B5: 年間合計 | D5: １月 | F5: ２月 | H5: ３月 | J5: ４月 | L5: ５月 | N5: ６月 | P5: ７月 | R5: ８月 | T5: ９月 | V5: １０月 | X5: １１月 | Z5: １２月
A6: =IF(B3=B23,"","入力確認要") ->  | B6: 入金 | C6: 支払 | D6: 入金 | E6: 支払 | F6: 入金 | G6: 支払 | H6: 入金 | I6: 支払 | J6: 入金 | K6: 支払 | L6: 入金 | M6: 支払 | N6: 入金 | O6: 支払 | P6: 入金 | Q6: 支払 | R6: 入金 | S6: 支払 | T6: 入金 | U6: 支払 | V6: 入金 | W6: 支払 | X6: 入金 | Y6: 支払 | Z6: 入金 | AA6: 支払
A7: =入力補助!G3 -> ○○販売 | B7: =D7+F7+H7+J7+L7+N7+P7+R7+T7+V7+X7+Z7 -> 30000 | C7: =E7+G7+I7+K7+M7+O7+Q7+S7+U7+W7+Y7+AA7 -> 0 | D7: =IF($A7="",0,SUMIF(勘定入力!$G:$G,1&$A7,勘定入力!$J:$J)) -> 0 | E7: =IF($A7="",0,SUMIF(勘定入力!$G:$G,1&$A7,勘定入力!$K:$K)) -> 0 | F7: =IF($A7="",0,SUMIF(勘定入力!$G:$G,2&$A7,勘定入力!$J:$J)) -> 5000 | G7: =IF($A7="",0,SUMIF(勘定入力!$G:$G,2&$A7,勘定入力!$K:$K)) -> 0 | H7: =IF($A7="",0,SUMIF(勘定入力!$G:$G,3&$A7,勘定入力!$J:$J)) -> 5000 | I7: =IF($A7="",0,SUMIF(勘定入力!$G:$G,3&$A7,勘定入力!$K:$K)) -> 0 | J7: =IF($A7="",0,SUMIF(勘定入力!$G:$G,4&$A7,勘定入力!$J:$J)) -> 0 | K7: =IF($A7="",0,SUMIF(勘定入力!$G:$G,4&$A7,勘定入力!$K:$K)) -> 0 | L7: =IF($A7="",0,SUMIF(勘定入力!$G:$G,5&$A7,勘定入力!$J:$J)) -> 0 | M7: =IF($A7="",0,SUMIF(勘定入力!$G:$G,5&$A7,勘定入力!$K:$K)) -> 0 | N7: =IF($A7="",0,SUMIF(勘定入力!$G:$G,6&$A7,勘定入力!$J:$J)) -> 0 | O7: =IF($A7="",0,SUMIF(勘定入力!$G:$G,6&$A7,勘定入力!$K:$K)) -> 0 | P7: =IF($A7="",0,SUMIF(勘定入力!$G:$G,7&$A7,勘定入力!$J:$J)) -> 0 | Q7: =IF($A7="",0,SUMIF(勘定入力!$G:$G,7&$A7,勘定入力!$K:$K)) -> 0 | R7: =IF($A7="",0,SUMIF(勘定入力!$G:$G,8&$A7,勘定入力!$J:$J)) -> 5000 | S7: =IF($A7="",0,SUMIF(勘定入力!$G:$G,8&$A7,勘定入力!$K:$K)) -> 0 | T7: =IF($A7="",0,SUMIF(勘定入力!$G:$G,9&$A7,勘定入力!$J:$J)) -> 5000 | U7: =IF($A7="",0,SUMIF(勘定入力!$G:$G,9&$A7,勘定入力!$K:$K)) -> 0 | V7: =IF($A7="",0,SUMIF(勘定入力!$G:$G,10&$A7,勘定入力!$J:$J)) -> 0 | W7: =IF($A7="",0,SUMIF(勘定入力!$G:$G,10&$A7,勘定入力!$K:$K)) -> 0 | X7: =IF($A7="",0,SUMIF(勘定入力!$G:$G,11&$A7,勘定入力!$J:$J)) -> 5000 | Y7: =IF($A7="",0,SUMIF(勘定入力!$G:$G,11&$A7,勘定入力!$K:$K)) -> 0 | Z7: =IF($A7="",0,SUMIF(勘定入力!$G:$G,12&$A7,勘定入力!$J:$J)) -> 5000 | AA7: =IF($A7="",0,SUMIF(勘定入力!$G:$G,12&$A7,勘定入力!$K:$K)) -> 0
A8: =入力補助!G4 -> △△販売 | B8: =D8+F8+H8+J8+L8+N8+P8+R8+T8+V8+X8+Z8 -> 500 | C8: 0 | D8: =IF($A8="",0,SUMIF(勘定入力!$G:$G,1&$A8,勘定入力!$J:$J)) -> 0 | E8: =IF($A8="",0,SUMIF(勘定入力!$G:$G,1&$A8,勘定入力!$K:$K)) -> 0 | F8: =IF($A8="",0,SUMIF(勘定入力!$G:$G,2&$A8,勘定入力!$J:$J)) -> 0 | G8: =IF($A8="",0,SUMIF(勘定入力!$G:$G,2&$A8,勘定入力!$K:$K)) -> 0 | H8: =IF($A8="",0,SUMIF(勘定入力!$G:$G,3&$A8,勘定入力!$J:$J)) -> 0 | I8: =IF($A8="",0,SUMIF(勘定入力!$G:$G,3&$A8,勘定入力!$K:$K)) -> 0 | J8: =IF($A8="",0,SUMIF(勘定入力!$G:$G,4&$A8,勘定入力!$J:$J)) -> 0 | K8: =IF($A8="",0,SUMIF(勘定入力!$G:$G,4&$A8,勘定入力!$K:$K)) -> 0 | L8: =IF($A8="",0,SUMIF(勘定入力!$G:$G,5&$A8,勘定入力!$J:$J)) -> 0 | M8: =IF($A8="",0,SUMIF(勘定入力!$G:$G,5&$A8,勘定入力!$K:$K)) -> 0 | N8: =IF($A8="",0,SUMIF(勘定入力!$G:$G,6&$A8,勘定入力!$J:$J)) -> 200 | O8: =IF($A8="",0,SUMIF(勘定入力!$G:$G,6&$A8,勘定入力!$K:$K)) -> 0 | P8: =IF($A8="",0,SUMIF(勘定入力!$G:$G,7&$A8,勘定入力!$J:$J)) -> 0 | Q8: =IF($A8="",0,SUMIF(勘定入力!$G:$G,7&$A8,勘定入力!$K:$K)) -> 0 | R8: =IF($A8="",0,SUMIF(勘定入力!$G:$G,8&$A8,勘定入力!$J:$J)) -> 0 | S8: =IF($A8="",0,SUMIF(勘定入力!$G:$G,8&$A8,勘定入力!$K:$K)) -> 0 | T8: =IF($A8="",0,SUMIF(勘定入力!$G:$G,9&$A8,勘定入力!$J:$J)) -> 300 | U8: =IF($A8="",0,SUMIF(勘定入力!$G:$G,9&$A8,勘定入力!$K:$K)) -> 0 | V8: =IF($A8="",0,SUMIF(勘定入力!$G:$G,10&$A8,勘定入力!$J:$J)) -> 0 | W8: =IF($A8="",0,SUMIF(勘定入力!$G:$G,10&$A8,勘定入力!$K:$K)) -> 0 | X8: =IF($A8="",0,SUMIF(勘定入力!$G:$G,11&$A8,勘定入力!$J:$J)) -> 0 | Y8: =IF($A8="",0,SUMIF(勘定入力!$G:$G,11&$A8,勘定入力!$K:$K)) -> 0 | Z8: =IF($A8="",0,SUMIF(勘定入力!$G:$G,12&$A8,勘定入力!$J:$J)) -> 0 | AA8: =IF($A8="",0,SUMIF(勘定入力!$G:$G,12&$A8,勘定入力!$K:$K)) -> 0
A9: =入力補助!G5 -> ○○工事 | B9: 0 | C9: 22000 | D9: =IF($A9="",0,SUMIF(勘定入力!$G:$G,1&$A9,勘定入力!$J:$J)) -> 0 | E9: =IF($A9="",0,SUMIF(勘定入力!$G:$G,1&$A9,勘定入力!$K:$K)) -> 0 | F9: =IF($A9="",0,SUMIF(勘定入力!$G:$G,2&$A9,勘定入力!$J:$J)) -> 0 | G9: =IF($A9="",0,SUMIF(勘定入力!$G:$G,2&$A9,勘定入力!$K:$K)) -> 0 | H9: =IF($A9="",0,SUMIF(勘定入力!$G:$G,3&$A9,勘定入力!$J:$J)) -> 0 | I9: =IF($A9="",0,SUMIF(勘定入力!$G:$G,3&$A9,勘定入力!$K:$K)) -> 1000 | J9: =IF($A9="",0,SUMIF(勘定入力!$G:$G,4&$A9,勘定入力!$J:$J)) -> 0 | K9: =IF($A9="",0,SUMIF(勘定入力!$G:$G,4&$A9,勘定入力!$K:$K)) -> 2000 | L9: =IF($A9="",0,SUMIF(勘定入力!$G:$G,5&$A9,勘定入力!$J:$J)) -> 0 | M9: =IF($A9="",0,SUMIF(勘定入力!$G:$G,5&$A9,勘定入力!$K:$K)) -> 3000 | N9: =IF($A9="",0,SUMIF(勘定入力!$G:$G,6&$A9,勘定入力!$J:$J)) -> 0 | O9: =IF($A9="",0,SUMIF(勘定入力!$G:$G,6&$A9,勘定入力!$K:$K)) -> 2000 | P9: =IF($A9="",0,SUMIF(勘定入力!$G:$G,7&$A9,勘定入力!$J:$J)) -> 0 | Q9: =IF($A9="",0,SUMIF(勘定入力!$G:$G,7&$A9,勘定入力!$K:$K)) -> 5000 | R9: =IF($A9="",0,SUMIF(勘定入力!$G:$G,8&$A9,勘定入力!$J:$J)) -> 0 | S9: =IF($A9="",0,SUMIF(勘定入力!$G:$G,8&$A9,勘定入力!$K:$K)) -> 3000 | T9: =IF($A9="",0,SUMIF(勘定入力!$G:$G,9&$A9,勘定入力!$J:$J)) -> 0 | U9: =IF($A9="",0,SUMIF(勘定入力!$G:$G,9&$A9,勘定入力!$K:$K)) -> 3000 | V9: =IF($A9="",0,SUMIF(勘定入力!$G:$G,10&$A9,勘定入力!$J:$J)) -> 0 | W9: =IF($A9="",0,SUMIF(勘定入力!$G:$G,10&$A9,勘定入力!$K:$K)) -> 3000 | X9: =IF($A9="",0,SUMIF(勘定入力!$G:$G,11&$A9,勘定入力!$J:$J)) -> 0 | Y9: =IF($A9="",0,SUMIF(勘定入力!$G:$G,11&$A9,勘定入力!$K:$K)) -> 0 | Z9: =IF($A9="",0,SUMIF(勘定入力!$G:$G,12&$A9,勘定入力!$J:$J)) -> 0 | AA9: =IF($A9="",0,SUMIF(勘定入力!$G:$G,12&$A9,勘定入力!$K:$K)) -> 0
A10: =入力補助!G6 -> ○○諸費用 | B10: 0 | C10: 0 | D10: =IF($A10="",0,SUMIF(勘定入力!$G:$G,1&$A10,勘定入力!$J:$J)) -> 0 | E10: =IF($A10="",0,SUMIF(勘定入力!$G:$G,1&$A10,勘定入力!$K:$K)) -> 0 | F10: =IF($A10="",0,SUMIF(勘定入力!$G:$G,2&$A10,勘定入力!$J:$J)) -> 0 | G10: =IF($A10="",0,SUMIF(勘定入力!$G:$G,2&$A10,勘定入力!$K:$K)) -> 0 | H10: =IF($A10="",0,SUMIF(勘定入力!$G:$G,3&$A10,勘定入力!$J:$J)) -> 0 | I10: =IF($A10="",0,SUMIF(勘定入力!$G:$G,3&$A10,勘定入力!$K:$K)) -> 0 | J10: =IF($A10="",0,SUMIF(勘定入力!$G:$G,4&$A10,勘定入力!$J:$J)) -> 0 | K10: =IF($A10="",0,SUMIF(勘定入力!$G:$G,4&$A10,勘定入力!$K:$K)) -> 0 | L10: =IF($A10="",0,SUMIF(勘定入力!$G:$G,5&$A10,勘定入力!$J:$J)) -> 0 | M10: =IF($A10="",0,SUMIF(勘定入力!$G:$G,5&$A10,勘定入力!$K:$K)) -> 0 | N10: =IF($A10="",0,SUMIF(勘定入力!$G:$G,6&$A10,勘定入力!$J:$J)) -> 0 | O10: =IF($A10="",0,SUMIF(勘定入力!$G:$G,6&$A10,勘定入力!$K:$K)) -> 0 | P10: =IF($A10="",0,SUMIF(勘定入力!$G:$G,7&$A10,勘定入力!$J:$J)) -> 0 | Q10: =IF($A10="",0,SUMIF(勘定入力!$G:$G,7&$A10,勘定入力!$K:$K)) -> 0 | R10: =IF($A10="",0,SUMIF(勘定入力!$G:$G,8&$A10,勘定入力!$J:$J)) -> 0 | S10: =IF($A10="",0,SUMIF(勘定入力!$G:$G,8&$A10,勘定入力!$K:$K)) -> 0 | T10: =IF($A10="",0,SUMIF(勘定入力!$G:$G,9&$A10,勘定入力!$J:$J)) -> 0 | U10: =IF($A10="",0,SUMIF(勘定入力!$G:$G,9&$A10,勘定入力!$K:$K)) -> 0 | V10: =IF($A10="",0,SUMIF(勘定入力!$G:$G,10&$A10,勘定入力!$J:$J)) -> 0 | W10: =IF($A10="",0,SUMIF(勘定入力!$G:$G,10&$A10,勘定入力!$K:$K)) -> 0 | X10: =IF($A10="",0,SUMIF(勘定入力!$G:$G,11&$A10,勘定入力!$J:$J)) -> 0 | Y10: =IF($A10="",0,SUMIF(勘定入力!$G:$G,11&$A10,勘定入力!$K:$K)) -> 0 | Z10: =IF($A10="",0,SUMIF(勘定入力!$G:$G,12&$A10,勘定入力!$J:$J)) -> 0 | AA10: =IF($A10="",0,SUMIF(勘定入力!$G:$G,12&$A10,勘定入力!$K:$K)) -> 0
A11: =入力補助!G7 -> 0 | B11: 0 | C11: 0 | D11: =IF($A11="",0,SUMIF(勘定入力!$G:$G,1&$A11,勘定入力!$J:$J)) -> 0 | E11: =IF($A11="",0,SUMIF(勘定入力!$G:$G,1&$A11,勘定入力!$K:$K)) -> 0 | F11: =IF($A11="",0,SUMIF(勘定入力!$G:$G,2&$A11,勘定入力!$J:$J)) -> 0 | G11: =IF($A11="",0,SUMIF(勘定入力!$G:$G,2&$A11,勘定入力!$K:$K)) -> 0 | H11: =IF($A11="",0,SUMIF(勘定入力!$G:$G,3&$A11,勘定入力!$J:$J)) -> 0 | I11: =IF($A11="",0,SUMIF(勘定入力!$G:$G,3&$A11,勘定入力!$K:$K)) -> 0 | J11: =IF($A11="",0,SUMIF(勘定入力!$G:$G,4&$A11,勘定入力!$J:$J)) -> 0 | K11: =IF($A11="",0,SUMIF(勘定入力!$G:$G,4&$A11,勘定入力!$K:$K)) -> 0 | L11: =IF($A11="",0,SUMIF(勘定入力!$G:$G,5&$A11,勘定入力!$J:$J)) -> 0 | M11: =IF($A11="",0,SUMIF(勘定入力!$G:$G,5&$A11,勘定入力!$K:$K)) -> 0 | N11: =IF($A11="",0,SUMIF(勘定入力!$G:$G,6&$A11,勘定入力!$J:$J)) -> 0 | O11: =IF($A11="",0,SUMIF(勘定入力!$G:$G,6&$A11,勘定入力!$K:$K)) -> 0 | P11: =IF($A11="",0,SUMIF(勘定入力!$G:$G,7&$A11,勘定入力!$J:$J)) -> 0 | Q11: =IF($A11="",0,SUMIF(勘定入力!$G:$G,7&$A11,勘定入力!$K:$K)) -> 0 | R11: =IF($A11="",0,SUMIF(勘定入力!$G:$G,8&$A11,勘定入力!$J:$J)) -> 0 | S11: =IF($A11="",0,SUMIF(勘定入力!$G:$G,8&$A11,勘定入力!$K:$K)) -> 0 | T11: =IF($A11="",0,SUMIF(勘定入力!$G:$G,9&$A11,勘定入力!$J:$J)) -> 0 | U11: =IF($A11="",0,SUMIF(勘定入力!$G:$G,9&$A11,勘定入力!$K:$K)) -> 0 | V11: =IF($A11="",0,SUMIF(勘定入力!$G:$G,10&$A11,勘定入力!$J:$J)) -> 0 | W11: =IF($A11="",0,SUMIF(勘定入力!$G:$G,10&$A11,勘定入力!$K:$K)) -> 0 | X11: =IF($A11="",0,SUMIF(勘定入力!$G:$G,11&$A11,勘定入力!$J:$J)) -> 0 | Y11: =IF($A11="",0,SUMIF(勘定入力!$G:$G,11&$A11,勘定入力!$K:$K)) -> 0 | Z11: =IF($A11="",0,SUMIF(勘定入力!$G:$G,12&$A11,勘定入力!$J:$J)) -> 0 | AA11: =IF($A11="",0,SUMIF(勘定入力!$G:$G,12&$A11,勘定入力!$K:$K)) -> 0
A12: =入力補助!G8 -> 固定費 | B12: 10000 | C12: 13200 | D12: =IF($A12="",0,SUMIF(勘定入力!$G:$G,1&$A12,勘定入力!$J:$J)) -> 10000 | E12: =IF($A12="",0,SUMIF(勘定入力!$G:$G,1&$A12,勘定入力!$K:$K)) -> 1100 | F12: =IF($A12="",0,SUMIF(勘定入力!$G:$G,2&$A12,勘定入力!$J:$J)) -> 0 | G12: =IF($A12="",0,SUMIF(勘定入力!$G:$G,2&$A12,勘定入力!$K:$K)) -> 1100 | H12: =IF($A12="",0,SUMIF(勘定入力!$G:$G,3&$A12,勘定入力!$J:$J)) -> 0 | I12: =IF($A12="",0,SUMIF(勘定入力!$G:$G,3&$A12,勘定入力!$K:$K)) -> 1100 | J12: =IF($A12="",0,SUMIF(勘定入力!$G:$G,4&$A12,勘定入力!$J:$J)) -> 0 | K12: =IF($A12="",0,SUMIF(勘定入力!$G:$G,4&$A12,勘定入力!$K:$K)) -> 1100 | L12: =IF($A12="",0,SUMIF(勘定入力!$G:$G,5&$A12,勘定入力!$J:$J)) -> 0 | M12: =IF($A12="",0,SUMIF(勘定入力!$G:$G,5&$A12,勘定入力!$K:$K)) -> 1100 | N12: =IF($A12="",0,SUMIF(勘定入力!$G:$G,6&$A12,勘定入力!$J:$J)) -> 0 | O12: =IF($A12="",0,SUMIF(勘定入力!$G:$G,6&$A12,勘定入力!$K:$K)) -> 1100 | P12: =IF($A12="",0,SUMIF(勘定入力!$G:$G,7&$A12,勘定入力!$J:$J)) -> 0 | Q12: =IF($A12="",0,SUMIF(勘定入力!$G:$G,7&$A12,勘定入力!$K:$K)) -> 1100 | R12: =IF($A12="",0,SUMIF(勘定入力!$G:$G,8&$A12,勘定入力!$J:$J)) -> 0 | S12: =IF($A12="",0,SUMIF(勘定入力!$G:$G,8&$A12,勘定入力!$K:$K)) -> 1100 | T12: =IF($A12="",0,SUMIF(勘定入力!$G:$G,9&$A12,勘定入力!$J:$J)) -> 0 | U12: =IF($A12="",0,SUMIF(勘定入力!$G:$G,9&$A12,勘定入力!$K:$K)) -> 1100 | V12: =IF($A12="",0,SUMIF(勘定入力!$G:$G,10&$A12,勘定入力!$J:$J)) -> 0 | W12: =IF($A12="",0,SUMIF(勘定入力!$G:$G,10&$A12,勘定入力!$K:$K)) -> 1100 | X12: =IF($A12="",0,SUMIF(勘定入力!$G:$G,11&$A12,勘定入力!$J:$J)) -> 0 | Y12: =IF($A12="",0,SUMIF(勘定入力!$G:$G,11&$A12,勘定入力!$K:$K)) -> 1100 | Z12: =IF($A12="",0,SUMIF(勘定入力!$G:$G,12&$A12,勘定入力!$J:$J)) -> 0 | AA12: =IF($A12="",0,SUMIF(勘定入力!$G:$G,12&$A12,勘定入力!$K:$K)) -> 1100
A13: =入力補助!G9 -> 0 | B13: 0 | C13: 0 | D13: =IF($A13="",0,SUMIF(勘定入力!$G:$G,1&$A13,勘定入力!$J:$J)) -> 0 | E13: =IF($A13="",0,SUMIF(勘定入力!$G:$G,1&$A13,勘定入力!$K:$K)) -> 0 | F13: =IF($A13="",0,SUMIF(勘定入力!$G:$G,2&$A13,勘定入力!$J:$J)) -> 0 | G13: =IF($A13="",0,SUMIF(勘定入力!$G:$G,2&$A13,勘定入力!$K:$K)) -> 0 | H13: =IF($A13="",0,SUMIF(勘定入力!$G:$G,3&$A13,勘定入力!$J:$J)) -> 0 | I13: =IF($A13="",0,SUMIF(勘定入力!$G:$G,3&$A13,勘定入力!$K:$K)) -> 0 | J13: =IF($A13="",0,SUMIF(勘定入力!$G:$G,4&$A13,勘定入力!$J:$J)) -> 0 | K13: =IF($A13="",0,SUMIF(勘定入力!$G:$G,4&$A13,勘定入力!$K:$K)) -> 0 | L13: =IF($A13="",0,SUMIF(勘定入力!$G:$G,5&$A13,勘定入力!$J:$J)) -> 0 | M13: =IF($A13="",0,SUMIF(勘定入力!$G:$G,5&$A13,勘定入力!$K:$K)) -> 0 | N13: =IF($A13="",0,SUMIF(勘定入力!$G:$G,6&$A13,勘定入力!$J:$J)) -> 0 | O13: =IF($A13="",0,SUMIF(勘定入力!$G:$G,6&$A13,勘定入力!$K:$K)) -> 0 | P13: =IF($A13="",0,SUMIF(勘定入力!$G:$G,7&$A13,勘定入力!$J:$J)) -> 0 | Q13: =IF($A13="",0,SUMIF(勘定入力!$G:$G,7&$A13,勘定入力!$K:$K)) -> 0 | R13: =IF($A13="",0,SUMIF(勘定入力!$G:$G,8&$A13,勘定入力!$J:$J)) -> 0 | S13: =IF($A13="",0,SUMIF(勘定入力!$G:$G,8&$A13,勘定入力!$K:$K)) -> 0 | T13: =IF($A13="",0,SUMIF(勘定入力!$G:$G,9&$A13,勘定入力!$J:$J)) -> 0 | U13: =IF($A13="",0,SUMIF(勘定入力!$G:$G,9&$A13,勘定入力!$K:$K)) -> 0 | V13: =IF($A13="",0,SUMIF(勘定入力!$G:$G,10&$A13,勘定入力!$J:$J)) -> 0 | W13: =IF($A13="",0,SUMIF(勘定入力!$G:$G,10&$A13,勘定入力!$K:$K)) -> 0 | X13: =IF($A13="",0,SUMIF(勘定入力!$G:$G,11&$A13,勘定入力!$J:$J)) -> 0 | Y13: =IF($A13="",0,SUMIF(勘定入力!$G:$G,11&$A13,勘定入力!$K:$K)) -> 0 | Z13: =IF($A13="",0,SUMIF(勘定入力!$G:$G,12&$A13,勘定入力!$J:$J)) -> 0 | AA13: =IF($A13="",0,SUMIF(勘定入力!$G:$G,12&$A13,勘定入力!$K:$K)) -> 0
A14: =入力補助!G10 -> 0 | B14: 0 | C14: 0 | D14: =IF($A14="",0,SUMIF(勘定入力!$G:$G,1&$A14,勘定入力!$J:$J)) -> 0 | E14: =IF($A14="",0,SUMIF(勘定入力!$G:$G,1&$A14,勘定入力!$K:$K)) -> 0 | F14: =IF($A14="",0,SUMIF(勘定入力!$G:$G,2&$A14,勘定入力!$J:$J)) -> 0 | G14: =IF($A14="",0,SUMIF(勘定入力!$G:$G,2&$A14,勘定入力!$K:$K)) -> 0 | H14: =IF($A14="",0,SUMIF(勘定入力!$G:$G,3&$A14,勘定入力!$J:$J)) -> 0 | I14: =IF($A14="",0,SUMIF(勘定入力!$G:$G,3&$A14,勘定入力!$K:$K)) -> 0 | J14: =IF($A14="",0,SUMIF(勘定入力!$G:$G,4&$A14,勘定入力!$J:$J)) -> 0 | K14: =IF($A14="",0,SUMIF(勘定入力!$G:$G,4&$A14,勘定入力!$K:$K)) -> 0 | L14: =IF($A14="",0,SUMIF(勘定入力!$G:$G,5&$A14,勘定入力!$J:$J)) -> 0 | M14: =IF($A14="",0,SUMIF(勘定入力!$G:$G,5&$A14,勘定入力!$K:$K)) -> 0 | N14: =IF($A14="",0,SUMIF(勘定入力!$G:$G,6&$A14,勘定入力!$J:$J)) -> 0 | O14: =IF($A14="",0,SUMIF(勘定入力!$G:$G,6&$A14,勘定入力!$K:$K)) -> 0 | P14: =IF($A14="",0,SUMIF(勘定入力!$G:$G,7&$A14,勘定入力!$J:$J)) -> 0 | Q14: =IF($A14="",0,SUMIF(勘定入力!$G:$G,7&$A14,勘定入力!$K:$K)) -> 0 | R14: =IF($A14="",0,SUMIF(勘定入力!$G:$G,8&$A14,勘定入力!$J:$J)) -> 0 | S14: =IF($A14="",0,SUMIF(勘定入力!$G:$G,8&$A14,勘定入力!$K:$K)) -> 0 | T14: =IF($A14="",0,SUMIF(勘定入力!$G:$G,9&$A14,勘定入力!$J:$J)) -> 0 | U14: =IF($A14="",0,SUMIF(勘定入力!$G:$G,9&$A14,勘定入力!$K:$K)) -> 0 | V14: =IF($A14="",0,SUMIF(勘定入力!$G:$G,10&$A14,勘定入力!$J:$J)) -> 0 | W14: =IF($A14="",0,SUMIF(勘定入力!$G:$G,10&$A14,勘定入力!$K:$K)) -> 0 | X14: =IF($A14="",0,SUMIF(勘定入力!$G:$G,11&$A14,勘定入力!$J:$J)) -> 0 | Y14: =IF($A14="",0,SUMIF(勘定入力!$G:$G,11&$A14,勘定入力!$K:$K)) -> 0 | Z14: =IF($A14="",0,SUMIF(勘定入力!$G:$G,12&$A14,勘定入力!$J:$J)) -> 0 | AA14: =IF($A14="",0,SUMIF(勘定入力!$G:$G,12&$A14,勘定入力!$K:$K)) -> 0
A15: =入力補助!G11 -> 0 | B15: 0 | C15: 0 | D15: =IF($A15="",0,SUMIF(勘定入力!$G:$G,1&$A15,勘定入力!$J:$J)) -> 0 | E15: =IF($A15="",0,SUMIF(勘定入力!$G:$G,1&$A15,勘定入力!$K:$K)) -> 0 | F15: =IF($A15="",0,SUMIF(勘定入力!$G:$G,2&$A15,勘定入力!$J:$J)) -> 0 | G15: =IF($A15="",0,SUMIF(勘定入力!$G:$G,2&$A15,勘定入力!$K:$K)) -> 0 | H15: =IF($A15="",0,SUMIF(勘定入力!$G:$G,3&$A15,勘定入力!$J:$J)) -> 0 | I15: =IF($A15="",0,SUMIF(勘定入力!$G:$G,3&$A15,勘定入力!$K:$K)) -> 0 | J15: =IF($A15="",0,SUMIF(勘定入力!$G:$G,4&$A15,勘定入力!$J:$J)) -> 0 | K15: =IF($A15="",0,SUMIF(勘定入力!$G:$G,4&$A15,勘定入力!$K:$K)) -> 0 | L15: =IF($A15="",0,SUMIF(勘定入力!$G:$G,5&$A15,勘定入力!$J:$J)) -> 0 | M15: =IF($A15="",0,SUMIF(勘定入力!$G:$G,5&$A15,勘定入力!$K:$K)) -> 0 | N15: =IF($A15="",0,SUMIF(勘定入力!$G:$G,6&$A15,勘定入力!$J:$J)) -> 0 | O15: =IF($A15="",0,SUMIF(勘定入力!$G:$G,6&$A15,勘定入力!$K:$K)) -> 0 | P15: =IF($A15="",0,SUMIF(勘定入力!$G:$G,7&$A15,勘定入力!$J:$J)) -> 0 | Q15: =IF($A15="",0,SUMIF(勘定入力!$G:$G,7&$A15,勘定入力!$K:$K)) -> 0 | R15: =IF($A15="",0,SUMIF(勘定入力!$G:$G,8&$A15,勘定入力!$J:$J)) -> 0 | S15: =IF($A15="",0,SUMIF(勘定入力!$G:$G,8&$A15,勘定入力!$K:$K)) -> 0 | T15: =IF($A15="",0,SUMIF(勘定入力!$G:$G,9&$A15,勘定入力!$J:$J)) -> 0 | U15: =IF($A15="",0,SUMIF(勘定入力!$G:$G,9&$A15,勘定入力!$K:$K)) -> 0 | V15: =IF($A15="",0,SUMIF(勘定入力!$G:$G,10&$A15,勘定入力!$J:$J)) -> 0 | W15: =IF($A15="",0,SUMIF(勘定入力!$G:$G,10&$A15,勘定入力!$K:$K)) -> 0 | X15: =IF($A15="",0,SUMIF(勘定入力!$G:$G,11&$A15,勘定入力!$J:$J)) -> 0 | Y15: =IF($A15="",0,SUMIF(勘定入力!$G:$G,11&$A15,勘定入力!$K:$K)) -> 0 | Z15: =IF($A15="",0,SUMIF(勘定入力!$G:$G,12&$A15,勘定入力!$J:$J)) -> 0 | AA15: =IF($A15="",0,SUMIF(勘定入力!$G:$G,12&$A15,勘定入力!$K:$K)) -> 0
A16: =入力補助!G12 -> 0 | B16: 0 | C16: 0 | D16: =IF($A16="",0,SUMIF(勘定入力!$G:$G,1&$A16,勘定入力!$J:$J)) -> 0 | E16: =IF($A16="",0,SUMIF(勘定入力!$G:$G,1&$A16,勘定入力!$K:$K)) -> 0 | F16: =IF($A16="",0,SUMIF(勘定入力!$G:$G,2&$A16,勘定入力!$J:$J)) -> 0 | G16: =IF($A16="",0,SUMIF(勘定入力!$G:$G,2&$A16,勘定入力!$K:$K)) -> 0 | H16: =IF($A16="",0,SUMIF(勘定入力!$G:$G,3&$A16,勘定入力!$J:$J)) -> 0 | I16: =IF($A16="",0,SUMIF(勘定入力!$G:$G,3&$A16,勘定入力!$K:$K)) -> 0 | J16: =IF($A16="",0,SUMIF(勘定入力!$G:$G,4&$A16,勘定入力!$J:$J)) -> 0 | K16: =IF($A16="",0,SUMIF(勘定入力!$G:$G,4&$A16,勘定入力!$K:$K)) -> 0 | L16: =IF($A16="",0,SUMIF(勘定入力!$G:$G,5&$A16,勘定入力!$J:$J)) -> 0 | M16: =IF($A16="",0,SUMIF(勘定入力!$G:$G,5&$A16,勘定入力!$K:$K)) -> 0 | N16: =IF($A16="",0,SUMIF(勘定入力!$G:$G,6&$A16,勘定入力!$J:$J)) -> 0 | O16: =IF($A16="",0,SUMIF(勘定入力!$G:$G,6&$A16,勘定入力!$K:$K)) -> 0 | P16: =IF($A16="",0,SUMIF(勘定入力!$G:$G,7&$A16,勘定入力!$J:$J)) -> 0 | Q16: =IF($A16="",0,SUMIF(勘定入力!$G:$G,7&$A16,勘定入力!$K:$K)) -> 0 | R16: =IF($A16="",0,SUMIF(勘定入力!$G:$G,8&$A16,勘定入力!$J:$J)) -> 0 | S16: =IF($A16="",0,SUMIF(勘定入力!$G:$G,8&$A16,勘定入力!$K:$K)) -> 0 | T16: =IF($A16="",0,SUMIF(勘定入力!$G:$G,9&$A16,勘定入力!$J:$J)) -> 0 | U16: =IF($A16="",0,SUMIF(勘定入力!$G:$G,9&$A16,勘定入力!$K:$K)) -> 0 | V16: =IF($A16="",0,SUMIF(勘定入力!$G:$G,10&$A16,勘定入力!$J:$J)) -> 0 | W16: =IF($A16="",0,SUMIF(勘定入力!$G:$G,10&$A16,勘定入力!$K:$K)) -> 0 | X16: =IF($A16="",0,SUMIF(勘定入力!$G:$G,11&$A16,勘定入力!$J:$J)) -> 0 | Y16: =IF($A16="",0,SUMIF(勘定入力!$G:$G,11&$A16,勘定入力!$K:$K)) -> 0 | Z16: =IF($A16="",0,SUMIF(勘定入力!$G:$G,12&$A16,勘定入力!$J:$J)) -> 0 | AA16: =IF($A16="",0,SUMIF(勘定入力!$G:$G,12&$A16,勘定入力!$K:$K)) -> 0
A17: =入力補助!G13 -> 0 | B17: 0 | C17: 0 | D17: =IF($A17="",0,SUMIF(勘定入力!$G:$G,1&$A17,勘定入力!$J:$J)) -> 0 | E17: =IF($A17="",0,SUMIF(勘定入力!$G:$G,1&$A17,勘定入力!$K:$K)) -> 0 | F17: =IF($A17="",0,SUMIF(勘定入力!$G:$G,2&$A17,勘定入力!$J:$J)) -> 0 | G17: =IF($A17="",0,SUMIF(勘定入力!$G:$G,2&$A17,勘定入力!$K:$K)) -> 0 | H17: =IF($A17="",0,SUMIF(勘定入力!$G:$G,3&$A17,勘定入力!$J:$J)) -> 0 | I17: =IF($A17="",0,SUMIF(勘定入力!$G:$G,3&$A17,勘定入力!$K:$K)) -> 0 | J17: =IF($A17="",0,SUMIF(勘定入力!$G:$G,4&$A17,勘定入力!$J:$J)) -> 0 | K17: =IF($A17="",0,SUMIF(勘定入力!$G:$G,4&$A17,勘定入力!$K:$K)) -> 0 | L17: =IF($A17="",0,SUMIF(勘定入力!$G:$G,5&$A17,勘定入力!$J:$J)) -> 0 | M17: =IF($A17="",0,SUMIF(勘定入力!$G:$G,5&$A17,勘定入力!$K:$K)) -> 0 | N17: =IF($A17="",0,SUMIF(勘定入力!$G:$G,6&$A17,勘定入力!$J:$J)) -> 0 | O17: =IF($A17="",0,SUMIF(勘定入力!$G:$G,6&$A17,勘定入力!$K:$K)) -> 0 | P17: =IF($A17="",0,SUMIF(勘定入力!$G:$G,7&$A17,勘定入力!$J:$J)) -> 0 | Q17: =IF($A17="",0,SUMIF(勘定入力!$G:$G,7&$A17,勘定入力!$K:$K)) -> 0 | R17: =IF($A17="",0,SUMIF(勘定入力!$G:$G,8&$A17,勘定入力!$J:$J)) -> 0 | S17: =IF($A17="",0,SUMIF(勘定入力!$G:$G,8&$A17,勘定入力!$K:$K)) -> 0 | T17: =IF($A17="",0,SUMIF(勘定入力!$G:$G,9&$A17,勘定入力!$J:$J)) -> 0 | U17: =IF($A17="",0,SUMIF(勘定入力!$G:$G,9&$A17,勘定入力!$K:$K)) -> 0 | V17: =IF($A17="",0,SUMIF(勘定入力!$G:$G,10&$A17,勘定入力!$J:$J)) -> 0 | W17: =IF($A17="",0,SUMIF(勘定入力!$G:$G,10&$A17,勘定入力!$K:$K)) -> 0 | X17: =IF($A17="",0,SUMIF(勘定入力!$G:$G,11&$A17,勘定入力!$J:$J)) -> 0 | Y17: =IF($A17="",0,SUMIF(勘定入力!$G:$G,11&$A17,勘定入力!$K:$K)) -> 0 | Z17: =IF($A17="",0,SUMIF(勘定入力!$G:$G,12&$A17,勘定入力!$J:$J)) -> 0 | AA17: =IF($A17="",0,SUMIF(勘定入力!$G:$G,12&$A17,勘定入力!$K:$K)) -> 0
A18: =入力補助!G14 -> 0 | B18: 0 | C18: 0 | D18: =IF($A18="",0,SUMIF(勘定入力!$G:$G,1&$A18,勘定入力!$J:$J)) -> 0 | E18: =IF($A18="",0,SUMIF(勘定入力!$G:$G,1&$A18,勘定入力!$K:$K)) -> 0 | F18: =IF($A18="",0,SUMIF(勘定入力!$G:$G,2&$A18,勘定入力!$J:$J)) -> 0 | G18: =IF($A18="",0,SUMIF(勘定入力!$G:$G,2&$A18,勘定入力!$K:$K)) -> 0 | H18: =IF($A18="",0,SUMIF(勘定入力!$G:$G,3&$A18,勘定入力!$J:$J)) -> 0 | I18: =IF($A18="",0,SUMIF(勘定入力!$G:$G,3&$A18,勘定入力!$K:$K)) -> 0 | J18: =IF($A18="",0,SUMIF(勘定入力!$G:$G,4&$A18,勘定入力!$J:$J)) -> 0 | K18: =IF($A18="",0,SUMIF(勘定入力!$G:$G,4&$A18,勘定入力!$K:$K)) -> 0 | L18: =IF($A18="",0,SUMIF(勘定入力!$G:$G,5&$A18,勘定入力!$J:$J)) -> 0 | M18: =IF($A18="",0,SUMIF(勘定入力!$G:$G,5&$A18,勘定入力!$K:$K)) -> 0 | N18: =IF($A18="",0,SUMIF(勘定入力!$G:$G,6&$A18,勘定入力!$J:$J)) -> 0 | O18: =IF($A18="",0,SUMIF(勘定入力!$G:$G,6&$A18,勘定入力!$K:$K)) -> 0 | P18: =IF($A18="",0,SUMIF(勘定入力!$G:$G,7&$A18,勘定入力!$J:$J)) -> 0 | Q18: =IF($A18="",0,SUMIF(勘定入力!$G:$G,7&$A18,勘定入力!$K:$K)) -> 0 | R18: =IF($A18="",0,SUMIF(勘定入力!$G:$G,8&$A18,勘定入力!$J:$J)) -> 0 | S18: =IF($A18="",0,SUMIF(勘定入力!$G:$G,8&$A18,勘定入力!$K:$K)) -> 0 | T18: =IF($A18="",0,SUMIF(勘定入力!$G:$G,9&$A18,勘定入力!$J:$J)) -> 0 | U18: =IF($A18="",0,SUMIF(勘定入力!$G:$G,9&$A18,勘定入力!$K:$K)) -> 0 | V18: =IF($A18="",0,SUMIF(勘定入力!$G:$G,10&$A18,勘定入力!$J:$J)) -> 0 | W18: =IF($A18="",0,SUMIF(勘定入力!$G:$G,10&$A18,勘定入力!$K:$K)) -> 0 | X18: =IF($A18="",0,SUMIF(勘定入力!$G:$G,11&$A18,勘定入力!$J:$J)) -> 0 | Y18: =IF($A18="",0,SUMIF(勘定入力!$G:$G,11&$A18,勘定入力!$K:$K)) -> 0 | Z18: =IF($A18="",0,SUMIF(勘定入力!$G:$G,12&$A18,勘定入力!$J:$J)) -> 0 | AA18: =IF($A18="",0,SUMIF(勘定入力!$G:$G,12&$A18,勘定入力!$K:$K)) -> 0
A19: =入力補助!G15 -> 0 | B19: 0 | C19: 0 | D19: =IF($A19="",0,SUMIF(勘定入力!$G:$G,1&$A19,勘定入力!$J:$J)) -> 0 | E19: =IF($A19="",0,SUMIF(勘定入力!$G:$G,1&$A19,勘定入力!$K:$K)) -> 0 | F19: =IF($A19="",0,SUMIF(勘定入力!$G:$G,2&$A19,勘定入力!$J:$J)) -> 0 | G19: =IF($A19="",0,SUMIF(勘定入力!$G:$G,2&$A19,勘定入力!$K:$K)) -> 0 | H19: =IF($A19="",0,SUMIF(勘定入力!$G:$G,3&$A19,勘定入力!$J:$J)) -> 0 | I19: =IF($A19="",0,SUMIF(勘定入力!$G:$G,3&$A19,勘定入力!$K:$K)) -> 0 | J19: =IF($A19="",0,SUMIF(勘定入力!$G:$G,4&$A19,勘定入力!$J:$J)) -> 0 | K19: =IF($A19="",0,SUMIF(勘定入力!$G:$G,4&$A19,勘定入力!$K:$K)) -> 0 | L19: =IF($A19="",0,SUMIF(勘定入力!$G:$G,5&$A19,勘定入力!$J:$J)) -> 0 | M19: =IF($A19="",0,SUMIF(勘定入力!$G:$G,5&$A19,勘定入力!$K:$K)) -> 0 | N19: =IF($A19="",0,SUMIF(勘定入力!$G:$G,6&$A19,勘定入力!$J:$J)) -> 0 | O19: =IF($A19="",0,SUMIF(勘定入力!$G:$G,6&$A19,勘定入力!$K:$K)) -> 0 | P19: =IF($A19="",0,SUMIF(勘定入力!$G:$G,7&$A19,勘定入力!$J:$J)) -> 0 | Q19: =IF($A19="",0,SUMIF(勘定入力!$G:$G,7&$A19,勘定入力!$K:$K)) -> 0 | R19: =IF($A19="",0,SUMIF(勘定入力!$G:$G,8&$A19,勘定入力!$J:$J)) -> 0 | S19: =IF($A19="",0,SUMIF(勘定入力!$G:$G,8&$A19,勘定入力!$K:$K)) -> 0 | T19: =IF($A19="",0,SUMIF(勘定入力!$G:$G,9&$A19,勘定入力!$J:$J)) -> 0 | U19: =IF($A19="",0,SUMIF(勘定入力!$G:$G,9&$A19,勘定入力!$K:$K)) -> 0 | V19: =IF($A19="",0,SUMIF(勘定入力!$G:$G,10&$A19,勘定入力!$J:$J)) -> 0 | W19: =IF($A19="",0,SUMIF(勘定入力!$G:$G,10&$A19,勘定入力!$K:$K)) -> 0 | X19: =IF($A19="",0,SUMIF(勘定入力!$G:$G,11&$A19,勘定入力!$J:$J)) -> 0 | Y19: =IF($A19="",0,SUMIF(勘定入力!$G:$G,11&$A19,勘定入力!$K:$K)) -> 0 | Z19: =IF($A19="",0,SUMIF(勘定入力!$G:$G,12&$A19,勘定入力!$J:$J)) -> 0 | AA19: =IF($A19="",0,SUMIF(勘定入力!$G:$G,12&$A19,勘定入力!$K:$K)) -> 0
A20: =入力補助!G16 -> 0 | B20: 0 | C20: 0 | D20: =IF($A20="",0,SUMIF(勘定入力!$G:$G,1&$A20,勘定入力!$J:$J)) -> 0 | E20: =IF($A20="",0,SUMIF(勘定入力!$G:$G,1&$A20,勘定入力!$K:$K)) -> 0 | F20: =IF($A20="",0,SUMIF(勘定入力!$G:$G,2&$A20,勘定入力!$J:$J)) -> 0 | G20: =IF($A20="",0,SUMIF(勘定入力!$G:$G,2&$A20,勘定入力!$K:$K)) -> 0 | H20: =IF($A20="",0,SUMIF(勘定入力!$G:$G,3&$A20,勘定入力!$J:$J)) -> 0 | I20: =IF($A20="",0,SUMIF(勘定入力!$G:$G,3&$A20,勘定入力!$K:$K)) -> 0 | J20: =IF($A20="",0,SUMIF(勘定入力!$G:$G,4&$A20,勘定入力!$J:$J)) -> 0 | K20: =IF($A20="",0,SUMIF(勘定入力!$G:$G,4&$A20,勘定入力!$K:$K)) -> 0 | L20: =IF($A20="",0,SUMIF(勘定入力!$G:$G,5&$A20,勘定入力!$J:$J)) -> 0 | M20: =IF($A20="",0,SUMIF(勘定入力!$G:$G,5&$A20,勘定入力!$K:$K)) -> 0 | N20: =IF($A20="",0,SUMIF(勘定入力!$G:$G,6&$A20,勘定入力!$J:$J)) -> 0 | O20: =IF($A20="",0,SUMIF(勘定入力!$G:$G,6&$A20,勘定入力!$K:$K)) -> 0 | P20: =IF($A20="",0,SUMIF(勘定入力!$G:$G,7&$A20,勘定入力!$J:$J)) -> 0 | Q20: =IF($A20="",0,SUMIF(勘定入力!$G:$G,7&$A20,勘定入力!$K:$K)) -> 0 | R20: =IF($A20="",0,SUMIF(勘定入力!$G:$G,8&$A20,勘定入力!$J:$J)) -> 0 | S20: =IF($A20="",0,SUMIF(勘定入力!$G:$G,8&$A20,勘定入力!$K:$K)) -> 0 | T20: =IF($A20="",0,SUMIF(勘定入力!$G:$G,9&$A20,勘定入力!$J:$J)) -> 0 | U20: =IF($A20="",0,SUMIF(勘定入力!$G:$G,9&$A20,勘定入力!$K:$K)) -> 0 | V20: =IF($A20="",0,SUMIF(勘定入力!$G:$G,10&$A20,勘定入力!$J:$J)) -> 0 | W20: =IF($A20="",0,SUMIF(勘定入力!$G:$G,10&$A20,勘定入力!$K:$K)) -> 0 | X20: =IF($A20="",0,SUMIF(勘定入力!$G:$G,11&$A20,勘定入力!$J:$J)) -> 0 | Y20: =IF($A20="",0,SUMIF(勘定入力!$G:$G,11&$A20,勘定入力!$K:$K)) -> 0 | Z20: =IF($A20="",0,SUMIF(勘定入力!$G:$G,12&$A20,勘定入力!$J:$J)) -> 0 | AA20: =IF($A20="",0,SUMIF(勘定入力!$G:$G,12&$A20,勘定入力!$K:$K)) -> 0
A21: =入力補助!G17 -> 0 | B21: 0 | C21: 0 | D21: =IF($A21="",0,SUMIF(勘定入力!$G:$G,1&$A21,勘定入力!$J:$J)) -> 0 | E21: =IF($A21="",0,SUMIF(勘定入力!$G:$G,1&$A21,勘定入力!$K:$K)) -> 0 | F21: =IF($A21="",0,SUMIF(勘定入力!$G:$G,2&$A21,勘定入力!$J:$J)) -> 0 | G21: =IF($A21="",0,SUMIF(勘定入力!$G:$G,2&$A21,勘定入力!$K:$K)) -> 0 | H21: =IF($A21="",0,SUMIF(勘定入力!$G:$G,3&$A21,勘定入力!$J:$J)) -> 0 | I21: =IF($A21="",0,SUMIF(勘定入力!$G:$G,3&$A21,勘定入力!$K:$K)) -> 0 | J21: =IF($A21="",0,SUMIF(勘定入力!$G:$G,4&$A21,勘定入力!$J:$J)) -> 0 | K21: =IF($A21="",0,SUMIF(勘定入力!$G:$G,4&$A21,勘定入力!$K:$K)) -> 0 | L21: =IF($A21="",0,SUMIF(勘定入力!$G:$G,5&$A21,勘定入力!$J:$J)) -> 0 | M21: =IF($A21="",0,SUMIF(勘定入力!$G:$G,5&$A21,勘定入力!$K:$K)) -> 0 | N21: =IF($A21="",0,SUMIF(勘定入力!$G:$G,6&$A21,勘定入力!$J:$J)) -> 0 | O21: =IF($A21="",0,SUMIF(勘定入力!$G:$G,6&$A21,勘定入力!$K:$K)) -> 0 | P21: =IF($A21="",0,SUMIF(勘定入力!$G:$G,7&$A21,勘定入力!$J:$J)) -> 0 | Q21: =IF($A21="",0,SUMIF(勘定入力!$G:$G,7&$A21,勘定入力!$K:$K)) -> 0 | R21: =IF($A21="",0,SUMIF(勘定入力!$G:$G,8&$A21,勘定入力!$J:$J)) -> 0 | S21: =IF($A21="",0,SUMIF(勘定入力!$G:$G,8&$A21,勘定入力!$K:$K)) -> 0 | T21: =IF($A21="",0,SUMIF(勘定入力!$G:$G,9&$A21,勘定入力!$J:$J)) -> 0 | U21: =IF($A21="",0,SUMIF(勘定入力!$G:$G,9&$A21,勘定入力!$K:$K)) -> 0 | V21: =IF($A21="",0,SUMIF(勘定入力!$G:$G,10&$A21,勘定入力!$J:$J)) -> 0 | W21: =IF($A21="",0,SUMIF(勘定入力!$G:$G,10&$A21,勘定入力!$K:$K)) -> 0 | X21: =IF($A21="",0,SUMIF(勘定入力!$G:$G,11&$A21,勘定入力!$J:$J)) -> 0 | Y21: =IF($A21="",0,SUMIF(勘定入力!$G:$G,11&$A21,勘定入力!$K:$K)) -> 0 | Z21: =IF($A21="",0,SUMIF(勘定入力!$G:$G,12&$A21,勘定入力!$J:$J)) -> 0 | AA21: =IF($A21="",0,SUMIF(勘定入力!$G:$G,12&$A21,勘定入力!$K:$K)) -> 0
A22: =入力補助!G18 -> 0 | B22: 0 | C22: 0 | D22: =IF($A22="",0,SUMIF(勘定入力!$G:$G,1&$A22,勘定入力!$J:$J)) -> 0 | E22: =IF($A22="",0,SUMIF(勘定入力!$G:$G,1&$A22,勘定入力!$K:$K)) -> 0 | F22: =IF($A22="",0,SUMIF(勘定入力!$G:$G,2&$A22,勘定入力!$J:$J)) -> 0 | G22: =IF($A22="",0,SUMIF(勘定入力!$G:$G,2&$A22,勘定入力!$K:$K)) -> 0 | H22: =IF($A22="",0,SUMIF(勘定入力!$G:$G,3&$A22,勘定入力!$J:$J)) -> 0 | I22: =IF($A22="",0,SUMIF(勘定入力!$G:$G,3&$A22,勘定入力!$K:$K)) -> 0 | J22: =IF($A22="",0,SUMIF(勘定入力!$G:$G,4&$A22,勘定入力!$J:$J)) -> 0 | K22: =IF($A22="",0,SUMIF(勘定入力!$G:$G,4&$A22,勘定入力!$K:$K)) -> 0 | L22: =IF($A22="",0,SUMIF(勘定入力!$G:$G,5&$A22,勘定入力!$J:$J)) -> 0 | M22: =IF($A22="",0,SUMIF(勘定入力!$G:$G,5&$A22,勘定入力!$K:$K)) -> 0 | N22: =IF($A22="",0,SUMIF(勘定入力!$G:$G,6&$A22,勘定入力!$J:$J)) -> 0 | O22: =IF($A22="",0,SUMIF(勘定入力!$G:$G,6&$A22,勘定入力!$K:$K)) -> 0 | P22: =IF($A22="",0,SUMIF(勘定入力!$G:$G,7&$A22,勘定入力!$J:$J)) -> 0 | Q22: =IF($A22="",0,SUMIF(勘定入力!$G:$G,7&$A22,勘定入力!$K:$K)) -> 0 | R22: =IF($A22="",0,SUMIF(勘定入力!$G:$G,8&$A22,勘定入力!$J:$J)) -> 0 | S22: =IF($A22="",0,SUMIF(勘定入力!$G:$G,8&$A22,勘定入力!$K:$K)) -> 0 | T22: =IF($A22="",0,SUMIF(勘定入力!$G:$G,9&$A22,勘定入力!$J:$J)) -> 0 | U22: =IF($A22="",0,SUMIF(勘定入力!$G:$G,9&$A22,勘定入力!$K:$K)) -> 0 | V22: =IF($A22="",0,SUMIF(勘定入力!$G:$G,10&$A22,勘定入力!$J:$J)) -> 0 | W22: =IF($A22="",0,SUMIF(勘定入力!$G:$G,10&$A22,勘定入力!$K:$K)) -> 0 | X22: =IF($A22="",0,SUMIF(勘定入力!$G:$G,11&$A22,勘定入力!$J:$J)) -> 0 | Y22: =IF($A22="",0,SUMIF(勘定入力!$G:$G,11&$A22,勘定入力!$K:$K)) -> 0 | Z22: =IF($A22="",0,SUMIF(勘定入力!$G:$G,12&$A22,勘定入力!$J:$J)) -> 0 | AA22: =IF($A22="",0,SUMIF(勘定入力!$G:$G,12&$A22,勘定入力!$K:$K)) -> 0
A23: 合計 | B23: =SUM(B7:B22) -> 40500 | C23: 35200 | D23: 10000 | E23: 1100 | F23: 5000 | G23: 1100 | H23: 5000 | I23: 2100 | J23: 0 | K23: 3100 | L23: 0 | M23: 4100 | N23: 200 | O23: 3100 | P23: 0 | Q23: 6100 | R23: 5000 | S23: 4100 | T23: 5300 | U23: 4100 | V23: 0 | W23: 4100 | X23: 5000 | Y23: 1100 | Z23: 5000 | AA23: 1100

Sheet 収支グラフ
A1: 月別 | B1: 年間合計 | D1: １月 | F1: ２月 | H1: ３月 | J1: ４月 | L1: ５月 | N1: ６月 | P1: ７月 | R1: ８月 | T1: ９月 | V1: １０月 | X1: １１月 | Z1: １２月
A2: 単位千円 | B2: 入金 | C2: 支払 | D2: 入金 | E2: 支払 | F2: 入金 | G2: 支払 | H2: 入金 | I2: 支払 | J2: 入金 | K2: 支払 | L2: 入金 | M2: 支払 | N2: 入金 | O2: 支払 | P2: 入金 | Q2: 支払 | R2: 入金 | S2: 支払 | T2: 入金 | U2: 支払 | V2: 入金 | W2: 支払 | X2: 入金 | Y2: 支払 | Z2: 入金 | AA2: 支払
A3: 合計 | B3: =D3+F3+H3+J3+L3+N3+P3+R3+T3+V3+X3+Z3 -> 40500 | C3: =E3+G3+I3+K3+M3+O3+Q3+S3+U3+W3+Y3+AA3 -> 35200 | D3: =SUMIF(勘定入力!$A:$A,1,勘定入力!$J:$J) -> 10000 | E3: =SUMIF(勘定入力!$A:$A,1,勘定入力!$K:$K) -> 1100 | F3: =SUMIF(勘定入力!$A:$A,2,勘定入力!$J:$J) -> 5000 | G3: =SUMIF(勘定入力!$A:$A,2,勘定入力!$K:$K) -> 1100 | H3: =SUMIF(勘定入力!$A:$A,3,勘定入力!$J:$J) -> 5000 | I3: =SUMIF(勘定入力!$A:$A,3,勘定入力!$K:$K) -> 2100 | J3: =SUMIF(勘定入力!$A:$A,4,勘定入力!$J:$J) -> 0 | K3: =SUMIF(勘定入力!$A:$A,4,勘定入力!$K:$K) -> 3100 | L3: =SUMIF(勘定入力!$A:$A,5,勘定入力!$J:$J) -> 0 | M3: =SUMIF(勘定入力!$A:$A,5,勘定入力!$K:$K) -> 4100 | N3: =SUMIF(勘定入力!$A:$A,6,勘定入力!$J:$J) -> 200 | O3: =SUMIF(勘定入力!$A:$A,6,勘定入力!$K:$K) -> 3100 | P3: =SUMIF(勘定入力!$A:$A,7,勘定入力!$J:$J) -> 0 | Q3: =SUMIF(勘定入力!$A:$A,7,勘定入力!$K:$K) -> 6100 | R3: =SUMIF(勘定入力!$A:$A,8,勘定入力!$J:$J) -> 5000 | S3: =SUMIF(勘定入力!$A:$A,8,勘定入力!$K:$K) -> 4100 | T3: =SUMIF(勘定入力!$A:$A,9,勘定入力!$J:$J) -> 5300 | U3: =SUMIF(勘定入力!$A:$A,9,勘定入力!$K:$K) -> 4100 | V3: =SUMIF(勘定入力!$A:$A,10,勘定入力!$J:$J) -> 0 | W3: =SUMIF(勘定入力!$A:$A,10,勘定入力!$K:$K) -> 4100 | X3: =SUMIF(勘定入力!$A:$A,11,勘定入力!$J:$J) -> 5000 | Y3: =SUMIF(勘定入力!$A:$A,11,勘定入力!$K:$K) -> 1100 | Z3: =SUMIF(勘定入力!$A:$A,12,勘定入力!$J:$J) -> 5000 | AA3: =SUMIF(勘定入力!$A:$A,12,勘定入力!$K:$K) -> 1100
D6: １月 | E6: ２月 | F6: ３月 | G6: ４月 | H6: ５月 | I6: ６月 | J6: ７月 | K6: ８月 | L6: ９月 | M6: １０月 | N6: １１月 | O6: １２月
C7: 入金 | D7: =D3 -> 10000 | E7: =F3 -> 5000 | F7: =H3 -> 5000 | G7: =J3 -> 0 | H7: =L3 -> 0 | I7: =N3 -> 200 | J7: =P3 -> 0 | K7: =R3 -> 5000 | L7: =T3 -> 5300 | M7: =V3 -> 0 | N7: =X3 -> 5000 | O7: =Z3 -> 5000
C8: 支払 | D8: =E3 -> 1100 | E8: =G3 -> 1100 | F8: =I3 -> 2100 | G8: =K3 -> 3100 | H8: =M3 -> 4100 | I8: =O3 -> 3100 | J8: =Q3 -> 6100 | K8: =S3 -> 4100 | L8: =U3 -> 4100 | M8: =W3 -> 4100 | N8: =Y3 -> 1100 | O8: =AA3 -> 1100
C9: 入金累積 | D9: =D7 -> 10000 | E9: =D9+E7 -> 15000 | F9: =E9+F7 -> 20000 | G9: 20000 | H9: 20000 | I9: 20200 | J9: 20200 | K9: 25200 | L9: 30500 | M9: 30500 | N9: 35500 | O9: 40500
C10: 支払累積 | D10: =D8 -> 1100 | E10: =D10+E8 -> 2200 | F10: =E10+F8 -> 4300 | G10: 7400 | H10: 11500 | I10: 14600 | J10: 20700 | K10: 24800 | L10: 28900 | M10: 33000 | N10: 34100 | O10: 35200
C11: 利益累計 | D11: =D9-D10 -> 8900 | E11: =E9-E10 -> 12800 | F11: 15700 | G11: 12600 | H11: 8500 | I11: 5600 | J11: -500 | K11: 400 | L11: 1600 | M11: -2500 | N11: 1400 | O11: 5300

Sheet 集計一覧
A1: 月別 | B1: 年間合計 | D1: １月 | F1: ２月 | H1: ３月 | J1: ４月 | L1: ５月 | N1: ６月 | P1: ７月 | R1: ８月 | T1: ９月 | V1: １０月 | X1: １１月 | Z1: １２月
A2: 単位千円 | B2: 入金 | C2: 支払 | D2: 入金 | E2: 支払 | F2: 入金 | G2: 支払 | H2: 入金 | I2: 支払 | J2: 入金 | K2: 支払 | L2: 入金 | M2: 支払 | N2: 入金 | O2: 支払 | P2: 入金 | Q2: 支払 | R2: 入金 | S2: 支払 | T2: 入金 | U2: 支払 | V2: 入金 | W2: 支払 | X2: 入金 | Y2: 支払 | Z2: 入金 | AA2: 支払
A3: 合計 | B3: =D3+F3+H3+J3+L3+N3+P3+R3+T3+V3+X3+Z3 -> 40500 | C3: =E3+G3+I3+K3+M3+O3+Q3+S3+U3+W3+Y3+AA3 -> 35200 | D3: =SUMIF(勘定入力!$A:$A,1,勘定入力!$J:$J) -> 10000 | E3: =SUMIF(勘定入力!$A:$A,1,勘定入力!$K:$K) -> 1100 | F3: =SUMIF(勘定入力!$A:$A,2,勘定入力!$J:$J) -> 5000 | G3: =SUMIF(勘定入力!$A:$A,2,勘定入力!$K:$K) -> 1100 | H3: =SUMIF(勘定入力!$A:$A,3,勘定入力!$J:$J) -> 5000 | I3: =SUMIF(勘定入力!$A:$A,3,勘定入力!$K:$K) -> 2100 | J3: =SUMIF(勘定入力!$A:$A,4,勘定入力!$J:$J) -> 0 | K3: =SUMIF(勘定入力!$A:$A,4,勘定入力!$K:$K) -> 3100 | L3: =SUMIF(勘定入力!$A:$A,5,勘定入力!$J:$J) -> 0 | M3: =SUMIF(勘定入力!$A:$A,5,勘定入力!$K:$K) -> 4100 | N3: =SUMIF(勘定入力!$A:$A,6,勘定入力!$J:$J) -> 200 | O3: =SUMIF(勘定入力!$A:$A,6,勘定入力!$K:$K) -> 3100 | P3: =SUMIF(勘定入力!$A:$A,7,勘定入力!$J:$J) -> 0 | Q3: =SUMIF(勘定入力!$A:$A,7,勘定入力!$K:$K) -> 6100 | R3: =SUMIF(勘定入力!$A:$A,8,勘定入力!$J:$J) -> 5000 | S3: =SUMIF(勘定入力!$A:$A,8,勘定入力!$K:$K) -> 4100 | T3: =SUMIF(勘定入力!$A:$A,9,勘定入力!$J:$J) -> 5300 | U3: =SUMIF(勘定入力!$A:$A,9,勘定入力!$K:$K) -> 4100 | V3: =SUMIF(勘定入力!$A:$A,10,勘定入力!$J:$J) -> 0 | W3: =SUMIF(勘定入力!$A:$A,10,勘定入力!$K:$K) -> 4100 | X3: =SUMIF(勘定入力!$A:$A,11,勘定入力!$J:$J) -> 5000 | Y3: =SUMIF(勘定入力!$A:$A,11,勘定入力!$K:$K) -> 1100 | Z3: =SUMIF(勘定入力!$A:$A,12,勘定入力!$J:$J) -> 5000 | AA3: =SUMIF(勘定入力!$A:$A,12,勘定入力!$K:$K) -> 1100
A5: =勘定入力!L3 -> 勘定科目 | B5: 年間合計 | D5: １月 | F5: ２月 | H5: ３月 | J5: ４月 | L5: ５月 | N5: ６月 | P5: ７月 | R5: ８月 | T5: ９月 | V5: １０月 | X5: １１月 | Z5: １２月
A6: =IF(B3=B62,"","入力確認要") ->  | B6: 入金 | C6: 支払 | D6: 入金 | E6: 支払 | F6: 入金 | G6: 支払 | H6: 入金 | I6: 支払 | J6: 入金 | K6: 支払 | L6: 入金 | M6: 支払 | N6: 入金 | O6: 支払 | P6: 入金 | Q6: 支払 | R6: 入金 | S6: 支払 | T6: 入金 | U6: 支払 | V6: 入金 | W6: 支払 | X6: 入金 | Y6: 支払 | Z6: 入金 | AA6: 支払
A7: =入力補助!C3 -> ○○ | B7: =D7+F7+H7+J7+L7+N7+P7+R7+T7+V7+X7+Z7 -> 30000 | C7: =E7+G7+I7+K7+M7+O7+Q7+S7+U7+W7+Y7+AA7 -> 0 | D7: =IF($A7="",0,SUMIF(勘定入力!$D:$D,1&$A7,勘定入力!$J:$J)) -> 0 | E7: =IF($A7="",0,SUMIF(勘定入力!$D:$D,1&$A7,勘定入力!$K:$K)) -> 0 | F7: =IF($A7="",0,SUMIF(勘定入力!$D:$D,2&$A7,勘定入力!$J:$J)) -> 5000 | G7: =IF($A7="",0,SUMIF(勘定入力!$D:$D,2&$A7,勘定入力!$K:$K)) -> 0 | H7: =IF($A7="",0,SUMIF(勘定入力!$D:$D,3&$A7,勘定入力!$J:$J)) -> 5000 | I7: =IF($A7="",0,SUMIF(勘定入力!$D:$D,3&$A7,勘定入力!$K:$K)) -> 0 | J7: =IF($A7="",0,SUMIF(勘定入力!$D:$D,4&$A7,勘定入力!$J:$J)) -> 0 | K7: =IF($A7="",0,SUMIF(勘定入力!$D:$D,4&$A7,勘定入力!$K:$K)) -> 0 | L7: =IF($A7="",0,SUMIF(勘定入力!$D:$D,5&$A7,勘定入力!$J:$J)) -> 0 | M7: =IF($A7="",0,SUMIF(勘定入力!$D:$D,5&$A7,勘定入力!$K:$K)) -> 0 | N7: =IF($A7="",0,SUMIF(勘定入力!$D:$D,6&$A7,勘定入力!$J:$J)) -> 0 | O7: =IF($A7="",0,SUMIF(勘定入力!$D:$D,6&$A7,勘定入力!$K:$K)) -> 0 | P7: =IF($A7="",0,SUMIF(勘定入力!$D:$D,7&$A7,勘定入力!$J:$J)) -> 0 | Q7: =IF($A7="",0,SUMIF(勘定入力!$D:$D,7&$A7,勘定入力!$K:$K)) -> 0 | R7: =IF($A7="",0,SUMIF(勘定入力!$D:$D,8&$A7,勘定入力!$J:$J)) -> 5000 | S7: =IF($A7="",0,SUMIF(勘定入力!$D:$D,8&$A7,勘定入力!$K:$K)) -> 0 | T7: =IF($A7="",0,SUMIF(勘定入力!$D:$D,9&$A7,勘定入力!$J:$J)) -> 5000 | U7: =IF($A7="",0,SUMIF(勘定入力!$D:$D,9&$A7,勘定入力!$K:$K)) -> 0 | V7: =IF($A7="",0,SUMIF(勘定入力!$D:$D,10&$A7,勘定入力!$J:$J)) -> 0 | W7: =IF($A7="",0,SUMIF(勘定入力!$D:$D,10&$A7,勘定入力!$K:$K)) -> 0 | X7: =IF($A7="",0,SUMIF(勘定入力!$D:$D,11&$A7,勘定入力!$J:$J)) -> 5000 | Y7: =IF($A7="",0,SUMIF(勘定入力!$D:$D,11&$A7,勘定入力!$K:$K)) -> 0 | Z7: =IF($A7="",0,SUMIF(勘定入力!$D:$D,12&$A7,勘定入力!$J:$J)) -> 5000 | AA7: =IF($A7="",0,SUMIF(勘定入力!$D:$D,12&$A7,勘定入力!$K:$K)) -> 0
A8: =入力補助!C4 -> △△ | B8: =D8+F8+H8+J8+L8+N8+P8+R8+T8+V8+X8+Z8 -> 500 | C8: =E8+G8+I8+K8+M8+O8+Q8+S8+U8+W8+Y8+AA8 -> 0 | D8: =IF($A8="",0,SUMIF(勘定入力!$D:$D,1&$A8,勘定入力!$J:$J)) -> 0 | E8: =IF($A8="",0,SUMIF(勘定入力!$D:$D,1&$A8,勘定入力!$K:$K)) -> 0 | F8: =IF($A8="",0,SUMIF(勘定入力!$D:$D,2&$A8,勘定入力!$J:$J)) -> 0 | G8: =IF($A8="",0,SUMIF(勘定入力!$D:$D,2&$A8,勘定入力!$K:$K)) -> 0 | H8: =IF($A8="",0,SUMIF(勘定入力!$D:$D,3&$A8,勘定入力!$J:$J)) -> 0 | I8: =IF($A8="",0,SUMIF(勘定入力!$D:$D,3&$A8,勘定入力!$K:$K)) -> 0 | J8: =IF($A8="",0,SUMIF(勘定入力!$D:$D,4&$A8,勘定入力!$J:$J)) -> 0 | K8: =IF($A8="",0,SUMIF(勘定入力!$D:$D,4&$A8,勘定入力!$K:$K)) -> 0 | L8: =IF($A8="",0,SUMIF(勘定入力!$D:$D,5&$A8,勘定入力!$J:$J)) -> 0 | M8: =IF($A8="",0,SUMIF(勘定入力!$D:$D,5&$A8,勘定入力!$K:$K)) -> 0 | N8: =IF($A8="",0,SUMIF(勘定入力!$D:$D,6&$A8,勘定入力!$J:$J)) -> 200 | O8: =IF($A8="",0,SUMIF(勘定入力!$D:$D,6&$A8,勘定入力!$K:$K)) -> 0 | P8: =IF($A8="",0,SUMIF(勘定入力!$D:$D,7&$A8,勘定入力!$J:$J)) -> 0 | Q8: =IF($A8="",0,SUMIF(勘定入力!$D:$D,7&$A8,勘定入力!$K:$K)) -> 0 | R8: =IF($A8="",0,SUMIF(勘定入力!$D:$D,8&$A8,勘定入力!$J:$J)) -> 0 | S8: =IF($A8="",0,SUMIF(勘定入力!$D:$D,8&$A8,勘定入力!$K:$K)) -> 0 | T8: =IF($A8="",0,SUMIF(勘定入力!$D:$D,9&$A8,勘定入力!$J:$J)) -> 300 | U8: =IF($A8="",0,SUMIF(勘定入力!$D:$D,9&$A8,勘定入力!$K:$K)) -> 0 | V8: =IF($A8="",0,SUMIF(勘定入力!$D:$D,10&$A8,勘定入力!$J:$J)) -> 0 | W8: =IF($A8="",0,SUMIF(勘定入力!$D:$D,10&$A8,勘定入力!$K:$K)) -> 0 | X8: =IF($A8="",0,SUMIF(勘定入力!$D:$D,11&$A8,勘定入力!$J:$J)) -> 0 | Y8: =IF($A8="",0,SUMIF(勘定入力!$D:$D,11&$A8,勘定入力!$K:$K)) -> 0 | Z8: =IF($A8="",0,SUMIF(勘定入力!$D:$D,12&$A8,勘定入力!$J:$J)) -> 0 | AA8: =IF($A8="",0,SUMIF(勘定入力!$D:$D,12&$A8,勘定入力!$K:$K)) -> 0
A9: =入力補助!C5 -> 基礎工事 | B9: 0 | C9: 2000 | D9: =IF($A9="",0,SUMIF(勘定入力!$D:$D,1&$A9,勘定入力!$J:$J)) -> 0 | E9: =IF($A9="",0,SUMIF(勘定入力!$D:$D,1&$A9,勘定入力!$K:$K)) -> 0 | F9: =IF($A9="",0,SUMIF(勘定入力!$D:$D,2&$A9,勘定入力!$J:$J)) -> 0 | G9: =IF($A9="",0,SUMIF(勘定入力!$D:$D,2&$A9,勘定入力!$K:$K)) -> 0 | H9: =IF($A9="",0,SUMIF(勘定入力!$D:$D,3&$A9,勘定入力!$J:$J)) -> 0 | I9: =IF($A9="",0,SUMIF(勘定入力!$D:$D,3&$A9,勘定入力!$K:$K)) -> 1000 | J9: =IF($A9="",0,SUMIF(勘定入力!$D:$D,4&$A9,勘定入力!$J:$J)) -> 0 | K9: =IF($A9="",0,SUMIF(勘定入力!$D:$D,4&$A9,勘定入力!$K:$K)) -> 0 | L9: =IF($A9="",0,SUMIF(勘定入力!$D:$D,5&$A9,勘定入力!$J:$J)) -> 0 | M9: =IF($A9="",0,SUMIF(勘定入力!$D:$D,5&$A9,勘定入力!$K:$K)) -> 1000 | N9: =IF($A9="",0,SUMIF(勘定入力!$D:$D,6&$A9,勘定入力!$J:$J)) -> 0 | O9: =IF($A9="",0,SUMIF(勘定入力!$D:$D,6&$A9,勘定入力!$K:$K)) -> 0 | P9: =IF($A9="",0,SUMIF(勘定入力!$D:$D,7&$A9,勘定入力!$J:$J)) -> 0 | Q9: =IF($A9="",0,SUMIF(勘定入力!$D:$D,7&$A9,勘定入力!$K:$K)) -> 0 | R9: =IF($A9="",0,SUMIF(勘定入力!$D:$D,8&$A9,勘定入力!$J:$J)) -> 0 | S9: =IF($A9="",0,SUMIF(勘定入力!$D:$D,8&$A9,勘定入力!$K:$K)) -> 0 | T9: =IF($A9="",0,SUMIF(勘定入力!$D:$D,9&$A9,勘定入力!$J:$J)) -> 0 | U9: =IF($A9="",0,SUMIF(勘定入力!$D:$D,9&$A9,勘定入力!$K:$K)) -> 0 | V9: =IF($A9="",0,SUMIF(勘定入力!$D:$D,10&$A9,勘定入力!$J:$J)) -> 0 | W9: =IF($A9="",0,SUMIF(勘定入力!$D:$D,10&$A9,勘定入力!$K:$K)) -> 0 | X9: =IF($A9="",0,SUMIF(勘定入力!$D:$D,11&$A9,勘定入力!$J:$J)) -> 0 | Y9: =IF($A9="",0,SUMIF(勘定入力!$D:$D,11&$A9,勘定入力!$K:$K)) -> 0 | Z9: =IF($A9="",0,SUMIF(勘定入力!$D:$D,12&$A9,勘定入力!$J:$J)) -> 0 | AA9: =IF($A9="",0,SUMIF(勘定入力!$D:$D,12&$A9,勘定入力!$K:$K)) -> 0
A10: =入力補助!C6 -> 屋根工事 | B10: 0 | C10: 4000 | D10: =IF($A10="",0,SUMIF(勘定入力!$D:$D,1&$A10,勘定入力!$J:$J)) -> 0 | E10: =IF($A10="",0,SUMIF(勘定入力!$D:$D,1&$A10,勘定入力!$K:$K)) -> 0 | F10: =IF($A10="",0,SUMIF(勘定入力!$D:$D,2&$A10,勘定入力!$J:$J)) -> 0 | G10: =IF($A10="",0,SUMIF(勘定入力!$D:$D,2&$A10,勘定入力!$K:$K)) -> 0 | H10: =IF($A10="",0,SUMIF(勘定入力!$D:$D,3&$A10,勘定入力!$J:$J)) -> 0 | I10: =IF($A10="",0,SUMIF(勘定入力!$D:$D,3&$A10,勘定入力!$K:$K)) -> 0 | J10: =IF($A10="",0,SUMIF(勘定入力!$D:$D,4&$A10,勘定入力!$J:$J)) -> 0 | K10: =IF($A10="",0,SUMIF(勘定入力!$D:$D,4&$A10,勘定入力!$K:$K)) -> 0 | L10: =IF($A10="",0,SUMIF(勘定入力!$D:$D,5&$A10,勘定入力!$J:$J)) -> 0 | M10: =IF($A10="",0,SUMIF(勘定入力!$D:$D,5&$A10,勘定入力!$K:$K)) -> 0 | N10: =IF($A10="",0,SUMIF(勘定入力!$D:$D,6&$A10,勘定入力!$J:$J)) -> 0 | O10: =IF($A10="",0,SUMIF(勘定入力!$D:$D,6&$A10,勘定入力!$K:$K)) -> 2000 | P10: =IF($A10="",0,SUMIF(勘定入力!$D:$D,7&$A10,勘定入力!$J:$J)) -> 0 | Q10: =IF($A10="",0,SUMIF(勘定入力!$D:$D,7&$A10,勘定入力!$K:$K)) -> 2000 | R10: =IF($A10="",0,SUMIF(勘定入力!$D:$D,8&$A10,勘定入力!$J:$J)) -> 0 | S10: =IF($A10="",0,SUMIF(勘定入力!$D:$D,8&$A10,勘定入力!$K:$K)) -> 0 | T10: =IF($A10="",0,SUMIF(勘定入力!$D:$D,9&$A10,勘定入力!$J:$J)) -> 0 | U10: =IF($A10="",0,SUMIF(勘定入力!$D:$D,9&$A10,勘定入力!$K:$K)) -> 0 | V10: =IF($A10="",0,SUMIF(勘定入力!$D:$D,10&$A10,勘定入力!$J:$J)) -> 0 | W10: =IF($A10="",0,SUMIF(勘定入力!$D:$D,10&$A10,勘定入力!$K:$K)) -> 0 | X10: =IF($A10="",0,SUMIF(勘定入力!$D:$D,11&$A10,勘定入力!$J:$J)) -> 0 | Y10: =IF($A10="",0,SUMIF(勘定入力!$D:$D,11&$A10,勘定入力!$K:$K)) -> 0 | Z10: =IF($A10="",0,SUMIF(勘定入力!$D:$D,12&$A10,勘定入力!$J:$J)) -> 0 | AA10: =IF($A10="",0,SUMIF(勘定入力!$D:$D,12&$A10,勘定入力!$K:$K)) -> 0
A11: =入力補助!C7 -> 外構工事 | B11: 0 | C11: 0 | D11: =IF($A11="",0,SUMIF(勘定入力!$D:$D,1&$A11,勘定入力!$J:$J)) -> 0 | E11: =IF($A11="",0,SUMIF(勘定入力!$D:$D,1&$A11,勘定入力!$K:$K)) -> 0 | F11: =IF($A11="",0,SUMIF(勘定入力!$D:$D,2&$A11,勘定入力!$J:$J)) -> 0 | G11: =IF($A11="",0,SUMIF(勘定入力!$D:$D,2&$A11,勘定入力!$K:$K)) -> 0 | H11: =IF($A11="",0,SUMIF(勘定入力!$D:$D,3&$A11,勘定入力!$J:$J)) -> 0 | I11: =IF($A11="",0,SUMIF(勘定入力!$D:$D,3&$A11,勘定入力!$K:$K)) -> 0 | J11: =IF($A11="",0,SUMIF(勘定入力!$D:$D,4&$A11,勘定入力!$J:$J)) -> 0 | K11: =IF($A11="",0,SUMIF(勘定入力!$D:$D,4&$A11,勘定入力!$K:$K)) -> 0 | L11: =IF($A11="",0,SUMIF(勘定入力!$D:$D,5&$A11,勘定入力!$J:$J)) -> 0 | M11: =IF($A11="",0,SUMIF(勘定入力!$D:$D,5&$A11,勘定入力!$K:$K)) -> 0 | N11: =IF($A11="",0,SUMIF(勘定入力!$D:$D,6&$A11,勘定入力!$J:$J)) -> 0 | O11: =IF($A11="",0,SUMIF(勘定入力!$D:$D,6&$A11,勘定入力!$K:$K)) -> 0 | P11: =IF($A11="",0,SUMIF(勘定入力!$D:$D,7&$A11,勘定入力!$J:$J)) -> 0 | Q11: =IF($A11="",0,SUMIF(勘定入力!$D:$D,7&$A11,勘定入力!$K:$K)) -> 0 | R11: =IF($A11="",0,SUMIF(勘定入力!$D:$D,8&$A11,勘定入力!$J:$J)) -> 0 | S11: =IF($A11="",0,SUMIF(勘定入力!$D:$D,8&$A11,勘定入力!$K:$K)) -> 0 | T11: =IF($A11="",0,SUMIF(勘定入力!$D:$D,9&$A11,勘定入力!$J:$J)) -> 0 | U11: =IF($A11="",0,SUMIF(勘定入力!$D:$D,9&$A11,勘定入力!$K:$K)) -> 0 | V11: =IF($A11="",0,SUMIF(勘定入力!$D:$D,10&$A11,勘定入力!$J:$J)) -> 0 | W11: =IF($A11="",0,SUMIF(勘定入力!$D:$D,10&$A11,勘定入力!$K:$K)) -> 0 | X11: =IF($A11="",0,SUMIF(勘定入力!$D:$D,11&$A11,勘定入力!$J:$J)) -> 0 | Y11: =IF($A11="",0,SUMIF(勘定入力!$D:$D,11&$A11,勘定入力!$K:$K)) -> 0 | Z11: =IF($A11="",0,SUMIF(勘定入力!$D:$D,12&$A11,勘定入力!$J:$J)) -> 0 | AA11: =IF($A11="",0,SUMIF(勘定入力!$D:$D,12&$A11,勘定入力!$K:$K)) -> 0
A12: =入力補助!C8 -> 外壁工事 | B12: 0 | C12: 6000 | D12: =IF($A12="",0,SUMIF(勘定入力!$D:$D,1&$A12,勘定入力!$J:$J)) -> 0 | E12: =IF($A12="",0,SUMIF(勘定入力!$D:$D,1&$A12,勘定入力!$K:$K)) -> 0 | F12: =IF($A12="",0,SUMIF(勘定入力!$D:$D,2&$A12,勘定入力!$J:$J)) -> 0 | G12: =IF($A12="",0,SUMIF(勘定入力!$D:$D,2&$A12,勘定入力!$K:$K)) -> 0 | H12: =IF($A12="",0,SUMIF(勘定入力!$D:$D,3&$A12,勘定入力!$J:$J)) -> 0 | I12: =IF($A12="",0,SUMIF(勘定入力!$D:$D,3&$A12,勘定入力!$K:$K)) -> 0 | J12: =IF($A12="",0,SUMIF(勘定入力!$D:$D,4&$A12,勘定入力!$J:$J)) -> 0 | K12: =IF($A12="",0,SUMIF(勘定入力!$D:$D,4&$A12,勘定入力!$K:$K)) -> 0 | L12: =IF($A12="",0,SUMIF(勘定入力!$D:$D,5&$A12,勘定入力!$J:$J)) -> 0 | M12: =IF($A12="",0,SUMIF(勘定入力!$D:$D,5&$A12,勘定入力!$K:$K)) -> 0 | N12: =IF($A12="",0,SUMIF(勘定入力!$D:$D,6&$A12,勘定入力!$J:$J)) -> 0 | O12: =IF($A12="",0,SUMIF(勘定入力!$D:$D,6&$A12,勘定入力!$K:$K)) -> 0 | P12: =IF($A12="",0,SUMIF(勘定入力!$D:$D,7&$A12,勘定入力!$J:$J)) -> 0 | Q12: =IF($A12="",0,SUMIF(勘定入力!$D:$D,7&$A12,勘定入力!$K:$K)) -> 0 | R12: =IF($A12="",0,SUMIF(勘定入力!$D:$D,8&$A12,勘定入力!$J:$J)) -> 0 | S12: =IF($A12="",0,SUMIF(勘定入力!$D:$D,8&$A12,勘定入力!$K:$K)) -> 0 | T12: =IF($A12="",0,SUMIF(勘定入力!$D:$D,9&$A12,勘定入力!$J:$J)) -> 0 | U12: =IF($A12="",0,SUMIF(勘定入力!$D:$D,9&$A12,勘定入力!$K:$K)) -> 3000 | V12: =IF($A12="",0,SUMIF(勘定入力!$D:$D,10&$A12,勘定入力!$J:$J)) -> 0 | W12: =IF($A12="",0,SUMIF(勘定入力!$D:$D,10&$A12,勘定入力!$K:$K)) -> 3000 | X12: =IF($A12="",0,SUMIF(勘定入力!$D:$D,11&$A12,勘定入力!$J:$J)) -> 0 | Y12: =IF($A12="",0,SUMIF(勘定入力!$D:$D,11&$A12,勘定入力!$K:$K)) -> 0 | Z12: =IF($A12="",0,SUMIF(勘定入力!$D:$D,12&$A12,勘定入力!$J:$J)) -> 0 | AA12: =IF($A12="",0,SUMIF(勘定入力!$D:$D,12&$A12,勘定入力!$K:$K)) -> 0
A13: =入力補助!C9 -> 左官工事 | B13: 0 | C13: 0 | D13: =IF($A13="",0,SUMIF(勘定入力!$D:$D,1&$A13,勘定入力!$J:$J)) -> 0 | E13: =IF($A13="",0,SUMIF(勘定入力!$D:$D,1&$A13,勘定入力!$K:$K)) -> 0 | F13: =IF($A13="",0,SUMIF(勘定入力!$D:$D,2&$A13,勘定入力!$J:$J)) -> 0 | G13: =IF($A13="",0,SUMIF(勘定入力!$D:$D,2&$A13,勘定入力!$K:$K)) -> 0 | H13: =IF($A13="",0,SUMIF(勘定入力!$D:$D,3&$A13,勘定入力!$J:$J)) -> 0 | I13: =IF($A13="",0,SUMIF(勘定入力!$D:$D,3&$A13,勘定入力!$K:$K)) -> 0 | J13: =IF($A13="",0,SUMIF(勘定入力!$D:$D,4&$A13,勘定入力!$J:$J)) -> 0 | K13: =IF($A13="",0,SUMIF(勘定入力!$D:$D,4&$A13,勘定入力!$K:$K)) -> 0 | L13: =IF($A13="",0,SUMIF(勘定入力!$D:$D,5&$A13,勘定入力!$J:$J)) -> 0 | M13: =IF($A13="",0,SUMIF(勘定入力!$D:$D,5&$A13,勘定入力!$K:$K)) -> 0 | N13: =IF($A13="",0,SUMIF(勘定入力!$D:$D,6&$A13,勘定入力!$J:$J)) -> 0 | O13: =IF($A13="",0,SUMIF(勘定入力!$D:$D,6&$A13,勘定入力!$K:$K)) -> 0 | P13: =IF($A13="",0,SUMIF(勘定入力!$D:$D,7&$A13,勘定入力!$J:$J)) -> 0 | Q13: =IF($A13="",0,SUMIF(勘定入力!$D:$D,7&$A13,勘定入力!$K:$K)) -> 0 | R13: =IF($A13="",0,SUMIF(勘定入力!$D:$D,8&$A13,勘定入力!$J:$J)) -> 0 | S13: =IF($A13="",0,SUMIF(勘定入力!$D:$D,8&$A13,勘定入力!$K:$K)) -> 0 | T13: =IF($A13="",0,SUMIF(勘定入力!$D:$D,9&$A13,勘定入力!$J:$J)) -> 0 | U13: =IF($A13="",0,SUMIF(勘定入力!$D:$D,9&$A13,勘定入力!$K:$K)) -> 0 | V13: =IF($A13="",0,SUMIF(勘定入力!$D:$D,10&$A13,勘定入力!$J:$J)) -> 0 | W13: =IF($A13="",0,SUMIF(勘定入力!$D:$D,10&$A13,勘定入力!$K:$K)) -> 0 | X13: =IF($A13="",0,SUMIF(勘定入力!$D:$D,11&$A13,勘定入力!$J:$J)) -> 0 | Y13: =IF($A13="",0,SUMIF(勘定入力!$D:$D,11&$A13,勘定入力!$K:$K)) -> 0 | Z13: =IF($A13="",0,SUMIF(勘定入力!$D:$D,12&$A13,勘定入力!$J:$J)) -> 0 | AA13: =IF($A13="",0,SUMIF(勘定入力!$D:$D,12&$A13,勘定入力!$K:$K)) -> 0
A14: =入力補助!C10 -> 電気工事 | B14: 0 | C14: 6000 | D14: =IF($A14="",0,SUMIF(勘定入力!$D:$D,1&$A14,勘定入力!$J:$J)) -> 0 | E14: =IF($A14="",0,SUMIF(勘定入力!$D:$D,1&$A14,勘定入力!$K:$K)) -> 0 | F14: =IF($A14="",0,SUMIF(勘定入力!$D:$D,2&$A14,勘定入力!$J:$J)) -> 0 | G14: =IF($A14="",0,SUMIF(勘定入力!$D:$D,2&$A14,勘定入力!$K:$K)) -> 0 | H14: =IF($A14="",0,SUMIF(勘定入力!$D:$D,3&$A14,勘定入力!$J:$J)) -> 0 | I14: =IF($A14="",0,SUMIF(勘定入力!$D:$D,3&$A14,勘定入力!$K:$K)) -> 0 | J14: =IF($A14="",0,SUMIF(勘定入力!$D:$D,4&$A14,勘定入力!$J:$J)) -> 0 | K14: =IF($A14="",0,SUMIF(勘定入力!$D:$D,4&$A14,勘定入力!$K:$K)) -> 0 | L14: =IF($A14="",0,SUMIF(勘定入力!$D:$D,5&$A14,勘定入力!$J:$J)) -> 0 | M14: =IF($A14="",0,SUMIF(勘定入力!$D:$D,5&$A14,勘定入力!$K:$K)) -> 0 | N14: =IF($A14="",0,SUMIF(勘定入力!$D:$D,6&$A14,勘定入力!$J:$J)) -> 0 | O14: =IF($A14="",0,SUMIF(勘定入力!$D:$D,6&$A14,勘定入力!$K:$K)) -> 0 | P14: =IF($A14="",0,SUMIF(勘定入力!$D:$D,7&$A14,勘定入力!$J:$J)) -> 0 | Q14: =IF($A14="",0,SUMIF(勘定入力!$D:$D,7&$A14,勘定入力!$K:$K)) -> 3000 | R14: =IF($A14="",0,SUMIF(勘定入力!$D:$D,8&$A14,勘定入力!$J:$J)) -> 0 | S14: =IF($A14="",0,SUMIF(勘定入力!$D:$D,8&$A14,勘定入力!$K:$K)) -> 3000 | T14: =IF($A14="",0,SUMIF(勘定入力!$D:$D,9&$A14,勘定入力!$J:$J)) -> 0 | U14: =IF($A14="",0,SUMIF(勘定入力!$D:$D,9&$A14,勘定入力!$K:$K)) -> 0 | V14: =IF($A14="",0,SUMIF(勘定入力!$D:$D,10&$A14,勘定入力!$J:$J)) -> 0 | W14: =IF($A14="",0,SUMIF(勘定入力!$D:$D,10&$A14,勘定入力!$K:$K)) -> 0 | X14: =IF($A14="",0,SUMIF(勘定入力!$D:$D,11&$A14,勘定入力!$J:$J)) -> 0 | Y14: =IF($A14="",0,SUMIF(勘定入力!$D:$D,11&$A14,勘定入力!$K:$K)) -> 0 | Z14: =IF($A14="",0,SUMIF(勘定入力!$D:$D,12&$A14,勘定入力!$J:$J)) -> 0 | AA14: =IF($A14="",0,SUMIF(勘定入力!$D:$D,12&$A14,勘定入力!$K:$K)) -> 0
A15: =入力補助!C11 -> 木工事 | B15: 0 | C15: 4000 | D15: =IF($A15="",0,SUMIF(勘定入力!$D:$D,1&$A15,勘定入力!$J:$J)) -> 0 | E15: =IF($A15="",0,SUMIF(勘定入力!$D:$D,1&$A15,勘定入力!$K:$K)) -> 0 | F15: =IF($A15="",0,SUMIF(勘定入力!$D:$D,2&$A15,勘定入力!$J:$J)) -> 0 | G15: =IF($A15="",0,SUMIF(勘定入力!$D:$D,2&$A15,勘定入力!$K:$K)) -> 0 | H15: =IF($A15="",0,SUMIF(勘定入力!$D:$D,3&$A15,勘定入力!$J:$J)) -> 0 | I15: =IF($A15="",0,SUMIF(勘定入力!$D:$D,3&$A15,勘定入力!$K:$K)) -> 0 | J15: =IF($A15="",0,SUMIF(勘定入力!$D:$D,4&$A15,勘定入力!$J:$J)) -> 0 | K15: =IF($A15="",0,SUMIF(勘定入力!$D:$D,4&$A15,勘定入力!$K:$K)) -> 2000 | L15: =IF($A15="",0,SUMIF(勘定入力!$D:$D,5&$A15,勘定入力!$J:$J)) -> 0 | M15: =IF($A15="",0,SUMIF(勘定入力!$D:$D,5&$A15,勘定入力!$K:$K)) -> 2000 | N15: =IF($A15="",0,SUMIF(勘定入力!$D:$D,6&$A15,勘定入力!$J:$J)) -> 0 | O15: =IF($A15="",0,SUMIF(勘定入力!$D:$D,6&$A15,勘定入力!$K:$K)) -> 0 | P15: =IF($A15="",0,SUMIF(勘定入力!$D:$D,7&$A15,勘定入力!$J:$J)) -> 0 | Q15: =IF($A15="",0,SUMIF(勘定入力!$D:$D,7&$A15,勘定入力!$K:$K)) -> 0 | R15: =IF($A15="",0,SUMIF(勘定入力!$D:$D,8&$A15,勘定入力!$J:$J)) -> 0 | S15: =IF($A15="",0,SUMIF(勘定入力!$D:$D,8&$A15,勘定入力!$K:$K)) -> 0 | T15: =IF($A15="",0,SUMIF(勘定入力!$D:$D,9&$A15,勘定入力!$J:$J)) -> 0 | U15: =IF($A15="",0,SUMIF(勘定入力!$D:$D,9&$A15,勘定入力!$K:$K)) -> 0 | V15: =IF($A15="",0,SUMIF(勘定入力!$D:$D,10&$A15,勘定入力!$J:$J)) -> 0 | W15: =IF($A15="",0,SUMIF(勘定入力!$D:$D,10&$A15,勘定入力!$K:$K)) -> 0 | X15: =IF($A15="",0,SUMIF(勘定入力!$D:$D,11&$A15,勘定入力!$J:$J)) -> 0 | Y15: =IF($A15="",0,SUMIF(勘定入力!$D:$D,11&$A15,勘定入力!$K:$K)) -> 0 | Z15: =IF($A15="",0,SUMIF(勘定入力!$D:$D,12&$A15,勘定入力!$J:$J)) -> 0 | AA15: =IF($A15="",0,SUMIF(勘定入力!$D:$D,12&$A15,勘定入力!$K:$K)) -> 0
A16: =入力補助!C12 -> 内装工事 | B16: 0 | C16: 0 | D16: =IF($A16="",0,SUMIF(勘定入力!$D:$D,1&$A16,勘定入力!$J:$J)) -> 0 | E16: =IF($A16="",0,SUMIF(勘定入力!$D:$D,1&$A16,勘定入力!$K:$K)) -> 0 | F16: =IF($A16="",0,SUMIF(勘定入力!$D:$D,2&$A16,勘定入力!$J:$J)) -> 0 | G16: =IF($A16="",0,SUMIF(勘定入力!$D:$D,2&$A16,勘定入力!$K:$K)) -> 0 | H16: =IF($A16="",0,SUMIF(勘定入力!$D:$D,3&$A16,勘定入力!$J:$J)) -> 0 | I16: =IF($A16="",0,SUMIF(勘定入力!$D:$D,3&$A16,勘定入力!$K:$K)) -> 0 | J16: =IF($A16="",0,SUMIF(勘定入力!$D:$D,4&$A16,勘定入力!$J:$J)) -> 0 | K16: =IF($A16="",0,SUMIF(勘定入力!$D:$D,4&$A16,勘定入力!$K:$K)) -> 0 | L16: =IF($A16="",0,SUMIF(勘定入力!$D:$D,5&$A16,勘定入力!$J:$J)) -> 0 | M16: =IF($A16="",0,SUMIF(勘定入力!$D:$D,5&$A16,勘定入力!$K:$K)) -> 0 | N16: =IF($A16="",0,SUMIF(勘定入力!$D:$D,6&$A16,勘定入力!$J:$J)) -> 0 | O16: =IF($A16="",0,SUMIF(勘定入力!$D:$D,6&$A16,勘定入力!$K:$K)) -> 0 | P16: =IF($A16="",0,SUMIF(勘定入力!$D:$D,7&$A16,勘定入力!$J:$J)) -> 0 | Q16: =IF($A16="",0,SUMIF(勘定入力!$D:$D,7&$A16,勘定入力!$K:$K)) -> 0 | R16: =IF($A16="",0,SUMIF(勘定入力!$D:$D,8&$A16,勘定入力!$J:$J)) -> 0 | S16: =IF($A16="",0,SUMIF(勘定入力!$D:$D,8&$A16,勘定入力!$K:$K)) -> 0 | T16: =IF($A16="",0,SUMIF(勘定入力!$D:$D,9&$A16,勘定入力!$J:$J)) -> 0 | U16: =IF($A16="",0,SUMIF(勘定入力!$D:$D,9&$A16,勘定入力!$K:$K)) -> 0 | V16: =IF($A16="",0,SUMIF(勘定入力!$D:$D,10&$A16,勘定入力!$J:$J)) -> 0 | W16: =IF($A16="",0,SUMIF(勘定入力!$D:$D,10&$A16,勘定入力!$K:$K)) -> 0 | X16: =IF($A16="",0,SUMIF(勘定入力!$D:$D,11&$A16,勘定入力!$J:$J)) -> 0 | Y16: =IF($A16="",0,SUMIF(勘定入力!$D:$D,11&$A16,勘定入力!$K:$K)) -> 0 | Z16: =IF($A16="",0,SUMIF(勘定入力!$D:$D,12&$A16,勘定入力!$J:$J)) -> 0 | AA16: =IF($A16="",0,SUMIF(勘定入力!$D:$D,12&$A16,勘定入力!$K:$K)) -> 0
A17: =入力補助!C13 -> 住宅設備工事 | B17: 0 | C17: 0 | D17: =IF($A17="",0,SUMIF(勘定入力!$D:$D,1&$A17,勘定入力!$J:$J)) -> 0 | E17: =IF($A17="",0,SUMIF(勘定入力!$D:$D,1&$A17,勘定入力!$K:$K)) -> 0 | F17: =IF($A17="",0,SUMIF(勘定入力!$D:$D,2&$A17,勘定入力!$J:$J)) -> 0 | G17: =IF($A17="",0,SUMIF(勘定入力!$D:$D,2&$A17,勘定入力!$K:$K)) -> 0 | H17: =IF($A17="",0,SUMIF(勘定入力!$D:$D,3&$A17,勘定入力!$J:$J)) -> 0 | I17: =IF($A17="",0,SUMIF(勘定入力!$D:$D,3&$A17,勘定入力!$K:$K)) -> 0 | J17: =IF($A17="",0,SUMIF(勘定入力!$D:$D,4&$A17,勘定入力!$J:$J)) -> 0 | K17: =IF($A17="",0,SUMIF(勘定入力!$D:$D,4&$A17,勘定入力!$K:$K)) -> 0 | L17: =IF($A17="",0,SUMIF(勘定入力!$D:$D,5&$A17,勘定入力!$J:$J)) -> 0 | M17: =IF($A17="",0,SUMIF(勘定入力!$D:$D,5&$A17,勘定入力!$K:$K)) -> 0 | N17: =IF($A17="",0,SUMIF(勘定入力!$D:$D,6&$A17,勘定入力!$J:$J)) -> 0 | O17: =IF($A17="",0,SUMIF(勘定入力!$D:$D,6&$A17,勘定入力!$K:$K)) -> 0 | P17: =IF($A17="",0,SUMIF(勘定入力!$D:$D,7&$A17,勘定入力!$J:$J)) -> 0 | Q17: =IF($A17="",0,SUMIF(勘定入力!$D:$D,7&$A17,勘定入力!$K:$K)) -> 0 | R17: =IF($A17="",0,SUMIF(勘定入力!$D:$D,8&$A17,勘定入力!$J:$J)) -> 0 | S17: =IF($A17="",0,SUMIF(勘定入力!$D:$D,8&$A17,勘定入力!$K:$K)) -> 0 | T17: =IF($A17="",0,SUMIF(勘定入力!$D:$D,9&$A17,勘定入力!$J:$J)) -> 0 | U17: =IF($A17="",0,SUMIF(勘定入力!$D:$D,9&$A17,勘定入力!$K:$K)) -> 0 | V17: =IF($A17="",0,SUMIF(勘定入力!$D:$D,10&$A17,勘定入力!$J:$J)) -> 0 | W17: =IF($A17="",0,SUMIF(勘定入力!$D:$D,10&$A17,勘定入力!$K:$K)) -> 0 | X17: =IF($A17="",0,SUMIF(勘定入力!$D:$D,11&$A17,勘定入力!$J:$J)) -> 0 | Y17: =IF($A17="",0,SUMIF(勘定入力!$D:$D,11&$A17,勘定入力!$K:$K)) -> 0 | Z17: =IF($A17="",0,SUMIF(勘定入力!$D:$D,12&$A17,勘定入力!$J:$J)) -> 0 | AA17: =IF($A17="",0,SUMIF(勘定入力!$D:$D,12&$A17,勘定入力!$K:$K)) -> 0
A18: =入力補助!C14 -> サッシ工事 | B18: 0 | C18: 0 | D18: =IF($A18="",0,SUMIF(勘定入力!$D:$D,1&$A18,勘定入力!$J:$J)) -> 0 | E18: =IF($A18="",0,SUMIF(勘定入力!$D:$D,1&$A18,勘定入力!$K:$K)) -> 0 | F18: =IF($A18="",0,SUMIF(勘定入力!$D:$D,2&$A18,勘定入力!$J:$J)) -> 0 | G18: =IF($A18="",0,SUMIF(勘定入力!$D:$D,2&$A18,勘定入力!$K:$K)) -> 0 | H18: =IF($A18="",0,SUMIF(勘定入力!$D:$D,3&$A18,勘定入力!$J:$J)) -> 0 | I18: =IF($A18="",0,SUMIF(勘定入力!$D:$D,3&$A18,勘定入力!$K:$K)) -> 0 | J18: =IF($A18="",0,SUMIF(勘定入力!$D:$D,4&$A18,勘定入力!$J:$J)) -> 0 | K18: =IF($A18="",0,SUMIF(勘定入力!$D:$D,4&$A18,勘定入力!$K:$K)) -> 0 | L18: =IF($A18="",0,SUMIF(勘定入力!$D:$D,5&$A18,勘定入力!$J:$J)) -> 0 | M18: =IF($A18="",0,SUMIF(勘定入力!$D:$D,5&$A18,勘定入力!$K:$K)) -> 0 | N18: =IF($A18="",0,SUMIF(勘定入力!$D:$D,6&$A18,勘定入力!$J:$J)) -> 0 | O18: =IF($A18="",0,SUMIF(勘定入力!$D:$D,6&$A18,勘定入力!$K:$K)) -> 0 | P18: =IF($A18="",0,SUMIF(勘定入力!$D:$D,7&$A18,勘定入力!$J:$J)) -> 0 | Q18: =IF($A18="",0,SUMIF(勘定入力!$D:$D,7&$A18,勘定入力!$K:$K)) -> 0 | R18: =IF($A18="",0,SUMIF(勘定入力!$D:$D,8&$A18,勘定入力!$J:$J)) -> 0 | S18: =IF($A18="",0,SUMIF(勘定入力!$D:$D,8&$A18,勘定入力!$K:$K)) -> 0 | T18: =IF($A18="",0,SUMIF(勘定入力!$D:$D,9&$A18,勘定入力!$J:$J)) -> 0 | U18: =IF($A18="",0,SUMIF(勘定入力!$D:$D,9&$A18,勘定入力!$K:$K)) -> 0 | V18: =IF($A18="",0,SUMIF(勘定入力!$D:$D,10&$A18,勘定入力!$J:$J)) -> 0 | W18: =IF($A18="",0,SUMIF(勘定入力!$D:$D,10&$A18,勘定入力!$K:$K)) -> 0 | X18: =IF($A18="",0,SUMIF(勘定入力!$D:$D,11&$A18,勘定入力!$J:$J)) -> 0 | Y18: =IF($A18="",0,SUMIF(勘定入力!$D:$D,11&$A18,勘定入力!$K:$K)) -> 0 | Z18: =IF($A18="",0,SUMIF(勘定入力!$D:$D,12&$A18,勘定入力!$J:$J)) -> 0 | AA18: =IF($A18="",0,SUMIF(勘定入力!$D:$D,12&$A18,勘定入力!$K:$K)) -> 0
A19: =入力補助!C15 -> 衛生設備工事 | B19: 0 | C19: 0 | D19: =IF($A19="",0,SUMIF(勘定入力!$D:$D,1&$A19,勘定入力!$J:$J)) -> 0 | E19: =IF($A19="",0,SUMIF(勘定入力!$D:$D,1&$A19,勘定入力!$K:$K)) -> 0 | F19: =IF($A19="",0,SUMIF(勘定入力!$D:$D,2&$A19,勘定入力!$J:$J)) -> 0 | G19: =IF($A19="",0,SUMIF(勘定入力!$D:$D,2&$A19,勘定入力!$K:$K)) -> 0 | H19: =IF($A19="",0,SUMIF(勘定入力!$D:$D,3&$A19,勘定入力!$J:$J)) -> 0 | I19: =IF($A19="",0,SUMIF(勘定入力!$D:$D,3&$A19,勘定入力!$K:$K)) -> 0 | J19: =IF($A19="",0,SUMIF(勘定入力!$D:$D,4&$A19,勘定入力!$J:$J)) -> 0 | K19: =IF($A19="",0,SUMIF(勘定入力!$D:$D,4&$A19,勘定入力!$K:$K)) -> 0 | L19: =IF($A19="",0,SUMIF(勘定入力!$D:$D,5&$A19,勘定入力!$J:$J)) -> 0 | M19: =IF($A19="",0,SUMIF(勘定入力!$D:$D,5&$A19,勘定入力!$K:$K)) -> 0 | N19: =IF($A19="",0,SUMIF(勘定入力!$D:$D,6&$A19,勘定入力!$J:$J)) -> 0 | O19: =IF($A19="",0,SUMIF(勘定入力!$D:$D,6&$A19,勘定入力!$K:$K)) -> 0 | P19: =IF($A19="",0,SUMIF(勘定入力!$D:$D,7&$A19,勘定入力!$J:$J)) -> 0 | Q19: =IF($A19="",0,SUMIF(勘定入力!$D:$D,7&$A19,勘定入力!$K:$K)) -> 0 | R19: =IF($A19="",0,SUMIF(勘定入力!$D:$D,8&$A19,勘定入力!$J:$J)) -> 0 | S19: =IF($A19="",0,SUMIF(勘定入力!$D:$D,8&$A19,勘定入力!$K:$K)) -> 0 | T19: =IF($A19="",0,SUMIF(勘定入力!$D:$D,9&$A19,勘定入力!$J:$J)) -> 0 | U19: =IF($A19="",0,SUMIF(勘定入力!$D:$D,9&$A19,勘定入力!$K:$K)) -> 0 | V19: =IF($A19="",0,SUMIF(勘定入力!$D:$D,10&$A19,勘定入力!$J:$J)) -> 0 | W19: =IF($A19="",0,SUMIF(勘定入力!$D:$D,10&$A19,勘定入力!$K:$K)) -> 0 | X19: =IF($A19="",0,SUMIF(勘定入力!$D:$D,11&$A19,勘定入力!$J:$J)) -> 0 | Y19: =IF($A19="",0,SUMIF(勘定入力!$D:$D,11&$A19,勘定入力!$K:$K)) -> 0 | Z19: =IF($A19="",0,SUMIF(勘定入力!$D:$D,12&$A19,勘定入力!$J:$J)) -> 0 | AA19: =IF($A19="",0,SUMIF(勘定入力!$D:$D,12&$A19,勘定入力!$K:$K)) -> 0
A20: =入力補助!C16 -> 内部建具工事 | B20: 0 | C20: 0 | D20: =IF($A20="",0,SUMIF(勘定入力!$D:$D,1&$A20,勘定入力!$J:$J)) -> 0 | E20: =IF($A20="",0,SUMIF(勘定入力!$D:$D,1&$A20,勘定入力!$K:$K)) -> 0 | F20: =IF($A20="",0,SUMIF(勘定入力!$D:$D,2&$A20,勘定入力!$J:$J)) -> 0 | G20: =IF($A20="",0,SUMIF(勘定入力!$D:$D,2&$A20,勘定入力!$K:$K)) -> 0 | H20: =IF($A20="",0,SUMIF(勘定入力!$D:$D,3&$A20,勘定入力!$J:$J)) -> 0 | I20: =IF($A20="",0,SUMIF(勘定入力!$D:$D,3&$A20,勘定入力!$K:$K)) -> 0 | J20: =IF($A20="",0,SUMIF(勘定入力!$D:$D,4&$A20,勘定入力!$J:$J)) -> 0 | K20: =IF($A20="",0,SUMIF(勘定入力!$D:$D,4&$A20,勘定入力!$K:$K)) -> 0 | L20: =IF($A20="",0,SUMIF(勘定入力!$D:$D,5&$A20,勘定入力!$J:$J)) -> 0 | M20: =IF($A20="",0,SUMIF(勘定入力!$D:$D,5&$A20,勘定入力!$K:$K)) -> 0 | N20: =IF($A20="",0,SUMIF(勘定入力!$D:$D,6&$A20,勘定入力!$J:$J)) -> 0 | O20: =IF($A20="",0,SUMIF(勘定入力!$D:$D,6&$A20,勘定入力!$K:$K)) -> 0 | P20: =IF($A20="",0,SUMIF(勘定入力!$D:$D,7&$A20,勘定入力!$J:$J)) -> 0 | Q20: =IF($A20="",0,SUMIF(勘定入力!$D:$D,7&$A20,勘定入力!$K:$K)) -> 0 | R20: =IF($A20="",0,SUMIF(勘定入力!$D:$D,8&$A20,勘定入力!$J:$J)) -> 0 | S20: =IF($A20="",0,SUMIF(勘定入力!$D:$D,8&$A20,勘定入力!$K:$K)) -> 0 | T20: =IF($A20="",0,SUMIF(勘定入力!$D:$D,9&$A20,勘定入力!$J:$J)) -> 0 | U20: =IF($A20="",0,SUMIF(勘定入力!$D:$D,9&$A20,勘定入力!$K:$K)) -> 0 | V20: =IF($A20="",0,SUMIF(勘定入力!$D:$D,10&$A20,勘定入力!$J:$J)) -> 0 | W20: =IF($A20="",0,SUMIF(勘定入力!$D:$D,10&$A20,勘定入力!$K:$K)) -> 0 | X20: =IF($A20="",0,SUMIF(勘定入力!$D:$D,11&$A20,勘定入力!$J:$J)) -> 0 | Y20: =IF($A20="",0,SUMIF(勘定入力!$D:$D,11&$A20,勘定入力!$K:$K)) -> 0 | Z20: =IF($A20="",0,SUMIF(勘定入力!$D:$D,12&$A20,勘定入力!$J:$J)) -> 0 | AA20: =IF($A20="",0,SUMIF(勘定入力!$D:$D,12&$A20,勘定入力!$K:$K)) -> 0
A21: =入力補助!C17 -> 板金工事 | B21: 0 | C21: 0 | D21: =IF($A21="",0,SUMIF(勘定入力!$D:$D,1&$A21,勘定入力!$J:$J)) -> 0 | E21: =IF($A21="",0,SUMIF(勘定入力!$D:$D,1&$A21,勘定入力!$K:$K)) -> 0 | F21: =IF($A21="",0,SUMIF(勘定入力!$D:$D,2&$A21,勘定入力!$J:$J)) -> 0 | G21: =IF($A21="",0,SUMIF(勘定入力!$D:$D,2&$A21,勘定入力!$K:$K)) -> 0 | H21: =IF($A21="",0,SUMIF(勘定入力!$D:$D,3&$A21,勘定入力!$J:$J)) -> 0 | I21: =IF($A21="",0,SUMIF(勘定入力!$D:$D,3&$A21,勘定入力!$K:$K)) -> 0 | J21: =IF($A21="",0,SUMIF(勘定入力!$D:$D,4&$A21,勘定入力!$J:$J)) -> 0 | K21: =IF($A21="",0,SUMIF(勘定入力!$D:$D,4&$A21,勘定入力!$K:$K)) -> 0 | L21: =IF($A21="",0,SUMIF(勘定入力!$D:$D,5&$A21,勘定入力!$J:$J)) -> 0 | M21: =IF($A21="",0,SUMIF(勘定入力!$D:$D,5&$A21,勘定入力!$K:$K)) -> 0 | N21: =IF($A21="",0,SUMIF(勘定入力!$D:$D,6&$A21,勘定入力!$J:$J)) -> 0 | O21: =IF($A21="",0,SUMIF(勘定入力!$D:$D,6&$A21,勘定入力!$K:$K)) -> 0 | P21: =IF($A21="",0,SUMIF(勘定入力!$D:$D,7&$A21,勘定入力!$J:$J)) -> 0 | Q21: =IF($A21="",0,SUMIF(勘定入力!$D:$D,7&$A21,勘定入力!$K:$K)) -> 0 | R21: =IF($A21="",0,SUMIF(勘定入力!$D:$D,8&$A21,勘定入力!$J:$J)) -> 0 | S21: =IF($A21="",0,SUMIF(勘定入力!$D:$D,8&$A21,勘定入力!$K:$K)) -> 0 | T21: =IF($A21="",0,SUMIF(勘定入力!$D:$D,9&$A21,勘定入力!$J:$J)) -> 0 | U21: =IF($A21="",0,SUMIF(勘定入力!$D:$D,9&$A21,勘定入力!$K:$K)) -> 0 | V21: =IF($A21="",0,SUMIF(勘定入力!$D:$D,10&$A21,勘定入力!$J:$J)) -> 0 | W21: =IF($A21="",0,SUMIF(勘定入力!$D:$D,10&$A21,勘定入力!$K:$K)) -> 0 | X21: =IF($A21="",0,SUMIF(勘定入力!$D:$D,11&$A21,勘定入力!$J:$J)) -> 0 | Y21: =IF($A21="",0,SUMIF(勘定入力!$D:$D,11&$A21,勘定入力!$K:$K)) -> 0 | Z21: =IF($A21="",0,SUMIF(勘定入力!$D:$D,12&$A21,勘定入力!$J:$J)) -> 0 | AA21: =IF($A21="",0,SUMIF(勘定入力!$D:$D,12&$A21,勘定入力!$K:$K)) -> 0
A22: =入力補助!C18 -> 付帯工事 | B22: 0 | C22: 0 | D22: =IF($A22="",0,SUMIF(勘定入力!$D:$D,1&$A22,勘定入力!$J:$J)) -> 0 | E22: =IF($A22="",0,SUMIF(勘定入力!$D:$D,1&$A22,勘定入力!$K:$K)) -> 0 | F22: =IF($A22="",0,SUMIF(勘定入力!$D:$D,2&$A22,勘定入力!$J:$J)) -> 0 | G22: =IF($A22="",0,SUMIF(勘定入力!$D:$D,2&$A22,勘定入力!$K:$K)) -> 0 | H22: =IF($A22="",0,SUMIF(勘定入力!$D:$D,3&$A22,勘定入力!$J:$J)) -> 0 | I22: =IF($A22="",0,SUMIF(勘定入力!$D:$D,3&$A22,勘定入力!$K:$K)) -> 0 | J22: =IF($A22="",0,SUMIF(勘定入力!$D:$D,4&$A22,勘定入力!$J:$J)) -> 0 | K22: =IF($A22="",0,SUMIF(勘定入力!$D:$D,4&$A22,勘定入力!$K:$K)) -> 0 | L22: =IF($A22="",0,SUMIF(勘定入力!$D:$D,5&$A22,勘定入力!$J:$J)) -> 0 | M22: =IF($A22="",0,SUMIF(勘定入力!$D:$D,5&$A22,勘定入力!$K:$K)) -> 0 | N22: =IF($A22="",0,SUMIF(勘定入力!$D:$D,6&$A22,勘定入力!$J:$J)) -> 0 | O22: =IF($A22="",0,SUMIF(勘定入力!$D:$D,6&$A22,勘定入力!$K:$K)) -> 0 | P22: =IF($A22="",0,SUMIF(勘定入力!$D:$D,7&$A22,勘定入力!$J:$J)) -> 0 | Q22: =IF($A22="",0,SUMIF(勘定入力!$D:$D,7&$A22,勘定入力!$K:$K)) -> 0 | R22: =IF($A22="",0,SUMIF(勘定入力!$D:$D,8&$A22,勘定入力!$J:$J)) -> 0 | S22: =IF($A22="",0,SUMIF(勘定入力!$D:$D,8&$A22,勘定入力!$K:$K)) -> 0 | T22: =IF($A22="",0,SUMIF(勘定入力!$D:$D,9&$A22,勘定入力!$J:$J)) -> 0 | U22: =IF($A22="",0,SUMIF(勘定入力!$D:$D,9&$A22,勘定入力!$K:$K)) -> 0 | V22: =IF($A22="",0,SUMIF(勘定入力!$D:$D,10&$A22,勘定入力!$J:$J)) -> 0 | W22: =IF($A22="",0,SUMIF(勘定入力!$D:$D,10&$A22,勘定入力!$K:$K)) -> 0 | X22: =IF($A22="",0,SUMIF(勘定入力!$D:$D,11&$A22,勘定入力!$J:$J)) -> 0 | Y22: =IF($A22="",0,SUMIF(勘定入力!$D:$D,11&$A22,勘定入力!$K:$K)) -> 0 | Z22: =IF($A22="",0,SUMIF(勘定入力!$D:$D,12&$A22,勘定入力!$J:$J)) -> 0 | AA22: =IF($A22="",0,SUMIF(勘定入力!$D:$D,12&$A22,勘定入力!$K:$K)) -> 0
A23: =入力補助!C19 -> 仮設工事 | B23: 0 | C23: 0 | D23: =IF($A23="",0,SUMIF(勘定入力!$D:$D,1&$A23,勘定入力!$J:$J)) -> 0 | E23: =IF($A23="",0,SUMIF(勘定入力!$D:$D,1&$A23,勘定入力!$K:$K)) -> 0 | F23: =IF($A23="",0,SUMIF(勘定入力!$D:$D,2&$A23,勘定入力!$J:$J)) -> 0 | G23: =IF($A23="",0,SUMIF(勘定入力!$D:$D,2&$A23,勘定入力!$K:$K)) -> 0 | H23: =IF($A23="",0,SUMIF(勘定入力!$D:$D,3&$A23,勘定入力!$J:$J)) -> 0 | I23: =IF($A23="",0,SUMIF(勘定入力!$D:$D,3&$A23,勘定入力!$K:$K)) -> 0 | J23: =IF($A23="",0,SUMIF(勘定入力!$D:$D,4&$A23,勘定入力!$J:$J)) -> 0 | K23: =IF($A23="",0,SUMIF(勘定入力!$D:$D,4&$A23,勘定入力!$K:$K)) -> 0 | L23: =IF($A23="",0,SUMIF(勘定入力!$D:$D,5&$A23,勘定入力!$J:$J)) -> 0 | M23: =IF($A23="",0,SUMIF(勘定入力!$D:$D,5&$A23,勘定入力!$K:$K)) -> 0 | N23: =IF($A23="",0,SUMIF(勘定入力!$D:$D,6&$A23,勘定入力!$J:$J)) -> 0 | O23: =IF($A23="",0,SUMIF(勘定入力!$D:$D,6&$A23,勘定入力!$K:$K)) -> 0 | P23: =IF($A23="",0,SUMIF(勘定入力!$D:$D,7&$A23,勘定入力!$J:$J)) -> 0 | Q23: =IF($A23="",0,SUMIF(勘定入力!$D:$D,7&$A23,勘定入力!$K:$K)) -> 0 | R23: =IF($A23="",0,SUMIF(勘定入力!$D:$D,8&$A23,勘定入力!$J:$J)) -> 0 | S23: =IF($A23="",0,SUMIF(勘定入力!$D:$D,8&$A23,勘定入力!$K:$K)) -> 0 | T23: =IF($A23="",0,SUMIF(勘定入力!$D:$D,9&$A23,勘定入力!$J:$J)) -> 0 | U23: =IF($A23="",0,SUMIF(勘定入力!$D:$D,9&$A23,勘定入力!$K:$K)) -> 0 | V23: =IF($A23="",0,SUMIF(勘定入力!$D:$D,10&$A23,勘定入力!$J:$J)) -> 0 | W23: =IF($A23="",0,SUMIF(勘定入力!$D:$D,10&$A23,勘定入力!$K:$K)) -> 0 | X23: =IF($A23="",0,SUMIF(勘定入力!$D:$D,11&$A23,勘定入力!$J:$J)) -> 0 | Y23: =IF($A23="",0,SUMIF(勘定入力!$D:$D,11&$A23,勘定入力!$K:$K)) -> 0 | Z23: =IF($A23="",0,SUMIF(勘定入力!$D:$D,12&$A23,勘定入力!$J:$J)) -> 0 | AA23: =IF($A23="",0,SUMIF(勘定入力!$D:$D,12&$A23,勘定入力!$K:$K)) -> 0
A24: =入力補助!C20 -> 申請手続き | B24: 0 | C24: 0 | D24: =IF($A24="",0,SUMIF(勘定入力!$D:$D,1&$A24,勘定入力!$J:$J)) -> 0 | E24: =IF($A24="",0,SUMIF(勘定入力!$D:$D,1&$A24,勘定入力!$K:$K)) -> 0 | F24: =IF($A24="",0,SUMIF(勘定入力!$D:$D,2&$A24,勘定入力!$J:$J)) -> 0 | G24: =IF($A24="",0,SUMIF(勘定入力!$D:$D,2&$A24,勘定入力!$K:$K)) -> 0 | H24: =IF($A24="",0,SUMIF(勘定入力!$D:$D,3&$A24,勘定入力!$J:$J)) -> 0 | I24: =IF($A24="",0,SUMIF(勘定入力!$D:$D,3&$A24,勘定入力!$K:$K)) -> 0 | J24: =IF($A24="",0,SUMIF(勘定入力!$D:$D,4&$A24,勘定入力!$J:$J)) -> 0 | K24: =IF($A24="",0,SUMIF(勘定入力!$D:$D,4&$A24,勘定入力!$K:$K)) -> 0 | L24: =IF($A24="",0,SUMIF(勘定入力!$D:$D,5&$A24,勘定入力!$J:$J)) -> 0 | M24: =IF($A24="",0,SUMIF(勘定入力!$D:$D,5&$A24,勘定入力!$K:$K)) -> 0 | N24: =IF($A24="",0,SUMIF(勘定入力!$D:$D,6&$A24,勘定入力!$J:$J)) -> 0 | O24: =IF($A24="",0,SUMIF(勘定入力!$D:$D,6&$A24,勘定入力!$K:$K)) -> 0 | P24: =IF($A24="",0,SUMIF(勘定入力!$D:$D,7&$A24,勘定入力!$J:$J)) -> 0 | Q24: =IF($A24="",0,SUMIF(勘定入力!$D:$D,7&$A24,勘定入力!$K:$K)) -> 0 | R24: =IF($A24="",0,SUMIF(勘定入力!$D:$D,8&$A24,勘定入力!$J:$J)) -> 0 | S24: =IF($A24="",0,SUMIF(勘定入力!$D:$D,8&$A24,勘定入力!$K:$K)) -> 0 | T24: =IF($A24="",0,SUMIF(勘定入力!$D:$D,9&$A24,勘定入力!$J:$J)) -> 0 | U24: =IF($A24="",0,SUMIF(勘定入力!$D:$D,9&$A24,勘定入力!$K:$K)) -> 0 | V24: =IF($A24="",0,SUMIF(勘定入力!$D:$D,10&$A24,勘定入力!$J:$J)) -> 0 | W24: =IF($A24="",0,SUMIF(勘定入力!$D:$D,10&$A24,勘定入力!$K:$K)) -> 0 | X24: =IF($A24="",0,SUMIF(勘定入力!$D:$D,11&$A24,勘定入力!$J:$J)) -> 0 | Y24: =IF($A24="",0,SUMIF(勘定入力!$D:$D,11&$A24,勘定入力!$K:$K)) -> 0 | Z24: =IF($A24="",0,SUMIF(勘定入力!$D:$D,12&$A24,勘定入力!$J:$J)) -> 0 | AA24: =IF($A24="",0,SUMIF(勘定入力!$D:$D,12&$A24,勘定入力!$K:$K)) -> 0
A25: =入力補助!C21 -> 諸費用 | B25: 0 | C25: 0 | D25: =IF($A25="",0,SUMIF(勘定入力!$D:$D,1&$A25,勘定入力!$J:$J)) -> 0 | E25: =IF($A25="",0,SUMIF(勘定入力!$D:$D,1&$A25,勘定入力!$K:$K)) -> 0 | F25: =IF($A25="",0,SUMIF(勘定入力!$D:$D,2&$A25,勘定入力!$J:$J)) -> 0 | G25: =IF($A25="",0,SUMIF(勘定入力!$D:$D,2&$A25,勘定入力!$K:$K)) -> 0 | H25: =IF($A25="",0,SUMIF(勘定入力!$D:$D,3&$A25,勘定入力!$J:$J)) -> 0 | I25: =IF($A25="",0,SUMIF(勘定入力!$D:$D,3&$A25,勘定入力!$K:$K)) -> 0 | J25: =IF($A25="",0,SUMIF(勘定入力!$D:$D,4&$A25,勘定入力!$J:$J)) -> 0 | K25: =IF($A25="",0,SUMIF(勘定入力!$D:$D,4&$A25,勘定入力!$K:$K)) -> 0 | L25: =IF($A25="",0,SUMIF(勘定入力!$D:$D,5&$A25,勘定入力!$J:$J)) -> 0 | M25: =IF($A25="",0,SUMIF(勘定入力!$D:$D,5&$A25,勘定入力!$K:$K)) -> 0 | N25: =IF($A25="",0,SUMIF(勘定入力!$D:$D,6&$A25,勘定入力!$J:$J)) -> 0 | O25: =IF($A25="",0,SUMIF(勘定入力!$D:$D,6&$A25,勘定入力!$K:$K)) -> 0 | P25: =IF($A25="",0,SUMIF(勘定入力!$D:$D,7&$A25,勘定入力!$J:$J)) -> 0 | Q25: =IF($A25="",0,SUMIF(勘定入力!$D:$D,7&$A25,勘定入力!$K:$K)) -> 0 | R25: =IF($A25="",0,SUMIF(勘定入力!$D:$D,8&$A25,勘定入力!$J:$J)) -> 0 | S25: =IF($A25="",0,SUMIF(勘定入力!$D:$D,8&$A25,勘定入力!$K:$K)) -> 0 | T25: =IF($A25="",0,SUMIF(勘定入力!$D:$D,9&$A25,勘定入力!$J:$J)) -> 0 | U25: =IF($A25="",0,SUMIF(勘定入力!$D:$D,9&$A25,勘定入力!$K:$K)) -> 0 | V25: =IF($A25="",0,SUMIF(勘定入力!$D:$D,10&$A25,勘定入力!$J:$J)) -> 0 | W25: =IF($A25="",0,SUMIF(勘定入力!$D:$D,10&$A25,勘定入力!$K:$K)) -> 0 | X25: =IF($A25="",0,SUMIF(勘定入力!$D:$D,11&$A25,勘定入力!$J:$J)) -> 0 | Y25: =IF($A25="",0,SUMIF(勘定入力!$D:$D,11&$A25,勘定入力!$K:$K)) -> 0 | Z25: =IF($A25="",0,SUMIF(勘定入力!$D:$D,12&$A25,勘定入力!$J:$J)) -> 0 | AA25: =IF($A25="",0,SUMIF(勘定入力!$D:$D,12&$A25,勘定入力!$K:$K)) -> 0
A26: =入力補助!C22 -> 0 | B26: 0 | C26: 0 | D26: =IF($A26="",0,SUMIF(勘定入力!$D:$D,1&$A26,勘定入力!$J:$J)) -> 0 | E26: =IF($A26="",0,SUMIF(勘定入力!$D:$D,1&$A26,勘定入力!$K:$K)) -> 0 | F26: =IF($A26="",0,SUMIF(勘定入力!$D:$D,2&$A26,勘定入力!$J:$J)) -> 0 | G26: =IF($A26="",0,SUMIF(勘定入力!$D:$D,2&$A26,勘定入力!$K:$K)) -> 0 | H26: =IF($A26="",0,SUMIF(勘定入力!$D:$D,3&$A26,勘定入力!$J:$J)) -> 0 | I26: =IF($A26="",0,SUMIF(勘定入力!$D:$D,3&$A26,勘定入力!$K:$K)) -> 0 | J26: =IF($A26="",0,SUMIF(勘定入力!$D:$D,4&$A26,勘定入力!$J:$J)) -> 0 | K26: =IF($A26="",0,SUMIF(勘定入力!$D:$D,4&$A26,勘定入力!$K:$K)) -> 0 | L26: =IF($A26="",0,SUMIF(勘定入力!$D:$D,5&$A26,勘定入力!$J:$J)) -> 0 | M26: =IF($A26="",0,SUMIF(勘定入力!$D:$D,5&$A26,勘定入力!$K:$K)) -> 0 | N26: =IF($A26="",0,SUMIF(勘定入力!$D:$D,6&$A26,勘定入力!$J:$J)) -> 0 | O26: =IF($A26="",0,SUMIF(勘定入力!$D:$D,6&$A26,勘定入力!$K:$K)) -> 0 | P26: =IF($A26="",0,SUMIF(勘定入力!$D:$D,7&$A26,勘定入力!$J:$J)) -> 0 | Q26: =IF($A26="",0,SUMIF(勘定入力!$D:$D,7&$A26,勘定入力!$K:$K)) -> 0 | R26: =IF($A26="",0,SUMIF(勘定入力!$D:$D,8&$A26,勘定入力!$J:$J)) -> 0 | S26: =IF($A26="",0,SUMIF(勘定入力!$D:$D,8&$A26,勘定入力!$K:$K)) -> 0 | T26: =IF($A26="",0,SUMIF(勘定入力!$D:$D,9&$A26,勘定入力!$J:$J)) -> 0 | U26: =IF($A26="",0,SUMIF(勘定入力!$D:$D,9&$A26,勘定入力!$K:$K)) -> 0 | V26: =IF($A26="",0,SUMIF(勘定入力!$D:$D,10&$A26,勘定入力!$J:$J)) -> 0 | W26: =IF($A26="",0,SUMIF(勘定入力!$D:$D,10&$A26,勘定入力!$K:$K)) -> 0 | X26: =IF($A26="",0,SUMIF(勘定入力!$D:$D,11&$A26,勘定入力!$J:$J)) -> 0 | Y26: =IF($A26="",0,SUMIF(勘定入力!$D:$D,11&$A26,勘定入力!$K:$K)) -> 0 | Z26: =IF($A26="",0,SUMIF(勘定入力!$D:$D,12&$A26,勘定入力!$J:$J)) -> 0 | AA26: =IF($A26="",0,SUMIF(勘定入力!$D:$D,12&$A26,勘定入力!$K:$K)) -> 0
A27: =入力補助!C23 -> ----- | B27: 0 | C27: 0 | D27: =IF($A27="",0,SUMIF(勘定入力!$D:$D,1&$A27,勘定入力!$J:$J)) -> 0 | E27: =IF($A27="",0,SUMIF(勘定入力!$D:$D,1&$A27,勘定入力!$K:$K)) -> 0 | F27: =IF($A27="",0,SUMIF(勘定入力!$D:$D,2&$A27,勘定入力!$J:$J)) -> 0 | G27: =IF($A27="",0,SUMIF(勘定入力!$D:$D,2&$A27,勘定入力!$K:$K)) -> 0 | H27: =IF($A27="",0,SUMIF(勘定入力!$D:$D,3&$A27,勘定入力!$J:$J)) -> 0 | I27: =IF($A27="",0,SUMIF(勘定入力!$D:$D,3&$A27,勘定入力!$K:$K)) -> 0 | J27: =IF($A27="",0,SUMIF(勘定入力!$D:$D,4&$A27,勘定入力!$J:$J)) -> 0 | K27: =IF($A27="",0,SUMIF(勘定入力!$D:$D,4&$A27,勘定入力!$K:$K)) -> 0 | L27: =IF($A27="",0,SUMIF(勘定入力!$D:$D,5&$A27,勘定入力!$J:$J)) -> 0 | M27: =IF($A27="",0,SUMIF(勘定入力!$D:$D,5&$A27,勘定入力!$K:$K)) -> 0 | N27: =IF($A27="",0,SUMIF(勘定入力!$D:$D,6&$A27,勘定入力!$J:$J)) -> 0 | O27: =IF($A27="",0,SUMIF(勘定入力!$D:$D,6&$A27,勘定入力!$K:$K)) -> 0 | P27: =IF($A27="",0,SUMIF(勘定入力!$D:$D,7&$A27,勘定入力!$J:$J)) -> 0 | Q27: =IF($A27="",0,SUMIF(勘定入力!$D:$D,7&$A27,勘定入力!$K:$K)) -> 0 | R27: =IF($A27="",0,SUMIF(勘定入力!$D:$D,8&$A27,勘定入力!$J:$J)) -> 0 | S27: =IF($A27="",0,SUMIF(勘定入力!$D:$D,8&$A27,勘定入力!$K:$K)) -> 0 | T27: =IF($A27="",0,SUMIF(勘定入力!$D:$D,9&$A27,勘定入力!$J:$J)) -> 0 | U27: =IF($A27="",0,SUMIF(勘定入力!$D:$D,9&$A27,勘定入力!$K:$K)) -> 0 | V27: =IF($A27="",0,SUMIF(勘定入力!$D:$D,10&$A27,勘定入力!$J:$J)) -> 0 | W27: =IF($A27="",0,SUMIF(勘定入力!$D:$D,10&$A27,勘定入力!$K:$K)) -> 0 | X27: =IF($A27="",0,SUMIF(勘定入力!$D:$D,11&$A27,勘定入力!$J:$J)) -> 0 | Y27: =IF($A27="",0,SUMIF(勘定入力!$D:$D,11&$A27,勘定入力!$K:$K)) -> 0 | Z27: =IF($A27="",0,SUMIF(勘定入力!$D:$D,12&$A27,勘定入力!$J:$J)) -> 0 | AA27: =IF($A27="",0,SUMIF(勘定入力!$D:$D,12&$A27,勘定入力!$K:$K)) -> 0
A28: =入力補助!C24 -> 繰越金 | B28: 10000 | C28: 0 | D28: =IF($A28="",0,SUMIF(勘定入力!$D:$D,1&$A28,勘定入力!$J:$J)) -> 10000 | E28: =IF($A28="",0,SUMIF(勘定入力!$D:$D,1&$A28,勘定入力!$K:$K)) -> 0 | F28: =IF($A28="",0,SUMIF(勘定入力!$D:$D,2&$A28,勘定入力!$J:$J)) -> 0 | G28: =IF($A28="",0,SUMIF(勘定入力!$D:$D,2&$A28,勘定入力!$K:$K)) -> 0 | H28: =IF($A28="",0,SUMIF(勘定入力!$D:$D,3&$A28,勘定入力!$J:$J)) -> 0 | I28: =IF($A28="",0,SUMIF(勘定入力!$D:$D,3&$A28,勘定入力!$K:$K)) -> 0 | J28: =IF($A28="",0,SUMIF(勘定入力!$D:$D,4&$A28,勘定入力!$J:$J)) -> 0 | K28: =IF($A28="",0,SUMIF(勘定入力!$D:$D,4&$A28,勘定入力!$K:$K)) -> 0 | L28: =IF($A28="",0,SUMIF(勘定入力!$D:$D,5&$A28,勘定入力!$J:$J)) -> 0 | M28: =IF($A28="",0,SUMIF(勘定入力!$D:$D,5&$A28,勘定入力!$K:$K)) -> 0 | N28: =IF($A28="",0,SUMIF(勘定入力!$D:$D,6&$A28,勘定入力!$J:$J)) -> 0 | O28: =IF($A28="",0,SUMIF(勘定入力!$D:$D,6&$A28,勘定入力!$K:$K)) -> 0 | P28: =IF($A28="",0,SUMIF(勘定入力!$D:$D,7&$A28,勘定入力!$J:$J)) -> 0 | Q28: =IF($A28="",0,SUMIF(勘定入力!$D:$D,7&$A28,勘定入力!$K:$K)) -> 0 | R28: =IF($A28="",0,SUMIF(勘定入力!$D:$D,8&$A28,勘定入力!$J:$J)) -> 0 | S28: =IF($A28="",0,SUMIF(勘定入力!$D:$D,8&$A28,勘定入力!$K:$K)) -> 0 | T28: =IF($A28="",0,SUMIF(勘定入力!$D:$D,9&$A28,勘定入力!$J:$J)) -> 0 | U28: =IF($A28="",0,SUMIF(勘定入力!$D:$D,9&$A28,勘定入力!$K:$K)) -> 0 | V28: =IF($A28="",0,SUMIF(勘定入力!$D:$D,10&$A28,勘定入力!$J:$J)) -> 0 | W28: =IF($A28="",0,SUMIF(勘定入力!$D:$D,10&$A28,勘定入力!$K:$K)) -> 0 | X28: =IF($A28="",0,SUMIF(勘定入力!$D:$D,11&$A28,勘定入力!$J:$J)) -> 0 | Y28: =IF($A28="",0,SUMIF(勘定入力!$D:$D,11&$A28,勘定入力!$K:$K)) -> 0 | Z28: =IF($A28="",0,SUMIF(勘定入力!$D:$D,12&$A28,勘定入力!$J:$J)) -> 0 | AA28: =IF($A28="",0,SUMIF(勘定入力!$D:$D,12&$A28,勘定入力!$K:$K)) -> 0
A29: =入力補助!C25 -> 給料・手当 | B29: 0 | C29: 12000 | D29: =IF($A29="",0,SUMIF(勘定入力!$D:$D,1&$A29,勘定入力!$J:$J)) -> 0 | E29: =IF($A29="",0,SUMIF(勘定入力!$D:$D,1&$A29,勘定入力!$K:$K)) -> 1000 | F29: =IF($A29="",0,SUMIF(勘定入力!$D:$D,2&$A29,勘定入力!$J:$J)) -> 0 | G29: =IF($A29="",0,SUMIF(勘定入力!$D:$D,2&$A29,勘定入力!$K:$K)) -> 1000 | H29: =IF($A29="",0,SUMIF(勘定入力!$D:$D,3&$A29,勘定入力!$J:$J)) -> 0 | I29: =IF($A29="",0,SUMIF(勘定入力!$D:$D,3&$A29,勘定入力!$K:$K)) -> 1000 | J29: =IF($A29="",0,SUMIF(勘定入力!$D:$D,4&$A29,勘定入力!$J:$J)) -> 0 | K29: =IF($A29="",0,SUMIF(勘定入力!$D:$D,4&$A29,勘定入力!$K:$K)) -> 1000 | L29: =IF($A29="",0,SUMIF(勘定入力!$D:$D,5&$A29,勘定入力!$J:$J)) -> 0 | M29: =IF($A29="",0,SUMIF(勘定入力!$D:$D,5&$A29,勘定入力!$K:$K)) -> 1000 | N29: =IF($A29="",0,SUMIF(勘定入力!$D:$D,6&$A29,勘定入力!$J:$J)) -> 0 | O29: =IF($A29="",0,SUMIF(勘定入力!$D:$D,6&$A29,勘定入力!$K:$K)) -> 1000 | P29: =IF($A29="",0,SUMIF(勘定入力!$D:$D,7&$A29,勘定入力!$J:$J)) -> 0 | Q29: =IF($A29="",0,SUMIF(勘定入力!$D:$D,7&$A29,勘定入力!$K:$K)) -> 1000 | R29: =IF($A29="",0,SUMIF(勘定入力!$D:$D,8&$A29,勘定入力!$J:$J)) -> 0 | S29: =IF($A29="",0,SUMIF(勘定入力!$D:$D,8&$A29,勘定入力!$K:$K)) -> 1000 | T29: =IF($A29="",0,SUMIF(勘定入力!$D:$D,9&$A29,勘定入力!$J:$J)) -> 0 | U29: =IF($A29="",0,SUMIF(勘定入力!$D:$D,9&$A29,勘定入力!$K:$K)) -> 1000 | V29: =IF($A29="",0,SUMIF(勘定入力!$D:$D,10&$A29,勘定入力!$J:$J)) -> 0 | W29: =IF($A29="",0,SUMIF(勘定入力!$D:$D,10&$A29,勘定入力!$K:$K)) -> 1000 | X29: =IF($A29="",0,SUMIF(勘定入力!$D:$D,11&$A29,勘定入力!$J:$J)) -> 0 | Y29: =IF($A29="",0,SUMIF(勘定入力!$D:$D,11&$A29,勘定入力!$K:$K)) -> 1000 | Z29: =IF($A29="",0,SUMIF(勘定入力!$D:$D,12&$A29,勘定入力!$J:$J)) -> 0 | AA29: =IF($A29="",0,SUMIF(勘定入力!$D:$D,12&$A29,勘定入力!$K:$K)) -> 1000
A30: =入力補助!C26 -> 車両費 | B30: 0 | C30: 1200 | D30: =IF($A30="",0,SUMIF(勘定入力!$D:$D,1&$A30,勘定入力!$J:$J)) -> 0 | E30: =IF($A30="",0,SUMIF(勘定入力!$D:$D,1&$A30,勘定入力!$K:$K)) -> 100 | F30: =IF($A30="",0,SUMIF(勘定入力!$D:$D,2&$A30,勘定入力!$J:$J)) -> 0 | G30: =IF($A30="",0,SUMIF(勘定入力!$D:$D,2&$A30,勘定入力!$K:$K)) -> 100 | H30: =IF($A30="",0,SUMIF(勘定入力!$D:$D,3&$A30,勘定入力!$J:$J)) -> 0 | I30: =IF($A30="",0,SUMIF(勘定入力!$D:$D,3&$A30,勘定入力!$K:$K)) -> 100 | J30: =IF($A30="",0,SUMIF(勘定入力!$D:$D,4&$A30,勘定入力!$J:$J)) -> 0 | K30: =IF($A30="",0,SUMIF(勘定入力!$D:$D,4&$A30,勘定入力!$K:$K)) -> 100 | L30: =IF($A30="",0,SUMIF(勘定入力!$D:$D,5&$A30,勘定入力!$J:$J)) -> 0 | M30: =IF($A30="",0,SUMIF(勘定入力!$D:$D,5&$A30,勘定入力!$K:$K)) -> 100 | N30: =IF($A30="",0,SUMIF(勘定入力!$D:$D,6&$A30,勘定入力!$J:$J)) -> 0 | O30: =IF($A30="",0,SUMIF(勘定入力!$D:$D,6&$A30,勘定入力!$K:$K)) -> 100 | P30: =IF($A30="",0,SUMIF(勘定入力!$D:$D,7&$A30,勘定入力!$J:$J)) -> 0 | Q30: =IF($A30="",0,SUMIF(勘定入力!$D:$D,7&$A30,勘定入力!$K:$K)) -> 100 | R30: =IF($A30="",0,SUMIF(勘定入力!$D:$D,8&$A30,勘定入力!$J:$J)) -> 0 | S30: =IF($A30="",0,SUMIF(勘定入力!$D:$D,8&$A30,勘定入力!$K:$K)) -> 100 | T30: =IF($A30="",0,SUMIF(勘定入力!$D:$D,9&$A30,勘定入力!$J:$J)) -> 0 | U30: =IF($A30="",0,SUMIF(勘定入力!$D:$D,9&$A30,勘定入力!$K:$K)) -> 100 | V30: =IF($A30="",0,SUMIF(勘定入力!$D:$D,10&$A30,勘定入力!$J:$J)) -> 0 | W30: =IF($A30="",0,SUMIF(勘定入力!$D:$D,10&$A30,勘定入力!$K:$K)) -> 100 | X30: =IF($A30="",0,SUMIF(勘定入力!$D:$D,11&$A30,勘定入力!$J:$J)) -> 0 | Y30: =IF($A30="",0,SUMIF(勘定入力!$D:$D,11&$A30,勘定入力!$K:$K)) -> 100 | Z30: =IF($A30="",0,SUMIF(勘定入力!$D:$D,12&$A30,勘定入力!$J:$J)) -> 0 | AA30: =IF($A30="",0,SUMIF(勘定入力!$D:$D,12&$A30,勘定入力!$K:$K)) -> 100
A31: =入力補助!C27 -> 燃料 | B31: 0 | C31: 0 | D31: =IF($A31="",0,SUMIF(勘定入力!$D:$D,1&$A31,勘定入力!$J:$J)) -> 0 | E31: =IF($A31="",0,SUMIF(勘定入力!$D:$D,1&$A31,勘定入力!$K:$K)) -> 0 | F31: =IF($A31="",0,SUMIF(勘定入力!$D:$D,2&$A31,勘定入力!$J:$J)) -> 0 | G31: =IF($A31="",0,SUMIF(勘定入力!$D:$D,2&$A31,勘定入力!$K:$K)) -> 0 | H31: =IF($A31="",0,SUMIF(勘定入力!$D:$D,3&$A31,勘定入力!$J:$J)) -> 0 | I31: =IF($A31="",0,SUMIF(勘定入力!$D:$D,3&$A31,勘定入力!$K:$K)) -> 0 | J31: =IF($A31="",0,SUMIF(勘定入力!$D:$D,4&$A31,勘定入力!$J:$J)) -> 0 | K31: =IF($A31="",0,SUMIF(勘定入力!$D:$D,4&$A31,勘定入力!$K:$K)) -> 0 | L31: =IF($A31="",0,SUMIF(勘定入力!$D:$D,5&$A31,勘定入力!$J:$J)) -> 0 | M31: =IF($A31="",0,SUMIF(勘定入力!$D:$D,5&$A31,勘定入力!$K:$K)) -> 0 | N31: =IF($A31="",0,SUMIF(勘定入力!$D:$D,6&$A31,勘定入力!$J:$J)) -> 0 | O31: =IF($A31="",0,SUMIF(勘定入力!$D:$D,6&$A31,勘定入力!$K:$K)) -> 0 | P31: =IF($A31="",0,SUMIF(勘定入力!$D:$D,7&$A31,勘定入力!$J:$J)) -> 0 | Q31: =IF($A31="",0,SUMIF(勘定入力!$D:$D,7&$A31,勘定入力!$K:$K)) -> 0 | R31: =IF($A31="",0,SUMIF(勘定入力!$D:$D,8&$A31,勘定入力!$J:$J)) -> 0 | S31: =IF($A31="",0,SUMIF(勘定入力!$D:$D,8&$A31,勘定入力!$K:$K)) -> 0 | T31: =IF($A31="",0,SUMIF(勘定入力!$D:$D,9&$A31,勘定入力!$J:$J)) -> 0 | U31: =IF($A31="",0,SUMIF(勘定入力!$D:$D,9&$A31,勘定入力!$K:$K)) -> 0 | V31: =IF($A31="",0,SUMIF(勘定入力!$D:$D,10&$A31,勘定入力!$J:$J)) -> 0 | W31: =IF($A31="",0,SUMIF(勘定入力!$D:$D,10&$A31,勘定入力!$K:$K)) -> 0 | X31: =IF($A31="",0,SUMIF(勘定入力!$D:$D,11&$A31,勘定入力!$J:$J)) -> 0 | Y31: =IF($A31="",0,SUMIF(勘定入力!$D:$D,11&$A31,勘定入力!$K:$K)) -> 0 | Z31: =IF($A31="",0,SUMIF(勘定入力!$D:$D,12&$A31,勘定入力!$J:$J)) -> 0 | AA31: =IF($A31="",0,SUMIF(勘定入力!$D:$D,12&$A31,勘定入力!$K:$K)) -> 0
A32: =入力補助!C28 -> 水道 | B32: 0 | C32: 0 | D32: =IF($A32="",0,SUMIF(勘定入力!$D:$D,1&$A32,勘定入力!$J:$J)) -> 0 | E32: =IF($A32="",0,SUMIF(勘定入力!$D:$D,1&$A32,勘定入力!$K:$K)) -> 0 | F32: =IF($A32="",0,SUMIF(勘定入力!$D:$D,2&$A32,勘定入力!$J:$J)) -> 0 | G32: =IF($A32="",0,SUMIF(勘定入力!$D:$D,2&$A32,勘定入力!$K:$K)) -> 0 | H32: =IF($A32="",0,SUMIF(勘定入力!$D:$D,3&$A32,勘定入力!$J:$J)) -> 0 | I32: =IF($A32="",0,SUMIF(勘定入力!$D:$D,3&$A32,勘定入力!$K:$K)) -> 0 | J32: =IF($A32="",0,SUMIF(勘定入力!$D:$D,4&$A32,勘定入力!$J:$J)) -> 0 | K32: =IF($A32="",0,SUMIF(勘定入力!$D:$D,4&$A32,勘定入力!$K:$K)) -> 0 | L32: =IF($A32="",0,SUMIF(勘定入力!$D:$D,5&$A32,勘定入力!$J:$J)) -> 0 | M32: =IF($A32="",0,SUMIF(勘定入力!$D:$D,5&$A32,勘定入力!$K:$K)) -> 0 | N32: =IF($A32="",0,SUMIF(勘定入力!$D:$D,6&$A32,勘定入力!$J:$J)) -> 0 | O32: =IF($A32="",0,SUMIF(勘定入力!$D:$D,6&$A32,勘定入力!$K:$K)) -> 0 | P32: =IF($A32="",0,SUMIF(勘定入力!$D:$D,7&$A32,勘定入力!$J:$J)) -> 0 | Q32: =IF($A32="",0,SUMIF(勘定入力!$D:$D,7&$A32,勘定入力!$K:$K)) -> 0 | R32: =IF($A32="",0,SUMIF(勘定入力!$D:$D,8&$A32,勘定入力!$J:$J)) -> 0 | S32: =IF($A32="",0,SUMIF(勘定入力!$D:$D,8&$A32,勘定入力!$K:$K)) -> 0 | T32: =IF($A32="",0,SUMIF(勘定入力!$D:$D,9&$A32,勘定入力!$J:$J)) -> 0 | U32: =IF($A32="",0,SUMIF(勘定入力!$D:$D,9&$A32,勘定入力!$K:$K)) -> 0 | V32: =IF($A32="",0,SUMIF(勘定入力!$D:$D,10&$A32,勘定入力!$J:$J)) -> 0 | W32: =IF($A32="",0,SUMIF(勘定入力!$D:$D,10&$A32,勘定入力!$K:$K)) -> 0 | X32: =IF($A32="",0,SUMIF(勘定入力!$D:$D,11&$A32,勘定入力!$J:$J)) -> 0 | Y32: =IF($A32="",0,SUMIF(勘定入力!$D:$D,11&$A32,勘定入力!$K:$K)) -> 0 | Z32: =IF($A32="",0,SUMIF(勘定入力!$D:$D,12&$A32,勘定入力!$J:$J)) -> 0 | AA32: =IF($A32="",0,SUMIF(勘定入力!$D:$D,12&$A32,勘定入力!$K:$K)) -> 0
A33: =入力補助!C29 -> 電気 | B33: 0 | C33: 0 | D33: =IF($A33="",0,SUMIF(勘定入力!$D:$D,1&$A33,勘定入力!$J:$J)) -> 0 | E33: =IF($A33="",0,SUMIF(勘定入力!$D:$D,1&$A33,勘定入力!$K:$K)) -> 0 | F33: =IF($A33="",0,SUMIF(勘定入力!$D:$D,2&$A33,勘定入力!$J:$J)) -> 0 | G33: =IF($A33="",0,SUMIF(勘定入力!$D:$D,2&$A33,勘定入力!$K:$K)) -> 0 | H33: =IF($A33="",0,SUMIF(勘定入力!$D:$D,3&$A33,勘定入力!$J:$J)) -> 0 | I33: =IF($A33="",0,SUMIF(勘定入力!$D:$D,3&$A33,勘定入力!$K:$K)) -> 0 | J33: =IF($A33="",0,SUMIF(勘定入力!$D:$D,4&$A33,勘定入力!$J:$J)) -> 0 | K33: =IF($A33="",0,SUMIF(勘定入力!$D:$D,4&$A33,勘定入力!$K:$K)) -> 0 | L33: =IF($A33="",0,SUMIF(勘定入力!$D:$D,5&$A33,勘定入力!$J:$J)) -> 0 | M33: =IF($A33="",0,SUMIF(勘定入力!$D:$D,5&$A33,勘定入力!$K:$K)) -> 0 | N33: =IF($A33="",0,SUMIF(勘定入力!$D:$D,6&$A33,勘定入力!$J:$J)) -> 0 | O33: =IF($A33="",0,SUMIF(勘定入力!$D:$D,6&$A33,勘定入力!$K:$K)) -> 0 | P33: =IF($A33="",0,SUMIF(勘定入力!$D:$D,7&$A33,勘定入力!$J:$J)) -> 0 | Q33: =IF($A33="",0,SUMIF(勘定入力!$D:$D,7&$A33,勘定入力!$K:$K)) -> 0 | R33: =IF($A33="",0,SUMIF(勘定入力!$D:$D,8&$A33,勘定入力!$J:$J)) -> 0 | S33: =IF($A33="",0,SUMIF(勘定入力!$D:$D,8&$A33,勘定入力!$K:$K)) -> 0 | T33: =IF($A33="",0,SUMIF(勘定入力!$D:$D,9&$A33,勘定入力!$J:$J)) -> 0 | U33: =IF($A33="",0,SUMIF(勘定入力!$D:$D,9&$A33,勘定入力!$K:$K)) -> 0 | V33: =IF($A33="",0,SUMIF(勘定入力!$D:$D,10&$A33,勘定入力!$J:$J)) -> 0 | W33: =IF($A33="",0,SUMIF(勘定入力!$D:$D,10&$A33,勘定入力!$K:$K)) -> 0 | X33: =IF($A33="",0,SUMIF(勘定入力!$D:$D,11&$A33,勘定入力!$J:$J)) -> 0 | Y33: =IF($A33="",0,SUMIF(勘定入力!$D:$D,11&$A33,勘定入力!$K:$K)) -> 0 | Z33: =IF($A33="",0,SUMIF(勘定入力!$D:$D,12&$A33,勘定入力!$J:$J)) -> 0 | AA33: =IF($A33="",0,SUMIF(勘定入力!$D:$D,12&$A33,勘定入力!$K:$K)) -> 0
A34: =入力補助!C30 -> ガス | B34: 0 | C34: 0 | D34: =IF($A34="",0,SUMIF(勘定入力!$D:$D,1&$A34,勘定入力!$J:$J)) -> 0 | E34: =IF($A34="",0,SUMIF(勘定入力!$D:$D,1&$A34,勘定入力!$K:$K)) -> 0 | F34: =IF($A34="",0,SUMIF(勘定入力!$D:$D,2&$A34,勘定入力!$J:$J)) -> 0 | G34: =IF($A34="",0,SUMIF(勘定入力!$D:$D,2&$A34,勘定入力!$K:$K)) -> 0 | H34: =IF($A34="",0,SUMIF(勘定入力!$D:$D,3&$A34,勘定入力!$J:$J)) -> 0 | I34: =IF($A34="",0,SUMIF(勘定入力!$D:$D,3&$A34,勘定入力!$K:$K)) -> 0 | J34: =IF($A34="",0,SUMIF(勘定入力!$D:$D,4&$A34,勘定入力!$J:$J)) -> 0 | K34: =IF($A34="",0,SUMIF(勘定入力!$D:$D,4&$A34,勘定入力!$K:$K)) -> 0 | L34: =IF($A34="",0,SUMIF(勘定入力!$D:$D,5&$A34,勘定入力!$J:$J)) -> 0 | M34: =IF($A34="",0,SUMIF(勘定入力!$D:$D,5&$A34,勘定入力!$K:$K)) -> 0 | N34: =IF($A34="",0,SUMIF(勘定入力!$D:$D,6&$A34,勘定入力!$J:$J)) -> 0 | O34: =IF($A34="",0,SUMIF(勘定入力!$D:$D,6&$A34,勘定入力!$K:$K)) -> 0 | P34: =IF($A34="",0,SUMIF(勘定入力!$D:$D,7&$A34,勘定入力!$J:$J)) -> 0 | Q34: =IF($A34="",0,SUMIF(勘定入力!$D:$D,7&$A34,勘定入力!$K:$K)) -> 0 | R34: =IF($A34="",0,SUMIF(勘定入力!$D:$D,8&$A34,勘定入力!$J:$J)) -> 0 | S34: =IF($A34="",0,SUMIF(勘定入力!$D:$D,8&$A34,勘定入力!$K:$K)) -> 0 | T34: =IF($A34="",0,SUMIF(勘定入力!$D:$D,9&$A34,勘定入力!$J:$J)) -> 0 | U34: =IF($A34="",0,SUMIF(勘定入力!$D:$D,9&$A34,勘定入力!$K:$K)) -> 0 | V34: =IF($A34="",0,SUMIF(勘定入力!$D:$D,10&$A34,勘定入力!$J:$J)) -> 0 | W34: =IF($A34="",0,SUMIF(勘定入力!$D:$D,10&$A34,勘定入力!$K:$K)) -> 0 | X34: =IF($A34="",0,SUMIF(勘定入力!$D:$D,11&$A34,勘定入力!$J:$J)) -> 0 | Y34: =IF($A34="",0,SUMIF(勘定入力!$D:$D,11&$A34,勘定入力!$K:$K)) -> 0 | Z34: =IF($A34="",0,SUMIF(勘定入力!$D:$D,12&$A34,勘定入力!$J:$J)) -> 0 | AA34: =IF($A34="",0,SUMIF(勘定入力!$D:$D,12&$A34,勘定入力!$K:$K)) -> 0
A35: =入力補助!C31 -> 通信費 | B35: 0 | C35: 0 | D35: =IF($A35="",0,SUMIF(勘定入力!$D:$D,1&$A35,勘定入力!$J:$J)) -> 0 | E35: =IF($A35="",0,SUMIF(勘定入力!$D:$D,1&$A35,勘定入力!$K:$K)) -> 0 | F35: =IF($A35="",0,SUMIF(勘定入力!$D:$D,2&$A35,勘定入力!$J:$J)) -> 0 | G35: =IF($A35="",0,SUMIF(勘定入力!$D:$D,2&$A35,勘定入力!$K:$K)) -> 0 | H35: =IF($A35="",0,SUMIF(勘定入力!$D:$D,3&$A35,勘定入力!$J:$J)) -> 0 | I35: =IF($A35="",0,SUMIF(勘定入力!$D:$D,3&$A35,勘定入力!$K:$K)) -> 0 | J35: =IF($A35="",0,SUMIF(勘定入力!$D:$D,4&$A35,勘定入力!$J:$J)) -> 0 | K35: =IF($A35="",0,SUMIF(勘定入力!$D:$D,4&$A35,勘定入力!$K:$K)) -> 0 | L35: =IF($A35="",0,SUMIF(勘定入力!$D:$D,5&$A35,勘定入力!$J:$J)) -> 0 | M35: =IF($A35="",0,SUMIF(勘定入力!$D:$D,5&$A35,勘定入力!$K:$K)) -> 0 | N35: =IF($A35="",0,SUMIF(勘定入力!$D:$D,6&$A35,勘定入力!$J:$J)) -> 0 | O35: =IF($A35="",0,SUMIF(勘定入力!$D:$D,6&$A35,勘定入力!$K:$K)) -> 0 | P35: =IF($A35="",0,SUMIF(勘定入力!$D:$D,7&$A35,勘定入力!$J:$J)) -> 0 | Q35: =IF($A35="",0,SUMIF(勘定入力!$D:$D,7&$A35,勘定入力!$K:$K)) -> 0 | R35: =IF($A35="",0,SUMIF(勘定入力!$D:$D,8&$A35,勘定入力!$J:$J)) -> 0 | S35: =IF($A35="",0,SUMIF(勘定入力!$D:$D,8&$A35,勘定入力!$K:$K)) -> 0 | T35: =IF($A35="",0,SUMIF(勘定入力!$D:$D,9&$A35,勘定入力!$J:$J)) -> 0 | U35: =IF($A35="",0,SUMIF(勘定入力!$D:$D,9&$A35,勘定入力!$K:$K)) -> 0 | V35: =IF($A35="",0,SUMIF(勘定入力!$D:$D,10&$A35,勘定入力!$J:$J)) -> 0 | W35: =IF($A35="",0,SUMIF(勘定入力!$D:$D,10&$A35,勘定入力!$K:$K)) -> 0 | X35: =IF($A35="",0,SUMIF(勘定入力!$D:$D,11&$A35,勘定入力!$J:$J)) -> 0 | Y35: =IF($A35="",0,SUMIF(勘定入力!$D:$D,11&$A35,勘定入力!$K:$K)) -> 0 | Z35: =IF($A35="",0,SUMIF(勘定入力!$D:$D,12&$A35,勘定入力!$J:$J)) -> 0 | AA35: =IF($A35="",0,SUMIF(勘定入力!$D:$D,12&$A35,勘定入力!$K:$K)) -> 0
A36: =入力補助!C32 -> 事務用品費 | B36: 0 | C36: 0 | D36: =IF($A36="",0,SUMIF(勘定入力!$D:$D,1&$A36,勘定入力!$J:$J)) -> 0 | E36: =IF($A36="",0,SUMIF(勘定入力!$D:$D,1&$A36,勘定入力!$K:$K)) -> 0 | F36: =IF($A36="",0,SUMIF(勘定入力!$D:$D,2&$A36,勘定入力!$J:$J)) -> 0 | G36: =IF($A36="",0,SUMIF(勘定入力!$D:$D,2&$A36,勘定入力!$K:$K)) -> 0 | H36: =IF($A36="",0,SUMIF(勘定入力!$D:$D,3&$A36,勘定入力!$J:$J)) -> 0 | I36: =IF($A36="",0,SUMIF(勘定入力!$D:$D,3&$A36,勘定入力!$K:$K)) -> 0 | J36: =IF($A36="",0,SUMIF(勘定入力!$D:$D,4&$A36,勘定入力!$J:$J)) -> 0 | K36: =IF($A36="",0,SUMIF(勘定入力!$D:$D,4&$A36,勘定入力!$K:$K)) -> 0 | L36: =IF($A36="",0,SUMIF(勘定入力!$D:$D,5&$A36,勘定入力!$J:$J)) -> 0 | M36: =IF($A36="",0,SUMIF(勘定入力!$D:$D,5&$A36,勘定入力!$K:$K)) -> 0 | N36: =IF($A36="",0,SUMIF(勘定入力!$D:$D,6&$A36,勘定入力!$J:$J)) -> 0 | O36: =IF($A36="",0,SUMIF(勘定入力!$D:$D,6&$A36,勘定入力!$K:$K)) -> 0 | P36: =IF($A36="",0,SUMIF(勘定入力!$D:$D,7&$A36,勘定入力!$J:$J)) -> 0 | Q36: =IF($A36="",0,SUMIF(勘定入力!$D:$D,7&$A36,勘定入力!$K:$K)) -> 0 | R36: =IF($A36="",0,SUMIF(勘定入力!$D:$D,8&$A36,勘定入力!$J:$J)) -> 0 | S36: =IF($A36="",0,SUMIF(勘定入力!$D:$D,8&$A36,勘定入力!$K:$K)) -> 0 | T36: =IF($A36="",0,SUMIF(勘定入力!$D:$D,9&$A36,勘定入力!$J:$J)) -> 0 | U36: =IF($A36="",0,SUMIF(勘定入力!$D:$D,9&$A36,勘定入力!$K:$K)) -> 0 | V36: =IF($A36="",0,SUMIF(勘定入力!$D:$D,10&$A36,勘定入力!$J:$J)) -> 0 | W36: =IF($A36="",0,SUMIF(勘定入力!$D:$D,10&$A36,勘定入力!$K:$K)) -> 0 | X36: =IF($A36="",0,SUMIF(勘定入力!$D:$D,11&$A36,勘定入力!$J:$J)) -> 0 | Y36: =IF($A36="",0,SUMIF(勘定入力!$D:$D,11&$A36,勘定入力!$K:$K)) -> 0 | Z36: =IF($A36="",0,SUMIF(勘定入力!$D:$D,12&$A36,勘定入力!$J:$J)) -> 0 | AA36: =IF($A36="",0,SUMIF(勘定入力!$D:$D,12&$A36,勘定入力!$K:$K)) -> 0
A37: =入力補助!C33 -> 保険料 | B37: 0 | C37: 0 | D37: =IF($A37="",0,SUMIF(勘定入力!$D:$D,1&$A37,勘定入力!$J:$J)) -> 0 | E37: =IF($A37="",0,SUMIF(勘定入力!$D:$D,1&$A37,勘定入力!$K:$K)) -> 0 | F37: =IF($A37="",0,SUMIF(勘定入力!$D:$D,2&$A37,勘定入力!$J:$J)) -> 0 | G37: =IF($A37="",0,SUMIF(勘定入力!$D:$D,2&$A37,勘定入力!$K:$K)) -> 0 | H37: =IF($A37="",0,SUMIF(勘定入力!$D:$D,3&$A37,勘定入力!$J:$J)) -> 0 | I37: =IF($A37="",0,SUMIF(勘定入力!$D:$D,3&$A37,勘定入力!$K:$K)) -> 0 | J37: =IF($A37="",0,SUMIF(勘定入力!$D:$D,4&$A37,勘定入力!$J:$J)) -> 0 | K37: =IF($A37="",0,SUMIF(勘定入力!$D:$D,4&$A37,勘定入力!$K:$K)) -> 0 | L37: =IF($A37="",0,SUMIF(勘定入力!$D:$D,5&$A37,勘定入力!$J:$J)) -> 0 | M37: =IF($A37="",0,SUMIF(勘定入力!$D:$D,5&$A37,勘定入力!$K:$K)) -> 0 | N37: =IF($A37="",0,SUMIF(勘定入力!$D:$D,6&$A37,勘定入力!$J:$J)) -> 0 | O37: =IF($A37="",0,SUMIF(勘定入力!$D:$D,6&$A37,勘定入力!$K:$K)) -> 0 | P37: =IF($A37="",0,SUMIF(勘定入力!$D:$D,7&$A37,勘定入力!$J:$J)) -> 0 | Q37: =IF($A37="",0,SUMIF(勘定入力!$D:$D,7&$A37,勘定入力!$K:$K)) -> 0 | R37: =IF($A37="",0,SUMIF(勘定入力!$D:$D,8&$A37,勘定入力!$J:$J)) -> 0 | S37: =IF($A37="",0,SUMIF(勘定入力!$D:$D,8&$A37,勘定入力!$K:$K)) -> 0 | T37: =IF($A37="",0,SUMIF(勘定入力!$D:$D,9&$A37,勘定入力!$J:$J)) -> 0 | U37: =IF($A37="",0,SUMIF(勘定入力!$D:$D,9&$A37,勘定入力!$K:$K)) -> 0 | V37: =IF($A37="",0,SUMIF(勘定入力!$D:$D,10&$A37,勘定入力!$J:$J)) -> 0 | W37: =IF($A37="",0,SUMIF(勘定入力!$D:$D,10&$A37,勘定入力!$K:$K)) -> 0 | X37: =IF($A37="",0,SUMIF(勘定入力!$D:$D,11&$A37,勘定入力!$J:$J)) -> 0 | Y37: =IF($A37="",0,SUMIF(勘定入力!$D:$D,11&$A37,勘定入力!$K:$K)) -> 0 | Z37: =IF($A37="",0,SUMIF(勘定入力!$D:$D,12&$A37,勘定入力!$J:$J)) -> 0 | AA37: =IF($A37="",0,SUMIF(勘定入力!$D:$D,12&$A37,勘定入力!$K:$K)) -> 0
A38: =入力補助!C34 -> リース料 | B38: 0 | C38: 0 | D38: =IF($A38="",0,SUMIF(勘定入力!$D:$D,1&$A38,勘定入力!$J:$J)) -> 0 | E38: =IF($A38="",0,SUMIF(勘定入力!$D:$D,1&$A38,勘定入力!$K:$K)) -> 0 | F38: =IF($A38="",0,SUMIF(勘定入力!$D:$D,2&$A38,勘定入力!$J:$J)) -> 0 | G38: =IF($A38="",0,SUMIF(勘定入力!$D:$D,2&$A38,勘定入力!$K:$K)) -> 0 | H38: =IF($A38="",0,SUMIF(勘定入力!$D:$D,3&$A38,勘定入力!$J:$J)) -> 0 | I38: =IF($A38="",0,SUMIF(勘定入力!$D:$D,3&$A38,勘定入力!$K:$K)) -> 0 | J38: =IF($A38="",0,SUMIF(勘定入力!$D:$D,4&$A38,勘定入力!$J:$J)) -> 0 | K38: =IF($A38="",0,SUMIF(勘定入力!$D:$D,4&$A38,勘定入力!$K:$K)) -> 0 | L38: =IF($A38="",0,SUMIF(勘定入力!$D:$D,5&$A38,勘定入力!$J:$J)) -> 0 | M38: =IF($A38="",0,SUMIF(勘定入力!$D:$D,5&$A38,勘定入力!$K:$K)) -> 0 | N38: =IF($A38="",0,SUMIF(勘定入力!$D:$D,6&$A38,勘定入力!$J:$J)) -> 0 | O38: =IF($A38="",0,SUMIF(勘定入力!$D:$D,6&$A38,勘定入力!$K:$K)) -> 0 | P38: =IF($A38="",0,SUMIF(勘定入力!$D:$D,7&$A38,勘定入力!$J:$J)) -> 0 | Q38: =IF($A38="",0,SUMIF(勘定入力!$D:$D,7&$A38,勘定入力!$K:$K)) -> 0 | R38: =IF($A38="",0,SUMIF(勘定入力!$D:$D,8&$A38,勘定入力!$J:$J)) -> 0 | S38: =IF($A38="",0,SUMIF(勘定入力!$D:$D,8&$A38,勘定入力!$K:$K)) -> 0 | T38: =IF($A38="",0,SUMIF(勘定入力!$D:$D,9&$A38,勘定入力!$J:$J)) -> 0 | U38: =IF($A38="",0,SUMIF(勘定入力!$D:$D,9&$A38,勘定入力!$K:$K)) -> 0 | V38: =IF($A38="",0,SUMIF(勘定入力!$D:$D,10&$A38,勘定入力!$J:$J)) -> 0 | W38: =IF($A38="",0,SUMIF(勘定入力!$D:$D,10&$A38,勘定入力!$K:$K)) -> 0 | X38: =IF($A38="",0,SUMIF(勘定入力!$D:$D,11&$A38,勘定入力!$J:$J)) -> 0 | Y38: =IF($A38="",0,SUMIF(勘定入力!$D:$D,11&$A38,勘定入力!$K:$K)) -> 0 | Z38: =IF($A38="",0,SUMIF(勘定入力!$D:$D,12&$A38,勘定入力!$J:$J)) -> 0 | AA38: =IF($A38="",0,SUMIF(勘定入力!$D:$D,12&$A38,勘定入力!$K:$K)) -> 0
A39: =入力補助!C35 -> 0 | B39: 0 | C39: 0 | D39: =IF($A39="",0,SUMIF(勘定入力!$D:$D,1&$A39,勘定入力!$J:$J)) -> 0 | E39: =IF($A39="",0,SUMIF(勘定入力!$D:$D,1&$A39,勘定入力!$K:$K)) -> 0 | F39: =IF($A39="",0,SUMIF(勘定入力!$D:$D,2&$A39,勘定入力!$J:$J)) -> 0 | G39: =IF($A39="",0,SUMIF(勘定入力!$D:$D,2&$A39,勘定入力!$K:$K)) -> 0 | H39: =IF($A39="",0,SUMIF(勘定入力!$D:$D,3&$A39,勘定入力!$J:$J)) -> 0 | I39: =IF($A39="",0,SUMIF(勘定入力!$D:$D,3&$A39,勘定入力!$K:$K)) -> 0 | J39: =IF($A39="",0,SUMIF(勘定入力!$D:$D,4&$A39,勘定入力!$J:$J)) -> 0 | K39: =IF($A39="",0,SUMIF(勘定入力!$D:$D,4&$A39,勘定入力!$K:$K)) -> 0 | L39: =IF($A39="",0,SUMIF(勘定入力!$D:$D,5&$A39,勘定入力!$J:$J)) -> 0 | M39: =IF($A39="",0,SUMIF(勘定入力!$D:$D,5&$A39,勘定入力!$K:$K)) -> 0 | N39: =IF($A39="",0,SUMIF(勘定入力!$D:$D,6&$A39,勘定入力!$J:$J)) -> 0 | O39: =IF($A39="",0,SUMIF(勘定入力!$D:$D,6&$A39,勘定入力!$K:$K)) -> 0 | P39: =IF($A39="",0,SUMIF(勘定入力!$D:$D,7&$A39,勘定入力!$J:$J)) -> 0 | Q39: =IF($A39="",0,SUMIF(勘定入力!$D:$D,7&$A39,勘定入力!$K:$K)) -> 0 | R39: =IF($A39="",0,SUMIF(勘定入力!$D:$D,8&$A39,勘定入力!$J:$J)) -> 0 | S39: =IF($A39="",0,SUMIF(勘定入力!$D:$D,8&$A39,勘定入力!$K:$K)) -> 0 | T39: =IF($A39="",0,SUMIF(勘定入力!$D:$D,9&$A39,勘定入力!$J:$J)) -> 0 | U39: =IF($A39="",0,SUMIF(勘定入力!$D:$D,9&$A39,勘定入力!$K:$K)) -> 0 | V39: =IF($A39="",0,SUMIF(勘定入力!$D:$D,10&$A39,勘定入力!$J:$J)) -> 0 | W39: =IF($A39="",0,SUMIF(勘定入力!$D:$D,10&$A39,勘定入力!$K:$K)) -> 0 | X39: =IF($A39="",0,SUMIF(勘定入力!$D:$D,11&$A39,勘定入力!$J:$J)) -> 0 | Y39: =IF($A39="",0,SUMIF(勘定入力!$D:$D,11&$A39,勘定入力!$K:$K)) -> 0 | Z39: =IF($A39="",0,SUMIF(勘定入力!$D:$D,12&$A39,勘定入力!$J:$J)) -> 0 | AA39: =IF($A39="",0,SUMIF(勘定入力!$D:$D,12&$A39,勘定入力!$K:$K)) -> 0
A40: =入力補助!C36 -> 0 | B40: 0 | C40: 0 | D40: =IF($A40="",0,SUMIF(勘定入力!$D:$D,1&$A40,勘定入力!$J:$J)) -> 0 | E40: =IF($A40="",0,SUMIF(勘定入力!$D:$D,1&$A40,勘定入力!$K:$K)) -> 0 | F40: =IF($A40="",0,SUMIF(勘定入力!$D:$D,2&$A40,勘定入力!$J:$J)) -> 0 | G40: =IF($A40="",0,SUMIF(勘定入力!$D:$D,2&$A40,勘定入力!$K:$K)) -> 0 | H40: =IF($A40="",0,SUMIF(勘定入力!$D:$D,3&$A40,勘定入力!$J:$J)) -> 0 | I40: =IF($A40="",0,SUMIF(勘定入力!$D:$D,3&$A40,勘定入力!$K:$K)) -> 0 | J40: =IF($A40="",0,SUMIF(勘定入力!$D:$D,4&$A40,勘定入力!$J:$J)) -> 0 | K40: =IF($A40="",0,SUMIF(勘定入力!$D:$D,4&$A40,勘定入力!$K:$K)) -> 0 | L40: =IF($A40="",0,SUMIF(勘定入力!$D:$D,5&$A40,勘定入力!$J:$J)) -> 0 | M40: =IF($A40="",0,SUMIF(勘定入力!$D:$D,5&$A40,勘定入力!$K:$K)) -> 0 | N40: =IF($A40="",0,SUMIF(勘定入力!$D:$D,6&$A40,勘定入力!$J:$J)) -> 0 | O40: =IF($A40="",0,SUMIF(勘定入力!$D:$D,6&$A40,勘定入力!$K:$K)) -> 0 | P40: =IF($A40="",0,SUMIF(勘定入力!$D:$D,7&$A40,勘定入力!$J:$J)) -> 0 | Q40: =IF($A40="",0,SUMIF(勘定入力!$D:$D,7&$A40,勘定入力!$K:$K)) -> 0 | R40: =IF($A40="",0,SUMIF(勘定入力!$D:$D,8&$A40,勘定入力!$J:$J)) -> 0 | S40: =IF($A40="",0,SUMIF(勘定入力!$D:$D,8&$A40,勘定入力!$K:$K)) -> 0 | T40: =IF($A40="",0,SUMIF(勘定入力!$D:$D,9&$A40,勘定入力!$J:$J)) -> 0 | U40: =IF($A40="",0,SUMIF(勘定入力!$D:$D,9&$A40,勘定入力!$K:$K)) -> 0 | V40: =IF($A40="",0,SUMIF(勘定入力!$D:$D,10&$A40,勘定入力!$J:$J)) -> 0 | W40: =IF($A40="",0,SUMIF(勘定入力!$D:$D,10&$A40,勘定入力!$K:$K)) -> 0 | X40: =IF($A40="",0,SUMIF(勘定入力!$D:$D,11&$A40,勘定入力!$J:$J)) -> 0 | Y40: =IF($A40="",0,SUMIF(勘定入力!$D:$D,11&$A40,勘定入力!$K:$K)) -> 0 | Z40: =IF($A40="",0,SUMIF(勘定入力!$D:$D,12&$A40,勘定入力!$J:$J)) -> 0 | AA40: =IF($A40="",0,SUMIF(勘定入力!$D:$D,12&$A40,勘定入力!$K:$K)) -> 0
A41: =入力補助!C37 -> 0 | B41: 0 | C41: 0 | D41: =IF($A41="",0,SUMIF(勘定入力!$D:$D,1&$A41,勘定入力!$J:$J)) -> 0 | E41: =IF($A41="",0,SUMIF(勘定入力!$D:$D,1&$A41,勘定入力!$K:$K)) -> 0 | F41: =IF($A41="",0,SUMIF(勘定入力!$D:$D,2&$A41,勘定入力!$J:$J)) -> 0 | G41: =IF($A41="",0,SUMIF(勘定入力!$D:$D,2&$A41,勘定入力!$K:$K)) -> 0 | H41: =IF($A41="",0,SUMIF(勘定入力!$D:$D,3&$A41,勘定入力!$J:$J)) -> 0 | I41: =IF($A41="",0,SUMIF(勘定入力!$D:$D,3&$A41,勘定入力!$K:$K)) -> 0 | J41: =IF($A41="",0,SUMIF(勘定入力!$D:$D,4&$A41,勘定入力!$J:$J)) -> 0 | K41: =IF($A41="",0,SUMIF(勘定入力!$D:$D,4&$A41,勘定入力!$K:$K)) -> 0 | L41: =IF($A41="",0,SUMIF(勘定入力!$D:$D,5&$A41,勘定入力!$J:$J)) -> 0 | M41: =IF($A41="",0,SUMIF(勘定入力!$D:$D,5&$A41,勘定入力!$K:$K)) -> 0 | N41: =IF($A41="",0,SUMIF(勘定入力!$D:$D,6&$A41,勘定入力!$J:$J)) -> 0 | O41: =IF($A41="",0,SUMIF(勘定入力!$D:$D,6&$A41,勘定入力!$K:$K)) -> 0 | P41: =IF($A41="",0,SUMIF(勘定入力!$D:$D,7&$A41,勘定入力!$J:$J)) -> 0 | Q41: =IF($A41="",0,SUMIF(勘定入力!$D:$D,7&$A41,勘定入力!$K:$K)) -> 0 | R41: =IF($A41="",0,SUMIF(勘定入力!$D:$D,8&$A41,勘定入力!$J:$J)) -> 0 | S41: =IF($A41="",0,SUMIF(勘定入力!$D:$D,8&$A41,勘定入力!$K:$K)) -> 0 | T41: =IF($A41="",0,SUMIF(勘定入力!$D:$D,9&$A41,勘定入力!$J:$J)) -> 0 | U41: =IF($A41="",0,SUMIF(勘定入力!$D:$D,9&$A41,勘定入力!$K:$K)) -> 0 | V41: =IF($A41="",0,SUMIF(勘定入力!$D:$D,10&$A41,勘定入力!$J:$J)) -> 0 | W41: =IF($A41="",0,SUMIF(勘定入力!$D:$D,10&$A41,勘定入力!$K:$K)) -> 0 | X41: =IF($A41="",0,SUMIF(勘定入力!$D:$D,11&$A41,勘定入力!$J:$J)) -> 0 | Y41: =IF($A41="",0,SUMIF(勘定入力!$D:$D,11&$A41,勘定入力!$K:$K)) -> 0 | Z41: =IF($A41="",0,SUMIF(勘定入力!$D:$D,12&$A41,勘定入力!$J:$J)) -> 0 | AA41: =IF($A41="",0,SUMIF(勘定入力!$D:$D,12&$A41,勘定入力!$K:$K)) -> 0
A42: =入力補助!C38 -> 0 | B42: 0 | C42: 0 | D42: =IF($A42="",0,SUMIF(勘定入力!$D:$D,1&$A42,勘定入力!$J:$J)) -> 0 | E42: =IF($A42="",0,SUMIF(勘定入力!$D:$D,1&$A42,勘定入力!$K:$K)) -> 0 | F42: =IF($A42="",0,SUMIF(勘定入力!$D:$D,2&$A42,勘定入力!$J:$J)) -> 0 | G42: =IF($A42="",0,SUMIF(勘定入力!$D:$D,2&$A42,勘定入力!$K:$K)) -> 0 | H42: =IF($A42="",0,SUMIF(勘定入力!$D:$D,3&$A42,勘定入力!$J:$J)) -> 0 | I42: =IF($A42="",0,SUMIF(勘定入力!$D:$D,3&$A42,勘定入力!$K:$K)) -> 0 | J42: =IF($A42="",0,SUMIF(勘定入力!$D:$D,4&$A42,勘定入力!$J:$J)) -> 0 | K42: =IF($A42="",0,SUMIF(勘定入力!$D:$D,4&$A42,勘定入力!$K:$K)) -> 0 | L42: =IF($A42="",0,SUMIF(勘定入力!$D:$D,5&$A42,勘定入力!$J:$J)) -> 0 | M42: =IF($A42="",0,SUMIF(勘定入力!$D:$D,5&$A42,勘定入力!$K:$K)) -> 0 | N42: =IF($A42="",0,SUMIF(勘定入力!$D:$D,6&$A42,勘定入力!$J:$J)) -> 0 | O42: =IF($A42="",0,SUMIF(勘定入力!$D:$D,6&$A42,勘定入力!$K:$K)) -> 0 | P42: =IF($A42="",0,SUMIF(勘定入力!$D:$D,7&$A42,勘定入力!$J:$J)) -> 0 | Q42: =IF($A42="",0,SUMIF(勘定入力!$D:$D,7&$A42,勘定入力!$K:$K)) -> 0 | R42: =IF($A42="",0,SUMIF(勘定入力!$D:$D,8&$A42,勘定入力!$J:$J)) -> 0 | S42: =IF($A42="",0,SUMIF(勘定入力!$D:$D,8&$A42,勘定入力!$K:$K)) -> 0 | T42: =IF($A42="",0,SUMIF(勘定入力!$D:$D,9&$A42,勘定入力!$J:$J)) -> 0 | U42: =IF($A42="",0,SUMIF(勘定入力!$D:$D,9&$A42,勘定入力!$K:$K)) -> 0 | V42: =IF($A42="",0,SUMIF(勘定入力!$D:$D,10&$A42,勘定入力!$J:$J)) -> 0 | W42: =IF($A42="",0,SUMIF(勘定入力!$D:$D,10&$A42,勘定入力!$K:$K)) -> 0 | X42: =IF($A42="",0,SUMIF(勘定入力!$D:$D,11&$A42,勘定入力!$J:$J)) -> 0 | Y42: =IF($A42="",0,SUMIF(勘定入力!$D:$D,11&$A42,勘定入力!$K:$K)) -> 0 | Z42: =IF($A42="",0,SUMIF(勘定入力!$D:$D,12&$A42,勘定入力!$J:$J)) -> 0 | AA42: =IF($A42="",0,SUMIF(勘定入力!$D:$D,12&$A42,勘定入力!$K:$K)) -> 0
A43: =入力補助!C39 -> 0 | B43: 0 | C43: 0 | D43: =IF($A43="",0,SUMIF(勘定入力!$D:$D,1&$A43,勘定入力!$J:$J)) -> 0 | E43: =IF($A43="",0,SUMIF(勘定入力!$D:$D,1&$A43,勘定入力!$K:$K)) -> 0 | F43: =IF($A43="",0,SUMIF(勘定入力!$D:$D,2&$A43,勘定入力!$J:$J)) -> 0 | G43: =IF($A43="",0,SUMIF(勘定入力!$D:$D,2&$A43,勘定入力!$K:$K)) -> 0 | H43: =IF($A43="",0,SUMIF(勘定入力!$D:$D,3&$A43,勘定入力!$J:$J)) -> 0 | I43: =IF($A43="",0,SUMIF(勘定入力!$D:$D,3&$A43,勘定入力!$K:$K)) -> 0 | J43: =IF($A43="",0,SUMIF(勘定入力!$D:$D,4&$A43,勘定入力!$J:$J)) -> 0 | K43: =IF($A43="",0,SUMIF(勘定入力!$D:$D,4&$A43,勘定入力!$K:$K)) -> 0 | L43: =IF($A43="",0,SUMIF(勘定入力!$D:$D,5&$A43,勘定入力!$J:$J)) -> 0 | M43: =IF($A43="",0,SUMIF(勘定入力!$D:$D,5&$A43,勘定入力!$K:$K)) -> 0 | N43: =IF($A43="",0,SUMIF(勘定入力!$D:$D,6&$A43,勘定入力!$J:$J)) -> 0 | O43: =IF($A43="",0,SUMIF(勘定入力!$D:$D,6&$A43,勘定入力!$K:$K)) -> 0 | P43: =IF($A43="",0,SUMIF(勘定入力!$D:$D,7&$A43,勘定入力!$J:$J)) -> 0 | Q43: =IF($A43="",0,SUMIF(勘定入力!$D:$D,7&$A43,勘定入力!$K:$K)) -> 0 | R43: =IF($A43="",0,SUMIF(勘定入力!$D:$D,8&$A43,勘定入力!$J:$J)) -> 0 | S43: =IF($A43="",0,SUMIF(勘定入力!$D:$D,8&$A43,勘定入力!$K:$K)) -> 0 | T43: =IF($A43="",0,SUMIF(勘定入力!$D:$D,9&$A43,勘定入力!$J:$J)) -> 0 | U43: =IF($A43="",0,SUMIF(勘定入力!$D:$D,9&$A43,勘定入力!$K:$K)) -> 0 | V43: =IF($A43="",0,SUMIF(勘定入力!$D:$D,10&$A43,勘定入力!$J:$J)) -> 0 | W43: =IF($A43="",0,SUMIF(勘定入力!$D:$D,10&$A43,勘定入力!$K:$K)) -> 0 | X43: =IF($A43="",0,SUMIF(勘定入力!$D:$D,11&$A43,勘定入力!$J:$J)) -> 0 | Y43: =IF($A43="",0,SUMIF(勘定入力!$D:$D,11&$A43,勘定入力!$K:$K)) -> 0 | Z43: =IF($A43="",0,SUMIF(勘定入力!$D:$D,12&$A43,勘定入力!$J:$J)) -> 0 | AA43: =IF($A43="",0,SUMIF(勘定入力!$D:$D,12&$A43,勘定入力!$K:$K)) -> 0
A44: =入力補助!C40 -> 0 | B44: 0 | C44: 0 | D44: =IF($A44="",0,SUMIF(勘定入力!$D:$D,1&$A44,勘定入力!$J:$J)) -> 0 | E44: =IF($A44="",0,SUMIF(勘定入力!$D:$D,1&$A44,勘定入力!$K:$K)) -> 0 | F44: =IF($A44="",0,SUMIF(勘定入力!$D:$D,2&$A44,勘定入力!$J:$J)) -> 0 | G44: =IF($A44="",0,SUMIF(勘定入力!$D:$D,2&$A44,勘定入力!$K:$K)) -> 0 | H44: =IF($A44="",0,SUMIF(勘定入力!$D:$D,3&$A44,勘定入力!$J:$J)) -> 0 | I44: =IF($A44="",0,SUMIF(勘定入力!$D:$D,3&$A44,勘定入力!$K:$K)) -> 0 | J44: =IF($A44="",0,SUMIF(勘定入力!$D:$D,4&$A44,勘定入力!$J:$J)) -> 0 | K44: =IF($A44="",0,SUMIF(勘定入力!$D:$D,4&$A44,勘定入力!$K:$K)) -> 0 | L44: =IF($A44="",0,SUMIF(勘定入力!$D:$D,5&$A44,勘定入力!$J:$J)) -> 0 | M44: =IF($A44="",0,SUMIF(勘定入力!$D:$D,5&$A44,勘定入力!$K:$K)) -> 0 | N44: =IF($A44="",0,SUMIF(勘定入力!$D:$D,6&$A44,勘定入力!$J:$J)) -> 0 | O44: =IF($A44="",0,SUMIF(勘定入力!$D:$D,6&$A44,勘定入力!$K:$K)) -> 0 | P44: =IF($A44="",0,SUMIF(勘定入力!$D:$D,7&$A44,勘定入力!$J:$J)) -> 0 | Q44: =IF($A44="",0,SUMIF(勘定入力!$D:$D,7&$A44,勘定入力!$K:$K)) -> 0 | R44: =IF($A44="",0,SUMIF(勘定入力!$D:$D,8&$A44,勘定入力!$J:$J)) -> 0 | S44: =IF($A44="",0,SUMIF(勘定入力!$D:$D,8&$A44,勘定入力!$K:$K)) -> 0 | T44: =IF($A44="",0,SUMIF(勘定入力!$D:$D,9&$A44,勘定入力!$J:$J)) -> 0 | U44: =IF($A44="",0,SUMIF(勘定入力!$D:$D,9&$A44,勘定入力!$K:$K)) -> 0 | V44: =IF($A44="",0,SUMIF(勘定入力!$D:$D,10&$A44,勘定入力!$J:$J)) -> 0 | W44: =IF($A44="",0,SUMIF(勘定入力!$D:$D,10&$A44,勘定入力!$K:$K)) -> 0 | X44: =IF($A44="",0,SUMIF(勘定入力!$D:$D,11&$A44,勘定入力!$J:$J)) -> 0 | Y44: =IF($A44="",0,SUMIF(勘定入力!$D:$D,11&$A44,勘定入力!$K:$K)) -> 0 | Z44: =IF($A44="",0,SUMIF(勘定入力!$D:$D,12&$A44,勘定入力!$J:$J)) -> 0 | AA44: =IF($A44="",0,SUMIF(勘定入力!$D:$D,12&$A44,勘定入力!$K:$K)) -> 0
A45: =入力補助!C41 -> 0 | B45: 0 | C45: 0 | D45: =IF($A45="",0,SUMIF(勘定入力!$D:$D,1&$A45,勘定入力!$J:$J)) -> 0 | E45: =IF($A45="",0,SUMIF(勘定入力!$D:$D,1&$A45,勘定入力!$K:$K)) -> 0 | F45: =IF($A45="",0,SUMIF(勘定入力!$D:$D,2&$A45,勘定入力!$J:$J)) -> 0 | G45: =IF($A45="",0,SUMIF(勘定入力!$D:$D,2&$A45,勘定入力!$K:$K)) -> 0 | H45: =IF($A45="",0,SUMIF(勘定入力!$D:$D,3&$A45,勘定入力!$J:$J)) -> 0 | I45: =IF($A45="",0,SUMIF(勘定入力!$D:$D,3&$A45,勘定入力!$K:$K)) -> 0 | J45: =IF($A45="",0,SUMIF(勘定入力!$D:$D,4&$A45,勘定入力!$J:$J)) -> 0 | K45: =IF($A45="",0,SUMIF(勘定入力!$D:$D,4&$A45,勘定入力!$K:$K)) -> 0 | L45: =IF($A45="",0,SUMIF(勘定入力!$D:$D,5&$A45,勘定入力!$J:$J)) -> 0 | M45: =IF($A45="",0,SUMIF(勘定入力!$D:$D,5&$A45,勘定入力!$K:$K)) -> 0 | N45: =IF($A45="",0,SUMIF(勘定入力!$D:$D,6&$A45,勘定入力!$J:$J)) -> 0 | O45: =IF($A45="",0,SUMIF(勘定入力!$D:$D,6&$A45,勘定入力!$K:$K)) -> 0 | P45: =IF($A45="",0,SUMIF(勘定入力!$D:$D,7&$A45,勘定入力!$J:$J)) -> 0 | Q45: =IF($A45="",0,SUMIF(勘定入力!$D:$D,7&$A45,勘定入力!$K:$K)) -> 0 | R45: =IF($A45="",0,SUMIF(勘定入力!$D:$D,8&$A45,勘定入力!$J:$J)) -> 0 | S45: =IF($A45="",0,SUMIF(勘定入力!$D:$D,8&$A45,勘定入力!$K:$K)) -> 0 | T45: =IF($A45="",0,SUMIF(勘定入力!$D:$D,9&$A45,勘定入力!$J:$J)) -> 0 | U45: =IF($A45="",0,SUMIF(勘定入力!$D:$D,9&$A45,勘定入力!$K:$K)) -> 0 | V45: =IF($A45="",0,SUMIF(勘定入力!$D:$D,10&$A45,勘定入力!$J:$J)) -> 0 | W45: =IF($A45="",0,SUMIF(勘定入力!$D:$D,10&$A45,勘定入力!$K:$K)) -> 0 | X45: =IF($A45="",0,SUMIF(勘定入力!$D:$D,11&$A45,勘定入力!$J:$J)) -> 0 | Y45: =IF($A45="",0,SUMIF(勘定入力!$D:$D,11&$A45,勘定入力!$K:$K)) -> 0 | Z45: =IF($A45="",0,SUMIF(勘定入力!$D:$D,12&$A45,勘定入力!$J:$J)) -> 0 | AA45: =IF($A45="",0,SUMIF(勘定入力!$D:$D,12&$A45,勘定入力!$K:$K)) -> 0
A46: =入力補助!C42 -> 0 | B46: 0 | C46: 0 | D46: =IF($A46="",0,SUMIF(勘定入力!$D:$D,1&$A46,勘定入力!$J:$J)) -> 0 | E46: =IF($A46="",0,SUMIF(勘定入力!$D:$D,1&$A46,勘定入力!$K:$K)) -> 0 | F46: =IF($A46="",0,SUMIF(勘定入力!$D:$D,2&$A46,勘定入力!$J:$J)) -> 0 | G46: =IF($A46="",0,SUMIF(勘定入力!$D:$D,2&$A46,勘定入力!$K:$K)) -> 0 | H46: =IF($A46="",0,SUMIF(勘定入力!$D:$D,3&$A46,勘定入力!$J:$J)) -> 0 | I46: =IF($A46="",0,SUMIF(勘定入力!$D:$D,3&$A46,勘定入力!$K:$K)) -> 0 | J46: =IF($A46="",0,SUMIF(勘定入力!$D:$D,4&$A46,勘定入力!$J:$J)) -> 0 | K46: =IF($A46="",0,SUMIF(勘定入力!$D:$D,4&$A46,勘定入力!$K:$K)) -> 0 | L46: =IF($A46="",0,SUMIF(勘定入力!$D:$D,5&$A46,勘定入力!$J:$J)) -> 0 | M46: =IF($A46="",0,SUMIF(勘定入力!$D:$D,5&$A46,勘定入力!$K:$K)) -> 0 | N46: =IF($A46="",0,SUMIF(勘定入力!$D:$D,6&$A46,勘定入力!$J:$J)) -> 0 | O46: =IF($A46="",0,SUMIF(勘定入力!$D:$D,6&$A46,勘定入力!$K:$K)) -> 0 | P46: =IF($A46="",0,SUMIF(勘定入力!$D:$D,7&$A46,勘定入力!$J:$J)) -> 0 | Q46: =IF($A46="",0,SUMIF(勘定入力!$D:$D,7&$A46,勘定入力!$K:$K)) -> 0 | R46: =IF($A46="",0,SUMIF(勘定入力!$D:$D,8&$A46,勘定入力!$J:$J)) -> 0 | S46: =IF($A46="",0,SUMIF(勘定入力!$D:$D,8&$A46,勘定入力!$K:$K)) -> 0 | T46: =IF($A46="",0,SUMIF(勘定入力!$D:$D,9&$A46,勘定入力!$J:$J)) -> 0 | U46: =IF($A46="",0,SUMIF(勘定入力!$D:$D,9&$A46,勘定入力!$K:$K)) -> 0 | V46: =IF($A46="",0,SUMIF(勘定入力!$D:$D,10&$A46,勘定入力!$J:$J)) -> 0 | W46: =IF($A46="",0,SUMIF(勘定入力!$D:$D,10&$A46,勘定入力!$K:$K)) -> 0 | X46: =IF($A46="",0,SUMIF(勘定入力!$D:$D,11&$A46,勘定入力!$J:$J)) -> 0 | Y46: =IF($A46="",0,SUMIF(勘定入力!$D:$D,11&$A46,勘定入力!$K:$K)) -> 0 | Z46: =IF($A46="",0,SUMIF(勘定入力!$D:$D,12&$A46,勘定入力!$J:$J)) -> 0 | AA46: =IF($A46="",0,SUMIF(勘定入力!$D:$D,12&$A46,勘定入力!$K:$K)) -> 0
A47: =入力補助!C43 -> 0 | B47: 0 | C47: 0 | D47: =IF($A47="",0,SUMIF(勘定入力!$D:$D,1&$A47,勘定入力!$J:$J)) -> 0 | E47: =IF($A47="",0,SUMIF(勘定入力!$D:$D,1&$A47,勘定入力!$K:$K)) -> 0 | F47: =IF($A47="",0,SUMIF(勘定入力!$D:$D,2&$A47,勘定入力!$J:$J)) -> 0 | G47: =IF($A47="",0,SUMIF(勘定入力!$D:$D,2&$A47,勘定入力!$K:$K)) -> 0 | H47: =IF($A47="",0,SUMIF(勘定入力!$D:$D,3&$A47,勘定入力!$J:$J)) -> 0 | I47: =IF($A47="",0,SUMIF(勘定入力!$D:$D,3&$A47,勘定入力!$K:$K)) -> 0 | J47: =IF($A47="",0,SUMIF(勘定入力!$D:$D,4&$A47,勘定入力!$J:$J)) -> 0 | K47: =IF($A47="",0,SUMIF(勘定入力!$D:$D,4&$A47,勘定入力!$K:$K)) -> 0 | L47: =IF($A47="",0,SUMIF(勘定入力!$D:$D,5&$A47,勘定入力!$J:$J)) -> 0 | M47: =IF($A47="",0,SUMIF(勘定入力!$D:$D,5&$A47,勘定入力!$K:$K)) -> 0 | N47: =IF($A47="",0,SUMIF(勘定入力!$D:$D,6&$A47,勘定入力!$J:$J)) -> 0 | O47: =IF($A47="",0,SUMIF(勘定入力!$D:$D,6&$A47,勘定入力!$K:$K)) -> 0 | P47: =IF($A47="",0,SUMIF(勘定入力!$D:$D,7&$A47,勘定入力!$J:$J)) -> 0 | Q47: =IF($A47="",0,SUMIF(勘定入力!$D:$D,7&$A47,勘定入力!$K:$K)) -> 0 | R47: =IF($A47="",0,SUMIF(勘定入力!$D:$D,8&$A47,勘定入力!$J:$J)) -> 0 | S47: =IF($A47="",0,SUMIF(勘定入力!$D:$D,8&$A47,勘定入力!$K:$K)) -> 0 | T47: =IF($A47="",0,SUMIF(勘定入力!$D:$D,9&$A47,勘定入力!$J:$J)) -> 0 | U47: =IF($A47="",0,SUMIF(勘定入力!$D:$D,9&$A47,勘定入力!$K:$K)) -> 0 | V47: =IF($A47="",0,SUMIF(勘定入力!$D:$D,10&$A47,勘定入力!$J:$J)) -> 0 | W47: =IF($A47="",0,SUMIF(勘定入力!$D:$D,10&$A47,勘定入力!$K:$K)) -> 0 | X47: =IF($A47="",0,SUMIF(勘定入力!$D:$D,11&$A47,勘定入力!$J:$J)) -> 0 | Y47: =IF($A47="",0,SUMIF(勘定入力!$D:$D,11&$A47,勘定入力!$K:$K)) -> 0 | Z47: =IF($A47="",0,SUMIF(勘定入力!$D:$D,12&$A47,勘定入力!$J:$J)) -> 0 | AA47: =IF($A47="",0,SUMIF(勘定入力!$D:$D,12&$A47,勘定入力!$K:$K)) -> 0
A48: =入力補助!C44 -> 0 | B48: 0 | C48: 0 | D48: =IF($A48="",0,SUMIF(勘定入力!$D:$D,1&$A48,勘定入力!$J:$J)) -> 0 | E48: =IF($A48="",0,SUMIF(勘定入力!$D:$D,1&$A48,勘定入力!$K:$K)) -> 0 | F48: =IF($A48="",0,SUMIF(勘定入力!$D:$D,2&$A48,勘定入力!$J:$J)) -> 0 | G48: =IF($A48="",0,SUMIF(勘定入力!$D:$D,2&$A48,勘定入力!$K:$K)) -> 0 | H48: =IF($A48="",0,SUMIF(勘定入力!$D:$D,3&$A48,勘定入力!$J:$J)) -> 0 | I48: =IF($A48="",0,SUMIF(勘定入力!$D:$D,3&$A48,勘定入力!$K:$K)) -> 0 | J48: =IF($A48="",0,SUMIF(勘定入力!$D:$D,4&$A48,勘定入力!$J:$J)) -> 0 | K48: =IF($A48="",0,SUMIF(勘定入力!$D:$D,4&$A48,勘定入力!$K:$K)) -> 0 | L48: =IF($A48="",0,SUMIF(勘定入力!$D:$D,5&$A48,勘定入力!$J:$J)) -> 0 | M48: =IF($A48="",0,SUMIF(勘定入力!$D:$D,5&$A48,勘定入力!$K:$K)) -> 0 | N48: =IF($A48="",0,SUMIF(勘定入力!$D:$D,6&$A48,勘定入力!$J:$J)) -> 0 | O48: =IF($A48="",0,SUMIF(勘定入力!$D:$D,6&$A48,勘定入力!$K:$K)) -> 0 | P48: =IF($A48="",0,SUMIF(勘定入力!$D:$D,7&$A48,勘定入力!$J:$J)) -> 0 | Q48: =IF($A48="",0,SUMIF(勘定入力!$D:$D,7&$A48,勘定入力!$K:$K)) -> 0 | R48: =IF($A48="",0,SUMIF(勘定入力!$D:$D,8&$A48,勘定入力!$J:$J)) -> 0 | S48: =IF($A48="",0,SUMIF(勘定入力!$D:$D,8&$A48,勘定入力!$K:$K)) -> 0 | T48: =IF($A48="",0,SUMIF(勘定入力!$D:$D,9&$A48,勘定入力!$J:$J)) -> 0 | U48: =IF($A48="",0,SUMIF(勘定入力!$D:$D,9&$A48,勘定入力!$K:$K)) -> 0 | V48: =IF($A48="",0,SUMIF(勘定入力!$D:$D,10&$A48,勘定入力!$J:$J)) -> 0 | W48: =IF($A48="",0,SUMIF(勘定入力!$D:$D,10&$A48,勘定入力!$K:$K)) -> 0 | X48: =IF($A48="",0,SUMIF(勘定入力!$D:$D,11&$A48,勘定入力!$J:$J)) -> 0 | Y48: =IF($A48="",0,SUMIF(勘定入力!$D:$D,11&$A48,勘定入力!$K:$K)) -> 0 | Z48: =IF($A48="",0,SUMIF(勘定入力!$D:$D,12&$A48,勘定入力!$J:$J)) -> 0 | AA48: =IF($A48="",0,SUMIF(勘定入力!$D:$D,12&$A48,勘定入力!$K:$K)) -> 0
A49: =入力補助!C45 -> 0 | B49: 0 | C49: 0 | D49: =IF($A49="",0,SUMIF(勘定入力!$D:$D,1&$A49,勘定入力!$J:$J)) -> 0 | E49: =IF($A49="",0,SUMIF(勘定入力!$D:$D,1&$A49,勘定入力!$K:$K)) -> 0 | F49: =IF($A49="",0,SUMIF(勘定入力!$D:$D,2&$A49,勘定入力!$J:$J)) -> 0 | G49: =IF($A49="",0,SUMIF(勘定入力!$D:$D,2&$A49,勘定入力!$K:$K)) -> 0 | H49: =IF($A49="",0,SUMIF(勘定入力!$D:$D,3&$A49,勘定入力!$J:$J)) -> 0 | I49: =IF($A49="",0,SUMIF(勘定入力!$D:$D,3&$A49,勘定入力!$K:$K)) -> 0 | J49: =IF($A49="",0,SUMIF(勘定入力!$D:$D,4&$A49,勘定入力!$J:$J)) -> 0 | K49: =IF($A49="",0,SUMIF(勘定入力!$D:$D,4&$A49,勘定入力!$K:$K)) -> 0 | L49: =IF($A49="",0,SUMIF(勘定入力!$D:$D,5&$A49,勘定入力!$J:$J)) -> 0 | M49: =IF($A49="",0,SUMIF(勘定入力!$D:$D,5&$A49,勘定入力!$K:$K)) -> 0 | N49: =IF($A49="",0,SUMIF(勘定入力!$D:$D,6&$A49,勘定入力!$J:$J)) -> 0 | O49: =IF($A49="",0,SUMIF(勘定入力!$D:$D,6&$A49,勘定入力!$K:$K)) -> 0 | P49: =IF($A49="",0,SUMIF(勘定入力!$D:$D,7&$A49,勘定入力!$J:$J)) -> 0 | Q49: =IF($A49="",0,SUMIF(勘定入力!$D:$D,7&$A49,勘定入力!$K:$K)) -> 0 | R49: =IF($A49="",0,SUMIF(勘定入力!$D:$D,8&$A49,勘定入力!$J:$J)) -> 0 | S49: =IF($A49="",0,SUMIF(勘定入力!$D:$D,8&$A49,勘定入力!$K:$K)) -> 0 | T49: =IF($A49="",0,SUMIF(勘定入力!$D:$D,9&$A49,勘定入力!$J:$J)) -> 0 | U49: =IF($A49="",0,SUMIF(勘定入力!$D:$D,9&$A49,勘定入力!$K:$K)) -> 0 | V49: =IF($A49="",0,SUMIF(勘定入力!$D:$D,10&$A49,勘定入力!$J:$J)) -> 0 | W49: =IF($A49="",0,SUMIF(勘定入力!$D:$D,10&$A49,勘定入力!$K:$K)) -> 0 | X49: =IF($A49="",0,SUMIF(勘定入力!$D:$D,11&$A49,勘定入力!$J:$J)) -> 0 | Y49: =IF($A49="",0,SUMIF(勘定入力!$D:$D,11&$A49,勘定入力!$K:$K)) -> 0 | Z49: =IF($A49="",0,SUMIF(勘定入力!$D:$D,12&$A49,勘定入力!$J:$J)) -> 0 | AA49: =IF($A49="",0,SUMIF(勘定入力!$D:$D,12&$A49,勘定入力!$K:$K)) -> 0
A50: =入力補助!C46 -> 0 | B50: 0 | C50: 0 | D50: =IF($A50="",0,SUMIF(勘定入力!$D:$D,1&$A50,勘定入力!$J:$J)) -> 0 | E50: =IF($A50="",0,SUMIF(勘定入力!$D:$D,1&$A50,勘定入力!$K:$K)) -> 0 | F50: =IF($A50="",0,SUMIF(勘定入力!$D:$D,2&$A50,勘定入力!$J:$J)) -> 0 | G50: =IF($A50="",0,SUMIF(勘定入力!$D:$D,2&$A50,勘定入力!$K:$K)) -> 0 | H50: =IF($A50="",0,SUMIF(勘定入力!$D:$D,3&$A50,勘定入力!$J:$J)) -> 0 | I50: =IF($A50="",0,SUMIF(勘定入力!$D:$D,3&$A50,勘定入力!$K:$K)) -> 0 | J50: =IF($A50="",0,SUMIF(勘定入力!$D:$D,4&$A50,勘定入力!$J:$J)) -> 0 | K50: =IF($A50="",0,SUMIF(勘定入力!$D:$D,4&$A50,勘定入力!$K:$K)) -> 0 | L50: =IF($A50="",0,SUMIF(勘定入力!$D:$D,5&$A50,勘定入力!$J:$J)) -> 0 | M50: =IF($A50="",0,SUMIF(勘定入力!$D:$D,5&$A50,勘定入力!$K:$K)) -> 0 | N50: =IF($A50="",0,SUMIF(勘定入力!$D:$D,6&$A50,勘定入力!$J:$J)) -> 0 | O50: =IF($A50="",0,SUMIF(勘定入力!$D:$D,6&$A50,勘定入力!$K:$K)) -> 0 | P50: =IF($A50="",0,SUMIF(勘定入力!$D:$D,7&$A50,勘定入力!$J:$J)) -> 0 | Q50: =IF($A50="",0,SUMIF(勘定入力!$D:$D,7&$A50,勘定入力!$K:$K)) -> 0 | R50: =IF($A50="",0,SUMIF(勘定入力!$D:$D,8&$A50,勘定入力!$J:$J)) -> 0 | S50: =IF($A50="",0,SUMIF(勘定入力!$D:$D,8&$A50,勘定入力!$K:$K)) -> 0 | T50: =IF($A50="",0,SUMIF(勘定入力!$D:$D,9&$A50,勘定入力!$J:$J)) -> 0 | U50: =IF($A50="",0,SUMIF(勘定入力!$D:$D,9&$A50,勘定入力!$K:$K)) -> 0 | V50: =IF($A50="",0,SUMIF(勘定入力!$D:$D,10&$A50,勘定入力!$J:$J)) -> 0 | W50: =IF($A50="",0,SUMIF(勘定入力!$D:$D,10&$A50,勘定入力!$K:$K)) -> 0 | X50: =IF($A50="",0,SUMIF(勘定入力!$D:$D,11&$A50,勘定入力!$J:$J)) -> 0 | Y50: =IF($A50="",0,SUMIF(勘定入力!$D:$D,11&$A50,勘定入力!$K:$K)) -> 0 | Z50: =IF($A50="",0,SUMIF(勘定入力!$D:$D,12&$A50,勘定入力!$J:$J)) -> 0 | AA50: =IF($A50="",0,SUMIF(勘定入力!$D:$D,12&$A50,勘定入力!$K:$K)) -> 0
A51: =入力補助!C47 -> 0 | B51: 0 | C51: 0 | D51: =IF($A51="",0,SUMIF(勘定入力!$D:$D,1&$A51,勘定入力!$J:$J)) -> 0 | E51: =IF($A51="",0,SUMIF(勘定入力!$D:$D,1&$A51,勘定入力!$K:$K)) -> 0 | F51: =IF($A51="",0,SUMIF(勘定入力!$D:$D,2&$A51,勘定入力!$J:$J)) -> 0 | G51: =IF($A51="",0,SUMIF(勘定入力!$D:$D,2&$A51,勘定入力!$K:$K)) -> 0 | H51: =IF($A51="",0,SUMIF(勘定入力!$D:$D,3&$A51,勘定入力!$J:$J)) -> 0 | I51: =IF($A51="",0,SUMIF(勘定入力!$D:$D,3&$A51,勘定入力!$K:$K)) -> 0 | J51: =IF($A51="",0,SUMIF(勘定入力!$D:$D,4&$A51,勘定入力!$J:$J)) -> 0 | K51: =IF($A51="",0,SUMIF(勘定入力!$D:$D,4&$A51,勘定入力!$K:$K)) -> 0 | L51: =IF($A51="",0,SUMIF(勘定入力!$D:$D,5&$A51,勘定入力!$J:$J)) -> 0 | M51: =IF($A51="",0,SUMIF(勘定入力!$D:$D,5&$A51,勘定入力!$K:$K)) -> 0 | N51: =IF($A51="",0,SUMIF(勘定入力!$D:$D,6&$A51,勘定入力!$J:$J)) -> 0 | O51: =IF($A51="",0,SUMIF(勘定入力!$D:$D,6&$A51,勘定入力!$K:$K)) -> 0 | P51: =IF($A51="",0,SUMIF(勘定入力!$D:$D,7&$A51,勘定入力!$J:$J)) -> 0 | Q51: =IF($A51="",0,SUMIF(勘定入力!$D:$D,7&$A51,勘定入力!$K:$K)) -> 0 | R51: =IF($A51="",0,SUMIF(勘定入力!$D:$D,8&$A51,勘定入力!$J:$J)) -> 0 | S51: =IF($A51="",0,SUMIF(勘定入力!$D:$D,8&$A51,勘定入力!$K:$K)) -> 0 | T51: =IF($A51="",0,SUMIF(勘定入力!$D:$D,9&$A51,勘定入力!$J:$J)) -> 0 | U51: =IF($A51="",0,SUMIF(勘定入力!$D:$D,9&$A51,勘定入力!$K:$K)) -> 0 | V51: =IF($A51="",0,SUMIF(勘定入力!$D:$D,10&$A51,勘定入力!$J:$J)) -> 0 | W51: =IF($A51="",0,SUMIF(勘定入力!$D:$D,10&$A51,勘定入力!$K:$K)) -> 0 | X51: =IF($A51="",0,SUMIF(勘定入力!$D:$D,11&$A51,勘定入力!$J:$J)) -> 0 | Y51: =IF($A51="",0,SUMIF(勘定入力!$D:$D,11&$A51,勘定入力!$K:$K)) -> 0 | Z51: =IF($A51="",0,SUMIF(勘定入力!$D:$D,12&$A51,勘定入力!$J:$J)) -> 0 | AA51: =IF($A51="",0,SUMIF(勘定入力!$D:$D,12&$A51,勘定入力!$K:$K)) -> 0
A52: =入力補助!C48 -> 0 | B52: 0 | C52: 0 | D52: =IF($A52="",0,SUMIF(勘定入力!$D:$D,1&$A52,勘定入力!$J:$J)) -> 0 | E52: =IF($A52="",0,SUMIF(勘定入力!$D:$D,1&$A52,勘定入力!$K:$K)) -> 0 | F52: =IF($A52="",0,SUMIF(勘定入力!$D:$D,2&$A52,勘定入力!$J:$J)) -> 0 | G52: =IF($A52="",0,SUMIF(勘定入力!$D:$D,2&$A52,勘定入力!$K:$K)) -> 0 | H52: =IF($A52="",0,SUMIF(勘定入力!$D:$D,3&$A52,勘定入力!$J:$J)) -> 0 | I52: =IF($A52="",0,SUMIF(勘定入力!$D:$D,3&$A52,勘定入力!$K:$K)) -> 0 | J52: =IF($A52="",0,SUMIF(勘定入力!$D:$D,4&$A52,勘定入力!$J:$J)) -> 0 | K52: =IF($A52="",0,SUMIF(勘定入力!$D:$D,4&$A52,勘定入力!$K:$K)) -> 0 | L52: =IF($A52="",0,SUMIF(勘定入力!$D:$D,5&$A52,勘定入力!$J:$J)) -> 0 | M52: =IF($A52="",0,SUMIF(勘定入力!$D:$D,5&$A52,勘定入力!$K:$K)) -> 0 | N52: =IF($A52="",0,SUMIF(勘定入力!$D:$D,6&$A52,勘定入力!$J:$J)) -> 0 | O52: =IF($A52="",0,SUMIF(勘定入力!$D:$D,6&$A52,勘定入力!$K:$K)) -> 0 | P52: =IF($A52="",0,SUMIF(勘定入力!$D:$D,7&$A52,勘定入力!$J:$J)) -> 0 | Q52: =IF($A52="",0,SUMIF(勘定入力!$D:$D,7&$A52,勘定入力!$K:$K)) -> 0 | R52: =IF($A52="",0,SUMIF(勘定入力!$D:$D,8&$A52,勘定入力!$J:$J)) -> 0 | S52: =IF($A52="",0,SUMIF(勘定入力!$D:$D,8&$A52,勘定入力!$K:$K)) -> 0 | T52: =IF($A52="",0,SUMIF(勘定入力!$D:$D,9&$A52,勘定入力!$J:$J)) -> 0 | U52: =IF($A52="",0,SUMIF(勘定入力!$D:$D,9&$A52,勘定入力!$K:$K)) -> 0 | V52: =IF($A52="",0,SUMIF(勘定入力!$D:$D,10&$A52,勘定入力!$J:$J)) -> 0 | W52: =IF($A52="",0,SUMIF(勘定入力!$D:$D,10&$A52,勘定入力!$K:$K)) -> 0 | X52: =IF($A52="",0,SUMIF(勘定入力!$D:$D,11&$A52,勘定入力!$J:$J)) -> 0 | Y52: =IF($A52="",0,SUMIF(勘定入力!$D:$D,11&$A52,勘定入力!$K:$K)) -> 0 | Z52: =IF($A52="",0,SUMIF(勘定入力!$D:$D,12&$A52,勘定入力!$J:$J)) -> 0 | AA52: =IF($A52="",0,SUMIF(勘定入力!$D:$D,12&$A52,勘定入力!$K:$K)) -> 0
A53: =入力補助!C49 -> 0 | B53: 0 | C53: 0 | D53: =IF($A53="",0,SUMIF(勘定入力!$D:$D,1&$A53,勘定入力!$J:$J)) -> 0 | E53: =IF($A53="",0,SUMIF(勘定入力!$D:$D,1&$A53,勘定入力!$K:$K)) -> 0 | F53: =IF($A53="",0,SUMIF(勘定入力!$D:$D,2&$A53,勘定入力!$J:$J)) -> 0 | G53: =IF($A53="",0,SUMIF(勘定入力!$D:$D,2&$A53,勘定入力!$K:$K)) -> 0 | H53: =IF($A53="",0,SUMIF(勘定入力!$D:$D,3&$A53,勘定入力!$J:$J)) -> 0 | I53: =IF($A53="",0,SUMIF(勘定入力!$D:$D,3&$A53,勘定入力!$K:$K)) -> 0 | J53: =IF($A53="",0,SUMIF(勘定入力!$D:$D,4&$A53,勘定入力!$J:$J)) -> 0 | K53: =IF($A53="",0,SUMIF(勘定入力!$D:$D,4&$A53,勘定入力!$K:$K)) -> 0 | L53: =IF($A53="",0,SUMIF(勘定入力!$D:$D,5&$A53,勘定入力!$J:$J)) -> 0 | M53: =IF($A53="",0,SUMIF(勘定入力!$D:$D,5&$A53,勘定入力!$K:$K)) -> 0 | N53: =IF($A53="",0,SUMIF(勘定入力!$D:$D,6&$A53,勘定入力!$J:$J)) -> 0 | O53: =IF($A53="",0,SUMIF(勘定入力!$D:$D,6&$A53,勘定入力!$K:$K)) -> 0 | P53: =IF($A53="",0,SUMIF(勘定入力!$D:$D,7&$A53,勘定入力!$J:$J)) -> 0 | Q53: =IF($A53="",0,SUMIF(勘定入力!$D:$D,7&$A53,勘定入力!$K:$K)) -> 0 | R53: =IF($A53="",0,SUMIF(勘定入力!$D:$D,8&$A53,勘定入力!$J:$J)) -> 0 | S53: =IF($A53="",0,SUMIF(勘定入力!$D:$D,8&$A53,勘定入力!$K:$K)) -> 0 | T53: =IF($A53="",0,SUMIF(勘定入力!$D:$D,9&$A53,勘定入力!$J:$J)) -> 0 | U53: =IF($A53="",0,SUMIF(勘定入力!$D:$D,9&$A53,勘定入力!$K:$K)) -> 0 | V53: =IF($A53="",0,SUMIF(勘定入力!$D:$D,10&$A53,勘定入力!$J:$J)) -> 0 | W53: =IF($A53="",0,SUMIF(勘定入力!$D:$D,10&$A53,勘定入力!$K:$K)) -> 0 | X53: =IF($A53="",0,SUMIF(勘定入力!$D:$D,11&$A53,勘定入力!$J:$J)) -> 0 | Y53: =IF($A53="",0,SUMIF(勘定入力!$D:$D,11&$A53,勘定入力!$K:$K)) -> 0 | Z53: =IF($A53="",0,SUMIF(勘定入力!$D:$D,12&$A53,勘定入力!$J:$J)) -> 0 | AA53: =IF($A53="",0,SUMIF(勘定入力!$D:$D,12&$A53,勘定入力!$K:$K)) -> 0
A54: =入力補助!C50 -> 0 | B54: 0 | C54: 0 | D54: =IF($A54="",0,SUMIF(勘定入力!$D:$D,1&$A54,勘定入力!$J:$J)) -> 0 | E54: =IF($A54="",0,SUMIF(勘定入力!$D:$D,1&$A54,勘定入力!$K:$K)) -> 0 | F54: =IF($A54="",0,SUMIF(勘定入力!$D:$D,2&$A54,勘定入力!$J:$J)) -> 0 | G54: =IF($A54="",0,SUMIF(勘定入力!$D:$D,2&$A54,勘定入力!$K:$K)) -> 0 | H54: =IF($A54="",0,SUMIF(勘定入力!$D:$D,3&$A54,勘定入力!$J:$J)) -> 0 | I54: =IF($A54="",0,SUMIF(勘定入力!$D:$D,3&$A54,勘定入力!$K:$K)) -> 0 | J54: =IF($A54="",0,SUMIF(勘定入力!$D:$D,4&$A54,勘定入力!$J:$J)) -> 0 | K54: =IF($A54="",0,SUMIF(勘定入力!$D:$D,4&$A54,勘定入力!$K:$K)) -> 0 | L54: =IF($A54="",0,SUMIF(勘定入力!$D:$D,5&$A54,勘定入力!$J:$J)) -> 0 | M54: =IF($A54="",0,SUMIF(勘定入力!$D:$D,5&$A54,勘定入力!$K:$K)) -> 0 | N54: =IF($A54="",0,SUMIF(勘定入力!$D:$D,6&$A54,勘定入力!$J:$J)) -> 0 | O54: =IF($A54="",0,SUMIF(勘定入力!$D:$D,6&$A54,勘定入力!$K:$K)) -> 0 | P54: =IF($A54="",0,SUMIF(勘定入力!$D:$D,7&$A54,勘定入力!$J:$J)) -> 0 | Q54: =IF($A54="",0,SUMIF(勘定入力!$D:$D,7&$A54,勘定入力!$K:$K)) -> 0 | R54: =IF($A54="",0,SUMIF(勘定入力!$D:$D,8&$A54,勘定入力!$J:$J)) -> 0 | S54: =IF($A54="",0,SUMIF(勘定入力!$D:$D,8&$A54,勘定入力!$K:$K)) -> 0 | T54: =IF($A54="",0,SUMIF(勘定入力!$D:$D,9&$A54,勘定入力!$J:$J)) -> 0 | U54: =IF($A54="",0,SUMIF(勘定入力!$D:$D,9&$A54,勘定入力!$K:$K)) -> 0 | V54: =IF($A54="",0,SUMIF(勘定入力!$D:$D,10&$A54,勘定入力!$J:$J)) -> 0 | W54: =IF($A54="",0,SUMIF(勘定入力!$D:$D,10&$A54,勘定入力!$K:$K)) -> 0 | X54: =IF($A54="",0,SUMIF(勘定入力!$D:$D,11&$A54,勘定入力!$J:$J)) -> 0 | Y54: =IF($A54="",0,SUMIF(勘定入力!$D:$D,11&$A54,勘定入力!$K:$K)) -> 0 | Z54: =IF($A54="",0,SUMIF(勘定入力!$D:$D,12&$A54,勘定入力!$J:$J)) -> 0 | AA54: =IF($A54="",0,SUMIF(勘定入力!$D:$D,12&$A54,勘定入力!$K:$K)) -> 0
A55: =入力補助!C51 -> 0 | B55: 0 | C55: 0 | D55: =IF($A55="",0,SUMIF(勘定入力!$D:$D,1&$A55,勘定入力!$J:$J)) -> 0 | E55: =IF($A55="",0,SUMIF(勘定入力!$D:$D,1&$A55,勘定入力!$K:$K)) -> 0 | F55: =IF($A55="",0,SUMIF(勘定入力!$D:$D,2&$A55,勘定入力!$J:$J)) -> 0 | G55: =IF($A55="",0,SUMIF(勘定入力!$D:$D,2&$A55,勘定入力!$K:$K)) -> 0 | H55: =IF($A55="",0,SUMIF(勘定入力!$D:$D,3&$A55,勘定入力!$J:$J)) -> 0 | I55: =IF($A55="",0,SUMIF(勘定入力!$D:$D,3&$A55,勘定入力!$K:$K)) -> 0 | J55: =IF($A55="",0,SUMIF(勘定入力!$D:$D,4&$A55,勘定入力!$J:$J)) -> 0 | K55: =IF($A55="",0,SUMIF(勘定入力!$D:$D,4&$A55,勘定入力!$K:$K)) -> 0 | L55: =IF($A55="",0,SUMIF(勘定入力!$D:$D,5&$A55,勘定入力!$J:$J)) -> 0 | M55: =IF($A55="",0,SUMIF(勘定入力!$D:$D,5&$A55,勘定入力!$K:$K)) -> 0 | N55: =IF($A55="",0,SUMIF(勘定入力!$D:$D,6&$A55,勘定入力!$J:$J)) -> 0 | O55: =IF($A55="",0,SUMIF(勘定入力!$D:$D,6&$A55,勘定入力!$K:$K)) -> 0 | P55: =IF($A55="",0,SUMIF(勘定入力!$D:$D,7&$A55,勘定入力!$J:$J)) -> 0 | Q55: =IF($A55="",0,SUMIF(勘定入力!$D:$D,7&$A55,勘定入力!$K:$K)) -> 0 | R55: =IF($A55="",0,SUMIF(勘定入力!$D:$D,8&$A55,勘定入力!$J:$J)) -> 0 | S55: =IF($A55="",0,SUMIF(勘定入力!$D:$D,8&$A55,勘定入力!$K:$K)) -> 0 | T55: =IF($A55="",0,SUMIF(勘定入力!$D:$D,9&$A55,勘定入力!$J:$J)) -> 0 | U55: =IF($A55="",0,SUMIF(勘定入力!$D:$D,9&$A55,勘定入力!$K:$K)) -> 0 | V55: =IF($A55="",0,SUMIF(勘定入力!$D:$D,10&$A55,勘定入力!$J:$J)) -> 0 | W55: =IF($A55="",0,SUMIF(勘定入力!$D:$D,10&$A55,勘定入力!$K:$K)) -> 0 | X55: =IF($A55="",0,SUMIF(勘定入力!$D:$D,11&$A55,勘定入力!$J:$J)) -> 0 | Y55: =IF($A55="",0,SUMIF(勘定入力!$D:$D,11&$A55,勘定入力!$K:$K)) -> 0 | Z55: =IF($A55="",0,SUMIF(勘定入力!$D:$D,12&$A55,勘定入力!$J:$J)) -> 0 | AA55: =IF($A55="",0,SUMIF(勘定入力!$D:$D,12&$A55,勘定入力!$K:$K)) -> 0
A56: =入力補助!C52 -> 0 | B56: 0 | C56: 0 | D56: =IF($A56="",0,SUMIF(勘定入力!$D:$D,1&$A56,勘定入力!$J:$J)) -> 0 | E56: =IF($A56="",0,SUMIF(勘定入力!$D:$D,1&$A56,勘定入力!$K:$K)) -> 0 | F56: =IF($A56="",0,SUMIF(勘定入力!$D:$D,2&$A56,勘定入力!$J:$J)) -> 0 | G56: =IF($A56="",0,SUMIF(勘定入力!$D:$D,2&$A56,勘定入力!$K:$K)) -> 0 | H56: =IF($A56="",0,SUMIF(勘定入力!$D:$D,3&$A56,勘定入力!$J:$J)) -> 0 | I56: =IF($A56="",0,SUMIF(勘定入力!$D:$D,3&$A56,勘定入力!$K:$K)) -> 0 | J56: =IF($A56="",0,SUMIF(勘定入力!$D:$D,4&$A56,勘定入力!$J:$J)) -> 0 | K56: =IF($A56="",0,SUMIF(勘定入力!$D:$D,4&$A56,勘定入力!$K:$K)) -> 0 | L56: =IF($A56="",0,SUMIF(勘定入力!$D:$D,5&$A56,勘定入力!$J:$J)) -> 0 | M56: =IF($A56="",0,SUMIF(勘定入力!$D:$D,5&$A56,勘定入力!$K:$K)) -> 0 | N56: =IF($A56="",0,SUMIF(勘定入力!$D:$D,6&$A56,勘定入力!$J:$J)) -> 0 | O56: =IF($A56="",0,SUMIF(勘定入力!$D:$D,6&$A56,勘定入力!$K:$K)) -> 0 | P56: =IF($A56="",0,SUMIF(勘定入力!$D:$D,7&$A56,勘定入力!$J:$J)) -> 0 | Q56: =IF($A56="",0,SUMIF(勘定入力!$D:$D,7&$A56,勘定入力!$K:$K)) -> 0 | R56: =IF($A56="",0,SUMIF(勘定入力!$D:$D,8&$A56,勘定入力!$J:$J)) -> 0 | S56: =IF($A56="",0,SUMIF(勘定入力!$D:$D,8&$A56,勘定入力!$K:$K)) -> 0 | T56: =IF($A56="",0,SUMIF(勘定入力!$D:$D,9&$A56,勘定入力!$J:$J)) -> 0 | U56: =IF($A56="",0,SUMIF(勘定入力!$D:$D,9&$A56,勘定入力!$K:$K)) -> 0 | V56: =IF($A56="",0,SUMIF(勘定入力!$D:$D,10&$A56,勘定入力!$J:$J)) -> 0 | W56: =IF($A56="",0,SUMIF(勘定入力!$D:$D,10&$A56,勘定入力!$K:$K)) -> 0 | X56: =IF($A56="",0,SUMIF(勘定入力!$D:$D,11&$A56,勘定入力!$J:$J)) -> 0 | Y56: =IF($A56="",0,SUMIF(勘定入力!$D:$D,11&$A56,勘定入力!$K:$K)) -> 0 | Z56: =IF($A56="",0,SUMIF(勘定入力!$D:$D,12&$A56,勘定入力!$J:$J)) -> 0 | AA56: =IF($A56="",0,SUMIF(勘定入力!$D:$D,12&$A56,勘定入力!$K:$K)) -> 0
A57: =入力補助!C53 -> 0 | B57: 0 | C57: 0 | D57: =IF($A57="",0,SUMIF(勘定入力!$D:$D,1&$A57,勘定入力!$J:$J)) -> 0 | E57: =IF($A57="",0,SUMIF(勘定入力!$D:$D,1&$A57,勘定入力!$K:$K)) -> 0 | F57: =IF($A57="",0,SUMIF(勘定入力!$D:$D,2&$A57,勘定入力!$J:$J)) -> 0 | G57: =IF($A57="",0,SUMIF(勘定入力!$D:$D,2&$A57,勘定入力!$K:$K)) -> 0 | H57: =IF($A57="",0,SUMIF(勘定入力!$D:$D,3&$A57,勘定入力!$J:$J)) -> 0 | I57: =IF($A57="",0,SUMIF(勘定入力!$D:$D,3&$A57,勘定入力!$K:$K)) -> 0 | J57: =IF($A57="",0,SUMIF(勘定入力!$D:$D,4&$A57,勘定入力!$J:$J)) -> 0 | K57: =IF($A57="",0,SUMIF(勘定入力!$D:$D,4&$A57,勘定入力!$K:$K)) -> 0 | L57: =IF($A57="",0,SUMIF(勘定入力!$D:$D,5&$A57,勘定入力!$J:$J)) -> 0 | M57: =IF($A57="",0,SUMIF(勘定入力!$D:$D,5&$A57,勘定入力!$K:$K)) -> 0 | N57: =IF($A57="",0,SUMIF(勘定入力!$D:$D,6&$A57,勘定入力!$J:$J)) -> 0 | O57: =IF($A57="",0,SUMIF(勘定入力!$D:$D,6&$A57,勘定入力!$K:$K)) -> 0 | P57: =IF($A57="",0,SUMIF(勘定入力!$D:$D,7&$A57,勘定入力!$J:$J)) -> 0 | Q57: =IF($A57="",0,SUMIF(勘定入力!$D:$D,7&$A57,勘定入力!$K:$K)) -> 0 | R57: =IF($A57="",0,SUMIF(勘定入力!$D:$D,8&$A57,勘定入力!$J:$J)) -> 0 | S57: =IF($A57="",0,SUMIF(勘定入力!$D:$D,8&$A57,勘定入力!$K:$K)) -> 0 | T57: =IF($A57="",0,SUMIF(勘定入力!$D:$D,9&$A57,勘定入力!$J:$J)) -> 0 | U57: =IF($A57="",0,SUMIF(勘定入力!$D:$D,9&$A57,勘定入力!$K:$K)) -> 0 | V57: =IF($A57="",0,SUMIF(勘定入力!$D:$D,10&$A57,勘定入力!$J:$J)) -> 0 | W57: =IF($A57="",0,SUMIF(勘定入力!$D:$D,10&$A57,勘定入力!$K:$K)) -> 0 | X57: =IF($A57="",0,SUMIF(勘定入力!$D:$D,11&$A57,勘定入力!$J:$J)) -> 0 | Y57: =IF($A57="",0,SUMIF(勘定入力!$D:$D,11&$A57,勘定入力!$K:$K)) -> 0 | Z57: =IF($A57="",0,SUMIF(勘定入力!$D:$D,12&$A57,勘定入力!$J:$J)) -> 0 | AA57: =IF($A57="",0,SUMIF(勘定入力!$D:$D,12&$A57,勘定入力!$K:$K)) -> 0
A58: =入力補助!C54 -> 0 | B58: 0 | C58: 0 | D58: =IF($A58="",0,SUMIF(勘定入力!$D:$D,1&$A58,勘定入力!$J:$J)) -> 0 | E58: =IF($A58="",0,SUMIF(勘定入力!$D:$D,1&$A58,勘定入力!$K:$K)) -> 0 | F58: =IF($A58="",0,SUMIF(勘定入力!$D:$D,2&$A58,勘定入力!$J:$J)) -> 0 | G58: =IF($A58="",0,SUMIF(勘定入力!$D:$D,2&$A58,勘定入力!$K:$K)) -> 0 | H58: =IF($A58="",0,SUMIF(勘定入力!$D:$D,3&$A58,勘定入力!$J:$J)) -> 0 | I58: =IF($A58="",0,SUMIF(勘定入力!$D:$D,3&$A58,勘定入力!$K:$K)) -> 0 | J58: =IF($A58="",0,SUMIF(勘定入力!$D:$D,4&$A58,勘定入力!$J:$J)) -> 0 | K58: =IF($A58="",0,SUMIF(勘定入力!$D:$D,4&$A58,勘定入力!$K:$K)) -> 0 | L58: =IF($A58="",0,SUMIF(勘定入力!$D:$D,5&$A58,勘定入力!$J:$J)) -> 0 | M58: =IF($A58="",0,SUMIF(勘定入力!$D:$D,5&$A58,勘定入力!$K:$K)) -> 0 | N58: =IF($A58="",0,SUMIF(勘定入力!$D:$D,6&$A58,勘定入力!$J:$J)) -> 0 | O58: =IF($A58="",0,SUMIF(勘定入力!$D:$D,6&$A58,勘定入力!$K:$K)) -> 0 | P58: =IF($A58="",0,SUMIF(勘定入力!$D:$D,7&$A58,勘定入力!$J:$J)) -> 0 | Q58: =IF($A58="",0,SUMIF(勘定入力!$D:$D,7&$A58,勘定入力!$K:$K)) -> 0 | R58: =IF($A58="",0,SUMIF(勘定入力!$D:$D,8&$A58,勘定入力!$J:$J)) -> 0 | S58: =IF($A58="",0,SUMIF(勘定入力!$D:$D,8&$A58,勘定入力!$K:$K)) -> 0 | T58: =IF($A58="",0,SUMIF(勘定入力!$D:$D,9&$A58,勘定入力!$J:$J)) -> 0 | U58: =IF($A58="",0,SUMIF(勘定入力!$D:$D,9&$A58,勘定入力!$K:$K)) -> 0 | V58: =IF($A58="",0,SUMIF(勘定入力!$D:$D,10&$A58,勘定入力!$J:$J)) -> 0 | W58: =IF($A58="",0,SUMIF(勘定入力!$D:$D,10&$A58,勘定入力!$K:$K)) -> 0 | X58: =IF($A58="",0,SUMIF(勘定入力!$D:$D,11&$A58,勘定入力!$J:$J)) -> 0 | Y58: =IF($A58="",0,SUMIF(勘定入力!$D:$D,11&$A58,勘定入力!$K:$K)) -> 0 | Z58: =IF($A58="",0,SUMIF(勘定入力!$D:$D,12&$A58,勘定入力!$J:$J)) -> 0 | AA58: =IF($A58="",0,SUMIF(勘定入力!$D:$D,12&$A58,勘定入力!$K:$K)) -> 0
A59: =入力補助!C55 -> 0 | B59: 0 | C59: 0 | D59: =IF($A59="",0,SUMIF(勘定入力!$D:$D,1&$A59,勘定入力!$J:$J)) -> 0 | E59: =IF($A59="",0,SUMIF(勘定入力!$D:$D,1&$A59,勘定入力!$K:$K)) -> 0 | F59: =IF($A59="",0,SUMIF(勘定入力!$D:$D,2&$A59,勘定入力!$J:$J)) -> 0 | G59: =IF($A59="",0,SUMIF(勘定入力!$D:$D,2&$A59,勘定入力!$K:$K)) -> 0 | H59: =IF($A59="",0,SUMIF(勘定入力!$D:$D,3&$A59,勘定入力!$J:$J)) -> 0 | I59: =IF($A59="",0,SUMIF(勘定入力!$D:$D,3&$A59,勘定入力!$K:$K)) -> 0 | J59: =IF($A59="",0,SUMIF(勘定入力!$D:$D,4&$A59,勘定入力!$J:$J)) -> 0 | K59: =IF($A59="",0,SUMIF(勘定入力!$D:$D,4&$A59,勘定入力!$K:$K)) -> 0 | L59: =IF($A59="",0,SUMIF(勘定入力!$D:$D,5&$A59,勘定入力!$J:$J)) -> 0 | M59: =IF($A59="",0,SUMIF(勘定入力!$D:$D,5&$A59,勘定入力!$K:$K)) -> 0 | N59: =IF($A59="",0,SUMIF(勘定入力!$D:$D,6&$A59,勘定入力!$J:$J)) -> 0 | O59: =IF($A59="",0,SUMIF(勘定入力!$D:$D,6&$A59,勘定入力!$K:$K)) -> 0 | P59: =IF($A59="",0,SUMIF(勘定入力!$D:$D,7&$A59,勘定入力!$J:$J)) -> 0 | Q59: =IF($A59="",0,SUMIF(勘定入力!$D:$D,7&$A59,勘定入力!$K:$K)) -> 0 | R59: =IF($A59="",0,SUMIF(勘定入力!$D:$D,8&$A59,勘定入力!$J:$J)) -> 0 | S59: =IF($A59="",0,SUMIF(勘定入力!$D:$D,8&$A59,勘定入力!$K:$K)) -> 0 | T59: =IF($A59="",0,SUMIF(勘定入力!$D:$D,9&$A59,勘定入力!$J:$J)) -> 0 | U59: =IF($A59="",0,SUMIF(勘定入力!$D:$D,9&$A59,勘定入力!$K:$K)) -> 0 | V59: =IF($A59="",0,SUMIF(勘定入力!$D:$D,10&$A59,勘定入力!$J:$J)) -> 0 | W59: =IF($A59="",0,SUMIF(勘定入力!$D:$D,10&$A59,勘定入力!$K:$K)) -> 0 | X59: =IF($A59="",0,SUMIF(勘定入力!$D:$D,11&$A59,勘定入力!$J:$J)) -> 0 | Y59: =IF($A59="",0,SUMIF(勘定入力!$D:$D,11&$A59,勘定入力!$K:$K)) -> 0 | Z59: =IF($A59="",0,SUMIF(勘定入力!$D:$D,12&$A59,勘定入力!$J:$J)) -> 0 | AA59: =IF($A59="",0,SUMIF(勘定入力!$D:$D,12&$A59,勘定入力!$K:$K)) -> 0
A60: =入力補助!C56 -> 0 | B60: 0 | C60: 0 | D60: =IF($A60="",0,SUMIF(勘定入力!$D:$D,1&$A60,勘定入力!$J:$J)) -> 0 | E60: =IF($A60="",0,SUMIF(勘定入力!$D:$D,1&$A60,勘定入力!$K:$K)) -> 0 | F60: =IF($A60="",0,SUMIF(勘定入力!$D:$D,2&$A60,勘定入力!$J:$J)) -> 0 | G60: =IF($A60="",0,SUMIF(勘定入力!$D:$D,2&$A60,勘定入力!$K:$K)) -> 0 | H60: =IF($A60="",0,SUMIF(勘定入力!$D:$D,3&$A60,勘定入力!$J:$J)) -> 0 | I60: =IF($A60="",0,SUMIF(勘定入力!$D:$D,3&$A60,勘定入力!$K:$K)) -> 0 | J60: =IF($A60="",0,SUMIF(勘定入力!$D:$D,4&$A60,勘定入力!$J:$J)) -> 0 | K60: =IF($A60="",0,SUMIF(勘定入力!$D:$D,4&$A60,勘定入力!$K:$K)) -> 0 | L60: =IF($A60="",0,SUMIF(勘定入力!$D:$D,5&$A60,勘定入力!$J:$J)) -> 0 | M60: =IF($A60="",0,SUMIF(勘定入力!$D:$D,5&$A60,勘定入力!$K:$K)) -> 0 | N60: =IF($A60="",0,SUMIF(勘定入力!$D:$D,6&$A60,勘定入力!$J:$J)) -> 0 | O60: =IF($A60="",0,SUMIF(勘定入力!$D:$D,6&$A60,勘定入力!$K:$K)) -> 0 | P60: =IF($A60="",0,SUMIF(勘定入力!$D:$D,7&$A60,勘定入力!$J:$J)) -> 0 | Q60: =IF($A60="",0,SUMIF(勘定入力!$D:$D,7&$A60,勘定入力!$K:$K)) -> 0 | R60: =IF($A60="",0,SUMIF(勘定入力!$D:$D,8&$A60,勘定入力!$J:$J)) -> 0 | S60: =IF($A60="",0,SUMIF(勘定入力!$D:$D,8&$A60,勘定入力!$K:$K)) -> 0 | T60: =IF($A60="",0,SUMIF(勘定入力!$D:$D,9&$A60,勘定入力!$J:$J)) -> 0 | U60: =IF($A60="",0,SUMIF(勘定入力!$D:$D,9&$A60,勘定入力!$K:$K)) -> 0 | V60: =IF($A60="",0,SUMIF(勘定入力!$D:$D,10&$A60,勘定入力!$J:$J)) -> 0 | W60: =IF($A60="",0,SUMIF(勘定入力!$D:$D,10&$A60,勘定入力!$K:$K)) -> 0 | X60: =IF($A60="",0,SUMIF(勘定入力!$D:$D,11&$A60,勘定入力!$J:$J)) -> 0 | Y60: =IF($A60="",0,SUMIF(勘定入力!$D:$D,11&$A60,勘定入力!$K:$K)) -> 0 | Z60: =IF($A60="",0,SUMIF(勘定入力!$D:$D,12&$A60,勘定入力!$J:$J)) -> 0 | AA60: =IF($A60="",0,SUMIF(勘定入力!$D:$D,12&$A60,勘定入力!$K:$K)) -> 0
A61: =入力補助!C57 -> 0 | B61: 0 | C61: 0 | D61: =IF($A61="",0,SUMIF(勘定入力!$D:$D,1&$A61,勘定入力!$J:$J)) -> 0 | E61: =IF($A61="",0,SUMIF(勘定入力!$D:$D,1&$A61,勘定入力!$K:$K)) -> 0 | F61: =IF($A61="",0,SUMIF(勘定入力!$D:$D,2&$A61,勘定入力!$J:$J)) -> 0 | G61: =IF($A61="",0,SUMIF(勘定入力!$D:$D,2&$A61,勘定入力!$K:$K)) -> 0 | H61: =IF($A61="",0,SUMIF(勘定入力!$D:$D,3&$A61,勘定入力!$J:$J)) -> 0 | I61: =IF($A61="",0,SUMIF(勘定入力!$D:$D,3&$A61,勘定入力!$K:$K)) -> 0 | J61: =IF($A61="",0,SUMIF(勘定入力!$D:$D,4&$A61,勘定入力!$J:$J)) -> 0 | K61: =IF($A61="",0,SUMIF(勘定入力!$D:$D,4&$A61,勘定入力!$K:$K)) -> 0 | L61: =IF($A61="",0,SUMIF(勘定入力!$D:$D,5&$A61,勘定入力!$J:$J)) -> 0 | M61: =IF($A61="",0,SUMIF(勘定入力!$D:$D,5&$A61,勘定入力!$K:$K)) -> 0 | N61: =IF($A61="",0,SUMIF(勘定入力!$D:$D,6&$A61,勘定入力!$J:$J)) -> 0 | O61: =IF($A61="",0,SUMIF(勘定入力!$D:$D,6&$A61,勘定入力!$K:$K)) -> 0 | P61: =IF($A61="",0,SUMIF(勘定入力!$D:$D,7&$A61,勘定入力!$J:$J)) -> 0 | Q61: =IF($A61="",0,SUMIF(勘定入力!$D:$D,7&$A61,勘定入力!$K:$K)) -> 0 | R61: =IF($A61="",0,SUMIF(勘定入力!$D:$D,8&$A61,勘定入力!$J:$J)) -> 0 | S61: =IF($A61="",0,SUMIF(勘定入力!$D:$D,8&$A61,勘定入力!$K:$K)) -> 0 | T61: =IF($A61="",0,SUMIF(勘定入力!$D:$D,9&$A61,勘定入力!$J:$J)) -> 0 | U61: =IF($A61="",0,SUMIF(勘定入力!$D:$D,9&$A61,勘定入力!$K:$K)) -> 0 | V61: =IF($A61="",0,SUMIF(勘定入力!$D:$D,10&$A61,勘定入力!$J:$J)) -> 0 | W61: =IF($A61="",0,SUMIF(勘定入力!$D:$D,10&$A61,勘定入力!$K:$K)) -> 0 | X61: =IF($A61="",0,SUMIF(勘定入力!$D:$D,11&$A61,勘定入力!$J:$J)) -> 0 | Y61: =IF($A61="",0,SUMIF(勘定入力!$D:$D,11&$A61,勘定入力!$K:$K)) -> 0 | Z61: =IF($A61="",0,SUMIF(勘定入力!$D:$D,12&$A61,勘定入力!$J:$J)) -> 0 | AA61: =IF($A61="",0,SUMIF(勘定入力!$D:$D,12&$A61,勘定入力!$K:$K)) -> 0
A62: 合計 | B62: =SUM(B7:B61) -> 40500 | C62: 35200 | D62: 10000 | E62: 1100 | F62: 5000 | G62: 1100 | H62: 5000 | I62: 2100 | J62: 0 | K62: 3100 | L62: 0 | M62: 4100 | N62: 200 | O62: 3100 | P62: 0 | Q62: 6100 | R62: 5000 | S62: 4100 | T62: 5300 | U62: 4100 | V62: 0 | W62: 4100 | X62: 5000 | Y62: 1100 | Z62: 5000 | AA62: 1100
A64: =勘定入力!M3 -> 施工先 | B64: 年間合計 | D64: １月 | F64: ２月 | H64: ３月 | J64: ４月 | L64: ５月 | N64: ６月 | P64: ７月 | R64: ８月 | T64: ９月 | V64: １０月 | X64: １１月 | Z64: １２月
A65: =IF(B3=B121,"","入力確認要") ->  | B65: 入金 | C65: 支払 | D65: 入金 | E65: 支払 | F65: 入金 | G65: 支払 | H65: 入金 | I65: 支払 | J65: 入金 | K65: 支払 | L65: 入金 | M65: 支払 | N65: 入金 | O65: 支払 | P65: 入金 | Q65: 支払 | R65: 入金 | S65: 支払 | T65: 入金 | U65: 支払 | V65: 入金 | W65: 支払 | X65: 入金 | Y65: 支払 | Z65: 入金 | AA65: 支払
A66: =入力補助!J3 -> ○○会社 | B66: =D66+F66+H66+J66+L66+N66+P66+R66+T66+V66+X66+Z66 -> 0 | C66: =E66+G66+I66+K66+M66+O66+Q66+S66+U66+W66+Y66+AA66 -> 1200 | D66: =IF($A66="",0,SUMIF(勘定入力!$E:$E,1&$A66,勘定入力!$J:$J)) -> 0 | E66: =IF($A66="",0,SUMIF(勘定入力!$E:$E,1&$A66,勘定入力!$K:$K)) -> 100 | F66: =IF($A66="",0,SUMIF(勘定入力!$E:$E,2&$A66,勘定入力!$J:$J)) -> 0 | G66: =IF($A66="",0,SUMIF(勘定入力!$E:$E,2&$A66,勘定入力!$K:$K)) -> 100 | H66: =IF($A66="",0,SUMIF(勘定入力!$E:$E,3&$A66,勘定入力!$J:$J)) -> 0 | I66: =IF($A66="",0,SUMIF(勘定入力!$E:$E,3&$A66,勘定入力!$K:$K)) -> 100 | J66: =IF($A66="",0,SUMIF(勘定入力!$E:$E,4&$A66,勘定入力!$J:$J)) -> 0 | K66: =IF($A66="",0,SUMIF(勘定入力!$E:$E,4&$A66,勘定入力!$K:$K)) -> 100 | L66: =IF($A66="",0,SUMIF(勘定入力!$E:$E,5&$A66,勘定入力!$J:$J)) -> 0 | M66: =IF($A66="",0,SUMIF(勘定入力!$E:$E,5&$A66,勘定入力!$K:$K)) -> 100 | N66: =IF($A66="",0,SUMIF(勘定入力!$E:$E,6&$A66,勘定入力!$J:$J)) -> 0 | O66: =IF($A66="",0,SUMIF(勘定入力!$E:$E,6&$A66,勘定入力!$K:$K)) -> 100 | P66: =IF($A66="",0,SUMIF(勘定入力!$E:$E,7&$A66,勘定入力!$J:$J)) -> 0 | Q66: =IF($A66="",0,SUMIF(勘定入力!$E:$E,7&$A66,勘定入力!$K:$K)) -> 100 | R66: =IF($A66="",0,SUMIF(勘定入力!$E:$E,8&$A66,勘定入力!$J:$J)) -> 0 | S66: =IF($A66="",0,SUMIF(勘定入力!$E:$E,8&$A66,勘定入力!$K:$K)) -> 100 | T66: =IF($A66="",0,SUMIF(勘定入力!$E:$E,9&$A66,勘定入力!$J:$J)) -> 0 | U66: =IF($A66="",0,SUMIF(勘定入力!$E:$E,9&$A66,勘定入力!$K:$K)) -> 100 | V66: =IF($A66="",0,SUMIF(勘定入力!$E:$E,10&$A66,勘定入力!$J:$J)) -> 0 | W66: =IF($A66="",0,SUMIF(勘定入力!$E:$E,10&$A66,勘定入力!$K:$K)) -> 100 | X66: =IF($A66="",0,SUMIF(勘定入力!$E:$E,11&$A66,勘定入力!$J:$J)) -> 0 | Y66: =IF($A66="",0,SUMIF(勘定入力!$E:$E,11&$A66,勘定入力!$K:$K)) -> 100 | Z66: =IF($A66="",0,SUMIF(勘定入力!$E:$E,12&$A66,勘定入力!$J:$J)) -> 0 | AA66: =IF($A66="",0,SUMIF(勘定入力!$E:$E,12&$A66,勘定入力!$K:$K)) -> 100
A67: =入力補助!J4 -> 従業員（固定費） | B67: =D67+F67+H67+J67+L67+N67+P67+R67+T67+V67+X67+Z67 -> 0 | C67: =E67+G67+I67+K67+M67+O67+Q67+S67+U67+W67+Y67+AA67 -> 12000 | D67: =IF($A67="",0,SUMIF(勘定入力!$E:$E,1&$A67,勘定入力!$J:$J)) -> 0 | E67: =IF($A67="",0,SUMIF(勘定入力!$E:$E,1&$A67,勘定入力!$K:$K)) -> 1000 | F67: =IF($A67="",0,SUMIF(勘定入力!$E:$E,2&$A67,勘定入力!$J:$J)) -> 0 | G67: =IF($A67="",0,SUMIF(勘定入力!$E:$E,2&$A67,勘定入力!$K:$K)) -> 1000 | H67: =IF($A67="",0,SUMIF(勘定入力!$E:$E,3&$A67,勘定入力!$J:$J)) -> 0 | I67: =IF($A67="",0,SUMIF(勘定入力!$E:$E,3&$A67,勘定入力!$K:$K)) -> 1000 | J67: =IF($A67="",0,SUMIF(勘定入力!$E:$E,4&$A67,勘定入力!$J:$J)) -> 0 | K67: =IF($A67="",0,SUMIF(勘定入力!$E:$E,4&$A67,勘定入力!$K:$K)) -> 1000 | L67: =IF($A67="",0,SUMIF(勘定入力!$E:$E,5&$A67,勘定入力!$J:$J)) -> 0 | M67: =IF($A67="",0,SUMIF(勘定入力!$E:$E,5&$A67,勘定入力!$K:$K)) -> 1000 | N67: =IF($A67="",0,SUMIF(勘定入力!$E:$E,6&$A67,勘定入力!$J:$J)) -> 0 | O67: =IF($A67="",0,SUMIF(勘定入力!$E:$E,6&$A67,勘定入力!$K:$K)) -> 1000 | P67: =IF($A67="",0,SUMIF(勘定入力!$E:$E,7&$A67,勘定入力!$J:$J)) -> 0 | Q67: =IF($A67="",0,SUMIF(勘定入力!$E:$E,7&$A67,勘定入力!$K:$K)) -> 1000 | R67: =IF($A67="",0,SUMIF(勘定入力!$E:$E,8&$A67,勘定入力!$J:$J)) -> 0 | S67: =IF($A67="",0,SUMIF(勘定入力!$E:$E,8&$A67,勘定入力!$K:$K)) -> 1000 | T67: =IF($A67="",0,SUMIF(勘定入力!$E:$E,9&$A67,勘定入力!$J:$J)) -> 0 | U67: =IF($A67="",0,SUMIF(勘定入力!$E:$E,9&$A67,勘定入力!$K:$K)) -> 1000 | V67: =IF($A67="",0,SUMIF(勘定入力!$E:$E,10&$A67,勘定入力!$J:$J)) -> 0 | W67: =IF($A67="",0,SUMIF(勘定入力!$E:$E,10&$A67,勘定入力!$K:$K)) -> 1000 | X67: =IF($A67="",0,SUMIF(勘定入力!$E:$E,11&$A67,勘定入力!$J:$J)) -> 0 | Y67: =IF($A67="",0,SUMIF(勘定入力!$E:$E,11&$A67,勘定入力!$K:$K)) -> 1000 | Z67: =IF($A67="",0,SUMIF(勘定入力!$E:$E,12&$A67,勘定入力!$J:$J)) -> 0 | AA67: =IF($A67="",0,SUMIF(勘定入力!$E:$E,12&$A67,勘定入力!$K:$K)) -> 1000
A68: =入力補助!J5 -> 一般ユーザ | B68: 500 | C68: 0 | D68: =IF($A68="",0,SUMIF(勘定入力!$E:$E,1&$A68,勘定入力!$J:$J)) -> 0 | E68: =IF($A68="",0,SUMIF(勘定入力!$E:$E,1&$A68,勘定入力!$K:$K)) -> 0 | F68: =IF($A68="",0,SUMIF(勘定入力!$E:$E,2&$A68,勘定入力!$J:$J)) -> 0 | G68: =IF($A68="",0,SUMIF(勘定入力!$E:$E,2&$A68,勘定入力!$K:$K)) -> 0 | H68: =IF($A68="",0,SUMIF(勘定入力!$E:$E,3&$A68,勘定入力!$J:$J)) -> 0 | I68: =IF($A68="",0,SUMIF(勘定入力!$E:$E,3&$A68,勘定入力!$K:$K)) -> 0 | J68: =IF($A68="",0,SUMIF(勘定入力!$E:$E,4&$A68,勘定入力!$J:$J)) -> 0 | K68: =IF($A68="",0,SUMIF(勘定入力!$E:$E,4&$A68,勘定入力!$K:$K)) -> 0 | L68: =IF($A68="",0,SUMIF(勘定入力!$E:$E,5&$A68,勘定入力!$J:$J)) -> 0 | M68: =IF($A68="",0,SUMIF(勘定入力!$E:$E,5&$A68,勘定入力!$K:$K)) -> 0 | N68: =IF($A68="",0,SUMIF(勘定入力!$E:$E,6&$A68,勘定入力!$J:$J)) -> 200 | O68: =IF($A68="",0,SUMIF(勘定入力!$E:$E,6&$A68,勘定入力!$K:$K)) -> 0 | P68: =IF($A68="",0,SUMIF(勘定入力!$E:$E,7&$A68,勘定入力!$J:$J)) -> 0 | Q68: =IF($A68="",0,SUMIF(勘定入力!$E:$E,7&$A68,勘定入力!$K:$K)) -> 0 | R68: =IF($A68="",0,SUMIF(勘定入力!$E:$E,8&$A68,勘定入力!$J:$J)) -> 0 | S68: =IF($A68="",0,SUMIF(勘定入力!$E:$E,8&$A68,勘定入力!$K:$K)) -> 0 | T68: =IF($A68="",0,SUMIF(勘定入力!$E:$E,9&$A68,勘定入力!$J:$J)) -> 300 | U68: =IF($A68="",0,SUMIF(勘定入力!$E:$E,9&$A68,勘定入力!$K:$K)) -> 0 | V68: =IF($A68="",0,SUMIF(勘定入力!$E:$E,10&$A68,勘定入力!$J:$J)) -> 0 | W68: =IF($A68="",0,SUMIF(勘定入力!$E:$E,10&$A68,勘定入力!$K:$K)) -> 0 | X68: =IF($A68="",0,SUMIF(勘定入力!$E:$E,11&$A68,勘定入力!$J:$J)) -> 0 | Y68: =IF($A68="",0,SUMIF(勘定入力!$E:$E,11&$A68,勘定入力!$K:$K)) -> 0 | Z68: =IF($A68="",0,SUMIF(勘定入力!$E:$E,12&$A68,勘定入力!$J:$J)) -> 0 | AA68: =IF($A68="",0,SUMIF(勘定入力!$E:$E,12&$A68,勘定入力!$K:$K)) -> 0
A69: =入力補助!J6 -> A1邸 | B69: 15000 | C69: 11000 | D69: =IF($A69="",0,SUMIF(勘定入力!$E:$E,1&$A69,勘定入力!$J:$J)) -> 0 | E69: =IF($A69="",0,SUMIF(勘定入力!$E:$E,1&$A69,勘定入力!$K:$K)) -> 0 | F69: =IF($A69="",0,SUMIF(勘定入力!$E:$E,2&$A69,勘定入力!$J:$J)) -> 5000 | G69: =IF($A69="",0,SUMIF(勘定入力!$E:$E,2&$A69,勘定入力!$K:$K)) -> 0 | H69: =IF($A69="",0,SUMIF(勘定入力!$E:$E,3&$A69,勘定入力!$J:$J)) -> 0 | I69: =IF($A69="",0,SUMIF(勘定入力!$E:$E,3&$A69,勘定入力!$K:$K)) -> 1000 | J69: =IF($A69="",0,SUMIF(勘定入力!$E:$E,4&$A69,勘定入力!$J:$J)) -> 0 | K69: =IF($A69="",0,SUMIF(勘定入力!$E:$E,4&$A69,勘定入力!$K:$K)) -> 2000 | L69: =IF($A69="",0,SUMIF(勘定入力!$E:$E,5&$A69,勘定入力!$J:$J)) -> 0 | M69: =IF($A69="",0,SUMIF(勘定入力!$E:$E,5&$A69,勘定入力!$K:$K)) -> 0 | N69: =IF($A69="",0,SUMIF(勘定入力!$E:$E,6&$A69,勘定入力!$J:$J)) -> 0 | O69: =IF($A69="",0,SUMIF(勘定入力!$E:$E,6&$A69,勘定入力!$K:$K)) -> 2000 | P69: =IF($A69="",0,SUMIF(勘定入力!$E:$E,7&$A69,勘定入力!$J:$J)) -> 0 | Q69: =IF($A69="",0,SUMIF(勘定入力!$E:$E,7&$A69,勘定入力!$K:$K)) -> 3000 | R69: =IF($A69="",0,SUMIF(勘定入力!$E:$E,8&$A69,勘定入力!$J:$J)) -> 5000 | S69: =IF($A69="",0,SUMIF(勘定入力!$E:$E,8&$A69,勘定入力!$K:$K)) -> 0 | T69: =IF($A69="",0,SUMIF(勘定入力!$E:$E,9&$A69,勘定入力!$J:$J)) -> 0 | U69: =IF($A69="",0,SUMIF(勘定入力!$E:$E,9&$A69,勘定入力!$K:$K)) -> 3000 | V69: =IF($A69="",0,SUMIF(勘定入力!$E:$E,10&$A69,勘定入力!$J:$J)) -> 0 | W69: =IF($A69="",0,SUMIF(勘定入力!$E:$E,10&$A69,勘定入力!$K:$K)) -> 0 | X69: =IF($A69="",0,SUMIF(勘定入力!$E:$E,11&$A69,勘定入力!$J:$J)) -> 5000 | Y69: =IF($A69="",0,SUMIF(勘定入力!$E:$E,11&$A69,勘定入力!$K:$K)) -> 0 | Z69: =IF($A69="",0,SUMIF(勘定入力!$E:$E,12&$A69,勘定入力!$J:$J)) -> 0 | AA69: =IF($A69="",0,SUMIF(勘定入力!$E:$E,12&$A69,勘定入力!$K:$K)) -> 0
A70: =入力補助!J7 -> A2邸 | B70: 15000 | C70: 11000 | D70: =IF($A70="",0,SUMIF(勘定入力!$E:$E,1&$A70,勘定入力!$J:$J)) -> 0 | E70: =IF($A70="",0,SUMIF(勘定入力!$E:$E,1&$A70,勘定入力!$K:$K)) -> 0 | F70: =IF($A70="",0,SUMIF(勘定入力!$E:$E,2&$A70,勘定入力!$J:$J)) -> 0 | G70: =IF($A70="",0,SUMIF(勘定入力!$E:$E,2&$A70,勘定入力!$K:$K)) -> 0 | H70: =IF($A70="",0,SUMIF(勘定入力!$E:$E,3&$A70,勘定入力!$J:$J)) -> 5000 | I70: =IF($A70="",0,SUMIF(勘定入力!$E:$E,3&$A70,勘定入力!$K:$K)) -> 0 | J70: =IF($A70="",0,SUMIF(勘定入力!$E:$E,4&$A70,勘定入力!$J:$J)) -> 0 | K70: =IF($A70="",0,SUMIF(勘定入力!$E:$E,4&$A70,勘定入力!$K:$K)) -> 0 | L70: =IF($A70="",0,SUMIF(勘定入力!$E:$E,5&$A70,勘定入力!$J:$J)) -> 0 | M70: =IF($A70="",0,SUMIF(勘定入力!$E:$E,5&$A70,勘定入力!$K:$K)) -> 3000 | N70: =IF($A70="",0,SUMIF(勘定入力!$E:$E,6&$A70,勘定入力!$J:$J)) -> 0 | O70: =IF($A70="",0,SUMIF(勘定入力!$E:$E,6&$A70,勘定入力!$K:$K)) -> 0 | P70: =IF($A70="",0,SUMIF(勘定入力!$E:$E,7&$A70,勘定入力!$J:$J)) -> 0 | Q70: =IF($A70="",0,SUMIF(勘定入力!$E:$E,7&$A70,勘定入力!$K:$K)) -> 2000 | R70: =IF($A70="",0,SUMIF(勘定入力!$E:$E,8&$A70,勘定入力!$J:$J)) -> 0 | S70: =IF($A70="",0,SUMIF(勘定入力!$E:$E,8&$A70,勘定入力!$K:$K)) -> 3000 | T70: =IF($A70="",0,SUMIF(勘定入力!$E:$E,9&$A70,勘定入力!$J:$J)) -> 5000 | U70: =IF($A70="",0,SUMIF(勘定入力!$E:$E,9&$A70,勘定入力!$K:$K)) -> 0 | V70: =IF($A70="",0,SUMIF(勘定入力!$E:$E,10&$A70,勘定入力!$J:$J)) -> 0 | W70: =IF($A70="",0,SUMIF(勘定入力!$E:$E,10&$A70,勘定入力!$K:$K)) -> 3000 | X70: =IF($A70="",0,SUMIF(勘定入力!$E:$E,11&$A70,勘定入力!$J:$J)) -> 0 | Y70: =IF($A70="",0,SUMIF(勘定入力!$E:$E,11&$A70,勘定入力!$K:$K)) -> 0 | Z70: =IF($A70="",0,SUMIF(勘定入力!$E:$E,12&$A70,勘定入力!$J:$J)) -> 5000 | AA70: =IF($A70="",0,SUMIF(勘定入力!$E:$E,12&$A70,勘定入力!$K:$K)) -> 0
A71: =入力補助!J8 -> A3邸 | B71: 0 | C71: 0 | D71: =IF($A71="",0,SUMIF(勘定入力!$E:$E,1&$A71,勘定入力!$J:$J)) -> 0 | E71: =IF($A71="",0,SUMIF(勘定入力!$E:$E,1&$A71,勘定入力!$K:$K)) -> 0 | F71: =IF($A71="",0,SUMIF(勘定入力!$E:$E,2&$A71,勘定入力!$J:$J)) -> 0 | G71: =IF($A71="",0,SUMIF(勘定入力!$E:$E,2&$A71,勘定入力!$K:$K)) -> 0 | H71: =IF($A71="",0,SUMIF(勘定入力!$E:$E,3&$A71,勘定入力!$J:$J)) -> 0 | I71: =IF($A71="",0,SUMIF(勘定入力!$E:$E,3&$A71,勘定入力!$K:$K)) -> 0 | J71: =IF($A71="",0,SUMIF(勘定入力!$E:$E,4&$A71,勘定入力!$J:$J)) -> 0 | K71: =IF($A71="",0,SUMIF(勘定入力!$E:$E,4&$A71,勘定入力!$K:$K)) -> 0 | L71: =IF($A71="",0,SUMIF(勘定入力!$E:$E,5&$A71,勘定入力!$J:$J)) -> 0 | M71: =IF($A71="",0,SUMIF(勘定入力!$E:$E,5&$A71,勘定入力!$K:$K)) -> 0 | N71: =IF($A71="",0,SUMIF(勘定入力!$E:$E,6&$A71,勘定入力!$J:$J)) -> 0 | O71: =IF($A71="",0,SUMIF(勘定入力!$E:$E,6&$A71,勘定入力!$K:$K)) -> 0 | P71: =IF($A71="",0,SUMIF(勘定入力!$E:$E,7&$A71,勘定入力!$J:$J)) -> 0 | Q71: =IF($A71="",0,SUMIF(勘定入力!$E:$E,7&$A71,勘定入力!$K:$K)) -> 0 | R71: =IF($A71="",0,SUMIF(勘定入力!$E:$E,8&$A71,勘定入力!$J:$J)) -> 0 | S71: =IF($A71="",0,SUMIF(勘定入力!$E:$E,8&$A71,勘定入力!$K:$K)) -> 0 | T71: =IF($A71="",0,SUMIF(勘定入力!$E:$E,9&$A71,勘定入力!$J:$J)) -> 0 | U71: =IF($A71="",0,SUMIF(勘定入力!$E:$E,9&$A71,勘定入力!$K:$K)) -> 0 | V71: =IF($A71="",0,SUMIF(勘定入力!$E:$E,10&$A71,勘定入力!$J:$J)) -> 0 | W71: =IF($A71="",0,SUMIF(勘定入力!$E:$E,10&$A71,勘定入力!$K:$K)) -> 0 | X71: =IF($A71="",0,SUMIF(勘定入力!$E:$E,11&$A71,勘定入力!$J:$J)) -> 0 | Y71: =IF($A71="",0,SUMIF(勘定入力!$E:$E,11&$A71,勘定入力!$K:$K)) -> 0 | Z71: =IF($A71="",0,SUMIF(勘定入力!$E:$E,12&$A71,勘定入力!$J:$J)) -> 0 | AA71: =IF($A71="",0,SUMIF(勘定入力!$E:$E,12&$A71,勘定入力!$K:$K)) -> 0
A72: =入力補助!J9 -> A4邸 | B72: 0 | C72: 0 | D72: =IF($A72="",0,SUMIF(勘定入力!$E:$E,1&$A72,勘定入力!$J:$J)) -> 0 | E72: =IF($A72="",0,SUMIF(勘定入力!$E:$E,1&$A72,勘定入力!$K:$K)) -> 0 | F72: =IF($A72="",0,SUMIF(勘定入力!$E:$E,2&$A72,勘定入力!$J:$J)) -> 0 | G72: =IF($A72="",0,SUMIF(勘定入力!$E:$E,2&$A72,勘定入力!$K:$K)) -> 0 | H72: =IF($A72="",0,SUMIF(勘定入力!$E:$E,3&$A72,勘定入力!$J:$J)) -> 0 | I72: =IF($A72="",0,SUMIF(勘定入力!$E:$E,3&$A72,勘定入力!$K:$K)) -> 0 | J72: =IF($A72="",0,SUMIF(勘定入力!$E:$E,4&$A72,勘定入力!$J:$J)) -> 0 | K72: =IF($A72="",0,SUMIF(勘定入力!$E:$E,4&$A72,勘定入力!$K:$K)) -> 0 | L72: =IF($A72="",0,SUMIF(勘定入力!$E:$E,5&$A72,勘定入力!$J:$J)) -> 0 | M72: =IF($A72="",0,SUMIF(勘定入力!$E:$E,5&$A72,勘定入力!$K:$K)) -> 0 | N72: =IF($A72="",0,SUMIF(勘定入力!$E:$E,6&$A72,勘定入力!$J:$J)) -> 0 | O72: =IF($A72="",0,SUMIF(勘定入力!$E:$E,6&$A72,勘定入力!$K:$K)) -> 0 | P72: =IF($A72="",0,SUMIF(勘定入力!$E:$E,7&$A72,勘定入力!$J:$J)) -> 0 | Q72: =IF($A72="",0,SUMIF(勘定入力!$E:$E,7&$A72,勘定入力!$K:$K)) -> 0 | R72: =IF($A72="",0,SUMIF(勘定入力!$E:$E,8&$A72,勘定入力!$J:$J)) -> 0 | S72: =IF($A72="",0,SUMIF(勘定入力!$E:$E,8&$A72,勘定入力!$K:$K)) -> 0 | T72: =IF($A72="",0,SUMIF(勘定入力!$E:$E,9&$A72,勘定入力!$J:$J)) -> 0 | U72: =IF($A72="",0,SUMIF(勘定入力!$E:$E,9&$A72,勘定入力!$K:$K)) -> 0 | V72: =IF($A72="",0,SUMIF(勘定入力!$E:$E,10&$A72,勘定入力!$J:$J)) -> 0 | W72: =IF($A72="",0,SUMIF(勘定入力!$E:$E,10&$A72,勘定入力!$K:$K)) -> 0 | X72: =IF($A72="",0,SUMIF(勘定入力!$E:$E,11&$A72,勘定入力!$J:$J)) -> 0 | Y72: =IF($A72="",0,SUMIF(勘定入力!$E:$E,11&$A72,勘定入力!$K:$K)) -> 0 | Z72: =IF($A72="",0,SUMIF(勘定入力!$E:$E,12&$A72,勘定入力!$J:$J)) -> 0 | AA72: =IF($A72="",0,SUMIF(勘定入力!$E:$E,12&$A72,勘定入力!$K:$K)) -> 0
A73: =入力補助!J10 -> A5邸 | B73: 0 | C73: 0 | D73: =IF($A73="",0,SUMIF(勘定入力!$E:$E,1&$A73,勘定入力!$J:$J)) -> 0 | E73: =IF($A73="",0,SUMIF(勘定入力!$E:$E,1&$A73,勘定入力!$K:$K)) -> 0 | F73: =IF($A73="",0,SUMIF(勘定入力!$E:$E,2&$A73,勘定入力!$J:$J)) -> 0 | G73: =IF($A73="",0,SUMIF(勘定入力!$E:$E,2&$A73,勘定入力!$K:$K)) -> 0 | H73: =IF($A73="",0,SUMIF(勘定入力!$E:$E,3&$A73,勘定入力!$J:$J)) -> 0 | I73: =IF($A73="",0,SUMIF(勘定入力!$E:$E,3&$A73,勘定入力!$K:$K)) -> 0 | J73: =IF($A73="",0,SUMIF(勘定入力!$E:$E,4&$A73,勘定入力!$J:$J)) -> 0 | K73: =IF($A73="",0,SUMIF(勘定入力!$E:$E,4&$A73,勘定入力!$K:$K)) -> 0 | L73: =IF($A73="",0,SUMIF(勘定入力!$E:$E,5&$A73,勘定入力!$J:$J)) -> 0 | M73: =IF($A73="",0,SUMIF(勘定入力!$E:$E,5&$A73,勘定入力!$K:$K)) -> 0 | N73: =IF($A73="",0,SUMIF(勘定入力!$E:$E,6&$A73,勘定入力!$J:$J)) -> 0 | O73: =IF($A73="",0,SUMIF(勘定入力!$E:$E,6&$A73,勘定入力!$K:$K)) -> 0 | P73: =IF($A73="",0,SUMIF(勘定入力!$E:$E,7&$A73,勘定入力!$J:$J)) -> 0 | Q73: =IF($A73="",0,SUMIF(勘定入力!$E:$E,7&$A73,勘定入力!$K:$K)) -> 0 | R73: =IF($A73="",0,SUMIF(勘定入力!$E:$E,8&$A73,勘定入力!$J:$J)) -> 0 | S73: =IF($A73="",0,SUMIF(勘定入力!$E:$E,8&$A73,勘定入力!$K:$K)) -> 0 | T73: =IF($A73="",0,SUMIF(勘定入力!$E:$E,9&$A73,勘定入力!$J:$J)) -> 0 | U73: =IF($A73="",0,SUMIF(勘定入力!$E:$E,9&$A73,勘定入力!$K:$K)) -> 0 | V73: =IF($A73="",0,SUMIF(勘定入力!$E:$E,10&$A73,勘定入力!$J:$J)) -> 0 | W73: =IF($A73="",0,SUMIF(勘定入力!$E:$E,10&$A73,勘定入力!$K:$K)) -> 0 | X73: =IF($A73="",0,SUMIF(勘定入力!$E:$E,11&$A73,勘定入力!$J:$J)) -> 0 | Y73: =IF($A73="",0,SUMIF(勘定入力!$E:$E,11&$A73,勘定入力!$K:$K)) -> 0 | Z73: =IF($A73="",0,SUMIF(勘定入力!$E:$E,12&$A73,勘定入力!$J:$J)) -> 0 | AA73: =IF($A73="",0,SUMIF(勘定入力!$E:$E,12&$A73,勘定入力!$K:$K)) -> 0
A74: =入力補助!J11 -> A6邸 | B74: 0 | C74: 0 | D74: =IF($A74="",0,SUMIF(勘定入力!$E:$E,1&$A74,勘定入力!$J:$J)) -> 0 | E74: =IF($A74="",0,SUMIF(勘定入力!$E:$E,1&$A74,勘定入力!$K:$K)) -> 0 | F74: =IF($A74="",0,SUMIF(勘定入力!$E:$E,2&$A74,勘定入力!$J:$J)) -> 0 | G74: =IF($A74="",0,SUMIF(勘定入力!$E:$E,2&$A74,勘定入力!$K:$K)) -> 0 | H74: =IF($A74="",0,SUMIF(勘定入力!$E:$E,3&$A74,勘定入力!$J:$J)) -> 0 | I74: =IF($A74="",0,SUMIF(勘定入力!$E:$E,3&$A74,勘定入力!$K:$K)) -> 0 | J74: =IF($A74="",0,SUMIF(勘定入力!$E:$E,4&$A74,勘定入力!$J:$J)) -> 0 | K74: =IF($A74="",0,SUMIF(勘定入力!$E:$E,4&$A74,勘定入力!$K:$K)) -> 0 | L74: =IF($A74="",0,SUMIF(勘定入力!$E:$E,5&$A74,勘定入力!$J:$J)) -> 0 | M74: =IF($A74="",0,SUMIF(勘定入力!$E:$E,5&$A74,勘定入力!$K:$K)) -> 0 | N74: =IF($A74="",0,SUMIF(勘定入力!$E:$E,6&$A74,勘定入力!$J:$J)) -> 0 | O74: =IF($A74="",0,SUMIF(勘定入力!$E:$E,6&$A74,勘定入力!$K:$K)) -> 0 | P74: =IF($A74="",0,SUMIF(勘定入力!$E:$E,7&$A74,勘定入力!$J:$J)) -> 0 | Q74: =IF($A74="",0,SUMIF(勘定入力!$E:$E,7&$A74,勘定入力!$K:$K)) -> 0 | R74: =IF($A74="",0,SUMIF(勘定入力!$E:$E,8&$A74,勘定入力!$J:$J)) -> 0 | S74: =IF($A74="",0,SUMIF(勘定入力!$E:$E,8&$A74,勘定入力!$K:$K)) -> 0 | T74: =IF($A74="",0,SUMIF(勘定入力!$E:$E,9&$A74,勘定入力!$J:$J)) -> 0 | U74: =IF($A74="",0,SUMIF(勘定入力!$E:$E,9&$A74,勘定入力!$K:$K)) -> 0 | V74: =IF($A74="",0,SUMIF(勘定入力!$E:$E,10&$A74,勘定入力!$J:$J)) -> 0 | W74: =IF($A74="",0,SUMIF(勘定入力!$E:$E,10&$A74,勘定入力!$K:$K)) -> 0 | X74: =IF($A74="",0,SUMIF(勘定入力!$E:$E,11&$A74,勘定入力!$J:$J)) -> 0 | Y74: =IF($A74="",0,SUMIF(勘定入力!$E:$E,11&$A74,勘定入力!$K:$K)) -> 0 | Z74: =IF($A74="",0,SUMIF(勘定入力!$E:$E,12&$A74,勘定入力!$J:$J)) -> 0 | AA74: =IF($A74="",0,SUMIF(勘定入力!$E:$E,12&$A74,勘定入力!$K:$K)) -> 0
A75: =入力補助!J12 -> A7邸 | B75: 0 | C75: 0 | D75: =IF($A75="",0,SUMIF(勘定入力!$E:$E,1&$A75,勘定入力!$J:$J)) -> 0 | E75: =IF($A75="",0,SUMIF(勘定入力!$E:$E,1&$A75,勘定入力!$K:$K)) -> 0 | F75: =IF($A75="",0,SUMIF(勘定入力!$E:$E,2&$A75,勘定入力!$J:$J)) -> 0 | G75: =IF($A75="",0,SUMIF(勘定入力!$E:$E,2&$A75,勘定入力!$K:$K)) -> 0 | H75: =IF($A75="",0,SUMIF(勘定入力!$E:$E,3&$A75,勘定入力!$J:$J)) -> 0 | I75: =IF($A75="",0,SUMIF(勘定入力!$E:$E,3&$A75,勘定入力!$K:$K)) -> 0 | J75: =IF($A75="",0,SUMIF(勘定入力!$E:$E,4&$A75,勘定入力!$J:$J)) -> 0 | K75: =IF($A75="",0,SUMIF(勘定入力!$E:$E,4&$A75,勘定入力!$K:$K)) -> 0 | L75: =IF($A75="",0,SUMIF(勘定入力!$E:$E,5&$A75,勘定入力!$J:$J)) -> 0 | M75: =IF($A75="",0,SUMIF(勘定入力!$E:$E,5&$A75,勘定入力!$K:$K)) -> 0 | N75: =IF($A75="",0,SUMIF(勘定入力!$E:$E,6&$A75,勘定入力!$J:$J)) -> 0 | O75: =IF($A75="",0,SUMIF(勘定入力!$E:$E,6&$A75,勘定入力!$K:$K)) -> 0 | P75: =IF($A75="",0,SUMIF(勘定入力!$E:$E,7&$A75,勘定入力!$J:$J)) -> 0 | Q75: =IF($A75="",0,SUMIF(勘定入力!$E:$E,7&$A75,勘定入力!$K:$K)) -> 0 | R75: =IF($A75="",0,SUMIF(勘定入力!$E:$E,8&$A75,勘定入力!$J:$J)) -> 0 | S75: =IF($A75="",0,SUMIF(勘定入力!$E:$E,8&$A75,勘定入力!$K:$K)) -> 0 | T75: =IF($A75="",0,SUMIF(勘定入力!$E:$E,9&$A75,勘定入力!$J:$J)) -> 0 | U75: =IF($A75="",0,SUMIF(勘定入力!$E:$E,9&$A75,勘定入力!$K:$K)) -> 0 | V75: =IF($A75="",0,SUMIF(勘定入力!$E:$E,10&$A75,勘定入力!$J:$J)) -> 0 | W75: =IF($A75="",0,SUMIF(勘定入力!$E:$E,10&$A75,勘定入力!$K:$K)) -> 0 | X75: =IF($A75="",0,SUMIF(勘定入力!$E:$E,11&$A75,勘定入力!$J:$J)) -> 0 | Y75: =IF($A75="",0,SUMIF(勘定入力!$E:$E,11&$A75,勘定入力!$K:$K)) -> 0 | Z75: =IF($A75="",0,SUMIF(勘定入力!$E:$E,12&$A75,勘定入力!$J:$J)) -> 0 | AA75: =IF($A75="",0,SUMIF(勘定入力!$E:$E,12&$A75,勘定入力!$K:$K)) -> 0
A76: =入力補助!J13 -> A8邸 | B76: 0 | C76: 0 | D76: =IF($A76="",0,SUMIF(勘定入力!$E:$E,1&$A76,勘定入力!$J:$J)) -> 0 | E76: =IF($A76="",0,SUMIF(勘定入力!$E:$E,1&$A76,勘定入力!$K:$K)) -> 0 | F76: =IF($A76="",0,SUMIF(勘定入力!$E:$E,2&$A76,勘定入力!$J:$J)) -> 0 | G76: =IF($A76="",0,SUMIF(勘定入力!$E:$E,2&$A76,勘定入力!$K:$K)) -> 0 | H76: =IF($A76="",0,SUMIF(勘定入力!$E:$E,3&$A76,勘定入力!$J:$J)) -> 0 | I76: =IF($A76="",0,SUMIF(勘定入力!$E:$E,3&$A76,勘定入力!$K:$K)) -> 0 | J76: =IF($A76="",0,SUMIF(勘定入力!$E:$E,4&$A76,勘定入力!$J:$J)) -> 0 | K76: =IF($A76="",0,SUMIF(勘定入力!$E:$E,4&$A76,勘定入力!$K:$K)) -> 0 | L76: =IF($A76="",0,SUMIF(勘定入力!$E:$E,5&$A76,勘定入力!$J:$J)) -> 0 | M76: =IF($A76="",0,SUMIF(勘定入力!$E:$E,5&$A76,勘定入力!$K:$K)) -> 0 | N76: =IF($A76="",0,SUMIF(勘定入力!$E:$E,6&$A76,勘定入力!$J:$J)) -> 0 | O76: =IF($A76="",0,SUMIF(勘定入力!$E:$E,6&$A76,勘定入力!$K:$K)) -> 0 | P76: =IF($A76="",0,SUMIF(勘定入力!$E:$E,7&$A76,勘定入力!$J:$J)) -> 0 | Q76: =IF($A76="",0,SUMIF(勘定入力!$E:$E,7&$A76,勘定入力!$K:$K)) -> 0 | R76: =IF($A76="",0,SUMIF(勘定入力!$E:$E,8&$A76,勘定入力!$J:$J)) -> 0 | S76: =IF($A76="",0,SUMIF(勘定入力!$E:$E,8&$A76,勘定入力!$K:$K)) -> 0 | T76: =IF($A76="",0,SUMIF(勘定入力!$E:$E,9&$A76,勘定入力!$J:$J)) -> 0 | U76: =IF($A76="",0,SUMIF(勘定入力!$E:$E,9&$A76,勘定入力!$K:$K)) -> 0 | V76: =IF($A76="",0,SUMIF(勘定入力!$E:$E,10&$A76,勘定入力!$J:$J)) -> 0 | W76: =IF($A76="",0,SUMIF(勘定入力!$E:$E,10&$A76,勘定入力!$K:$K)) -> 0 | X76: =IF($A76="",0,SUMIF(勘定入力!$E:$E,11&$A76,勘定入力!$J:$J)) -> 0 | Y76: =IF($A76="",0,SUMIF(勘定入力!$E:$E,11&$A76,勘定入力!$K:$K)) -> 0 | Z76: =IF($A76="",0,SUMIF(勘定入力!$E:$E,12&$A76,勘定入力!$J:$J)) -> 0 | AA76: =IF($A76="",0,SUMIF(勘定入力!$E:$E,12&$A76,勘定入力!$K:$K)) -> 0
A77: =入力補助!J14 -> A9邸 | B77: 0 | C77: 0 | D77: =IF($A77="",0,SUMIF(勘定入力!$E:$E,1&$A77,勘定入力!$J:$J)) -> 0 | E77: =IF($A77="",0,SUMIF(勘定入力!$E:$E,1&$A77,勘定入力!$K:$K)) -> 0 | F77: =IF($A77="",0,SUMIF(勘定入力!$E:$E,2&$A77,勘定入力!$J:$J)) -> 0 | G77: =IF($A77="",0,SUMIF(勘定入力!$E:$E,2&$A77,勘定入力!$K:$K)) -> 0 | H77: =IF($A77="",0,SUMIF(勘定入力!$E:$E,3&$A77,勘定入力!$J:$J)) -> 0 | I77: =IF($A77="",0,SUMIF(勘定入力!$E:$E,3&$A77,勘定入力!$K:$K)) -> 0 | J77: =IF($A77="",0,SUMIF(勘定入力!$E:$E,4&$A77,勘定入力!$J:$J)) -> 0 | K77: =IF($A77="",0,SUMIF(勘定入力!$E:$E,4&$A77,勘定入力!$K:$K)) -> 0 | L77: =IF($A77="",0,SUMIF(勘定入力!$E:$E,5&$A77,勘定入力!$J:$J)) -> 0 | M77: =IF($A77="",0,SUMIF(勘定入力!$E:$E,5&$A77,勘定入力!$K:$K)) -> 0 | N77: =IF($A77="",0,SUMIF(勘定入力!$E:$E,6&$A77,勘定入力!$J:$J)) -> 0 | O77: =IF($A77="",0,SUMIF(勘定入力!$E:$E,6&$A77,勘定入力!$K:$K)) -> 0 | P77: =IF($A77="",0,SUMIF(勘定入力!$E:$E,7&$A77,勘定入力!$J:$J)) -> 0 | Q77: =IF($A77="",0,SUMIF(勘定入力!$E:$E,7&$A77,勘定入力!$K:$K)) -> 0 | R77: =IF($A77="",0,SUMIF(勘定入力!$E:$E,8&$A77,勘定入力!$J:$J)) -> 0 | S77: =IF($A77="",0,SUMIF(勘定入力!$E:$E,8&$A77,勘定入力!$K:$K)) -> 0 | T77: =IF($A77="",0,SUMIF(勘定入力!$E:$E,9&$A77,勘定入力!$J:$J)) -> 0 | U77: =IF($A77="",0,SUMIF(勘定入力!$E:$E,9&$A77,勘定入力!$K:$K)) -> 0 | V77: =IF($A77="",0,SUMIF(勘定入力!$E:$E,10&$A77,勘定入力!$J:$J)) -> 0 | W77: =IF($A77="",0,SUMIF(勘定入力!$E:$E,10&$A77,勘定入力!$K:$K)) -> 0 | X77: =IF($A77="",0,SUMIF(勘定入力!$E:$E,11&$A77,勘定入力!$J:$J)) -> 0 | Y77: =IF($A77="",0,SUMIF(勘定入力!$E:$E,11&$A77,勘定入力!$K:$K)) -> 0 | Z77: =IF($A77="",0,SUMIF(勘定入力!$E:$E,12&$A77,勘定入力!$J:$J)) -> 0 | AA77: =IF($A77="",0,SUMIF(勘定入力!$E:$E,12&$A77,勘定入力!$K:$K)) -> 0
A78: =入力補助!J15 -> A10邸 | B78: 0 | C78: 0 | D78: =IF($A78="",0,SUMIF(勘定入力!$E:$E,1&$A78,勘定入力!$J:$J)) -> 0 | E78: =IF($A78="",0,SUMIF(勘定入力!$E:$E,1&$A78,勘定入力!$K:$K)) -> 0 | F78: =IF($A78="",0,SUMIF(勘定入力!$E:$E,2&$A78,勘定入力!$J:$J)) -> 0 | G78: =IF($A78="",0,SUMIF(勘定入力!$E:$E,2&$A78,勘定入力!$K:$K)) -> 0 | H78: =IF($A78="",0,SUMIF(勘定入力!$E:$E,3&$A78,勘定入力!$J:$J)) -> 0 | I78: =IF($A78="",0,SUMIF(勘定入力!$E:$E,3&$A78,勘定入力!$K:$K)) -> 0 | J78: =IF($A78="",0,SUMIF(勘定入力!$E:$E,4&$A78,勘定入力!$J:$J)) -> 0 | K78: =IF($A78="",0,SUMIF(勘定入力!$E:$E,4&$A78,勘定入力!$K:$K)) -> 0 | L78: =IF($A78="",0,SUMIF(勘定入力!$E:$E,5&$A78,勘定入力!$J:$J)) -> 0 | M78: =IF($A78="",0,SUMIF(勘定入力!$E:$E,5&$A78,勘定入力!$K:$K)) -> 0 | N78: =IF($A78="",0,SUMIF(勘定入力!$E:$E,6&$A78,勘定入力!$J:$J)) -> 0 | O78: =IF($A78="",0,SUMIF(勘定入力!$E:$E,6&$A78,勘定入力!$K:$K)) -> 0 | P78: =IF($A78="",0,SUMIF(勘定入力!$E:$E,7&$A78,勘定入力!$J:$J)) -> 0 | Q78: =IF($A78="",0,SUMIF(勘定入力!$E:$E,7&$A78,勘定入力!$K:$K)) -> 0 | R78: =IF($A78="",0,SUMIF(勘定入力!$E:$E,8&$A78,勘定入力!$J:$J)) -> 0 | S78: =IF($A78="",0,SUMIF(勘定入力!$E:$E,8&$A78,勘定入力!$K:$K)) -> 0 | T78: =IF($A78="",0,SUMIF(勘定入力!$E:$E,9&$A78,勘定入力!$J:$J)) -> 0 | U78: =IF($A78="",0,SUMIF(勘定入力!$E:$E,9&$A78,勘定入力!$K:$K)) -> 0 | V78: =IF($A78="",0,SUMIF(勘定入力!$E:$E,10&$A78,勘定入力!$J:$J)) -> 0 | W78: =IF($A78="",0,SUMIF(勘定入力!$E:$E,10&$A78,勘定入力!$K:$K)) -> 0 | X78: =IF($A78="",0,SUMIF(勘定入力!$E:$E,11&$A78,勘定入力!$J:$J)) -> 0 | Y78: =IF($A78="",0,SUMIF(勘定入力!$E:$E,11&$A78,勘定入力!$K:$K)) -> 0 | Z78: =IF($A78="",0,SUMIF(勘定入力!$E:$E,12&$A78,勘定入力!$J:$J)) -> 0 | AA78: =IF($A78="",0,SUMIF(勘定入力!$E:$E,12&$A78,勘定入力!$K:$K)) -> 0
A79: =入力補助!J16 -> A11邸 | B79: 0 | C79: 0 | D79: =IF($A79="",0,SUMIF(勘定入力!$E:$E,1&$A79,勘定入力!$J:$J)) -> 0 | E79: =IF($A79="",0,SUMIF(勘定入力!$E:$E,1&$A79,勘定入力!$K:$K)) -> 0 | F79: =IF($A79="",0,SUMIF(勘定入力!$E:$E,2&$A79,勘定入力!$J:$J)) -> 0 | G79: =IF($A79="",0,SUMIF(勘定入力!$E:$E,2&$A79,勘定入力!$K:$K)) -> 0 | H79: =IF($A79="",0,SUMIF(勘定入力!$E:$E,3&$A79,勘定入力!$J:$J)) -> 0 | I79: =IF($A79="",0,SUMIF(勘定入力!$E:$E,3&$A79,勘定入力!$K:$K)) -> 0 | J79: =IF($A79="",0,SUMIF(勘定入力!$E:$E,4&$A79,勘定入力!$J:$J)) -> 0 | K79: =IF($A79="",0,SUMIF(勘定入力!$E:$E,4&$A79,勘定入力!$K:$K)) -> 0 | L79: =IF($A79="",0,SUMIF(勘定入力!$E:$E,5&$A79,勘定入力!$J:$J)) -> 0 | M79: =IF($A79="",0,SUMIF(勘定入力!$E:$E,5&$A79,勘定入力!$K:$K)) -> 0 | N79: =IF($A79="",0,SUMIF(勘定入力!$E:$E,6&$A79,勘定入力!$J:$J)) -> 0 | O79: =IF($A79="",0,SUMIF(勘定入力!$E:$E,6&$A79,勘定入力!$K:$K)) -> 0 | P79: =IF($A79="",0,SUMIF(勘定入力!$E:$E,7&$A79,勘定入力!$J:$J)) -> 0 | Q79: =IF($A79="",0,SUMIF(勘定入力!$E:$E,7&$A79,勘定入力!$K:$K)) -> 0 | R79: =IF($A79="",0,SUMIF(勘定入力!$E:$E,8&$A79,勘定入力!$J:$J)) -> 0 | S79: =IF($A79="",0,SUMIF(勘定入力!$E:$E,8&$A79,勘定入力!$K:$K)) -> 0 | T79: =IF($A79="",0,SUMIF(勘定入力!$E:$E,9&$A79,勘定入力!$J:$J)) -> 0 | U79: =IF($A79="",0,SUMIF(勘定入力!$E:$E,9&$A79,勘定入力!$K:$K)) -> 0 | V79: =IF($A79="",0,SUMIF(勘定入力!$E:$E,10&$A79,勘定入力!$J:$J)) -> 0 | W79: =IF($A79="",0,SUMIF(勘定入力!$E:$E,10&$A79,勘定入力!$K:$K)) -> 0 | X79: =IF($A79="",0,SUMIF(勘定入力!$E:$E,11&$A79,勘定入力!$J:$J)) -> 0 | Y79: =IF($A79="",0,SUMIF(勘定入力!$E:$E,11&$A79,勘定入力!$K:$K)) -> 0 | Z79: =IF($A79="",0,SUMIF(勘定入力!$E:$E,12&$A79,勘定入力!$J:$J)) -> 0 | AA79: =IF($A79="",0,SUMIF(勘定入力!$E:$E,12&$A79,勘定入力!$K:$K)) -> 0
A80: =入力補助!J17 -> A12邸 | B80: 0 | C80: 0 | D80: =IF($A80="",0,SUMIF(勘定入力!$E:$E,1&$A80,勘定入力!$J:$J)) -> 0 | E80: =IF($A80="",0,SUMIF(勘定入力!$E:$E,1&$A80,勘定入力!$K:$K)) -> 0 | F80: =IF($A80="",0,SUMIF(勘定入力!$E:$E,2&$A80,勘定入力!$J:$J)) -> 0 | G80: =IF($A80="",0,SUMIF(勘定入力!$E:$E,2&$A80,勘定入力!$K:$K)) -> 0 | H80: =IF($A80="",0,SUMIF(勘定入力!$E:$E,3&$A80,勘定入力!$J:$J)) -> 0 | I80: =IF($A80="",0,SUMIF(勘定入力!$E:$E,3&$A80,勘定入力!$K:$K)) -> 0 | J80: =IF($A80="",0,SUMIF(勘定入力!$E:$E,4&$A80,勘定入力!$J:$J)) -> 0 | K80: =IF($A80="",0,SUMIF(勘定入力!$E:$E,4&$A80,勘定入力!$K:$K)) -> 0 | L80: =IF($A80="",0,SUMIF(勘定入力!$E:$E,5&$A80,勘定入力!$J:$J)) -> 0 | M80: =IF($A80="",0,SUMIF(勘定入力!$E:$E,5&$A80,勘定入力!$K:$K)) -> 0 | N80: =IF($A80="",0,SUMIF(勘定入力!$E:$E,6&$A80,勘定入力!$J:$J)) -> 0 | O80: =IF($A80="",0,SUMIF(勘定入力!$E:$E,6&$A80,勘定入力!$K:$K)) -> 0 | P80: =IF($A80="",0,SUMIF(勘定入力!$E:$E,7&$A80,勘定入力!$J:$J)) -> 0 | Q80: =IF($A80="",0,SUMIF(勘定入力!$E:$E,7&$A80,勘定入力!$K:$K)) -> 0 | R80: =IF($A80="",0,SUMIF(勘定入力!$E:$E,8&$A80,勘定入力!$J:$J)) -> 0 | S80: =IF($A80="",0,SUMIF(勘定入力!$E:$E,8&$A80,勘定入力!$K:$K)) -> 0 | T80: =IF($A80="",0,SUMIF(勘定入力!$E:$E,9&$A80,勘定入力!$J:$J)) -> 0 | U80: =IF($A80="",0,SUMIF(勘定入力!$E:$E,9&$A80,勘定入力!$K:$K)) -> 0 | V80: =IF($A80="",0,SUMIF(勘定入力!$E:$E,10&$A80,勘定入力!$J:$J)) -> 0 | W80: =IF($A80="",0,SUMIF(勘定入力!$E:$E,10&$A80,勘定入力!$K:$K)) -> 0 | X80: =IF($A80="",0,SUMIF(勘定入力!$E:$E,11&$A80,勘定入力!$J:$J)) -> 0 | Y80: =IF($A80="",0,SUMIF(勘定入力!$E:$E,11&$A80,勘定入力!$K:$K)) -> 0 | Z80: =IF($A80="",0,SUMIF(勘定入力!$E:$E,12&$A80,勘定入力!$J:$J)) -> 0 | AA80: =IF($A80="",0,SUMIF(勘定入力!$E:$E,12&$A80,勘定入力!$K:$K)) -> 0
A81: =入力補助!J18 -> A13邸 | B81: 0 | C81: 0 | D81: =IF($A81="",0,SUMIF(勘定入力!$E:$E,1&$A81,勘定入力!$J:$J)) -> 0 | E81: =IF($A81="",0,SUMIF(勘定入力!$E:$E,1&$A81,勘定入力!$K:$K)) -> 0 | F81: =IF($A81="",0,SUMIF(勘定入力!$E:$E,2&$A81,勘定入力!$J:$J)) -> 0 | G81: =IF($A81="",0,SUMIF(勘定入力!$E:$E,2&$A81,勘定入力!$K:$K)) -> 0 | H81: =IF($A81="",0,SUMIF(勘定入力!$E:$E,3&$A81,勘定入力!$J:$J)) -> 0 | I81: =IF($A81="",0,SUMIF(勘定入力!$E:$E,3&$A81,勘定入力!$K:$K)) -> 0 | J81: =IF($A81="",0,SUMIF(勘定入力!$E:$E,4&$A81,勘定入力!$J:$J)) -> 0 | K81: =IF($A81="",0,SUMIF(勘定入力!$E:$E,4&$A81,勘定入力!$K:$K)) -> 0 | L81: =IF($A81="",0,SUMIF(勘定入力!$E:$E,5&$A81,勘定入力!$J:$J)) -> 0 | M81: =IF($A81="",0,SUMIF(勘定入力!$E:$E,5&$A81,勘定入力!$K:$K)) -> 0 | N81: =IF($A81="",0,SUMIF(勘定入力!$E:$E,6&$A81,勘定入力!$J:$J)) -> 0 | O81: =IF($A81="",0,SUMIF(勘定入力!$E:$E,6&$A81,勘定入力!$K:$K)) -> 0 | P81: =IF($A81="",0,SUMIF(勘定入力!$E:$E,7&$A81,勘定入力!$J:$J)) -> 0 | Q81: =IF($A81="",0,SUMIF(勘定入力!$E:$E,7&$A81,勘定入力!$K:$K)) -> 0 | R81: =IF($A81="",0,SUMIF(勘定入力!$E:$E,8&$A81,勘定入力!$J:$J)) -> 0 | S81: =IF($A81="",0,SUMIF(勘定入力!$E:$E,8&$A81,勘定入力!$K:$K)) -> 0 | T81: =IF($A81="",0,SUMIF(勘定入力!$E:$E,9&$A81,勘定入力!$J:$J)) -> 0 | U81: =IF($A81="",0,SUMIF(勘定入力!$E:$E,9&$A81,勘定入力!$K:$K)) -> 0 | V81: =IF($A81="",0,SUMIF(勘定入力!$E:$E,10&$A81,勘定入力!$J:$J)) -> 0 | W81: =IF($A81="",0,SUMIF(勘定入力!$E:$E,10&$A81,勘定入力!$K:$K)) -> 0 | X81: =IF($A81="",0,SUMIF(勘定入力!$E:$E,11&$A81,勘定入力!$J:$J)) -> 0 | Y81: =IF($A81="",0,SUMIF(勘定入力!$E:$E,11&$A81,勘定入力!$K:$K)) -> 0 | Z81: =IF($A81="",0,SUMIF(勘定入力!$E:$E,12&$A81,勘定入力!$J:$J)) -> 0 | AA81: =IF($A81="",0,SUMIF(勘定入力!$E:$E,12&$A81,勘定入力!$K:$K)) -> 0
A82: =入力補助!J19 -> A14邸 | B82: 0 | C82: 0 | D82: =IF($A82="",0,SUMIF(勘定入力!$E:$E,1&$A82,勘定入力!$J:$J)) -> 0 | E82: =IF($A82="",0,SUMIF(勘定入力!$E:$E,1&$A82,勘定入力!$K:$K)) -> 0 | F82: =IF($A82="",0,SUMIF(勘定入力!$E:$E,2&$A82,勘定入力!$J:$J)) -> 0 | G82: =IF($A82="",0,SUMIF(勘定入力!$E:$E,2&$A82,勘定入力!$K:$K)) -> 0 | H82: =IF($A82="",0,SUMIF(勘定入力!$E:$E,3&$A82,勘定入力!$J:$J)) -> 0 | I82: =IF($A82="",0,SUMIF(勘定入力!$E:$E,3&$A82,勘定入力!$K:$K)) -> 0 | J82: =IF($A82="",0,SUMIF(勘定入力!$E:$E,4&$A82,勘定入力!$J:$J)) -> 0 | K82: =IF($A82="",0,SUMIF(勘定入力!$E:$E,4&$A82,勘定入力!$K:$K)) -> 0 | L82: =IF($A82="",0,SUMIF(勘定入力!$E:$E,5&$A82,勘定入力!$J:$J)) -> 0 | M82: =IF($A82="",0,SUMIF(勘定入力!$E:$E,5&$A82,勘定入力!$K:$K)) -> 0 | N82: =IF($A82="",0,SUMIF(勘定入力!$E:$E,6&$A82,勘定入力!$J:$J)) -> 0 | O82: =IF($A82="",0,SUMIF(勘定入力!$E:$E,6&$A82,勘定入力!$K:$K)) -> 0 | P82: =IF($A82="",0,SUMIF(勘定入力!$E:$E,7&$A82,勘定入力!$J:$J)) -> 0 | Q82: =IF($A82="",0,SUMIF(勘定入力!$E:$E,7&$A82,勘定入力!$K:$K)) -> 0 | R82: =IF($A82="",0,SUMIF(勘定入力!$E:$E,8&$A82,勘定入力!$J:$J)) -> 0 | S82: =IF($A82="",0,SUMIF(勘定入力!$E:$E,8&$A82,勘定入力!$K:$K)) -> 0 | T82: =IF($A82="",0,SUMIF(勘定入力!$E:$E,9&$A82,勘定入力!$J:$J)) -> 0 | U82: =IF($A82="",0,SUMIF(勘定入力!$E:$E,9&$A82,勘定入力!$K:$K)) -> 0 | V82: =IF($A82="",0,SUMIF(勘定入力!$E:$E,10&$A82,勘定入力!$J:$J)) -> 0 | W82: =IF($A82="",0,SUMIF(勘定入力!$E:$E,10&$A82,勘定入力!$K:$K)) -> 0 | X82: =IF($A82="",0,SUMIF(勘定入力!$E:$E,11&$A82,勘定入力!$J:$J)) -> 0 | Y82: =IF($A82="",0,SUMIF(勘定入力!$E:$E,11&$A82,勘定入力!$K:$K)) -> 0 | Z82: =IF($A82="",0,SUMIF(勘定入力!$E:$E,12&$A82,勘定入力!$J:$J)) -> 0 | AA82: =IF($A82="",0,SUMIF(勘定入力!$E:$E,12&$A82,勘定入力!$K:$K)) -> 0
A83: =入力補助!J20 -> A15邸 | B83: 0 | C83: 0 | D83: =IF($A83="",0,SUMIF(勘定入力!$E:$E,1&$A83,勘定入力!$J:$J)) -> 0 | E83: =IF($A83="",0,SUMIF(勘定入力!$E:$E,1&$A83,勘定入力!$K:$K)) -> 0 | F83: =IF($A83="",0,SUMIF(勘定入力!$E:$E,2&$A83,勘定入力!$J:$J)) -> 0 | G83: =IF($A83="",0,SUMIF(勘定入力!$E:$E,2&$A83,勘定入力!$K:$K)) -> 0 | H83: =IF($A83="",0,SUMIF(勘定入力!$E:$E,3&$A83,勘定入力!$J:$J)) -> 0 | I83: =IF($A83="",0,SUMIF(勘定入力!$E:$E,3&$A83,勘定入力!$K:$K)) -> 0 | J83: =IF($A83="",0,SUMIF(勘定入力!$E:$E,4&$A83,勘定入力!$J:$J)) -> 0 | K83: =IF($A83="",0,SUMIF(勘定入力!$E:$E,4&$A83,勘定入力!$K:$K)) -> 0 | L83: =IF($A83="",0,SUMIF(勘定入力!$E:$E,5&$A83,勘定入力!$J:$J)) -> 0 | M83: =IF($A83="",0,SUMIF(勘定入力!$E:$E,5&$A83,勘定入力!$K:$K)) -> 0 | N83: =IF($A83="",0,SUMIF(勘定入力!$E:$E,6&$A83,勘定入力!$J:$J)) -> 0 | O83: =IF($A83="",0,SUMIF(勘定入力!$E:$E,6&$A83,勘定入力!$K:$K)) -> 0 | P83: =IF($A83="",0,SUMIF(勘定入力!$E:$E,7&$A83,勘定入力!$J:$J)) -> 0 | Q83: =IF($A83="",0,SUMIF(勘定入力!$E:$E,7&$A83,勘定入力!$K:$K)) -> 0 | R83: =IF($A83="",0,SUMIF(勘定入力!$E:$E,8&$A83,勘定入力!$J:$J)) -> 0 | S83: =IF($A83="",0,SUMIF(勘定入力!$E:$E,8&$A83,勘定入力!$K:$K)) -> 0 | T83: =IF($A83="",0,SUMIF(勘定入力!$E:$E,9&$A83,勘定入力!$J:$J)) -> 0 | U83: =IF($A83="",0,SUMIF(勘定入力!$E:$E,9&$A83,勘定入力!$K:$K)) -> 0 | V83: =IF($A83="",0,SUMIF(勘定入力!$E:$E,10&$A83,勘定入力!$J:$J)) -> 0 | W83: =IF($A83="",0,SUMIF(勘定入力!$E:$E,10&$A83,勘定入力!$K:$K)) -> 0 | X83: =IF($A83="",0,SUMIF(勘定入力!$E:$E,11&$A83,勘定入力!$J:$J)) -> 0 | Y83: =IF($A83="",0,SUMIF(勘定入力!$E:$E,11&$A83,勘定入力!$K:$K)) -> 0 | Z83: =IF($A83="",0,SUMIF(勘定入力!$E:$E,12&$A83,勘定入力!$J:$J)) -> 0 | AA83: =IF($A83="",0,SUMIF(勘定入力!$E:$E,12&$A83,勘定入力!$K:$K)) -> 0
A84: =入力補助!J21 -> 0 | B84: 0 | C84: 0 | D84: =IF($A84="",0,SUMIF(勘定入力!$E:$E,1&$A84,勘定入力!$J:$J)) -> 0 | E84: =IF($A84="",0,SUMIF(勘定入力!$E:$E,1&$A84,勘定入力!$K:$K)) -> 0 | F84: =IF($A84="",0,SUMIF(勘定入力!$E:$E,2&$A84,勘定入力!$J:$J)) -> 0 | G84: =IF($A84="",0,SUMIF(勘定入力!$E:$E,2&$A84,勘定入力!$K:$K)) -> 0 | H84: =IF($A84="",0,SUMIF(勘定入力!$E:$E,3&$A84,勘定入力!$J:$J)) -> 0 | I84: =IF($A84="",0,SUMIF(勘定入力!$E:$E,3&$A84,勘定入力!$K:$K)) -> 0 | J84: =IF($A84="",0,SUMIF(勘定入力!$E:$E,4&$A84,勘定入力!$J:$J)) -> 0 | K84: =IF($A84="",0,SUMIF(勘定入力!$E:$E,4&$A84,勘定入力!$K:$K)) -> 0 | L84: =IF($A84="",0,SUMIF(勘定入力!$E:$E,5&$A84,勘定入力!$J:$J)) -> 0 | M84: =IF($A84="",0,SUMIF(勘定入力!$E:$E,5&$A84,勘定入力!$K:$K)) -> 0 | N84: =IF($A84="",0,SUMIF(勘定入力!$E:$E,6&$A84,勘定入力!$J:$J)) -> 0 | O84: =IF($A84="",0,SUMIF(勘定入力!$E:$E,6&$A84,勘定入力!$K:$K)) -> 0 | P84: =IF($A84="",0,SUMIF(勘定入力!$E:$E,7&$A84,勘定入力!$J:$J)) -> 0 | Q84: =IF($A84="",0,SUMIF(勘定入力!$E:$E,7&$A84,勘定入力!$K:$K)) -> 0 | R84: =IF($A84="",0,SUMIF(勘定入力!$E:$E,8&$A84,勘定入力!$J:$J)) -> 0 | S84: =IF($A84="",0,SUMIF(勘定入力!$E:$E,8&$A84,勘定入力!$K:$K)) -> 0 | T84: =IF($A84="",0,SUMIF(勘定入力!$E:$E,9&$A84,勘定入力!$J:$J)) -> 0 | U84: =IF($A84="",0,SUMIF(勘定入力!$E:$E,9&$A84,勘定入力!$K:$K)) -> 0 | V84: =IF($A84="",0,SUMIF(勘定入力!$E:$E,10&$A84,勘定入力!$J:$J)) -> 0 | W84: =IF($A84="",0,SUMIF(勘定入力!$E:$E,10&$A84,勘定入力!$K:$K)) -> 0 | X84: =IF($A84="",0,SUMIF(勘定入力!$E:$E,11&$A84,勘定入力!$J:$J)) -> 0 | Y84: =IF($A84="",0,SUMIF(勘定入力!$E:$E,11&$A84,勘定入力!$K:$K)) -> 0 | Z84: =IF($A84="",0,SUMIF(勘定入力!$E:$E,12&$A84,勘定入力!$J:$J)) -> 0 | AA84: =IF($A84="",0,SUMIF(勘定入力!$E:$E,12&$A84,勘定入力!$K:$K)) -> 0
A85: =入力補助!J22 -> 0 | B85: 0 | C85: 0 | D85: =IF($A85="",0,SUMIF(勘定入力!$E:$E,1&$A85,勘定入力!$J:$J)) -> 0 | E85: =IF($A85="",0,SUMIF(勘定入力!$E:$E,1&$A85,勘定入力!$K:$K)) -> 0 | F85: =IF($A85="",0,SUMIF(勘定入力!$E:$E,2&$A85,勘定入力!$J:$J)) -> 0 | G85: =IF($A85="",0,SUMIF(勘定入力!$E:$E,2&$A85,勘定入力!$K:$K)) -> 0 | H85: =IF($A85="",0,SUMIF(勘定入力!$E:$E,3&$A85,勘定入力!$J:$J)) -> 0 | I85: =IF($A85="",0,SUMIF(勘定入力!$E:$E,3&$A85,勘定入力!$K:$K)) -> 0 | J85: =IF($A85="",0,SUMIF(勘定入力!$E:$E,4&$A85,勘定入力!$J:$J)) -> 0 | K85: =IF($A85="",0,SUMIF(勘定入力!$E:$E,4&$A85,勘定入力!$K:$K)) -> 0 | L85: =IF($A85="",0,SUMIF(勘定入力!$E:$E,5&$A85,勘定入力!$J:$J)) -> 0 | M85: =IF($A85="",0,SUMIF(勘定入力!$E:$E,5&$A85,勘定入力!$K:$K)) -> 0 | N85: =IF($A85="",0,SUMIF(勘定入力!$E:$E,6&$A85,勘定入力!$J:$J)) -> 0 | O85: =IF($A85="",0,SUMIF(勘定入力!$E:$E,6&$A85,勘定入力!$K:$K)) -> 0 | P85: =IF($A85="",0,SUMIF(勘定入力!$E:$E,7&$A85,勘定入力!$J:$J)) -> 0 | Q85: =IF($A85="",0,SUMIF(勘定入力!$E:$E,7&$A85,勘定入力!$K:$K)) -> 0 | R85: =IF($A85="",0,SUMIF(勘定入力!$E:$E,8&$A85,勘定入力!$J:$J)) -> 0 | S85: =IF($A85="",0,SUMIF(勘定入力!$E:$E,8&$A85,勘定入力!$K:$K)) -> 0 | T85: =IF($A85="",0,SUMIF(勘定入力!$E:$E,9&$A85,勘定入力!$J:$J)) -> 0 | U85: =IF($A85="",0,SUMIF(勘定入力!$E:$E,9&$A85,勘定入力!$K:$K)) -> 0 | V85: =IF($A85="",0,SUMIF(勘定入力!$E:$E,10&$A85,勘定入力!$J:$J)) -> 0 | W85: =IF($A85="",0,SUMIF(勘定入力!$E:$E,10&$A85,勘定入力!$K:$K)) -> 0 | X85: =IF($A85="",0,SUMIF(勘定入力!$E:$E,11&$A85,勘定入力!$J:$J)) -> 0 | Y85: =IF($A85="",0,SUMIF(勘定入力!$E:$E,11&$A85,勘定入力!$K:$K)) -> 0 | Z85: =IF($A85="",0,SUMIF(勘定入力!$E:$E,12&$A85,勘定入力!$J:$J)) -> 0 | AA85: =IF($A85="",0,SUMIF(勘定入力!$E:$E,12&$A85,勘定入力!$K:$K)) -> 0
A86: =入力補助!J23 -> 0 | B86: 0 | C86: 0 | D86: =IF($A86="",0,SUMIF(勘定入力!$E:$E,1&$A86,勘定入力!$J:$J)) -> 0 | E86: =IF($A86="",0,SUMIF(勘定入力!$E:$E,1&$A86,勘定入力!$K:$K)) -> 0 | F86: =IF($A86="",0,SUMIF(勘定入力!$E:$E,2&$A86,勘定入力!$J:$J)) -> 0 | G86: =IF($A86="",0,SUMIF(勘定入力!$E:$E,2&$A86,勘定入力!$K:$K)) -> 0 | H86: =IF($A86="",0,SUMIF(勘定入力!$E:$E,3&$A86,勘定入力!$J:$J)) -> 0 | I86: =IF($A86="",0,SUMIF(勘定入力!$E:$E,3&$A86,勘定入力!$K:$K)) -> 0 | J86: =IF($A86="",0,SUMIF(勘定入力!$E:$E,4&$A86,勘定入力!$J:$J)) -> 0 | K86: =IF($A86="",0,SUMIF(勘定入力!$E:$E,4&$A86,勘定入力!$K:$K)) -> 0 | L86: =IF($A86="",0,SUMIF(勘定入力!$E:$E,5&$A86,勘定入力!$J:$J)) -> 0 | M86: =IF($A86="",0,SUMIF(勘定入力!$E:$E,5&$A86,勘定入力!$K:$K)) -> 0 | N86: =IF($A86="",0,SUMIF(勘定入力!$E:$E,6&$A86,勘定入力!$J:$J)) -> 0 | O86: =IF($A86="",0,SUMIF(勘定入力!$E:$E,6&$A86,勘定入力!$K:$K)) -> 0 | P86: =IF($A86="",0,SUMIF(勘定入力!$E:$E,7&$A86,勘定入力!$J:$J)) -> 0 | Q86: =IF($A86="",0,SUMIF(勘定入力!$E:$E,7&$A86,勘定入力!$K:$K)) -> 0 | R86: =IF($A86="",0,SUMIF(勘定入力!$E:$E,8&$A86,勘定入力!$J:$J)) -> 0 | S86: =IF($A86="",0,SUMIF(勘定入力!$E:$E,8&$A86,勘定入力!$K:$K)) -> 0 | T86: =IF($A86="",0,SUMIF(勘定入力!$E:$E,9&$A86,勘定入力!$J:$J)) -> 0 | U86: =IF($A86="",0,SUMIF(勘定入力!$E:$E,9&$A86,勘定入力!$K:$K)) -> 0 | V86: =IF($A86="",0,SUMIF(勘定入力!$E:$E,10&$A86,勘定入力!$J:$J)) -> 0 | W86: =IF($A86="",0,SUMIF(勘定入力!$E:$E,10&$A86,勘定入力!$K:$K)) -> 0 | X86: =IF($A86="",0,SUMIF(勘定入力!$E:$E,11&$A86,勘定入力!$J:$J)) -> 0 | Y86: =IF($A86="",0,SUMIF(勘定入力!$E:$E,11&$A86,勘定入力!$K:$K)) -> 0 | Z86: =IF($A86="",0,SUMIF(勘定入力!$E:$E,12&$A86,勘定入力!$J:$J)) -> 0 | AA86: =IF($A86="",0,SUMIF(勘定入力!$E:$E,12&$A86,勘定入力!$K:$K)) -> 0
A87: =入力補助!J24 -> 0 | B87: 0 | C87: 0 | D87: =IF($A87="",0,SUMIF(勘定入力!$E:$E,1&$A87,勘定入力!$J:$J)) -> 0 | E87: =IF($A87="",0,SUMIF(勘定入力!$E:$E,1&$A87,勘定入力!$K:$K)) -> 0 | F87: =IF($A87="",0,SUMIF(勘定入力!$E:$E,2&$A87,勘定入力!$J:$J)) -> 0 | G87: =IF($A87="",0,SUMIF(勘定入力!$E:$E,2&$A87,勘定入力!$K:$K)) -> 0 | H87: =IF($A87="",0,SUMIF(勘定入力!$E:$E,3&$A87,勘定入力!$J:$J)) -> 0 | I87: =IF($A87="",0,SUMIF(勘定入力!$E:$E,3&$A87,勘定入力!$K:$K)) -> 0 | J87: =IF($A87="",0,SUMIF(勘定入力!$E:$E,4&$A87,勘定入力!$J:$J)) -> 0 | K87: =IF($A87="",0,SUMIF(勘定入力!$E:$E,4&$A87,勘定入力!$K:$K)) -> 0 | L87: =IF($A87="",0,SUMIF(勘定入力!$E:$E,5&$A87,勘定入力!$J:$J)) -> 0 | M87: =IF($A87="",0,SUMIF(勘定入力!$E:$E,5&$A87,勘定入力!$K:$K)) -> 0 | N87: =IF($A87="",0,SUMIF(勘定入力!$E:$E,6&$A87,勘定入力!$J:$J)) -> 0 | O87: =IF($A87="",0,SUMIF(勘定入力!$E:$E,6&$A87,勘定入力!$K:$K)) -> 0 | P87: =IF($A87="",0,SUMIF(勘定入力!$E:$E,7&$A87,勘定入力!$J:$J)) -> 0 | Q87: =IF($A87="",0,SUMIF(勘定入力!$E:$E,7&$A87,勘定入力!$K:$K)) -> 0 | R87: =IF($A87="",0,SUMIF(勘定入力!$E:$E,8&$A87,勘定入力!$J:$J)) -> 0 | S87: =IF($A87="",0,SUMIF(勘定入力!$E:$E,8&$A87,勘定入力!$K:$K)) -> 0 | T87: =IF($A87="",0,SUMIF(勘定入力!$E:$E,9&$A87,勘定入力!$J:$J)) -> 0 | U87: =IF($A87="",0,SUMIF(勘定入力!$E:$E,9&$A87,勘定入力!$K:$K)) -> 0 | V87: =IF($A87="",0,SUMIF(勘定入力!$E:$E,10&$A87,勘定入力!$J:$J)) -> 0 | W87: =IF($A87="",0,SUMIF(勘定入力!$E:$E,10&$A87,勘定入力!$K:$K)) -> 0 | X87: =IF($A87="",0,SUMIF(勘定入力!$E:$E,11&$A87,勘定入力!$J:$J)) -> 0 | Y87: =IF($A87="",0,SUMIF(勘定入力!$E:$E,11&$A87,勘定入力!$K:$K)) -> 0 | Z87: =IF($A87="",0,SUMIF(勘定入力!$E:$E,12&$A87,勘定入力!$J:$J)) -> 0 | AA87: =IF($A87="",0,SUMIF(勘定入力!$E:$E,12&$A87,勘定入力!$K:$K)) -> 0
A88: =入力補助!J25 -> 0 | B88: 0 | C88: 0 | D88: =IF($A88="",0,SUMIF(勘定入力!$E:$E,1&$A88,勘定入力!$J:$J)) -> 0 | E88: =IF($A88="",0,SUMIF(勘定入力!$E:$E,1&$A88,勘定入力!$K:$K)) -> 0 | F88: =IF($A88="",0,SUMIF(勘定入力!$E:$E,2&$A88,勘定入力!$J:$J)) -> 0 | G88: =IF($A88="",0,SUMIF(勘定入力!$E:$E,2&$A88,勘定入力!$K:$K)) -> 0 | H88: =IF($A88="",0,SUMIF(勘定入力!$E:$E,3&$A88,勘定入力!$J:$J)) -> 0 | I88: =IF($A88="",0,SUMIF(勘定入力!$E:$E,3&$A88,勘定入力!$K:$K)) -> 0 | J88: =IF($A88="",0,SUMIF(勘定入力!$E:$E,4&$A88,勘定入力!$J:$J)) -> 0 | K88: =IF($A88="",0,SUMIF(勘定入力!$E:$E,4&$A88,勘定入力!$K:$K)) -> 0 | L88: =IF($A88="",0,SUMIF(勘定入力!$E:$E,5&$A88,勘定入力!$J:$J)) -> 0 | M88: =IF($A88="",0,SUMIF(勘定入力!$E:$E,5&$A88,勘定入力!$K:$K)) -> 0 | N88: =IF($A88="",0,SUMIF(勘定入力!$E:$E,6&$A88,勘定入力!$J:$J)) -> 0 | O88: =IF($A88="",0,SUMIF(勘定入力!$E:$E,6&$A88,勘定入力!$K:$K)) -> 0 | P88: =IF($A88="",0,SUMIF(勘定入力!$E:$E,7&$A88,勘定入力!$J:$J)) -> 0 | Q88: =IF($A88="",0,SUMIF(勘定入力!$E:$E,7&$A88,勘定入力!$K:$K)) -> 0 | R88: =IF($A88="",0,SUMIF(勘定入力!$E:$E,8&$A88,勘定入力!$J:$J)) -> 0 | S88: =IF($A88="",0,SUMIF(勘定入力!$E:$E,8&$A88,勘定入力!$K:$K)) -> 0 | T88: =IF($A88="",0,SUMIF(勘定入力!$E:$E,9&$A88,勘定入力!$J:$J)) -> 0 | U88: =IF($A88="",0,SUMIF(勘定入力!$E:$E,9&$A88,勘定入力!$K:$K)) -> 0 | V88: =IF($A88="",0,SUMIF(勘定入力!$E:$E,10&$A88,勘定入力!$J:$J)) -> 0 | W88: =IF($A88="",0,SUMIF(勘定入力!$E:$E,10&$A88,勘定入力!$K:$K)) -> 0 | X88: =IF($A88="",0,SUMIF(勘定入力!$E:$E,11&$A88,勘定入力!$J:$J)) -> 0 | Y88: =IF($A88="",0,SUMIF(勘定入力!$E:$E,11&$A88,勘定入力!$K:$K)) -> 0 | Z88: =IF($A88="",0,SUMIF(勘定入力!$E:$E,12&$A88,勘定入力!$J:$J)) -> 0 | AA88: =IF($A88="",0,SUMIF(勘定入力!$E:$E,12&$A88,勘定入力!$K:$K)) -> 0
A89: =入力補助!J26 -> 0 | B89: 0 | C89: 0 | D89: =IF($A89="",0,SUMIF(勘定入力!$E:$E,1&$A89,勘定入力!$J:$J)) -> 0 | E89: =IF($A89="",0,SUMIF(勘定入力!$E:$E,1&$A89,勘定入力!$K:$K)) -> 0 | F89: =IF($A89="",0,SUMIF(勘定入力!$E:$E,2&$A89,勘定入力!$J:$J)) -> 0 | G89: =IF($A89="",0,SUMIF(勘定入力!$E:$E,2&$A89,勘定入力!$K:$K)) -> 0 | H89: =IF($A89="",0,SUMIF(勘定入力!$E:$E,3&$A89,勘定入力!$J:$J)) -> 0 | I89: =IF($A89="",0,SUMIF(勘定入力!$E:$E,3&$A89,勘定入力!$K:$K)) -> 0 | J89: =IF($A89="",0,SUMIF(勘定入力!$E:$E,4&$A89,勘定入力!$J:$J)) -> 0 | K89: =IF($A89="",0,SUMIF(勘定入力!$E:$E,4&$A89,勘定入力!$K:$K)) -> 0 | L89: =IF($A89="",0,SUMIF(勘定入力!$E:$E,5&$A89,勘定入力!$J:$J)) -> 0 | M89: =IF($A89="",0,SUMIF(勘定入力!$E:$E,5&$A89,勘定入力!$K:$K)) -> 0 | N89: =IF($A89="",0,SUMIF(勘定入力!$E:$E,6&$A89,勘定入力!$J:$J)) -> 0 | O89: =IF($A89="",0,SUMIF(勘定入力!$E:$E,6&$A89,勘定入力!$K:$K)) -> 0 | P89: =IF($A89="",0,SUMIF(勘定入力!$E:$E,7&$A89,勘定入力!$J:$J)) -> 0 | Q89: =IF($A89="",0,SUMIF(勘定入力!$E:$E,7&$A89,勘定入力!$K:$K)) -> 0 | R89: =IF($A89="",0,SUMIF(勘定入力!$E:$E,8&$A89,勘定入力!$J:$J)) -> 0 | S89: =IF($A89="",0,SUMIF(勘定入力!$E:$E,8&$A89,勘定入力!$K:$K)) -> 0 | T89: =IF($A89="",0,SUMIF(勘定入力!$E:$E,9&$A89,勘定入力!$J:$J)) -> 0 | U89: =IF($A89="",0,SUMIF(勘定入力!$E:$E,9&$A89,勘定入力!$K:$K)) -> 0 | V89: =IF($A89="",0,SUMIF(勘定入力!$E:$E,10&$A89,勘定入力!$J:$J)) -> 0 | W89: =IF($A89="",0,SUMIF(勘定入力!$E:$E,10&$A89,勘定入力!$K:$K)) -> 0 | X89: =IF($A89="",0,SUMIF(勘定入力!$E:$E,11&$A89,勘定入力!$J:$J)) -> 0 | Y89: =IF($A89="",0,SUMIF(勘定入力!$E:$E,11&$A89,勘定入力!$K:$K)) -> 0 | Z89: =IF($A89="",0,SUMIF(勘定入力!$E:$E,12&$A89,勘定入力!$J:$J)) -> 0 | AA89: =IF($A89="",0,SUMIF(勘定入力!$E:$E,12&$A89,勘定入力!$K:$K)) -> 0
A90: =入力補助!J27 -> 0 | B90: 0 | C90: 0 | D90: =IF($A90="",0,SUMIF(勘定入力!$E:$E,1&$A90,勘定入力!$J:$J)) -> 0 | E90: =IF($A90="",0,SUMIF(勘定入力!$E:$E,1&$A90,勘定入力!$K:$K)) -> 0 | F90: =IF($A90="",0,SUMIF(勘定入力!$E:$E,2&$A90,勘定入力!$J:$J)) -> 0 | G90: =IF($A90="",0,SUMIF(勘定入力!$E:$E,2&$A90,勘定入力!$K:$K)) -> 0 | H90: =IF($A90="",0,SUMIF(勘定入力!$E:$E,3&$A90,勘定入力!$J:$J)) -> 0 | I90: =IF($A90="",0,SUMIF(勘定入力!$E:$E,3&$A90,勘定入力!$K:$K)) -> 0 | J90: =IF($A90="",0,SUMIF(勘定入力!$E:$E,4&$A90,勘定入力!$J:$J)) -> 0 | K90: =IF($A90="",0,SUMIF(勘定入力!$E:$E,4&$A90,勘定入力!$K:$K)) -> 0 | L90: =IF($A90="",0,SUMIF(勘定入力!$E:$E,5&$A90,勘定入力!$J:$J)) -> 0 | M90: =IF($A90="",0,SUMIF(勘定入力!$E:$E,5&$A90,勘定入力!$K:$K)) -> 0 | N90: =IF($A90="",0,SUMIF(勘定入力!$E:$E,6&$A90,勘定入力!$J:$J)) -> 0 | O90: =IF($A90="",0,SUMIF(勘定入力!$E:$E,6&$A90,勘定入力!$K:$K)) -> 0 | P90: =IF($A90="",0,SUMIF(勘定入力!$E:$E,7&$A90,勘定入力!$J:$J)) -> 0 | Q90: =IF($A90="",0,SUMIF(勘定入力!$E:$E,7&$A90,勘定入力!$K:$K)) -> 0 | R90: =IF($A90="",0,SUMIF(勘定入力!$E:$E,8&$A90,勘定入力!$J:$J)) -> 0 | S90: =IF($A90="",0,SUMIF(勘定入力!$E:$E,8&$A90,勘定入力!$K:$K)) -> 0 | T90: =IF($A90="",0,SUMIF(勘定入力!$E:$E,9&$A90,勘定入力!$J:$J)) -> 0 | U90: =IF($A90="",0,SUMIF(勘定入力!$E:$E,9&$A90,勘定入力!$K:$K)) -> 0 | V90: =IF($A90="",0,SUMIF(勘定入力!$E:$E,10&$A90,勘定入力!$J:$J)) -> 0 | W90: =IF($A90="",0,SUMIF(勘定入力!$E:$E,10&$A90,勘定入力!$K:$K)) -> 0 | X90: =IF($A90="",0,SUMIF(勘定入力!$E:$E,11&$A90,勘定入力!$J:$J)) -> 0 | Y90: =IF($A90="",0,SUMIF(勘定入力!$E:$E,11&$A90,勘定入力!$K:$K)) -> 0 | Z90: =IF($A90="",0,SUMIF(勘定入力!$E:$E,12&$A90,勘定入力!$J:$J)) -> 0 | AA90: =IF($A90="",0,SUMIF(勘定入力!$E:$E,12&$A90,勘定入力!$K:$K)) -> 0
A91: =入力補助!J28 -> 0 | B91: 0 | C91: 0 | D91: =IF($A91="",0,SUMIF(勘定入力!$E:$E,1&$A91,勘定入力!$J:$J)) -> 0 | E91: =IF($A91="",0,SUMIF(勘定入力!$E:$E,1&$A91,勘定入力!$K:$K)) -> 0 | F91: =IF($A91="",0,SUMIF(勘定入力!$E:$E,2&$A91,勘定入力!$J:$J)) -> 0 | G91: =IF($A91="",0,SUMIF(勘定入力!$E:$E,2&$A91,勘定入力!$K:$K)) -> 0 | H91: =IF($A91="",0,SUMIF(勘定入力!$E:$E,3&$A91,勘定入力!$J:$J)) -> 0 | I91: =IF($A91="",0,SUMIF(勘定入力!$E:$E,3&$A91,勘定入力!$K:$K)) -> 0 | J91: =IF($A91="",0,SUMIF(勘定入力!$E:$E,4&$A91,勘定入力!$J:$J)) -> 0 | K91: =IF($A91="",0,SUMIF(勘定入力!$E:$E,4&$A91,勘定入力!$K:$K)) -> 0 | L91: =IF($A91="",0,SUMIF(勘定入力!$E:$E,5&$A91,勘定入力!$J:$J)) -> 0 | M91: =IF($A91="",0,SUMIF(勘定入力!$E:$E,5&$A91,勘定入力!$K:$K)) -> 0 | N91: =IF($A91="",0,SUMIF(勘定入力!$E:$E,6&$A91,勘定入力!$J:$J)) -> 0 | O91: =IF($A91="",0,SUMIF(勘定入力!$E:$E,6&$A91,勘定入力!$K:$K)) -> 0 | P91: =IF($A91="",0,SUMIF(勘定入力!$E:$E,7&$A91,勘定入力!$J:$J)) -> 0 | Q91: =IF($A91="",0,SUMIF(勘定入力!$E:$E,7&$A91,勘定入力!$K:$K)) -> 0 | R91: =IF($A91="",0,SUMIF(勘定入力!$E:$E,8&$A91,勘定入力!$J:$J)) -> 0 | S91: =IF($A91="",0,SUMIF(勘定入力!$E:$E,8&$A91,勘定入力!$K:$K)) -> 0 | T91: =IF($A91="",0,SUMIF(勘定入力!$E:$E,9&$A91,勘定入力!$J:$J)) -> 0 | U91: =IF($A91="",0,SUMIF(勘定入力!$E:$E,9&$A91,勘定入力!$K:$K)) -> 0 | V91: =IF($A91="",0,SUMIF(勘定入力!$E:$E,10&$A91,勘定入力!$J:$J)) -> 0 | W91: =IF($A91="",0,SUMIF(勘定入力!$E:$E,10&$A91,勘定入力!$K:$K)) -> 0 | X91: =IF($A91="",0,SUMIF(勘定入力!$E:$E,11&$A91,勘定入力!$J:$J)) -> 0 | Y91: =IF($A91="",0,SUMIF(勘定入力!$E:$E,11&$A91,勘定入力!$K:$K)) -> 0 | Z91: =IF($A91="",0,SUMIF(勘定入力!$E:$E,12&$A91,勘定入力!$J:$J)) -> 0 | AA91: =IF($A91="",0,SUMIF(勘定入力!$E:$E,12&$A91,勘定入力!$K:$K)) -> 0
A92: =入力補助!J29 -> 0 | B92: 0 | C92: 0 | D92: =IF($A92="",0,SUMIF(勘定入力!$E:$E,1&$A92,勘定入力!$J:$J)) -> 0 | E92: =IF($A92="",0,SUMIF(勘定入力!$E:$E,1&$A92,勘定入力!$K:$K)) -> 0 | F92: =IF($A92="",0,SUMIF(勘定入力!$E:$E,2&$A92,勘定入力!$J:$J)) -> 0 | G92: =IF($A92="",0,SUMIF(勘定入力!$E:$E,2&$A92,勘定入力!$K:$K)) -> 0 | H92: =IF($A92="",0,SUMIF(勘定入力!$E:$E,3&$A92,勘定入力!$J:$J)) -> 0 | I92: =IF($A92="",0,SUMIF(勘定入力!$E:$E,3&$A92,勘定入力!$K:$K)) -> 0 | J92: =IF($A92="",0,SUMIF(勘定入力!$E:$E,4&$A92,勘定入力!$J:$J)) -> 0 | K92: =IF($A92="",0,SUMIF(勘定入力!$E:$E,4&$A92,勘定入力!$K:$K)) -> 0 | L92: =IF($A92="",0,SUMIF(勘定入力!$E:$E,5&$A92,勘定入力!$J:$J)) -> 0 | M92: =IF($A92="",0,SUMIF(勘定入力!$E:$E,5&$A92,勘定入力!$K:$K)) -> 0 | N92: =IF($A92="",0,SUMIF(勘定入力!$E:$E,6&$A92,勘定入力!$J:$J)) -> 0 | O92: =IF($A92="",0,SUMIF(勘定入力!$E:$E,6&$A92,勘定入力!$K:$K)) -> 0 | P92: =IF($A92="",0,SUMIF(勘定入力!$E:$E,7&$A92,勘定入力!$J:$J)) -> 0 | Q92: =IF($A92="",0,SUMIF(勘定入力!$E:$E,7&$A92,勘定入力!$K:$K)) -> 0 | R92: =IF($A92="",0,SUMIF(勘定入力!$E:$E,8&$A92,勘定入力!$J:$J)) -> 0 | S92: =IF($A92="",0,SUMIF(勘定入力!$E:$E,8&$A92,勘定入力!$K:$K)) -> 0 | T92: =IF($A92="",0,SUMIF(勘定入力!$E:$E,9&$A92,勘定入力!$J:$J)) -> 0 | U92: =IF($A92="",0,SUMIF(勘定入力!$E:$E,9&$A92,勘定入力!$K:$K)) -> 0 | V92: =IF($A92="",0,SUMIF(勘定入力!$E:$E,10&$A92,勘定入力!$J:$J)) -> 0 | W92: =IF($A92="",0,SUMIF(勘定入力!$E:$E,10&$A92,勘定入力!$K:$K)) -> 0 | X92: =IF($A92="",0,SUMIF(勘定入力!$E:$E,11&$A92,勘定入力!$J:$J)) -> 0 | Y92: =IF($A92="",0,SUMIF(勘定入力!$E:$E,11&$A92,勘定入力!$K:$K)) -> 0 | Z92: =IF($A92="",0,SUMIF(勘定入力!$E:$E,12&$A92,勘定入力!$J:$J)) -> 0 | AA92: =IF($A92="",0,SUMIF(勘定入力!$E:$E,12&$A92,勘定入力!$K:$K)) -> 0
A93: =入力補助!J30 -> 0 | B93: 0 | C93: 0 | D93: =IF($A93="",0,SUMIF(勘定入力!$E:$E,1&$A93,勘定入力!$J:$J)) -> 0 | E93: =IF($A93="",0,SUMIF(勘定入力!$E:$E,1&$A93,勘定入力!$K:$K)) -> 0 | F93: =IF($A93="",0,SUMIF(勘定入力!$E:$E,2&$A93,勘定入力!$J:$J)) -> 0 | G93: =IF($A93="",0,SUMIF(勘定入力!$E:$E,2&$A93,勘定入力!$K:$K)) -> 0 | H93: =IF($A93="",0,SUMIF(勘定入力!$E:$E,3&$A93,勘定入力!$J:$J)) -> 0 | I93: =IF($A93="",0,SUMIF(勘定入力!$E:$E,3&$A93,勘定入力!$K:$K)) -> 0 | J93: =IF($A93="",0,SUMIF(勘定入力!$E:$E,4&$A93,勘定入力!$J:$J)) -> 0 | K93: =IF($A93="",0,SUMIF(勘定入力!$E:$E,4&$A93,勘定入力!$K:$K)) -> 0 | L93: =IF($A93="",0,SUMIF(勘定入力!$E:$E,5&$A93,勘定入力!$J:$J)) -> 0 | M93: =IF($A93="",0,SUMIF(勘定入力!$E:$E,5&$A93,勘定入力!$K:$K)) -> 0 | N93: =IF($A93="",0,SUMIF(勘定入力!$E:$E,6&$A93,勘定入力!$J:$J)) -> 0 | O93: =IF($A93="",0,SUMIF(勘定入力!$E:$E,6&$A93,勘定入力!$K:$K)) -> 0 | P93: =IF($A93="",0,SUMIF(勘定入力!$E:$E,7&$A93,勘定入力!$J:$J)) -> 0 | Q93: =IF($A93="",0,SUMIF(勘定入力!$E:$E,7&$A93,勘定入力!$K:$K)) -> 0 | R93: =IF($A93="",0,SUMIF(勘定入力!$E:$E,8&$A93,勘定入力!$J:$J)) -> 0 | S93: =IF($A93="",0,SUMIF(勘定入力!$E:$E,8&$A93,勘定入力!$K:$K)) -> 0 | T93: =IF($A93="",0,SUMIF(勘定入力!$E:$E,9&$A93,勘定入力!$J:$J)) -> 0 | U93: =IF($A93="",0,SUMIF(勘定入力!$E:$E,9&$A93,勘定入力!$K:$K)) -> 0 | V93: =IF($A93="",0,SUMIF(勘定入力!$E:$E,10&$A93,勘定入力!$J:$J)) -> 0 | W93: =IF($A93="",0,SUMIF(勘定入力!$E:$E,10&$A93,勘定入力!$K:$K)) -> 0 | X93: =IF($A93="",0,SUMIF(勘定入力!$E:$E,11&$A93,勘定入力!$J:$J)) -> 0 | Y93: =IF($A93="",0,SUMIF(勘定入力!$E:$E,11&$A93,勘定入力!$K:$K)) -> 0 | Z93: =IF($A93="",0,SUMIF(勘定入力!$E:$E,12&$A93,勘定入力!$J:$J)) -> 0 | AA93: =IF($A93="",0,SUMIF(勘定入力!$E:$E,12&$A93,勘定入力!$K:$K)) -> 0
A94: =入力補助!J31 -> 0 | B94: 0 | C94: 0 | D94: =IF($A94="",0,SUMIF(勘定入力!$E:$E,1&$A94,勘定入力!$J:$J)) -> 0 | E94: =IF($A94="",0,SUMIF(勘定入力!$E:$E,1&$A94,勘定入力!$K:$K)) -> 0 | F94: =IF($A94="",0,SUMIF(勘定入力!$E:$E,2&$A94,勘定入力!$J:$J)) -> 0 | G94: =IF($A94="",0,SUMIF(勘定入力!$E:$E,2&$A94,勘定入力!$K:$K)) -> 0 | H94: =IF($A94="",0,SUMIF(勘定入力!$E:$E,3&$A94,勘定入力!$J:$J)) -> 0 | I94: =IF($A94="",0,SUMIF(勘定入力!$E:$E,3&$A94,勘定入力!$K:$K)) -> 0 | J94: =IF($A94="",0,SUMIF(勘定入力!$E:$E,4&$A94,勘定入力!$J:$J)) -> 0 | K94: =IF($A94="",0,SUMIF(勘定入力!$E:$E,4&$A94,勘定入力!$K:$K)) -> 0 | L94: =IF($A94="",0,SUMIF(勘定入力!$E:$E,5&$A94,勘定入力!$J:$J)) -> 0 | M94: =IF($A94="",0,SUMIF(勘定入力!$E:$E,5&$A94,勘定入力!$K:$K)) -> 0 | N94: =IF($A94="",0,SUMIF(勘定入力!$E:$E,6&$A94,勘定入力!$J:$J)) -> 0 | O94: =IF($A94="",0,SUMIF(勘定入力!$E:$E,6&$A94,勘定入力!$K:$K)) -> 0 | P94: =IF($A94="",0,SUMIF(勘定入力!$E:$E,7&$A94,勘定入力!$J:$J)) -> 0 | Q94: =IF($A94="",0,SUMIF(勘定入力!$E:$E,7&$A94,勘定入力!$K:$K)) -> 0 | R94: =IF($A94="",0,SUMIF(勘定入力!$E:$E,8&$A94,勘定入力!$J:$J)) -> 0 | S94: =IF($A94="",0,SUMIF(勘定入力!$E:$E,8&$A94,勘定入力!$K:$K)) -> 0 | T94: =IF($A94="",0,SUMIF(勘定入力!$E:$E,9&$A94,勘定入力!$J:$J)) -> 0 | U94: =IF($A94="",0,SUMIF(勘定入力!$E:$E,9&$A94,勘定入力!$K:$K)) -> 0 | V94: =IF($A94="",0,SUMIF(勘定入力!$E:$E,10&$A94,勘定入力!$J:$J)) -> 0 | W94: =IF($A94="",0,SUMIF(勘定入力!$E:$E,10&$A94,勘定入力!$K:$K)) -> 0 | X94: =IF($A94="",0,SUMIF(勘定入力!$E:$E,11&$A94,勘定入力!$J:$J)) -> 0 | Y94: =IF($A94="",0,SUMIF(勘定入力!$E:$E,11&$A94,勘定入力!$K:$K)) -> 0 | Z94: =IF($A94="",0,SUMIF(勘定入力!$E:$E,12&$A94,勘定入力!$J:$J)) -> 0 | AA94: =IF($A94="",0,SUMIF(勘定入力!$E:$E,12&$A94,勘定入力!$K:$K)) -> 0
A95: =入力補助!J32 -> 0 | B95: 0 | C95: 0 | D95: =IF($A95="",0,SUMIF(勘定入力!$E:$E,1&$A95,勘定入力!$J:$J)) -> 0 | E95: =IF($A95="",0,SUMIF(勘定入力!$E:$E,1&$A95,勘定入力!$K:$K)) -> 0 | F95: =IF($A95="",0,SUMIF(勘定入力!$E:$E,2&$A95,勘定入力!$J:$J)) -> 0 | G95: =IF($A95="",0,SUMIF(勘定入力!$E:$E,2&$A95,勘定入力!$K:$K)) -> 0 | H95: =IF($A95="",0,SUMIF(勘定入力!$E:$E,3&$A95,勘定入力!$J:$J)) -> 0 | I95: =IF($A95="",0,SUMIF(勘定入力!$E:$E,3&$A95,勘定入力!$K:$K)) -> 0 | J95: =IF($A95="",0,SUMIF(勘定入力!$E:$E,4&$A95,勘定入力!$J:$J)) -> 0 | K95: =IF($A95="",0,SUMIF(勘定入力!$E:$E,4&$A95,勘定入力!$K:$K)) -> 0 | L95: =IF($A95="",0,SUMIF(勘定入力!$E:$E,5&$A95,勘定入力!$J:$J)) -> 0 | M95: =IF($A95="",0,SUMIF(勘定入力!$E:$E,5&$A95,勘定入力!$K:$K)) -> 0 | N95: =IF($A95="",0,SUMIF(勘定入力!$E:$E,6&$A95,勘定入力!$J:$J)) -> 0 | O95: =IF($A95="",0,SUMIF(勘定入力!$E:$E,6&$A95,勘定入力!$K:$K)) -> 0 | P95: =IF($A95="",0,SUMIF(勘定入力!$E:$E,7&$A95,勘定入力!$J:$J)) -> 0 | Q95: =IF($A95="",0,SUMIF(勘定入力!$E:$E,7&$A95,勘定入力!$K:$K)) -> 0 | R95: =IF($A95="",0,SUMIF(勘定入力!$E:$E,8&$A95,勘定入力!$J:$J)) -> 0 | S95: =IF($A95="",0,SUMIF(勘定入力!$E:$E,8&$A95,勘定入力!$K:$K)) -> 0 | T95: =IF($A95="",0,SUMIF(勘定入力!$E:$E,9&$A95,勘定入力!$J:$J)) -> 0 | U95: =IF($A95="",0,SUMIF(勘定入力!$E:$E,9&$A95,勘定入力!$K:$K)) -> 0 | V95: =IF($A95="",0,SUMIF(勘定入力!$E:$E,10&$A95,勘定入力!$J:$J)) -> 0 | W95: =IF($A95="",0,SUMIF(勘定入力!$E:$E,10&$A95,勘定入力!$K:$K)) -> 0 | X95: =IF($A95="",0,SUMIF(勘定入力!$E:$E,11&$A95,勘定入力!$J:$J)) -> 0 | Y95: =IF($A95="",0,SUMIF(勘定入力!$E:$E,11&$A95,勘定入力!$K:$K)) -> 0 | Z95: =IF($A95="",0,SUMIF(勘定入力!$E:$E,12&$A95,勘定入力!$J:$J)) -> 0 | AA95: =IF($A95="",0,SUMIF(勘定入力!$E:$E,12&$A95,勘定入力!$K:$K)) -> 0
A96: =入力補助!J33 -> 0 | B96: 0 | C96: 0 | D96: =IF($A96="",0,SUMIF(勘定入力!$E:$E,1&$A96,勘定入力!$J:$J)) -> 0 | E96: =IF($A96="",0,SUMIF(勘定入力!$E:$E,1&$A96,勘定入力!$K:$K)) -> 0 | F96: =IF($A96="",0,SUMIF(勘定入力!$E:$E,2&$A96,勘定入力!$J:$J)) -> 0 | G96: =IF($A96="",0,SUMIF(勘定入力!$E:$E,2&$A96,勘定入力!$K:$K)) -> 0 | H96: =IF($A96="",0,SUMIF(勘定入力!$E:$E,3&$A96,勘定入力!$J:$J)) -> 0 | I96: =IF($A96="",0,SUMIF(勘定入力!$E:$E,3&$A96,勘定入力!$K:$K)) -> 0 | J96: =IF($A96="",0,SUMIF(勘定入力!$E:$E,4&$A96,勘定入力!$J:$J)) -> 0 | K96: =IF($A96="",0,SUMIF(勘定入力!$E:$E,4&$A96,勘定入力!$K:$K)) -> 0 | L96: =IF($A96="",0,SUMIF(勘定入力!$E:$E,5&$A96,勘定入力!$J:$J)) -> 0 | M96: =IF($A96="",0,SUMIF(勘定入力!$E:$E,5&$A96,勘定入力!$K:$K)) -> 0 | N96: =IF($A96="",0,SUMIF(勘定入力!$E:$E,6&$A96,勘定入力!$J:$J)) -> 0 | O96: =IF($A96="",0,SUMIF(勘定入力!$E:$E,6&$A96,勘定入力!$K:$K)) -> 0 | P96: =IF($A96="",0,SUMIF(勘定入力!$E:$E,7&$A96,勘定入力!$J:$J)) -> 0 | Q96: =IF($A96="",0,SUMIF(勘定入力!$E:$E,7&$A96,勘定入力!$K:$K)) -> 0 | R96: =IF($A96="",0,SUMIF(勘定入力!$E:$E,8&$A96,勘定入力!$J:$J)) -> 0 | S96: =IF($A96="",0,SUMIF(勘定入力!$E:$E,8&$A96,勘定入力!$K:$K)) -> 0 | T96: =IF($A96="",0,SUMIF(勘定入力!$E:$E,9&$A96,勘定入力!$J:$J)) -> 0 | U96: =IF($A96="",0,SUMIF(勘定入力!$E:$E,9&$A96,勘定入力!$K:$K)) -> 0 | V96: =IF($A96="",0,SUMIF(勘定入力!$E:$E,10&$A96,勘定入力!$J:$J)) -> 0 | W96: =IF($A96="",0,SUMIF(勘定入力!$E:$E,10&$A96,勘定入力!$K:$K)) -> 0 | X96: =IF($A96="",0,SUMIF(勘定入力!$E:$E,11&$A96,勘定入力!$J:$J)) -> 0 | Y96: =IF($A96="",0,SUMIF(勘定入力!$E:$E,11&$A96,勘定入力!$K:$K)) -> 0 | Z96: =IF($A96="",0,SUMIF(勘定入力!$E:$E,12&$A96,勘定入力!$J:$J)) -> 0 | AA96: =IF($A96="",0,SUMIF(勘定入力!$E:$E,12&$A96,勘定入力!$K:$K)) -> 0
A97: =入力補助!J34 -> 0 | B97: 0 | C97: 0 | D97: =IF($A97="",0,SUMIF(勘定入力!$E:$E,1&$A97,勘定入力!$J:$J)) -> 0 | E97: =IF($A97="",0,SUMIF(勘定入力!$E:$E,1&$A97,勘定入力!$K:$K)) -> 0 | F97: =IF($A97="",0,SUMIF(勘定入力!$E:$E,2&$A97,勘定入力!$J:$J)) -> 0 | G97: =IF($A97="",0,SUMIF(勘定入力!$E:$E,2&$A97,勘定入力!$K:$K)) -> 0 | H97: =IF($A97="",0,SUMIF(勘定入力!$E:$E,3&$A97,勘定入力!$J:$J)) -> 0 | I97: =IF($A97="",0,SUMIF(勘定入力!$E:$E,3&$A97,勘定入力!$K:$K)) -> 0 | J97: =IF($A97="",0,SUMIF(勘定入力!$E:$E,4&$A97,勘定入力!$J:$J)) -> 0 | K97: =IF($A97="",0,SUMIF(勘定入力!$E:$E,4&$A97,勘定入力!$K:$K)) -> 0 | L97: =IF($A97="",0,SUMIF(勘定入力!$E:$E,5&$A97,勘定入力!$J:$J)) -> 0 | M97: =IF($A97="",0,SUMIF(勘定入力!$E:$E,5&$A97,勘定入力!$K:$K)) -> 0 | N97: =IF($A97="",0,SUMIF(勘定入力!$E:$E,6&$A97,勘定入力!$J:$J)) -> 0 | O97: =IF($A97="",0,SUMIF(勘定入力!$E:$E,6&$A97,勘定入力!$K:$K)) -> 0 | P97: =IF($A97="",0,SUMIF(勘定入力!$E:$E,7&$A97,勘定入力!$J:$J)) -> 0 | Q97: =IF($A97="",0,SUMIF(勘定入力!$E:$E,7&$A97,勘定入力!$K:$K)) -> 0 | R97: =IF($A97="",0,SUMIF(勘定入力!$E:$E,8&$A97,勘定入力!$J:$J)) -> 0 | S97: =IF($A97="",0,SUMIF(勘定入力!$E:$E,8&$A97,勘定入力!$K:$K)) -> 0 | T97: =IF($A97="",0,SUMIF(勘定入力!$E:$E,9&$A97,勘定入力!$J:$J)) -> 0 | U97: =IF($A97="",0,SUMIF(勘定入力!$E:$E,9&$A97,勘定入力!$K:$K)) -> 0 | V97: =IF($A97="",0,SUMIF(勘定入力!$E:$E,10&$A97,勘定入力!$J:$J)) -> 0 | W97: =IF($A97="",0,SUMIF(勘定入力!$E:$E,10&$A97,勘定入力!$K:$K)) -> 0 | X97: =IF($A97="",0,SUMIF(勘定入力!$E:$E,11&$A97,勘定入力!$J:$J)) -> 0 | Y97: =IF($A97="",0,SUMIF(勘定入力!$E:$E,11&$A97,勘定入力!$K:$K)) -> 0 | Z97: =IF($A97="",0,SUMIF(勘定入力!$E:$E,12&$A97,勘定入力!$J:$J)) -> 0 | AA97: =IF($A97="",0,SUMIF(勘定入力!$E:$E,12&$A97,勘定入力!$K:$K)) -> 0
A98: =入力補助!J35 -> 0 | B98: 0 | C98: 0 | D98: =IF($A98="",0,SUMIF(勘定入力!$E:$E,1&$A98,勘定入力!$J:$J)) -> 0 | E98: =IF($A98="",0,SUMIF(勘定入力!$E:$E,1&$A98,勘定入力!$K:$K)) -> 0 | F98: =IF($A98="",0,SUMIF(勘定入力!$E:$E,2&$A98,勘定入力!$J:$J)) -> 0 | G98: =IF($A98="",0,SUMIF(勘定入力!$E:$E,2&$A98,勘定入力!$K:$K)) -> 0 | H98: =IF($A98="",0,SUMIF(勘定入力!$E:$E,3&$A98,勘定入力!$J:$J)) -> 0 | I98: =IF($A98="",0,SUMIF(勘定入力!$E:$E,3&$A98,勘定入力!$K:$K)) -> 0 | J98: =IF($A98="",0,SUMIF(勘定入力!$E:$E,4&$A98,勘定入力!$J:$J)) -> 0 | K98: =IF($A98="",0,SUMIF(勘定入力!$E:$E,4&$A98,勘定入力!$K:$K)) -> 0 | L98: =IF($A98="",0,SUMIF(勘定入力!$E:$E,5&$A98,勘定入力!$J:$J)) -> 0 | M98: =IF($A98="",0,SUMIF(勘定入力!$E:$E,5&$A98,勘定入力!$K:$K)) -> 0 | N98: =IF($A98="",0,SUMIF(勘定入力!$E:$E,6&$A98,勘定入力!$J:$J)) -> 0 | O98: =IF($A98="",0,SUMIF(勘定入力!$E:$E,6&$A98,勘定入力!$K:$K)) -> 0 | P98: =IF($A98="",0,SUMIF(勘定入力!$E:$E,7&$A98,勘定入力!$J:$J)) -> 0 | Q98: =IF($A98="",0,SUMIF(勘定入力!$E:$E,7&$A98,勘定入力!$K:$K)) -> 0 | R98: =IF($A98="",0,SUMIF(勘定入力!$E:$E,8&$A98,勘定入力!$J:$J)) -> 0 | S98: =IF($A98="",0,SUMIF(勘定入力!$E:$E,8&$A98,勘定入力!$K:$K)) -> 0 | T98: =IF($A98="",0,SUMIF(勘定入力!$E:$E,9&$A98,勘定入力!$J:$J)) -> 0 | U98: =IF($A98="",0,SUMIF(勘定入力!$E:$E,9&$A98,勘定入力!$K:$K)) -> 0 | V98: =IF($A98="",0,SUMIF(勘定入力!$E:$E,10&$A98,勘定入力!$J:$J)) -> 0 | W98: =IF($A98="",0,SUMIF(勘定入力!$E:$E,10&$A98,勘定入力!$K:$K)) -> 0 | X98: =IF($A98="",0,SUMIF(勘定入力!$E:$E,11&$A98,勘定入力!$J:$J)) -> 0 | Y98: =IF($A98="",0,SUMIF(勘定入力!$E:$E,11&$A98,勘定入力!$K:$K)) -> 0 | Z98: =IF($A98="",0,SUMIF(勘定入力!$E:$E,12&$A98,勘定入力!$J:$J)) -> 0 | AA98: =IF($A98="",0,SUMIF(勘定入力!$E:$E,12&$A98,勘定入力!$K:$K)) -> 0
A99: =入力補助!J36 -> 0 | B99: 0 | C99: 0 | D99: =IF($A99="",0,SUMIF(勘定入力!$E:$E,1&$A99,勘定入力!$J:$J)) -> 0 | E99: =IF($A99="",0,SUMIF(勘定入力!$E:$E,1&$A99,勘定入力!$K:$K)) -> 0 | F99: =IF($A99="",0,SUMIF(勘定入力!$E:$E,2&$A99,勘定入力!$J:$J)) -> 0 | G99: =IF($A99="",0,SUMIF(勘定入力!$E:$E,2&$A99,勘定入力!$K:$K)) -> 0 | H99: =IF($A99="",0,SUMIF(勘定入力!$E:$E,3&$A99,勘定入力!$J:$J)) -> 0 | I99: =IF($A99="",0,SUMIF(勘定入力!$E:$E,3&$A99,勘定入力!$K:$K)) -> 0 | J99: =IF($A99="",0,SUMIF(勘定入力!$E:$E,4&$A99,勘定入力!$J:$J)) -> 0 | K99: =IF($A99="",0,SUMIF(勘定入力!$E:$E,4&$A99,勘定入力!$K:$K)) -> 0 | L99: =IF($A99="",0,SUMIF(勘定入力!$E:$E,5&$A99,勘定入力!$J:$J)) -> 0 | M99: =IF($A99="",0,SUMIF(勘定入力!$E:$E,5&$A99,勘定入力!$K:$K)) -> 0 | N99: =IF($A99="",0,SUMIF(勘定入力!$E:$E,6&$A99,勘定入力!$J:$J)) -> 0 | O99: =IF($A99="",0,SUMIF(勘定入力!$E:$E,6&$A99,勘定入力!$K:$K)) -> 0 | P99: =IF($A99="",0,SUMIF(勘定入力!$E:$E,7&$A99,勘定入力!$J:$J)) -> 0 | Q99: =IF($A99="",0,SUMIF(勘定入力!$E:$E,7&$A99,勘定入力!$K:$K)) -> 0 | R99: =IF($A99="",0,SUMIF(勘定入力!$E:$E,8&$A99,勘定入力!$J:$J)) -> 0 | S99: =IF($A99="",0,SUMIF(勘定入力!$E:$E,8&$A99,勘定入力!$K:$K)) -> 0 | T99: =IF($A99="",0,SUMIF(勘定入力!$E:$E,9&$A99,勘定入力!$J:$J)) -> 0 | U99: =IF($A99="",0,SUMIF(勘定入力!$E:$E,9&$A99,勘定入力!$K:$K)) -> 0 | V99: =IF($A99="",0,SUMIF(勘定入力!$E:$E,10&$A99,勘定入力!$J:$J)) -> 0 | W99: =IF($A99="",0,SUMIF(勘定入力!$E:$E,10&$A99,勘定入力!$K:$K)) -> 0 | X99: =IF($A99="",0,SUMIF(勘定入力!$E:$E,11&$A99,勘定入力!$J:$J)) -> 0 | Y99: =IF($A99="",0,SUMIF(勘定入力!$E:$E,11&$A99,勘定入力!$K:$K)) -> 0 | Z99: =IF($A99="",0,SUMIF(勘定入力!$E:$E,12&$A99,勘定入力!$J:$J)) -> 0 | AA99: =IF($A99="",0,SUMIF(勘定入力!$E:$E,12&$A99,勘定入力!$K:$K)) -> 0
A100: =入力補助!J37 -> 0 | B100: 0 | C100: 0 | D100: =IF($A100="",0,SUMIF(勘定入力!$E:$E,1&$A100,勘定入力!$J:$J)) -> 0 | E100: =IF($A100="",0,SUMIF(勘定入力!$E:$E,1&$A100,勘定入力!$K:$K)) -> 0 | F100: =IF($A100="",0,SUMIF(勘定入力!$E:$E,2&$A100,勘定入力!$J:$J)) -> 0 | G100: =IF($A100="",0,SUMIF(勘定入力!$E:$E,2&$A100,勘定入力!$K:$K)) -> 0 | H100: =IF($A100="",0,SUMIF(勘定入力!$E:$E,3&$A100,勘定入力!$J:$J)) -> 0 | I100: =IF($A100="",0,SUMIF(勘定入力!$E:$E,3&$A100,勘定入力!$K:$K)) -> 0 | J100: =IF($A100="",0,SUMIF(勘定入力!$E:$E,4&$A100,勘定入力!$J:$J)) -> 0 | K100: =IF($A100="",0,SUMIF(勘定入力!$E:$E,4&$A100,勘定入力!$K:$K)) -> 0 | L100: =IF($A100="",0,SUMIF(勘定入力!$E:$E,5&$A100,勘定入力!$J:$J)) -> 0 | M100: =IF($A100="",0,SUMIF(勘定入力!$E:$E,5&$A100,勘定入力!$K:$K)) -> 0 | N100: =IF($A100="",0,SUMIF(勘定入力!$E:$E,6&$A100,勘定入力!$J:$J)) -> 0 | O100: =IF($A100="",0,SUMIF(勘定入力!$E:$E,6&$A100,勘定入力!$K:$K)) -> 0 | P100: =IF($A100="",0,SUMIF(勘定入力!$E:$E,7&$A100,勘定入力!$J:$J)) -> 0 | Q100: =IF($A100="",0,SUMIF(勘定入力!$E:$E,7&$A100,勘定入力!$K:$K)) -> 0 | R100: =IF($A100="",0,SUMIF(勘定入力!$E:$E,8&$A100,勘定入力!$J:$J)) -> 0 | S100: =IF($A100="",0,SUMIF(勘定入力!$E:$E,8&$A100,勘定入力!$K:$K)) -> 0 | T100: =IF($A100="",0,SUMIF(勘定入力!$E:$E,9&$A100,勘定入力!$J:$J)) -> 0 | U100: =IF($A100="",0,SUMIF(勘定入力!$E:$E,9&$A100,勘定入力!$K:$K)) -> 0 | V100: =IF($A100="",0,SUMIF(勘定入力!$E:$E,10&$A100,勘定入力!$J:$J)) -> 0 | W100: =IF($A100="",0,SUMIF(勘定入力!$E:$E,10&$A100,勘定入力!$K:$K)) -> 0 | X100: =IF($A100="",0,SUMIF(勘定入力!$E:$E,11&$A100,勘定入力!$J:$J)) -> 0 | Y100: =IF($A100="",0,SUMIF(勘定入力!$E:$E,11&$A100,勘定入力!$K:$K)) -> 0 | Z100: =IF($A100="",0,SUMIF(勘定入力!$E:$E,12&$A100,勘定入力!$J:$J)) -> 0 | AA100: =IF($A100="",0,SUMIF(勘定入力!$E:$E,12&$A100,勘定入力!$K:$K)) -> 0
A101: =入力補助!J38 -> 0 | B101: 0 | C101: 0 | D101: =IF($A101="",0,SUMIF(勘定入力!$E:$E,1&$A101,勘定入力!$J:$J)) -> 0 | E101: =IF($A101="",0,SUMIF(勘定入力!$E:$E,1&$A101,勘定入力!$K:$K)) -> 0 | F101: =IF($A101="",0,SUMIF(勘定入力!$E:$E,2&$A101,勘定入力!$J:$J)) -> 0 | G101: =IF($A101="",0,SUMIF(勘定入力!$E:$E,2&$A101,勘定入力!$K:$K)) -> 0 | H101: =IF($A101="",0,SUMIF(勘定入力!$E:$E,3&$A101,勘定入力!$J:$J)) -> 0 | I101: =IF($A101="",0,SUMIF(勘定入力!$E:$E,3&$A101,勘定入力!$K:$K)) -> 0 | J101: =IF($A101="",0,SUMIF(勘定入力!$E:$E,4&$A101,勘定入力!$J:$J)) -> 0 | K101: =IF($A101="",0,SUMIF(勘定入力!$E:$E,4&$A101,勘定入力!$K:$K)) -> 0 | L101: =IF($A101="",0,SUMIF(勘定入力!$E:$E,5&$A101,勘定入力!$J:$J)) -> 0 | M101: =IF($A101="",0,SUMIF(勘定入力!$E:$E,5&$A101,勘定入力!$K:$K)) -> 0 | N101: =IF($A101="",0,SUMIF(勘定入力!$E:$E,6&$A101,勘定入力!$J:$J)) -> 0 | O101: =IF($A101="",0,SUMIF(勘定入力!$E:$E,6&$A101,勘定入力!$K:$K)) -> 0 | P101: =IF($A101="",0,SUMIF(勘定入力!$E:$E,7&$A101,勘定入力!$J:$J)) -> 0 | Q101: =IF($A101="",0,SUMIF(勘定入力!$E:$E,7&$A101,勘定入力!$K:$K)) -> 0 | R101: =IF($A101="",0,SUMIF(勘定入力!$E:$E,8&$A101,勘定入力!$J:$J)) -> 0 | S101: =IF($A101="",0,SUMIF(勘定入力!$E:$E,8&$A101,勘定入力!$K:$K)) -> 0 | T101: =IF($A101="",0,SUMIF(勘定入力!$E:$E,9&$A101,勘定入力!$J:$J)) -> 0 | U101: =IF($A101="",0,SUMIF(勘定入力!$E:$E,9&$A101,勘定入力!$K:$K)) -> 0 | V101: =IF($A101="",0,SUMIF(勘定入力!$E:$E,10&$A101,勘定入力!$J:$J)) -> 0 | W101: =IF($A101="",0,SUMIF(勘定入力!$E:$E,10&$A101,勘定入力!$K:$K)) -> 0 | X101: =IF($A101="",0,SUMIF(勘定入力!$E:$E,11&$A101,勘定入力!$J:$J)) -> 0 | Y101: =IF($A101="",0,SUMIF(勘定入力!$E:$E,11&$A101,勘定入力!$K:$K)) -> 0 | Z101: =IF($A101="",0,SUMIF(勘定入力!$E:$E,12&$A101,勘定入力!$J:$J)) -> 0 | AA101: =IF($A101="",0,SUMIF(勘定入力!$E:$E,12&$A101,勘定入力!$K:$K)) -> 0
A102: =入力補助!J39 -> 0 | B102: 0 | C102: 0 | D102: =IF($A102="",0,SUMIF(勘定入力!$E:$E,1&$A102,勘定入力!$J:$J)) -> 0 | E102: =IF($A102="",0,SUMIF(勘定入力!$E:$E,1&$A102,勘定入力!$K:$K)) -> 0 | F102: =IF($A102="",0,SUMIF(勘定入力!$E:$E,2&$A102,勘定入力!$J:$J)) -> 0 | G102: =IF($A102="",0,SUMIF(勘定入力!$E:$E,2&$A102,勘定入力!$K:$K)) -> 0 | H102: =IF($A102="",0,SUMIF(勘定入力!$E:$E,3&$A102,勘定入力!$J:$J)) -> 0 | I102: =IF($A102="",0,SUMIF(勘定入力!$E:$E,3&$A102,勘定入力!$K:$K)) -> 0 | J102: =IF($A102="",0,SUMIF(勘定入力!$E:$E,4&$A102,勘定入力!$J:$J)) -> 0 | K102: =IF($A102="",0,SUMIF(勘定入力!$E:$E,4&$A102,勘定入力!$K:$K)) -> 0 | L102: =IF($A102="",0,SUMIF(勘定入力!$E:$E,5&$A102,勘定入力!$J:$J)) -> 0 | M102: =IF($A102="",0,SUMIF(勘定入力!$E:$E,5&$A102,勘定入力!$K:$K)) -> 0 | N102: =IF($A102="",0,SUMIF(勘定入力!$E:$E,6&$A102,勘定入力!$J:$J)) -> 0 | O102: =IF($A102="",0,SUMIF(勘定入力!$E:$E,6&$A102,勘定入力!$K:$K)) -> 0 | P102: =IF($A102="",0,SUMIF(勘定入力!$E:$E,7&$A102,勘定入力!$J:$J)) -> 0 | Q102: =IF($A102="",0,SUMIF(勘定入力!$E:$E,7&$A102,勘定入力!$K:$K)) -> 0 | R102: =IF($A102="",0,SUMIF(勘定入力!$E:$E,8&$A102,勘定入力!$J:$J)) -> 0 | S102: =IF($A102="",0,SUMIF(勘定入力!$E:$E,8&$A102,勘定入力!$K:$K)) -> 0 | T102: =IF($A102="",0,SUMIF(勘定入力!$E:$E,9&$A102,勘定入力!$J:$J)) -> 0 | U102: =IF($A102="",0,SUMIF(勘定入力!$E:$E,9&$A102,勘定入力!$K:$K)) -> 0 | V102: =IF($A102="",0,SUMIF(勘定入力!$E:$E,10&$A102,勘定入力!$J:$J)) -> 0 | W102: =IF($A102="",0,SUMIF(勘定入力!$E:$E,10&$A102,勘定入力!$K:$K)) -> 0 | X102: =IF($A102="",0,SUMIF(勘定入力!$E:$E,11&$A102,勘定入力!$J:$J)) -> 0 | Y102: =IF($A102="",0,SUMIF(勘定入力!$E:$E,11&$A102,勘定入力!$K:$K)) -> 0 | Z102: =IF($A102="",0,SUMIF(勘定入力!$E:$E,12&$A102,勘定入力!$J:$J)) -> 0 | AA102: =IF($A102="",0,SUMIF(勘定入力!$E:$E,12&$A102,勘定入力!$K:$K)) -> 0
A103: =入力補助!J40 -> 0 | B103: 0 | C103: 0 | D103: =IF($A103="",0,SUMIF(勘定入力!$E:$E,1&$A103,勘定入力!$J:$J)) -> 0 | E103: =IF($A103="",0,SUMIF(勘定入力!$E:$E,1&$A103,勘定入力!$K:$K)) -> 0 | F103: =IF($A103="",0,SUMIF(勘定入力!$E:$E,2&$A103,勘定入力!$J:$J)) -> 0 | G103: =IF($A103="",0,SUMIF(勘定入力!$E:$E,2&$A103,勘定入力!$K:$K)) -> 0 | H103: =IF($A103="",0,SUMIF(勘定入力!$E:$E,3&$A103,勘定入力!$J:$J)) -> 0 | I103: =IF($A103="",0,SUMIF(勘定入力!$E:$E,3&$A103,勘定入力!$K:$K)) -> 0 | J103: =IF($A103="",0,SUMIF(勘定入力!$E:$E,4&$A103,勘定入力!$J:$J)) -> 0 | K103: =IF($A103="",0,SUMIF(勘定入力!$E:$E,4&$A103,勘定入力!$K:$K)) -> 0 | L103: =IF($A103="",0,SUMIF(勘定入力!$E:$E,5&$A103,勘定入力!$J:$J)) -> 0 | M103: =IF($A103="",0,SUMIF(勘定入力!$E:$E,5&$A103,勘定入力!$K:$K)) -> 0 | N103: =IF($A103="",0,SUMIF(勘定入力!$E:$E,6&$A103,勘定入力!$J:$J)) -> 0 | O103: =IF($A103="",0,SUMIF(勘定入力!$E:$E,6&$A103,勘定入力!$K:$K)) -> 0 | P103: =IF($A103="",0,SUMIF(勘定入力!$E:$E,7&$A103,勘定入力!$J:$J)) -> 0 | Q103: =IF($A103="",0,SUMIF(勘定入力!$E:$E,7&$A103,勘定入力!$K:$K)) -> 0 | R103: =IF($A103="",0,SUMIF(勘定入力!$E:$E,8&$A103,勘定入力!$J:$J)) -> 0 | S103: =IF($A103="",0,SUMIF(勘定入力!$E:$E,8&$A103,勘定入力!$K:$K)) -> 0 | T103: =IF($A103="",0,SUMIF(勘定入力!$E:$E,9&$A103,勘定入力!$J:$J)) -> 0 | U103: =IF($A103="",0,SUMIF(勘定入力!$E:$E,9&$A103,勘定入力!$K:$K)) -> 0 | V103: =IF($A103="",0,SUMIF(勘定入力!$E:$E,10&$A103,勘定入力!$J:$J)) -> 0 | W103: =IF($A103="",0,SUMIF(勘定入力!$E:$E,10&$A103,勘定入力!$K:$K)) -> 0 | X103: =IF($A103="",0,SUMIF(勘定入力!$E:$E,11&$A103,勘定入力!$J:$J)) -> 0 | Y103: =IF($A103="",0,SUMIF(勘定入力!$E:$E,11&$A103,勘定入力!$K:$K)) -> 0 | Z103: =IF($A103="",0,SUMIF(勘定入力!$E:$E,12&$A103,勘定入力!$J:$J)) -> 0 | AA103: =IF($A103="",0,SUMIF(勘定入力!$E:$E,12&$A103,勘定入力!$K:$K)) -> 0
A104: =入力補助!J41 -> 0 | B104: 0 | C104: 0 | D104: =IF($A104="",0,SUMIF(勘定入力!$E:$E,1&$A104,勘定入力!$J:$J)) -> 0 | E104: =IF($A104="",0,SUMIF(勘定入力!$E:$E,1&$A104,勘定入力!$K:$K)) -> 0 | F104: =IF($A104="",0,SUMIF(勘定入力!$E:$E,2&$A104,勘定入力!$J:$J)) -> 0 | G104: =IF($A104="",0,SUMIF(勘定入力!$E:$E,2&$A104,勘定入力!$K:$K)) -> 0 | H104: =IF($A104="",0,SUMIF(勘定入力!$E:$E,3&$A104,勘定入力!$J:$J)) -> 0 | I104: =IF($A104="",0,SUMIF(勘定入力!$E:$E,3&$A104,勘定入力!$K:$K)) -> 0 | J104: =IF($A104="",0,SUMIF(勘定入力!$E:$E,4&$A104,勘定入力!$J:$J)) -> 0 | K104: =IF($A104="",0,SUMIF(勘定入力!$E:$E,4&$A104,勘定入力!$K:$K)) -> 0 | L104: =IF($A104="",0,SUMIF(勘定入力!$E:$E,5&$A104,勘定入力!$J:$J)) -> 0 | M104: =IF($A104="",0,SUMIF(勘定入力!$E:$E,5&$A104,勘定入力!$K:$K)) -> 0 | N104: =IF($A104="",0,SUMIF(勘定入力!$E:$E,6&$A104,勘定入力!$J:$J)) -> 0 | O104: =IF($A104="",0,SUMIF(勘定入力!$E:$E,6&$A104,勘定入力!$K:$K)) -> 0 | P104: =IF($A104="",0,SUMIF(勘定入力!$E:$E,7&$A104,勘定入力!$J:$J)) -> 0 | Q104: =IF($A104="",0,SUMIF(勘定入力!$E:$E,7&$A104,勘定入力!$K:$K)) -> 0 | R104: =IF($A104="",0,SUMIF(勘定入力!$E:$E,8&$A104,勘定入力!$J:$J)) -> 0 | S104: =IF($A104="",0,SUMIF(勘定入力!$E:$E,8&$A104,勘定入力!$K:$K)) -> 0 | T104: =IF($A104="",0,SUMIF(勘定入力!$E:$E,9&$A104,勘定入力!$J:$J)) -> 0 | U104: =IF($A104="",0,SUMIF(勘定入力!$E:$E,9&$A104,勘定入力!$K:$K)) -> 0 | V104: =IF($A104="",0,SUMIF(勘定入力!$E:$E,10&$A104,勘定入力!$J:$J)) -> 0 | W104: =IF($A104="",0,SUMIF(勘定入力!$E:$E,10&$A104,勘定入力!$K:$K)) -> 0 | X104: =IF($A104="",0,SUMIF(勘定入力!$E:$E,11&$A104,勘定入力!$J:$J)) -> 0 | Y104: =IF($A104="",0,SUMIF(勘定入力!$E:$E,11&$A104,勘定入力!$K:$K)) -> 0 | Z104: =IF($A104="",0,SUMIF(勘定入力!$E:$E,12&$A104,勘定入力!$J:$J)) -> 0 | AA104: =IF($A104="",0,SUMIF(勘定入力!$E:$E,12&$A104,勘定入力!$K:$K)) -> 0
A105: =入力補助!J42 -> 0 | B105: 0 | C105: 0 | D105: =IF($A105="",0,SUMIF(勘定入力!$E:$E,1&$A105,勘定入力!$J:$J)) -> 0 | E105: =IF($A105="",0,SUMIF(勘定入力!$E:$E,1&$A105,勘定入力!$K:$K)) -> 0 | F105: =IF($A105="",0,SUMIF(勘定入力!$E:$E,2&$A105,勘定入力!$J:$J)) -> 0 | G105: =IF($A105="",0,SUMIF(勘定入力!$E:$E,2&$A105,勘定入力!$K:$K)) -> 0 | H105: =IF($A105="",0,SUMIF(勘定入力!$E:$E,3&$A105,勘定入力!$J:$J)) -> 0 | I105: =IF($A105="",0,SUMIF(勘定入力!$E:$E,3&$A105,勘定入力!$K:$K)) -> 0 | J105: =IF($A105="",0,SUMIF(勘定入力!$E:$E,4&$A105,勘定入力!$J:$J)) -> 0 | K105: =IF($A105="",0,SUMIF(勘定入力!$E:$E,4&$A105,勘定入力!$K:$K)) -> 0 | L105: =IF($A105="",0,SUMIF(勘定入力!$E:$E,5&$A105,勘定入力!$J:$J)) -> 0 | M105: =IF($A105="",0,SUMIF(勘定入力!$E:$E,5&$A105,勘定入力!$K:$K)) -> 0 | N105: =IF($A105="",0,SUMIF(勘定入力!$E:$E,6&$A105,勘定入力!$J:$J)) -> 0 | O105: =IF($A105="",0,SUMIF(勘定入力!$E:$E,6&$A105,勘定入力!$K:$K)) -> 0 | P105: =IF($A105="",0,SUMIF(勘定入力!$E:$E,7&$A105,勘定入力!$J:$J)) -> 0 | Q105: =IF($A105="",0,SUMIF(勘定入力!$E:$E,7&$A105,勘定入力!$K:$K)) -> 0 | R105: =IF($A105="",0,SUMIF(勘定入力!$E:$E,8&$A105,勘定入力!$J:$J)) -> 0 | S105: =IF($A105="",0,SUMIF(勘定入力!$E:$E,8&$A105,勘定入力!$K:$K)) -> 0 | T105: =IF($A105="",0,SUMIF(勘定入力!$E:$E,9&$A105,勘定入力!$J:$J)) -> 0 | U105: =IF($A105="",0,SUMIF(勘定入力!$E:$E,9&$A105,勘定入力!$K:$K)) -> 0 | V105: =IF($A105="",0,SUMIF(勘定入力!$E:$E,10&$A105,勘定入力!$J:$J)) -> 0 | W105: =IF($A105="",0,SUMIF(勘定入力!$E:$E,10&$A105,勘定入力!$K:$K)) -> 0 | X105: =IF($A105="",0,SUMIF(勘定入力!$E:$E,11&$A105,勘定入力!$J:$J)) -> 0 | Y105: =IF($A105="",0,SUMIF(勘定入力!$E:$E,11&$A105,勘定入力!$K:$K)) -> 0 | Z105: =IF($A105="",0,SUMIF(勘定入力!$E:$E,12&$A105,勘定入力!$J:$J)) -> 0 | AA105: =IF($A105="",0,SUMIF(勘定入力!$E:$E,12&$A105,勘定入力!$K:$K)) -> 0
A106: =入力補助!J43 -> 0 | B106: 0 | C106: 0 | D106: =IF($A106="",0,SUMIF(勘定入力!$E:$E,1&$A106,勘定入力!$J:$J)) -> 0 | E106: =IF($A106="",0,SUMIF(勘定入力!$E:$E,1&$A106,勘定入力!$K:$K)) -> 0 | F106: =IF($A106="",0,SUMIF(勘定入力!$E:$E,2&$A106,勘定入力!$J:$J)) -> 0 | G106: =IF($A106="",0,SUMIF(勘定入力!$E:$E,2&$A106,勘定入力!$K:$K)) -> 0 | H106: =IF($A106="",0,SUMIF(勘定入力!$E:$E,3&$A106,勘定入力!$J:$J)) -> 0 | I106: =IF($A106="",0,SUMIF(勘定入力!$E:$E,3&$A106,勘定入力!$K:$K)) -> 0 | J106: =IF($A106="",0,SUMIF(勘定入力!$E:$E,4&$A106,勘定入力!$J:$J)) -> 0 | K106: =IF($A106="",0,SUMIF(勘定入力!$E:$E,4&$A106,勘定入力!$K:$K)) -> 0 | L106: =IF($A106="",0,SUMIF(勘定入力!$E:$E,5&$A106,勘定入力!$J:$J)) -> 0 | M106: =IF($A106="",0,SUMIF(勘定入力!$E:$E,5&$A106,勘定入力!$K:$K)) -> 0 | N106: =IF($A106="",0,SUMIF(勘定入力!$E:$E,6&$A106,勘定入力!$J:$J)) -> 0 | O106: =IF($A106="",0,SUMIF(勘定入力!$E:$E,6&$A106,勘定入力!$K:$K)) -> 0 | P106: =IF($A106="",0,SUMIF(勘定入力!$E:$E,7&$A106,勘定入力!$J:$J)) -> 0 | Q106: =IF($A106="",0,SUMIF(勘定入力!$E:$E,7&$A106,勘定入力!$K:$K)) -> 0 | R106: =IF($A106="",0,SUMIF(勘定入力!$E:$E,8&$A106,勘定入力!$J:$J)) -> 0 | S106: =IF($A106="",0,SUMIF(勘定入力!$E:$E,8&$A106,勘定入力!$K:$K)) -> 0 | T106: =IF($A106="",0,SUMIF(勘定入力!$E:$E,9&$A106,勘定入力!$J:$J)) -> 0 | U106: =IF($A106="",0,SUMIF(勘定入力!$E:$E,9&$A106,勘定入力!$K:$K)) -> 0 | V106: =IF($A106="",0,SUMIF(勘定入力!$E:$E,10&$A106,勘定入力!$J:$J)) -> 0 | W106: =IF($A106="",0,SUMIF(勘定入力!$E:$E,10&$A106,勘定入力!$K:$K)) -> 0 | X106: =IF($A106="",0,SUMIF(勘定入力!$E:$E,11&$A106,勘定入力!$J:$J)) -> 0 | Y106: =IF($A106="",0,SUMIF(勘定入力!$E:$E,11&$A106,勘定入力!$K:$K)) -> 0 | Z106: =IF($A106="",0,SUMIF(勘定入力!$E:$E,12&$A106,勘定入力!$J:$J)) -> 0 | AA106: =IF($A106="",0,SUMIF(勘定入力!$E:$E,12&$A106,勘定入力!$K:$K)) -> 0
A107: =入力補助!J44 -> 0 | B107: 0 | C107: 0 | D107: =IF($A107="",0,SUMIF(勘定入力!$E:$E,1&$A107,勘定入力!$J:$J)) -> 0 | E107: =IF($A107="",0,SUMIF(勘定入力!$E:$E,1&$A107,勘定入力!$K:$K)) -> 0 | F107: =IF($A107="",0,SUMIF(勘定入力!$E:$E,2&$A107,勘定入力!$J:$J)) -> 0 | G107: =IF($A107="",0,SUMIF(勘定入力!$E:$E,2&$A107,勘定入力!$K:$K)) -> 0 | H107: =IF($A107="",0,SUMIF(勘定入力!$E:$E,3&$A107,勘定入力!$J:$J)) -> 0 | I107: =IF($A107="",0,SUMIF(勘定入力!$E:$E,3&$A107,勘定入力!$K:$K)) -> 0 | J107: =IF($A107="",0,SUMIF(勘定入力!$E:$E,4&$A107,勘定入力!$J:$J)) -> 0 | K107: =IF($A107="",0,SUMIF(勘定入力!$E:$E,4&$A107,勘定入力!$K:$K)) -> 0 | L107: =IF($A107="",0,SUMIF(勘定入力!$E:$E,5&$A107,勘定入力!$J:$J)) -> 0 | M107: =IF($A107="",0,SUMIF(勘定入力!$E:$E,5&$A107,勘定入力!$K:$K)) -> 0 | N107: =IF($A107="",0,SUMIF(勘定入力!$E:$E,6&$A107,勘定入力!$J:$J)) -> 0 | O107: =IF($A107="",0,SUMIF(勘定入力!$E:$E,6&$A107,勘定入力!$K:$K)) -> 0 | P107: =IF($A107="",0,SUMIF(勘定入力!$E:$E,7&$A107,勘定入力!$J:$J)) -> 0 | Q107: =IF($A107="",0,SUMIF(勘定入力!$E:$E,7&$A107,勘定入力!$K:$K)) -> 0 | R107: =IF($A107="",0,SUMIF(勘定入力!$E:$E,8&$A107,勘定入力!$J:$J)) -> 0 | S107: =IF($A107="",0,SUMIF(勘定入力!$E:$E,8&$A107,勘定入力!$K:$K)) -> 0 | T107: =IF($A107="",0,SUMIF(勘定入力!$E:$E,9&$A107,勘定入力!$J:$J)) -> 0 | U107: =IF($A107="",0,SUMIF(勘定入力!$E:$E,9&$A107,勘定入力!$K:$K)) -> 0 | V107: =IF($A107="",0,SUMIF(勘定入力!$E:$E,10&$A107,勘定入力!$J:$J)) -> 0 | W107: =IF($A107="",0,SUMIF(勘定入力!$E:$E,10&$A107,勘定入力!$K:$K)) -> 0 | X107: =IF($A107="",0,SUMIF(勘定入力!$E:$E,11&$A107,勘定入力!$J:$J)) -> 0 | Y107: =IF($A107="",0,SUMIF(勘定入力!$E:$E,11&$A107,勘定入力!$K:$K)) -> 0 | Z107: =IF($A107="",0,SUMIF(勘定入力!$E:$E,12&$A107,勘定入力!$J:$J)) -> 0 | AA107: =IF($A107="",0,SUMIF(勘定入力!$E:$E,12&$A107,勘定入力!$K:$K)) -> 0
A108: =入力補助!J45 -> 0 | B108: 0 | C108: 0 | D108: =IF($A108="",0,SUMIF(勘定入力!$E:$E,1&$A108,勘定入力!$J:$J)) -> 0 | E108: =IF($A108="",0,SUMIF(勘定入力!$E:$E,1&$A108,勘定入力!$K:$K)) -> 0 | F108: =IF($A108="",0,SUMIF(勘定入力!$E:$E,2&$A108,勘定入力!$J:$J)) -> 0 | G108: =IF($A108="",0,SUMIF(勘定入力!$E:$E,2&$A108,勘定入力!$K:$K)) -> 0 | H108: =IF($A108="",0,SUMIF(勘定入力!$E:$E,3&$A108,勘定入力!$J:$J)) -> 0 | I108: =IF($A108="",0,SUMIF(勘定入力!$E:$E,3&$A108,勘定入力!$K:$K)) -> 0 | J108: =IF($A108="",0,SUMIF(勘定入力!$E:$E,4&$A108,勘定入力!$J:$J)) -> 0 | K108: =IF($A108="",0,SUMIF(勘定入力!$E:$E,4&$A108,勘定入力!$K:$K)) -> 0 | L108: =IF($A108="",0,SUMIF(勘定入力!$E:$E,5&$A108,勘定入力!$J:$J)) -> 0 | M108: =IF($A108="",0,SUMIF(勘定入力!$E:$E,5&$A108,勘定入力!$K:$K)) -> 0 | N108: =IF($A108="",0,SUMIF(勘定入力!$E:$E,6&$A108,勘定入力!$J:$J)) -> 0 | O108: =IF($A108="",0,SUMIF(勘定入力!$E:$E,6&$A108,勘定入力!$K:$K)) -> 0 | P108: =IF($A108="",0,SUMIF(勘定入力!$E:$E,7&$A108,勘定入力!$J:$J)) -> 0 | Q108: =IF($A108="",0,SUMIF(勘定入力!$E:$E,7&$A108,勘定入力!$K:$K)) -> 0 | R108: =IF($A108="",0,SUMIF(勘定入力!$E:$E,8&$A108,勘定入力!$J:$J)) -> 0 | S108: =IF($A108="",0,SUMIF(勘定入力!$E:$E,8&$A108,勘定入力!$K:$K)) -> 0 | T108: =IF($A108="",0,SUMIF(勘定入力!$E:$E,9&$A108,勘定入力!$J:$J)) -> 0 | U108: =IF($A108="",0,SUMIF(勘定入力!$E:$E,9&$A108,勘定入力!$K:$K)) -> 0 | V108: =IF($A108="",0,SUMIF(勘定入力!$E:$E,10&$A108,勘定入力!$J:$J)) -> 0 | W108: =IF($A108="",0,SUMIF(勘定入力!$E:$E,10&$A108,勘定入力!$K:$K)) -> 0 | X108: =IF($A108="",0,SUMIF(勘定入力!$E:$E,11&$A108,勘定入力!$J:$J)) -> 0 | Y108: =IF($A108="",0,SUMIF(勘定入力!$E:$E,11&$A108,勘定入力!$K:$K)) -> 0 | Z108: =IF($A108="",0,SUMIF(勘定入力!$E:$E,12&$A108,勘定入力!$J:$J)) -> 0 | AA108: =IF($A108="",0,SUMIF(勘定入力!$E:$E,12&$A108,勘定入力!$K:$K)) -> 0
A109: =入力補助!J46 -> 0 | B109: 0 | C109: 0 | D109: =IF($A109="",0,SUMIF(勘定入力!$E:$E,1&$A109,勘定入力!$J:$J)) -> 0 | E109: =IF($A109="",0,SUMIF(勘定入力!$E:$E,1&$A109,勘定入力!$K:$K)) -> 0 | F109: =IF($A109="",0,SUMIF(勘定入力!$E:$E,2&$A109,勘定入力!$J:$J)) -> 0 | G109: =IF($A109="",0,SUMIF(勘定入力!$E:$E,2&$A109,勘定入力!$K:$K)) -> 0 | H109: =IF($A109="",0,SUMIF(勘定入力!$E:$E,3&$A109,勘定入力!$J:$J)) -> 0 | I109: =IF($A109="",0,SUMIF(勘定入力!$E:$E,3&$A109,勘定入力!$K:$K)) -> 0 | J109: =IF($A109="",0,SUMIF(勘定入力!$E:$E,4&$A109,勘定入力!$J:$J)) -> 0 | K109: =IF($A109="",0,SUMIF(勘定入力!$E:$E,4&$A109,勘定入力!$K:$K)) -> 0 | L109: =IF($A109="",0,SUMIF(勘定入力!$E:$E,5&$A109,勘定入力!$J:$J)) -> 0 | M109: =IF($A109="",0,SUMIF(勘定入力!$E:$E,5&$A109,勘定入力!$K:$K)) -> 0 | N109: =IF($A109="",0,SUMIF(勘定入力!$E:$E,6&$A109,勘定入力!$J:$J)) -> 0 | O109: =IF($A109="",0,SUMIF(勘定入力!$E:$E,6&$A109,勘定入力!$K:$K)) -> 0 | P109: =IF($A109="",0,SUMIF(勘定入力!$E:$E,7&$A109,勘定入力!$J:$J)) -> 0 | Q109: =IF($A109="",0,SUMIF(勘定入力!$E:$E,7&$A109,勘定入力!$K:$K)) -> 0 | R109: =IF($A109="",0,SUMIF(勘定入力!$E:$E,8&$A109,勘定入力!$J:$J)) -> 0 | S109: =IF($A109="",0,SUMIF(勘定入力!$E:$E,8&$A109,勘定入力!$K:$K)) -> 0 | T109: =IF($A109="",0,SUMIF(勘定入力!$E:$E,9&$A109,勘定入力!$J:$J)) -> 0 | U109: =IF($A109="",0,SUMIF(勘定入力!$E:$E,9&$A109,勘定入力!$K:$K)) -> 0 | V109: =IF($A109="",0,SUMIF(勘定入力!$E:$E,10&$A109,勘定入力!$J:$J)) -> 0 | W109: =IF($A109="",0,SUMIF(勘定入力!$E:$E,10&$A109,勘定入力!$K:$K)) -> 0 | X109: =IF($A109="",0,SUMIF(勘定入力!$E:$E,11&$A109,勘定入力!$J:$J)) -> 0 | Y109: =IF($A109="",0,SUMIF(勘定入力!$E:$E,11&$A109,勘定入力!$K:$K)) -> 0 | Z109: =IF($A109="",0,SUMIF(勘定入力!$E:$E,12&$A109,勘定入力!$J:$J)) -> 0 | AA109: =IF($A109="",0,SUMIF(勘定入力!$E:$E,12&$A109,勘定入力!$K:$K)) -> 0
A110: =入力補助!J47 -> 0 | B110: 0 | C110: 0 | D110: =IF($A110="",0,SUMIF(勘定入力!$E:$E,1&$A110,勘定入力!$J:$J)) -> 0 | E110: =IF($A110="",0,SUMIF(勘定入力!$E:$E,1&$A110,勘定入力!$K:$K)) -> 0 | F110: =IF($A110="",0,SUMIF(勘定入力!$E:$E,2&$A110,勘定入力!$J:$J)) -> 0 | G110: =IF($A110="",0,SUMIF(勘定入力!$E:$E,2&$A110,勘定入力!$K:$K)) -> 0 | H110: =IF($A110="",0,SUMIF(勘定入力!$E:$E,3&$A110,勘定入力!$J:$J)) -> 0 | I110: =IF($A110="",0,SUMIF(勘定入力!$E:$E,3&$A110,勘定入力!$K:$K)) -> 0 | J110: =IF($A110="",0,SUMIF(勘定入力!$E:$E,4&$A110,勘定入力!$J:$J)) -> 0 | K110: =IF($A110="",0,SUMIF(勘定入力!$E:$E,4&$A110,勘定入力!$K:$K)) -> 0 | L110: =IF($A110="",0,SUMIF(勘定入力!$E:$E,5&$A110,勘定入力!$J:$J)) -> 0 | M110: =IF($A110="",0,SUMIF(勘定入力!$E:$E,5&$A110,勘定入力!$K:$K)) -> 0 | N110: =IF($A110="",0,SUMIF(勘定入力!$E:$E,6&$A110,勘定入力!$J:$J)) -> 0 | O110: =IF($A110="",0,SUMIF(勘定入力!$E:$E,6&$A110,勘定入力!$K:$K)) -> 0 | P110: =IF($A110="",0,SUMIF(勘定入力!$E:$E,7&$A110,勘定入力!$J:$J)) -> 0 | Q110: =IF($A110="",0,SUMIF(勘定入力!$E:$E,7&$A110,勘定入力!$K:$K)) -> 0 | R110: =IF($A110="",0,SUMIF(勘定入力!$E:$E,8&$A110,勘定入力!$J:$J)) -> 0 | S110: =IF($A110="",0,SUMIF(勘定入力!$E:$E,8&$A110,勘定入力!$K:$K)) -> 0 | T110: =IF($A110="",0,SUMIF(勘定入力!$E:$E,9&$A110,勘定入力!$J:$J)) -> 0 | U110: =IF($A110="",0,SUMIF(勘定入力!$E:$E,9&$A110,勘定入力!$K:$K)) -> 0 | V110: =IF($A110="",0,SUMIF(勘定入力!$E:$E,10&$A110,勘定入力!$J:$J)) -> 0 | W110: =IF($A110="",0,SUMIF(勘定入力!$E:$E,10&$A110,勘定入力!$K:$K)) -> 0 | X110: =IF($A110="",0,SUMIF(勘定入力!$E:$E,11&$A110,勘定入力!$J:$J)) -> 0 | Y110: =IF($A110="",0,SUMIF(勘定入力!$E:$E,11&$A110,勘定入力!$K:$K)) -> 0 | Z110: =IF($A110="",0,SUMIF(勘定入力!$E:$E,12&$A110,勘定入力!$J:$J)) -> 0 | AA110: =IF($A110="",0,SUMIF(勘定入力!$E:$E,12&$A110,勘定入力!$K:$K)) -> 0
A111: =入力補助!J48 -> 0 | B111: 0 | C111: 0 | D111: =IF($A111="",0,SUMIF(勘定入力!$E:$E,1&$A111,勘定入力!$J:$J)) -> 0 | E111: =IF($A111="",0,SUMIF(勘定入力!$E:$E,1&$A111,勘定入力!$K:$K)) -> 0 | F111: =IF($A111="",0,SUMIF(勘定入力!$E:$E,2&$A111,勘定入力!$J:$J)) -> 0 | G111: =IF($A111="",0,SUMIF(勘定入力!$E:$E,2&$A111,勘定入力!$K:$K)) -> 0 | H111: =IF($A111="",0,SUMIF(勘定入力!$E:$E,3&$A111,勘定入力!$J:$J)) -> 0 | I111: =IF($A111="",0,SUMIF(勘定入力!$E:$E,3&$A111,勘定入力!$K:$K)) -> 0 | J111: =IF($A111="",0,SUMIF(勘定入力!$E:$E,4&$A111,勘定入力!$J:$J)) -> 0 | K111: =IF($A111="",0,SUMIF(勘定入力!$E:$E,4&$A111,勘定入力!$K:$K)) -> 0 | L111: =IF($A111="",0,SUMIF(勘定入力!$E:$E,5&$A111,勘定入力!$J:$J)) -> 0 | M111: =IF($A111="",0,SUMIF(勘定入力!$E:$E,5&$A111,勘定入力!$K:$K)) -> 0 | N111: =IF($A111="",0,SUMIF(勘定入力!$E:$E,6&$A111,勘定入力!$J:$J)) -> 0 | O111: =IF($A111="",0,SUMIF(勘定入力!$E:$E,6&$A111,勘定入力!$K:$K)) -> 0 | P111: =IF($A111="",0,SUMIF(勘定入力!$E:$E,7&$A111,勘定入力!$J:$J)) -> 0 | Q111: =IF($A111="",0,SUMIF(勘定入力!$E:$E,7&$A111,勘定入力!$K:$K)) -> 0 | R111: =IF($A111="",0,SUMIF(勘定入力!$E:$E,8&$A111,勘定入力!$J:$J)) -> 0 | S111: =IF($A111="",0,SUMIF(勘定入力!$E:$E,8&$A111,勘定入力!$K:$K)) -> 0 | T111: =IF($A111="",0,SUMIF(勘定入力!$E:$E,9&$A111,勘定入力!$J:$J)) -> 0 | U111: =IF($A111="",0,SUMIF(勘定入力!$E:$E,9&$A111,勘定入力!$K:$K)) -> 0 | V111: =IF($A111="",0,SUMIF(勘定入力!$E:$E,10&$A111,勘定入力!$J:$J)) -> 0 | W111: =IF($A111="",0,SUMIF(勘定入力!$E:$E,10&$A111,勘定入力!$K:$K)) -> 0 | X111: =IF($A111="",0,SUMIF(勘定入力!$E:$E,11&$A111,勘定入力!$J:$J)) -> 0 | Y111: =IF($A111="",0,SUMIF(勘定入力!$E:$E,11&$A111,勘定入力!$K:$K)) -> 0 | Z111: =IF($A111="",0,SUMIF(勘定入力!$E:$E,12&$A111,勘定入力!$J:$J)) -> 0 | AA111: =IF($A111="",0,SUMIF(勘定入力!$E:$E,12&$A111,勘定入力!$K:$K)) -> 0
A112: =入力補助!J49 -> 0 | B112: 0 | C112: 0 | D112: =IF($A112="",0,SUMIF(勘定入力!$E:$E,1&$A112,勘定入力!$J:$J)) -> 0 | E112: =IF($A112="",0,SUMIF(勘定入力!$E:$E,1&$A112,勘定入力!$K:$K)) -> 0 | F112: =IF($A112="",0,SUMIF(勘定入力!$E:$E,2&$A112,勘定入力!$J:$J)) -> 0 | G112: =IF($A112="",0,SUMIF(勘定入力!$E:$E,2&$A112,勘定入力!$K:$K)) -> 0 | H112: =IF($A112="",0,SUMIF(勘定入力!$E:$E,3&$A112,勘定入力!$J:$J)) -> 0 | I112: =IF($A112="",0,SUMIF(勘定入力!$E:$E,3&$A112,勘定入力!$K:$K)) -> 0 | J112: =IF($A112="",0,SUMIF(勘定入力!$E:$E,4&$A112,勘定入力!$J:$J)) -> 0 | K112: =IF($A112="",0,SUMIF(勘定入力!$E:$E,4&$A112,勘定入力!$K:$K)) -> 0 | L112: =IF($A112="",0,SUMIF(勘定入力!$E:$E,5&$A112,勘定入力!$J:$J)) -> 0 | M112: =IF($A112="",0,SUMIF(勘定入力!$E:$E,5&$A112,勘定入力!$K:$K)) -> 0 | N112: =IF($A112="",0,SUMIF(勘定入力!$E:$E,6&$A112,勘定入力!$J:$J)) -> 0 | O112: =IF($A112="",0,SUMIF(勘定入力!$E:$E,6&$A112,勘定入力!$K:$K)) -> 0 | P112: =IF($A112="",0,SUMIF(勘定入力!$E:$E,7&$A112,勘定入力!$J:$J)) -> 0 | Q112: =IF($A112="",0,SUMIF(勘定入力!$E:$E,7&$A112,勘定入力!$K:$K)) -> 0 | R112: =IF($A112="",0,SUMIF(勘定入力!$E:$E,8&$A112,勘定入力!$J:$J)) -> 0 | S112: =IF($A112="",0,SUMIF(勘定入力!$E:$E,8&$A112,勘定入力!$K:$K)) -> 0 | T112: =IF($A112="",0,SUMIF(勘定入力!$E:$E,9&$A112,勘定入力!$J:$J)) -> 0 | U112: =IF($A112="",0,SUMIF(勘定入力!$E:$E,9&$A112,勘定入力!$K:$K)) -> 0 | V112: =IF($A112="",0,SUMIF(勘定入力!$E:$E,10&$A112,勘定入力!$J:$J)) -> 0 | W112: =IF($A112="",0,SUMIF(勘定入力!$E:$E,10&$A112,勘定入力!$K:$K)) -> 0 | X112: =IF($A112="",0,SUMIF(勘定入力!$E:$E,11&$A112,勘定入力!$J:$J)) -> 0 | Y112: =IF($A112="",0,SUMIF(勘定入力!$E:$E,11&$A112,勘定入力!$K:$K)) -> 0 | Z112: =IF($A112="",0,SUMIF(勘定入力!$E:$E,12&$A112,勘定入力!$J:$J)) -> 0 | AA112: =IF($A112="",0,SUMIF(勘定入力!$E:$E,12&$A112,勘定入力!$K:$K)) -> 0
A113: =入力補助!J50 -> 0 | B113: 0 | C113: 0 | D113: =IF($A113="",0,SUMIF(勘定入力!$E:$E,1&$A113,勘定入力!$J:$J)) -> 0 | E113: =IF($A113="",0,SUMIF(勘定入力!$E:$E,1&$A113,勘定入力!$K:$K)) -> 0 | F113: =IF($A113="",0,SUMIF(勘定入力!$E:$E,2&$A113,勘定入力!$J:$J)) -> 0 | G113: =IF($A113="",0,SUMIF(勘定入力!$E:$E,2&$A113,勘定入力!$K:$K)) -> 0 | H113: =IF($A113="",0,SUMIF(勘定入力!$E:$E,3&$A113,勘定入力!$J:$J)) -> 0 | I113: =IF($A113="",0,SUMIF(勘定入力!$E:$E,3&$A113,勘定入力!$K:$K)) -> 0 | J113: =IF($A113="",0,SUMIF(勘定入力!$E:$E,4&$A113,勘定入力!$J:$J)) -> 0 | K113: =IF($A113="",0,SUMIF(勘定入力!$E:$E,4&$A113,勘定入力!$K:$K)) -> 0 | L113: =IF($A113="",0,SUMIF(勘定入力!$E:$E,5&$A113,勘定入力!$J:$J)) -> 0 | M113: =IF($A113="",0,SUMIF(勘定入力!$E:$E,5&$A113,勘定入力!$K:$K)) -> 0 | N113: =IF($A113="",0,SUMIF(勘定入力!$E:$E,6&$A113,勘定入力!$J:$J)) -> 0 | O113: =IF($A113="",0,SUMIF(勘定入力!$E:$E,6&$A113,勘定入力!$K:$K)) -> 0 | P113: =IF($A113="",0,SUMIF(勘定入力!$E:$E,7&$A113,勘定入力!$J:$J)) -> 0 | Q113: =IF($A113="",0,SUMIF(勘定入力!$E:$E,7&$A113,勘定入力!$K:$K)) -> 0 | R113: =IF($A113="",0,SUMIF(勘定入力!$E:$E,8&$A113,勘定入力!$J:$J)) -> 0 | S113: =IF($A113="",0,SUMIF(勘定入力!$E:$E,8&$A113,勘定入力!$K:$K)) -> 0 | T113: =IF($A113="",0,SUMIF(勘定入力!$E:$E,9&$A113,勘定入力!$J:$J)) -> 0 | U113: =IF($A113="",0,SUMIF(勘定入力!$E:$E,9&$A113,勘定入力!$K:$K)) -> 0 | V113: =IF($A113="",0,SUMIF(勘定入力!$E:$E,10&$A113,勘定入力!$J:$J)) -> 0 | W113: =IF($A113="",0,SUMIF(勘定入力!$E:$E,10&$A113,勘定入力!$K:$K)) -> 0 | X113: =IF($A113="",0,SUMIF(勘定入力!$E:$E,11&$A113,勘定入力!$J:$J)) -> 0 | Y113: =IF($A113="",0,SUMIF(勘定入力!$E:$E,11&$A113,勘定入力!$K:$K)) -> 0 | Z113: =IF($A113="",0,SUMIF(勘定入力!$E:$E,12&$A113,勘定入力!$J:$J)) -> 0 | AA113: =IF($A113="",0,SUMIF(勘定入力!$E:$E,12&$A113,勘定入力!$K:$K)) -> 0
A114: =入力補助!J51 -> 0 | B114: 0 | C114: 0 | D114: =IF($A114="",0,SUMIF(勘定入力!$E:$E,1&$A114,勘定入力!$J:$J)) -> 0 | E114: =IF($A114="",0,SUMIF(勘定入力!$E:$E,1&$A114,勘定入力!$K:$K)) -> 0 | F114: =IF($A114="",0,SUMIF(勘定入力!$E:$E,2&$A114,勘定入力!$J:$J)) -> 0 | G114: =IF($A114="",0,SUMIF(勘定入力!$E:$E,2&$A114,勘定入力!$K:$K)) -> 0 | H114: =IF($A114="",0,SUMIF(勘定入力!$E:$E,3&$A114,勘定入力!$J:$J)) -> 0 | I114: =IF($A114="",0,SUMIF(勘定入力!$E:$E,3&$A114,勘定入力!$K:$K)) -> 0 | J114: =IF($A114="",0,SUMIF(勘定入力!$E:$E,4&$A114,勘定入力!$J:$J)) -> 0 | K114: =IF($A114="",0,SUMIF(勘定入力!$E:$E,4&$A114,勘定入力!$K:$K)) -> 0 | L114: =IF($A114="",0,SUMIF(勘定入力!$E:$E,5&$A114,勘定入力!$J:$J)) -> 0 | M114: =IF($A114="",0,SUMIF(勘定入力!$E:$E,5&$A114,勘定入力!$K:$K)) -> 0 | N114: =IF($A114="",0,SUMIF(勘定入力!$E:$E,6&$A114,勘定入力!$J:$J)) -> 0 | O114: =IF($A114="",0,SUMIF(勘定入力!$E:$E,6&$A114,勘定入力!$K:$K)) -> 0 | P114: =IF($A114="",0,SUMIF(勘定入力!$E:$E,7&$A114,勘定入力!$J:$J)) -> 0 | Q114: =IF($A114="",0,SUMIF(勘定入力!$E:$E,7&$A114,勘定入力!$K:$K)) -> 0 | R114: =IF($A114="",0,SUMIF(勘定入力!$E:$E,8&$A114,勘定入力!$J:$J)) -> 0 | S114: =IF($A114="",0,SUMIF(勘定入力!$E:$E,8&$A114,勘定入力!$K:$K)) -> 0 | T114: =IF($A114="",0,SUMIF(勘定入力!$E:$E,9&$A114,勘定入力!$J:$J)) -> 0 | U114: =IF($A114="",0,SUMIF(勘定入力!$E:$E,9&$A114,勘定入力!$K:$K)) -> 0 | V114: =IF($A114="",0,SUMIF(勘定入力!$E:$E,10&$A114,勘定入力!$J:$J)) -> 0 | W114: =IF($A114="",0,SUMIF(勘定入力!$E:$E,10&$A114,勘定入力!$K:$K)) -> 0 | X114: =IF($A114="",0,SUMIF(勘定入力!$E:$E,11&$A114,勘定入力!$J:$J)) -> 0 | Y114: =IF($A114="",0,SUMIF(勘定入力!$E:$E,11&$A114,勘定入力!$K:$K)) -> 0 | Z114: =IF($A114="",0,SUMIF(勘定入力!$E:$E,12&$A114,勘定入力!$J:$J)) -> 0 | AA114: =IF($A114="",0,SUMIF(勘定入力!$E:$E,12&$A114,勘定入力!$K:$K)) -> 0
A115: =入力補助!J52 -> 0 | B115: 0 | C115: 0 | D115: =IF($A115="",0,SUMIF(勘定入力!$E:$E,1&$A115,勘定入力!$J:$J)) -> 0 | E115: =IF($A115="",0,SUMIF(勘定入力!$E:$E,1&$A115,勘定入力!$K:$K)) -> 0 | F115: =IF($A115="",0,SUMIF(勘定入力!$E:$E,2&$A115,勘定入力!$J:$J)) -> 0 | G115: =IF($A115="",0,SUMIF(勘定入力!$E:$E,2&$A115,勘定入力!$K:$K)) -> 0 | H115: =IF($A115="",0,SUMIF(勘定入力!$E:$E,3&$A115,勘定入力!$J:$J)) -> 0 | I115: =IF($A115="",0,SUMIF(勘定入力!$E:$E,3&$A115,勘定入力!$K:$K)) -> 0 | J115: =IF($A115="",0,SUMIF(勘定入力!$E:$E,4&$A115,勘定入力!$J:$J)) -> 0 | K115: =IF($A115="",0,SUMIF(勘定入力!$E:$E,4&$A115,勘定入力!$K:$K)) -> 0 | L115: =IF($A115="",0,SUMIF(勘定入力!$E:$E,5&$A115,勘定入力!$J:$J)) -> 0 | M115: =IF($A115="",0,SUMIF(勘定入力!$E:$E,5&$A115,勘定入力!$K:$K)) -> 0 | N115: =IF($A115="",0,SUMIF(勘定入力!$E:$E,6&$A115,勘定入力!$J:$J)) -> 0 | O115: =IF($A115="",0,SUMIF(勘定入力!$E:$E,6&$A115,勘定入力!$K:$K)) -> 0 | P115: =IF($A115="",0,SUMIF(勘定入力!$E:$E,7&$A115,勘定入力!$J:$J)) -> 0 | Q115: =IF($A115="",0,SUMIF(勘定入力!$E:$E,7&$A115,勘定入力!$K:$K)) -> 0 | R115: =IF($A115="",0,SUMIF(勘定入力!$E:$E,8&$A115,勘定入力!$J:$J)) -> 0 | S115: =IF($A115="",0,SUMIF(勘定入力!$E:$E,8&$A115,勘定入力!$K:$K)) -> 0 | T115: =IF($A115="",0,SUMIF(勘定入力!$E:$E,9&$A115,勘定入力!$J:$J)) -> 0 | U115: =IF($A115="",0,SUMIF(勘定入力!$E:$E,9&$A115,勘定入力!$K:$K)) -> 0 | V115: =IF($A115="",0,SUMIF(勘定入力!$E:$E,10&$A115,勘定入力!$J:$J)) -> 0 | W115: =IF($A115="",0,SUMIF(勘定入力!$E:$E,10&$A115,勘定入力!$K:$K)) -> 0 | X115: =IF($A115="",0,SUMIF(勘定入力!$E:$E,11&$A115,勘定入力!$J:$J)) -> 0 | Y115: =IF($A115="",0,SUMIF(勘定入力!$E:$E,11&$A115,勘定入力!$K:$K)) -> 0 | Z115: =IF($A115="",0,SUMIF(勘定入力!$E:$E,12&$A115,勘定入力!$J:$J)) -> 0 | AA115: =IF($A115="",0,SUMIF(勘定入力!$E:$E,12&$A115,勘定入力!$K:$K)) -> 0
A116: =入力補助!J53 -> 0 | B116: 0 | C116: 0 | D116: =IF($A116="",0,SUMIF(勘定入力!$E:$E,1&$A116,勘定入力!$J:$J)) -> 0 | E116: =IF($A116="",0,SUMIF(勘定入力!$E:$E,1&$A116,勘定入力!$K:$K)) -> 0 | F116: =IF($A116="",0,SUMIF(勘定入力!$E:$E,2&$A116,勘定入力!$J:$J)) -> 0 | G116: =IF($A116="",0,SUMIF(勘定入力!$E:$E,2&$A116,勘定入力!$K:$K)) -> 0 | H116: =IF($A116="",0,SUMIF(勘定入力!$E:$E,3&$A116,勘定入力!$J:$J)) -> 0 | I116: =IF($A116="",0,SUMIF(勘定入力!$E:$E,3&$A116,勘定入力!$K:$K)) -> 0 | J116: =IF($A116="",0,SUMIF(勘定入力!$E:$E,4&$A116,勘定入力!$J:$J)) -> 0 | K116: =IF($A116="",0,SUMIF(勘定入力!$E:$E,4&$A116,勘定入力!$K:$K)) -> 0 | L116: =IF($A116="",0,SUMIF(勘定入力!$E:$E,5&$A116,勘定入力!$J:$J)) -> 0 | M116: =IF($A116="",0,SUMIF(勘定入力!$E:$E,5&$A116,勘定入力!$K:$K)) -> 0 | N116: =IF($A116="",0,SUMIF(勘定入力!$E:$E,6&$A116,勘定入力!$J:$J)) -> 0 | O116: =IF($A116="",0,SUMIF(勘定入力!$E:$E,6&$A116,勘定入力!$K:$K)) -> 0 | P116: =IF($A116="",0,SUMIF(勘定入力!$E:$E,7&$A116,勘定入力!$J:$J)) -> 0 | Q116: =IF($A116="",0,SUMIF(勘定入力!$E:$E,7&$A116,勘定入力!$K:$K)) -> 0 | R116: =IF($A116="",0,SUMIF(勘定入力!$E:$E,8&$A116,勘定入力!$J:$J)) -> 0 | S116: =IF($A116="",0,SUMIF(勘定入力!$E:$E,8&$A116,勘定入力!$K:$K)) -> 0 | T116: =IF($A116="",0,SUMIF(勘定入力!$E:$E,9&$A116,勘定入力!$J:$J)) -> 0 | U116: =IF($A116="",0,SUMIF(勘定入力!$E:$E,9&$A116,勘定入力!$K:$K)) -> 0 | V116: =IF($A116="",0,SUMIF(勘定入力!$E:$E,10&$A116,勘定入力!$J:$J)) -> 0 | W116: =IF($A116="",0,SUMIF(勘定入力!$E:$E,10&$A116,勘定入力!$K:$K)) -> 0 | X116: =IF($A116="",0,SUMIF(勘定入力!$E:$E,11&$A116,勘定入力!$J:$J)) -> 0 | Y116: =IF($A116="",0,SUMIF(勘定入力!$E:$E,11&$A116,勘定入力!$K:$K)) -> 0 | Z116: =IF($A116="",0,SUMIF(勘定入力!$E:$E,12&$A116,勘定入力!$J:$J)) -> 0 | AA116: =IF($A116="",0,SUMIF(勘定入力!$E:$E,12&$A116,勘定入力!$K:$K)) -> 0
A117: =入力補助!J54 -> 0 | B117: 0 | C117: 0 | D117: =IF($A117="",0,SUMIF(勘定入力!$E:$E,1&$A117,勘定入力!$J:$J)) -> 0 | E117: =IF($A117="",0,SUMIF(勘定入力!$E:$E,1&$A117,勘定入力!$K:$K)) -> 0 | F117: =IF($A117="",0,SUMIF(勘定入力!$E:$E,2&$A117,勘定入力!$J:$J)) -> 0 | G117: =IF($A117="",0,SUMIF(勘定入力!$E:$E,2&$A117,勘定入力!$K:$K)) -> 0 | H117: =IF($A117="",0,SUMIF(勘定入力!$E:$E,3&$A117,勘定入力!$J:$J)) -> 0 | I117: =IF($A117="",0,SUMIF(勘定入力!$E:$E,3&$A117,勘定入力!$K:$K)) -> 0 | J117: =IF($A117="",0,SUMIF(勘定入力!$E:$E,4&$A117,勘定入力!$J:$J)) -> 0 | K117: =IF($A117="",0,SUMIF(勘定入力!$E:$E,4&$A117,勘定入力!$K:$K)) -> 0 | L117: =IF($A117="",0,SUMIF(勘定入力!$E:$E,5&$A117,勘定入力!$J:$J)) -> 0 | M117: =IF($A117="",0,SUMIF(勘定入力!$E:$E,5&$A117,勘定入力!$K:$K)) -> 0 | N117: =IF($A117="",0,SUMIF(勘定入力!$E:$E,6&$A117,勘定入力!$J:$J)) -> 0 | O117: =IF($A117="",0,SUMIF(勘定入力!$E:$E,6&$A117,勘定入力!$K:$K)) -> 0 | P117: =IF($A117="",0,SUMIF(勘定入力!$E:$E,7&$A117,勘定入力!$J:$J)) -> 0 | Q117: =IF($A117="",0,SUMIF(勘定入力!$E:$E,7&$A117,勘定入力!$K:$K)) -> 0 | R117: =IF($A117="",0,SUMIF(勘定入力!$E:$E,8&$A117,勘定入力!$J:$J)) -> 0 | S117: =IF($A117="",0,SUMIF(勘定入力!$E:$E,8&$A117,勘定入力!$K:$K)) -> 0 | T117: =IF($A117="",0,SUMIF(勘定入力!$E:$E,9&$A117,勘定入力!$J:$J)) -> 0 | U117: =IF($A117="",0,SUMIF(勘定入力!$E:$E,9&$A117,勘定入力!$K:$K)) -> 0 | V117: =IF($A117="",0,SUMIF(勘定入力!$E:$E,10&$A117,勘定入力!$J:$J)) -> 0 | W117: =IF($A117="",0,SUMIF(勘定入力!$E:$E,10&$A117,勘定入力!$K:$K)) -> 0 | X117: =IF($A117="",0,SUMIF(勘定入力!$E:$E,11&$A117,勘定入力!$J:$J)) -> 0 | Y117: =IF($A117="",0,SUMIF(勘定入力!$E:$E,11&$A117,勘定入力!$K:$K)) -> 0 | Z117: =IF($A117="",0,SUMIF(勘定入力!$E:$E,12&$A117,勘定入力!$J:$J)) -> 0 | AA117: =IF($A117="",0,SUMIF(勘定入力!$E:$E,12&$A117,勘定入力!$K:$K)) -> 0
A118: =入力補助!J55 -> 0 | B118: 0 | C118: 0 | D118: =IF($A118="",0,SUMIF(勘定入力!$E:$E,1&$A118,勘定入力!$J:$J)) -> 0 | E118: =IF($A118="",0,SUMIF(勘定入力!$E:$E,1&$A118,勘定入力!$K:$K)) -> 0 | F118: =IF($A118="",0,SUMIF(勘定入力!$E:$E,2&$A118,勘定入力!$J:$J)) -> 0 | G118: =IF($A118="",0,SUMIF(勘定入力!$E:$E,2&$A118,勘定入力!$K:$K)) -> 0 | H118: =IF($A118="",0,SUMIF(勘定入力!$E:$E,3&$A118,勘定入力!$J:$J)) -> 0 | I118: =IF($A118="",0,SUMIF(勘定入力!$E:$E,3&$A118,勘定入力!$K:$K)) -> 0 | J118: =IF($A118="",0,SUMIF(勘定入力!$E:$E,4&$A118,勘定入力!$J:$J)) -> 0 | K118: =IF($A118="",0,SUMIF(勘定入力!$E:$E,4&$A118,勘定入力!$K:$K)) -> 0 | L118: =IF($A118="",0,SUMIF(勘定入力!$E:$E,5&$A118,勘定入力!$J:$J)) -> 0 | M118: =IF($A118="",0,SUMIF(勘定入力!$E:$E,5&$A118,勘定入力!$K:$K)) -> 0 | N118: =IF($A118="",0,SUMIF(勘定入力!$E:$E,6&$A118,勘定入力!$J:$J)) -> 0 | O118: =IF($A118="",0,SUMIF(勘定入力!$E:$E,6&$A118,勘定入力!$K:$K)) -> 0 | P118: =IF($A118="",0,SUMIF(勘定入力!$E:$E,7&$A118,勘定入力!$J:$J)) -> 0 | Q118: =IF($A118="",0,SUMIF(勘定入力!$E:$E,7&$A118,勘定入力!$K:$K)) -> 0 | R118: =IF($A118="",0,SUMIF(勘定入力!$E:$E,8&$A118,勘定入力!$J:$J)) -> 0 | S118: =IF($A118="",0,SUMIF(勘定入力!$E:$E,8&$A118,勘定入力!$K:$K)) -> 0 | T118: =IF($A118="",0,SUMIF(勘定入力!$E:$E,9&$A118,勘定入力!$J:$J)) -> 0 | U118: =IF($A118="",0,SUMIF(勘定入力!$E:$E,9&$A118,勘定入力!$K:$K)) -> 0 | V118: =IF($A118="",0,SUMIF(勘定入力!$E:$E,10&$A118,勘定入力!$J:$J)) -> 0 | W118: =IF($A118="",0,SUMIF(勘定入力!$E:$E,10&$A118,勘定入力!$K:$K)) -> 0 | X118: =IF($A118="",0,SUMIF(勘定入力!$E:$E,11&$A118,勘定入力!$J:$J)) -> 0 | Y118: =IF($A118="",0,SUMIF(勘定入力!$E:$E,11&$A118,勘定入力!$K:$K)) -> 0 | Z118: =IF($A118="",0,SUMIF(勘定入力!$E:$E,12&$A118,勘定入力!$J:$J)) -> 0 | AA118: =IF($A118="",0,SUMIF(勘定入力!$E:$E,12&$A118,勘定入力!$K:$K)) -> 0
A119: =入力補助!J56 -> その他 | B119: 0 | C119: 0 | D119: =IF($A119="",0,SUMIF(勘定入力!$E:$E,1&$A119,勘定入力!$J:$J)) -> 0 | E119: =IF($A119="",0,SUMIF(勘定入力!$E:$E,1&$A119,勘定入力!$K:$K)) -> 0 | F119: =IF($A119="",0,SUMIF(勘定入力!$E:$E,2&$A119,勘定入力!$J:$J)) -> 0 | G119: =IF($A119="",0,SUMIF(勘定入力!$E:$E,2&$A119,勘定入力!$K:$K)) -> 0 | H119: =IF($A119="",0,SUMIF(勘定入力!$E:$E,3&$A119,勘定入力!$J:$J)) -> 0 | I119: =IF($A119="",0,SUMIF(勘定入力!$E:$E,3&$A119,勘定入力!$K:$K)) -> 0 | J119: =IF($A119="",0,SUMIF(勘定入力!$E:$E,4&$A119,勘定入力!$J:$J)) -> 0 | K119: =IF($A119="",0,SUMIF(勘定入力!$E:$E,4&$A119,勘定入力!$K:$K)) -> 0 | L119: =IF($A119="",0,SUMIF(勘定入力!$E:$E,5&$A119,勘定入力!$J:$J)) -> 0 | M119: =IF($A119="",0,SUMIF(勘定入力!$E:$E,5&$A119,勘定入力!$K:$K)) -> 0 | N119: =IF($A119="",0,SUMIF(勘定入力!$E:$E,6&$A119,勘定入力!$J:$J)) -> 0 | O119: =IF($A119="",0,SUMIF(勘定入力!$E:$E,6&$A119,勘定入力!$K:$K)) -> 0 | P119: =IF($A119="",0,SUMIF(勘定入力!$E:$E,7&$A119,勘定入力!$J:$J)) -> 0 | Q119: =IF($A119="",0,SUMIF(勘定入力!$E:$E,7&$A119,勘定入力!$K:$K)) -> 0 | R119: =IF($A119="",0,SUMIF(勘定入力!$E:$E,8&$A119,勘定入力!$J:$J)) -> 0 | S119: =IF($A119="",0,SUMIF(勘定入力!$E:$E,8&$A119,勘定入力!$K:$K)) -> 0 | T119: =IF($A119="",0,SUMIF(勘定入力!$E:$E,9&$A119,勘定入力!$J:$J)) -> 0 | U119: =IF($A119="",0,SUMIF(勘定入力!$E:$E,9&$A119,勘定入力!$K:$K)) -> 0 | V119: =IF($A119="",0,SUMIF(勘定入力!$E:$E,10&$A119,勘定入力!$J:$J)) -> 0 | W119: =IF($A119="",0,SUMIF(勘定入力!$E:$E,10&$A119,勘定入力!$K:$K)) -> 0 | X119: =IF($A119="",0,SUMIF(勘定入力!$E:$E,11&$A119,勘定入力!$J:$J)) -> 0 | Y119: =IF($A119="",0,SUMIF(勘定入力!$E:$E,11&$A119,勘定入力!$K:$K)) -> 0 | Z119: =IF($A119="",0,SUMIF(勘定入力!$E:$E,12&$A119,勘定入力!$J:$J)) -> 0 | AA119: =IF($A119="",0,SUMIF(勘定入力!$E:$E,12&$A119,勘定入力!$K:$K)) -> 0
A120: =入力補助!J57 -> 該当無 | B120: 10000 | C120: 0 | D120: =IF($A120="",0,SUMIF(勘定入力!$E:$E,1&$A120,勘定入力!$J:$J)) -> 10000 | E120: =IF($A120="",0,SUMIF(勘定入力!$E:$E,1&$A120,勘定入力!$K:$K)) -> 0 | F120: =IF($A120="",0,SUMIF(勘定入力!$E:$E,2&$A120,勘定入力!$J:$J)) -> 0 | G120: =IF($A120="",0,SUMIF(勘定入力!$E:$E,2&$A120,勘定入力!$K:$K)) -> 0 | H120: =IF($A120="",0,SUMIF(勘定入力!$E:$E,3&$A120,勘定入力!$J:$J)) -> 0 | I120: =IF($A120="",0,SUMIF(勘定入力!$E:$E,3&$A120,勘定入力!$K:$K)) -> 0 | J120: =IF($A120="",0,SUMIF(勘定入力!$E:$E,4&$A120,勘定入力!$J:$J)) -> 0 | K120: =IF($A120="",0,SUMIF(勘定入力!$E:$E,4&$A120,勘定入力!$K:$K)) -> 0 | L120: =IF($A120="",0,SUMIF(勘定入力!$E:$E,5&$A120,勘定入力!$J:$J)) -> 0 | M120: =IF($A120="",0,SUMIF(勘定入力!$E:$E,5&$A120,勘定入力!$K:$K)) -> 0 | N120: =IF($A120="",0,SUMIF(勘定入力!$E:$E,6&$A120,勘定入力!$J:$J)) -> 0 | O120: =IF($A120="",0,SUMIF(勘定入力!$E:$E,6&$A120,勘定入力!$K:$K)) -> 0 | P120: =IF($A120="",0,SUMIF(勘定入力!$E:$E,7&$A120,勘定入力!$J:$J)) -> 0 | Q120: =IF($A120="",0,SUMIF(勘定入力!$E:$E,7&$A120,勘定入力!$K:$K)) -> 0 | R120: =IF($A120="",0,SUMIF(勘定入力!$E:$E,8&$A120,勘定入力!$J:$J)) -> 0 | S120: =IF($A120="",0,SUMIF(勘定入力!$E:$E,8&$A120,勘定入力!$K:$K)) -> 0 | T120: =IF($A120="",0,SUMIF(勘定入力!$E:$E,9&$A120,勘定入力!$J:$J)) -> 0 | U120: =IF($A120="",0,SUMIF(勘定入力!$E:$E,9&$A120,勘定入力!$K:$K)) -> 0 | V120: =IF($A120="",0,SUMIF(勘定入力!$E:$E,10&$A120,勘定入力!$J:$J)) -> 0 | W120: =IF($A120="",0,SUMIF(勘定入力!$E:$E,10&$A120,勘定入力!$K:$K)) -> 0 | X120: =IF($A120="",0,SUMIF(勘定入力!$E:$E,11&$A120,勘定入力!$J:$J)) -> 0 | Y120: =IF($A120="",0,SUMIF(勘定入力!$E:$E,11&$A120,勘定入力!$K:$K)) -> 0 | Z120: =IF($A120="",0,SUMIF(勘定入力!$E:$E,12&$A120,勘定入力!$J:$J)) -> 0 | AA120: =IF($A120="",0,SUMIF(勘定入力!$E:$E,12&$A120,勘定入力!$K:$K)) -> 0
A121: 合計 | B121: =SUM(B66:B120) -> 40500 | C121: 35200 | D121: 10000 | E121: 1100 | F121: 5000 | G121: 1100 | H121: 5000 | I121: 2100 | J121: 0 | K121: 3100 | L121: 0 | M121: 4100 | N121: 200 | O121: 3100 | P121: 0 | Q121: 6100 | R121: 5000 | S121: 4100 | T121: 5300 | U121: 4100 | V121: 0 | W121: 4100 | X121: 5000 | Y121: 1100 | Z121: 5000 | AA121: 1100
A123: =勘定入力!N3 -> 施工者・メーカ | B123: 年間合計 | D123: １月 | F123: ２月 | H123: ３月 | J123: ４月 | L123: ５月 | N123: ６月 | P123: ７月 | R123: ８月 | T123: ９月 | V123: １０月 | X123: １１月 | Z123: １２月
A124: =IF(B3=B180,"","入力確認要") ->  | B124: 入金 | C124: 支払 | D124: 入金 | E124: 支払 | F124: 入金 | G124: 支払 | H124: 入金 | I124: 支払 | J124: 入金 | K124: 支払 | L124: 入金 | M124: 支払 | N124: 入金 | O124: 支払 | P124: 入金 | Q124: 支払 | R124: 入金 | S124: 支払 | T124: 入金 | U124: 支払 | V124: 入金 | W124: 支払 | X124: 入金 | Y124: 支払 | Z124: 入金 | AA124: 支払
A125: =入力補助!M3 -> ○○会社 | B125: =D125+F125+H125+J125+L125+N125+P125+R125+T125+V125+X125+Z125 -> 30500 | C125: =E125+G125+I125+K125+M125+O125+Q125+S125+U125+W125+Y125+AA125 -> 1200 | D125: =IF($A125="",0,SUMIF(勘定入力!$F:$F,1&$A125,勘定入力!$J:$J)) -> 0 | E125: =IF($A125="",0,SUMIF(勘定入力!$F:$F,1&$A125,勘定入力!$K:$K)) -> 100 | F125: =IF($A125="",0,SUMIF(勘定入力!$F:$F,2&$A125,勘定入力!$J:$J)) -> 5000 | G125: =IF($A125="",0,SUMIF(勘定入力!$F:$F,2&$A125,勘定入力!$K:$K)) -> 100 | H125: =IF($A125="",0,SUMIF(勘定入力!$F:$F,3&$A125,勘定入力!$J:$J)) -> 5000 | I125: =IF($A125="",0,SUMIF(勘定入力!$F:$F,3&$A125,勘定入力!$K:$K)) -> 100 | J125: =IF($A125="",0,SUMIF(勘定入力!$F:$F,4&$A125,勘定入力!$J:$J)) -> 0 | K125: =IF($A125="",0,SUMIF(勘定入力!$F:$F,4&$A125,勘定入力!$K:$K)) -> 100 | L125: =IF($A125="",0,SUMIF(勘定入力!$F:$F,5&$A125,勘定入力!$J:$J)) -> 0 | M125: =IF($A125="",0,SUMIF(勘定入力!$F:$F,5&$A125,勘定入力!$K:$K)) -> 100 | N125: =IF($A125="",0,SUMIF(勘定入力!$F:$F,6&$A125,勘定入力!$J:$J)) -> 200 | O125: =IF($A125="",0,SUMIF(勘定入力!$F:$F,6&$A125,勘定入力!$K:$K)) -> 100 | P125: =IF($A125="",0,SUMIF(勘定入力!$F:$F,7&$A125,勘定入力!$J:$J)) -> 0 | Q125: =IF($A125="",0,SUMIF(勘定入力!$F:$F,7&$A125,勘定入力!$K:$K)) -> 100 | R125: =IF($A125="",0,SUMIF(勘定入力!$F:$F,8&$A125,勘定入力!$J:$J)) -> 5000 | S125: =IF($A125="",0,SUMIF(勘定入力!$F:$F,8&$A125,勘定入力!$K:$K)) -> 100 | T125: =IF($A125="",0,SUMIF(勘定入力!$F:$F,9&$A125,勘定入力!$J:$J)) -> 5300 | U125: =IF($A125="",0,SUMIF(勘定入力!$F:$F,9&$A125,勘定入力!$K:$K)) -> 100 | V125: =IF($A125="",0,SUMIF(勘定入力!$F:$F,10&$A125,勘定入力!$J:$J)) -> 0 | W125: =IF($A125="",0,SUMIF(勘定入力!$F:$F,10&$A125,勘定入力!$K:$K)) -> 100 | X125: =IF($A125="",0,SUMIF(勘定入力!$F:$F,11&$A125,勘定入力!$J:$J)) -> 5000 | Y125: =IF($A125="",0,SUMIF(勘定入力!$F:$F,11&$A125,勘定入力!$K:$K)) -> 100 | Z125: =IF($A125="",0,SUMIF(勘定入力!$F:$F,12&$A125,勘定入力!$J:$J)) -> 5000 | AA125: =IF($A125="",0,SUMIF(勘定入力!$F:$F,12&$A125,勘定入力!$K:$K)) -> 100
A126: =入力補助!M4 -> 会社（固定費） | B126: =D126+F126+H126+J126+L126+N126+P126+R126+T126+V126+X126+Z126 -> 0 | C126: =E126+G126+I126+K126+M126+O126+Q126+S126+U126+W126+Y126+AA126 -> 12000 | D126: =IF($A126="",0,SUMIF(勘定入力!$F:$F,1&$A126,勘定入力!$J:$J)) -> 0 | E126: =IF($A126="",0,SUMIF(勘定入力!$F:$F,1&$A126,勘定入力!$K:$K)) -> 1000 | F126: =IF($A126="",0,SUMIF(勘定入力!$F:$F,2&$A126,勘定入力!$J:$J)) -> 0 | G126: =IF($A126="",0,SUMIF(勘定入力!$F:$F,2&$A126,勘定入力!$K:$K)) -> 1000 | H126: =IF($A126="",0,SUMIF(勘定入力!$F:$F,3&$A126,勘定入力!$J:$J)) -> 0 | I126: =IF($A126="",0,SUMIF(勘定入力!$F:$F,3&$A126,勘定入力!$K:$K)) -> 1000 | J126: =IF($A126="",0,SUMIF(勘定入力!$F:$F,4&$A126,勘定入力!$J:$J)) -> 0 | K126: =IF($A126="",0,SUMIF(勘定入力!$F:$F,4&$A126,勘定入力!$K:$K)) -> 1000 | L126: =IF($A126="",0,SUMIF(勘定入力!$F:$F,5&$A126,勘定入力!$J:$J)) -> 0 | M126: =IF($A126="",0,SUMIF(勘定入力!$F:$F,5&$A126,勘定入力!$K:$K)) -> 1000 | N126: =IF($A126="",0,SUMIF(勘定入力!$F:$F,6&$A126,勘定入力!$J:$J)) -> 0 | O126: =IF($A126="",0,SUMIF(勘定入力!$F:$F,6&$A126,勘定入力!$K:$K)) -> 1000 | P126: =IF($A126="",0,SUMIF(勘定入力!$F:$F,7&$A126,勘定入力!$J:$J)) -> 0 | Q126: =IF($A126="",0,SUMIF(勘定入力!$F:$F,7&$A126,勘定入力!$K:$K)) -> 1000 | R126: =IF($A126="",0,SUMIF(勘定入力!$F:$F,8&$A126,勘定入力!$J:$J)) -> 0 | S126: =IF($A126="",0,SUMIF(勘定入力!$F:$F,8&$A126,勘定入力!$K:$K)) -> 1000 | T126: =IF($A126="",0,SUMIF(勘定入力!$F:$F,9&$A126,勘定入力!$J:$J)) -> 0 | U126: =IF($A126="",0,SUMIF(勘定入力!$F:$F,9&$A126,勘定入力!$K:$K)) -> 1000 | V126: =IF($A126="",0,SUMIF(勘定入力!$F:$F,10&$A126,勘定入力!$J:$J)) -> 0 | W126: =IF($A126="",0,SUMIF(勘定入力!$F:$F,10&$A126,勘定入力!$K:$K)) -> 1000 | X126: =IF($A126="",0,SUMIF(勘定入力!$F:$F,11&$A126,勘定入力!$J:$J)) -> 0 | Y126: =IF($A126="",0,SUMIF(勘定入力!$F:$F,11&$A126,勘定入力!$K:$K)) -> 1000 | Z126: =IF($A126="",0,SUMIF(勘定入力!$F:$F,12&$A126,勘定入力!$J:$J)) -> 0 | AA126: =IF($A126="",0,SUMIF(勘定入力!$F:$F,12&$A126,勘定入力!$K:$K)) -> 1000
A127: =入力補助!M5 -> その他協力会社 | B127: 0 | C127: 0 | D127: =IF($A127="",0,SUMIF(勘定入力!$F:$F,1&$A127,勘定入力!$J:$J)) -> 0 | E127: =IF($A127="",0,SUMIF(勘定入力!$F:$F,1&$A127,勘定入力!$K:$K)) -> 0 | F127: =IF($A127="",0,SUMIF(勘定入力!$F:$F,2&$A127,勘定入力!$J:$J)) -> 0 | G127: =IF($A127="",0,SUMIF(勘定入力!$F:$F,2&$A127,勘定入力!$K:$K)) -> 0 | H127: =IF($A127="",0,SUMIF(勘定入力!$F:$F,3&$A127,勘定入力!$J:$J)) -> 0 | I127: =IF($A127="",0,SUMIF(勘定入力!$F:$F,3&$A127,勘定入力!$K:$K)) -> 0 | J127: =IF($A127="",0,SUMIF(勘定入力!$F:$F,4&$A127,勘定入力!$J:$J)) -> 0 | K127: =IF($A127="",0,SUMIF(勘定入力!$F:$F,4&$A127,勘定入力!$K:$K)) -> 0 | L127: =IF($A127="",0,SUMIF(勘定入力!$F:$F,5&$A127,勘定入力!$J:$J)) -> 0 | M127: =IF($A127="",0,SUMIF(勘定入力!$F:$F,5&$A127,勘定入力!$K:$K)) -> 0 | N127: =IF($A127="",0,SUMIF(勘定入力!$F:$F,6&$A127,勘定入力!$J:$J)) -> 0 | O127: =IF($A127="",0,SUMIF(勘定入力!$F:$F,6&$A127,勘定入力!$K:$K)) -> 0 | P127: =IF($A127="",0,SUMIF(勘定入力!$F:$F,7&$A127,勘定入力!$J:$J)) -> 0 | Q127: =IF($A127="",0,SUMIF(勘定入力!$F:$F,7&$A127,勘定入力!$K:$K)) -> 0 | R127: =IF($A127="",0,SUMIF(勘定入力!$F:$F,8&$A127,勘定入力!$J:$J)) -> 0 | S127: =IF($A127="",0,SUMIF(勘定入力!$F:$F,8&$A127,勘定入力!$K:$K)) -> 0 | T127: =IF($A127="",0,SUMIF(勘定入力!$F:$F,9&$A127,勘定入力!$J:$J)) -> 0 | U127: =IF($A127="",0,SUMIF(勘定入力!$F:$F,9&$A127,勘定入力!$K:$K)) -> 0 | V127: =IF($A127="",0,SUMIF(勘定入力!$F:$F,10&$A127,勘定入力!$J:$J)) -> 0 | W127: =IF($A127="",0,SUMIF(勘定入力!$F:$F,10&$A127,勘定入力!$K:$K)) -> 0 | X127: =IF($A127="",0,SUMIF(勘定入力!$F:$F,11&$A127,勘定入力!$J:$J)) -> 0 | Y127: =IF($A127="",0,SUMIF(勘定入力!$F:$F,11&$A127,勘定入力!$K:$K)) -> 0 | Z127: =IF($A127="",0,SUMIF(勘定入力!$F:$F,12&$A127,勘定入力!$J:$J)) -> 0 | AA127: =IF($A127="",0,SUMIF(勘定入力!$F:$F,12&$A127,勘定入力!$K:$K)) -> 0
A128: =入力補助!M6 -> 自社施工 | B128: 0 | C128: 2000 | D128: =IF($A128="",0,SUMIF(勘定入力!$F:$F,1&$A128,勘定入力!$J:$J)) -> 0 | E128: =IF($A128="",0,SUMIF(勘定入力!$F:$F,1&$A128,勘定入力!$K:$K)) -> 0 | F128: =IF($A128="",0,SUMIF(勘定入力!$F:$F,2&$A128,勘定入力!$J:$J)) -> 0 | G128: =IF($A128="",0,SUMIF(勘定入力!$F:$F,2&$A128,勘定入力!$K:$K)) -> 0 | H128: =IF($A128="",0,SUMIF(勘定入力!$F:$F,3&$A128,勘定入力!$J:$J)) -> 0 | I128: =IF($A128="",0,SUMIF(勘定入力!$F:$F,3&$A128,勘定入力!$K:$K)) -> 1000 | J128: =IF($A128="",0,SUMIF(勘定入力!$F:$F,4&$A128,勘定入力!$J:$J)) -> 0 | K128: =IF($A128="",0,SUMIF(勘定入力!$F:$F,4&$A128,勘定入力!$K:$K)) -> 0 | L128: =IF($A128="",0,SUMIF(勘定入力!$F:$F,5&$A128,勘定入力!$J:$J)) -> 0 | M128: =IF($A128="",0,SUMIF(勘定入力!$F:$F,5&$A128,勘定入力!$K:$K)) -> 1000 | N128: =IF($A128="",0,SUMIF(勘定入力!$F:$F,6&$A128,勘定入力!$J:$J)) -> 0 | O128: =IF($A128="",0,SUMIF(勘定入力!$F:$F,6&$A128,勘定入力!$K:$K)) -> 0 | P128: =IF($A128="",0,SUMIF(勘定入力!$F:$F,7&$A128,勘定入力!$J:$J)) -> 0 | Q128: =IF($A128="",0,SUMIF(勘定入力!$F:$F,7&$A128,勘定入力!$K:$K)) -> 0 | R128: =IF($A128="",0,SUMIF(勘定入力!$F:$F,8&$A128,勘定入力!$J:$J)) -> 0 | S128: =IF($A128="",0,SUMIF(勘定入力!$F:$F,8&$A128,勘定入力!$K:$K)) -> 0 | T128: =IF($A128="",0,SUMIF(勘定入力!$F:$F,9&$A128,勘定入力!$J:$J)) -> 0 | U128: =IF($A128="",0,SUMIF(勘定入力!$F:$F,9&$A128,勘定入力!$K:$K)) -> 0 | V128: =IF($A128="",0,SUMIF(勘定入力!$F:$F,10&$A128,勘定入力!$J:$J)) -> 0 | W128: =IF($A128="",0,SUMIF(勘定入力!$F:$F,10&$A128,勘定入力!$K:$K)) -> 0 | X128: =IF($A128="",0,SUMIF(勘定入力!$F:$F,11&$A128,勘定入力!$J:$J)) -> 0 | Y128: =IF($A128="",0,SUMIF(勘定入力!$F:$F,11&$A128,勘定入力!$K:$K)) -> 0 | Z128: =IF($A128="",0,SUMIF(勘定入力!$F:$F,12&$A128,勘定入力!$J:$J)) -> 0 | AA128: =IF($A128="",0,SUMIF(勘定入力!$F:$F,12&$A128,勘定入力!$K:$K)) -> 0
A129: =入力補助!M7 -> B1社 | B129: 0 | C129: 4000 | D129: =IF($A129="",0,SUMIF(勘定入力!$F:$F,1&$A129,勘定入力!$J:$J)) -> 0 | E129: =IF($A129="",0,SUMIF(勘定入力!$F:$F,1&$A129,勘定入力!$K:$K)) -> 0 | F129: =IF($A129="",0,SUMIF(勘定入力!$F:$F,2&$A129,勘定入力!$J:$J)) -> 0 | G129: =IF($A129="",0,SUMIF(勘定入力!$F:$F,2&$A129,勘定入力!$K:$K)) -> 0 | H129: =IF($A129="",0,SUMIF(勘定入力!$F:$F,3&$A129,勘定入力!$J:$J)) -> 0 | I129: =IF($A129="",0,SUMIF(勘定入力!$F:$F,3&$A129,勘定入力!$K:$K)) -> 0 | J129: =IF($A129="",0,SUMIF(勘定入力!$F:$F,4&$A129,勘定入力!$J:$J)) -> 0 | K129: =IF($A129="",0,SUMIF(勘定入力!$F:$F,4&$A129,勘定入力!$K:$K)) -> 0 | L129: =IF($A129="",0,SUMIF(勘定入力!$F:$F,5&$A129,勘定入力!$J:$J)) -> 0 | M129: =IF($A129="",0,SUMIF(勘定入力!$F:$F,5&$A129,勘定入力!$K:$K)) -> 0 | N129: =IF($A129="",0,SUMIF(勘定入力!$F:$F,6&$A129,勘定入力!$J:$J)) -> 0 | O129: =IF($A129="",0,SUMIF(勘定入力!$F:$F,6&$A129,勘定入力!$K:$K)) -> 2000 | P129: =IF($A129="",0,SUMIF(勘定入力!$F:$F,7&$A129,勘定入力!$J:$J)) -> 0 | Q129: =IF($A129="",0,SUMIF(勘定入力!$F:$F,7&$A129,勘定入力!$K:$K)) -> 2000 | R129: =IF($A129="",0,SUMIF(勘定入力!$F:$F,8&$A129,勘定入力!$J:$J)) -> 0 | S129: =IF($A129="",0,SUMIF(勘定入力!$F:$F,8&$A129,勘定入力!$K:$K)) -> 0 | T129: =IF($A129="",0,SUMIF(勘定入力!$F:$F,9&$A129,勘定入力!$J:$J)) -> 0 | U129: =IF($A129="",0,SUMIF(勘定入力!$F:$F,9&$A129,勘定入力!$K:$K)) -> 0 | V129: =IF($A129="",0,SUMIF(勘定入力!$F:$F,10&$A129,勘定入力!$J:$J)) -> 0 | W129: =IF($A129="",0,SUMIF(勘定入力!$F:$F,10&$A129,勘定入力!$K:$K)) -> 0 | X129: =IF($A129="",0,SUMIF(勘定入力!$F:$F,11&$A129,勘定入力!$J:$J)) -> 0 | Y129: =IF($A129="",0,SUMIF(勘定入力!$F:$F,11&$A129,勘定入力!$K:$K)) -> 0 | Z129: =IF($A129="",0,SUMIF(勘定入力!$F:$F,12&$A129,勘定入力!$J:$J)) -> 0 | AA129: =IF($A129="",0,SUMIF(勘定入力!$F:$F,12&$A129,勘定入力!$K:$K)) -> 0
A130: =入力補助!M8 -> B2社 | B130: 0 | C130: 0 | D130: =IF($A130="",0,SUMIF(勘定入力!$F:$F,1&$A130,勘定入力!$J:$J)) -> 0 | E130: =IF($A130="",0,SUMIF(勘定入力!$F:$F,1&$A130,勘定入力!$K:$K)) -> 0 | F130: =IF($A130="",0,SUMIF(勘定入力!$F:$F,2&$A130,勘定入力!$J:$J)) -> 0 | G130: =IF($A130="",0,SUMIF(勘定入力!$F:$F,2&$A130,勘定入力!$K:$K)) -> 0 | H130: =IF($A130="",0,SUMIF(勘定入力!$F:$F,3&$A130,勘定入力!$J:$J)) -> 0 | I130: =IF($A130="",0,SUMIF(勘定入力!$F:$F,3&$A130,勘定入力!$K:$K)) -> 0 | J130: =IF($A130="",0,SUMIF(勘定入力!$F:$F,4&$A130,勘定入力!$J:$J)) -> 0 | K130: =IF($A130="",0,SUMIF(勘定入力!$F:$F,4&$A130,勘定入力!$K:$K)) -> 0 | L130: =IF($A130="",0,SUMIF(勘定入力!$F:$F,5&$A130,勘定入力!$J:$J)) -> 0 | M130: =IF($A130="",0,SUMIF(勘定入力!$F:$F,5&$A130,勘定入力!$K:$K)) -> 0 | N130: =IF($A130="",0,SUMIF(勘定入力!$F:$F,6&$A130,勘定入力!$J:$J)) -> 0 | O130: =IF($A130="",0,SUMIF(勘定入力!$F:$F,6&$A130,勘定入力!$K:$K)) -> 0 | P130: =IF($A130="",0,SUMIF(勘定入力!$F:$F,7&$A130,勘定入力!$J:$J)) -> 0 | Q130: =IF($A130="",0,SUMIF(勘定入力!$F:$F,7&$A130,勘定入力!$K:$K)) -> 0 | R130: =IF($A130="",0,SUMIF(勘定入力!$F:$F,8&$A130,勘定入力!$J:$J)) -> 0 | S130: =IF($A130="",0,SUMIF(勘定入力!$F:$F,8&$A130,勘定入力!$K:$K)) -> 0 | T130: =IF($A130="",0,SUMIF(勘定入力!$F:$F,9&$A130,勘定入力!$J:$J)) -> 0 | U130: =IF($A130="",0,SUMIF(勘定入力!$F:$F,9&$A130,勘定入力!$K:$K)) -> 0 | V130: =IF($A130="",0,SUMIF(勘定入力!$F:$F,10&$A130,勘定入力!$J:$J)) -> 0 | W130: =IF($A130="",0,SUMIF(勘定入力!$F:$F,10&$A130,勘定入力!$K:$K)) -> 0 | X130: =IF($A130="",0,SUMIF(勘定入力!$F:$F,11&$A130,勘定入力!$J:$J)) -> 0 | Y130: =IF($A130="",0,SUMIF(勘定入力!$F:$F,11&$A130,勘定入力!$K:$K)) -> 0 | Z130: =IF($A130="",0,SUMIF(勘定入力!$F:$F,12&$A130,勘定入力!$J:$J)) -> 0 | AA130: =IF($A130="",0,SUMIF(勘定入力!$F:$F,12&$A130,勘定入力!$K:$K)) -> 0
A131: =入力補助!M9 -> B3社 | B131: 0 | C131: 6000 | D131: =IF($A131="",0,SUMIF(勘定入力!$F:$F,1&$A131,勘定入力!$J:$J)) -> 0 | E131: =IF($A131="",0,SUMIF(勘定入力!$F:$F,1&$A131,勘定入力!$K:$K)) -> 0 | F131: =IF($A131="",0,SUMIF(勘定入力!$F:$F,2&$A131,勘定入力!$J:$J)) -> 0 | G131: =IF($A131="",0,SUMIF(勘定入力!$F:$F,2&$A131,勘定入力!$K:$K)) -> 0 | H131: =IF($A131="",0,SUMIF(勘定入力!$F:$F,3&$A131,勘定入力!$J:$J)) -> 0 | I131: =IF($A131="",0,SUMIF(勘定入力!$F:$F,3&$A131,勘定入力!$K:$K)) -> 0 | J131: =IF($A131="",0,SUMIF(勘定入力!$F:$F,4&$A131,勘定入力!$J:$J)) -> 0 | K131: =IF($A131="",0,SUMIF(勘定入力!$F:$F,4&$A131,勘定入力!$K:$K)) -> 0 | L131: =IF($A131="",0,SUMIF(勘定入力!$F:$F,5&$A131,勘定入力!$J:$J)) -> 0 | M131: =IF($A131="",0,SUMIF(勘定入力!$F:$F,5&$A131,勘定入力!$K:$K)) -> 0 | N131: =IF($A131="",0,SUMIF(勘定入力!$F:$F,6&$A131,勘定入力!$J:$J)) -> 0 | O131: =IF($A131="",0,SUMIF(勘定入力!$F:$F,6&$A131,勘定入力!$K:$K)) -> 0 | P131: =IF($A131="",0,SUMIF(勘定入力!$F:$F,7&$A131,勘定入力!$J:$J)) -> 0 | Q131: =IF($A131="",0,SUMIF(勘定入力!$F:$F,7&$A131,勘定入力!$K:$K)) -> 0 | R131: =IF($A131="",0,SUMIF(勘定入力!$F:$F,8&$A131,勘定入力!$J:$J)) -> 0 | S131: =IF($A131="",0,SUMIF(勘定入力!$F:$F,8&$A131,勘定入力!$K:$K)) -> 0 | T131: =IF($A131="",0,SUMIF(勘定入力!$F:$F,9&$A131,勘定入力!$J:$J)) -> 0 | U131: =IF($A131="",0,SUMIF(勘定入力!$F:$F,9&$A131,勘定入力!$K:$K)) -> 3000 | V131: =IF($A131="",0,SUMIF(勘定入力!$F:$F,10&$A131,勘定入力!$J:$J)) -> 0 | W131: =IF($A131="",0,SUMIF(勘定入力!$F:$F,10&$A131,勘定入力!$K:$K)) -> 3000 | X131: =IF($A131="",0,SUMIF(勘定入力!$F:$F,11&$A131,勘定入力!$J:$J)) -> 0 | Y131: =IF($A131="",0,SUMIF(勘定入力!$F:$F,11&$A131,勘定入力!$K:$K)) -> 0 | Z131: =IF($A131="",0,SUMIF(勘定入力!$F:$F,12&$A131,勘定入力!$J:$J)) -> 0 | AA131: =IF($A131="",0,SUMIF(勘定入力!$F:$F,12&$A131,勘定入力!$K:$K)) -> 0
A132: =入力補助!M10 -> B4社 | B132: 0 | C132: 6000 | D132: =IF($A132="",0,SUMIF(勘定入力!$F:$F,1&$A132,勘定入力!$J:$J)) -> 0 | E132: =IF($A132="",0,SUMIF(勘定入力!$F:$F,1&$A132,勘定入力!$K:$K)) -> 0 | F132: =IF($A132="",0,SUMIF(勘定入力!$F:$F,2&$A132,勘定入力!$J:$J)) -> 0 | G132: =IF($A132="",0,SUMIF(勘定入力!$F:$F,2&$A132,勘定入力!$K:$K)) -> 0 | H132: =IF($A132="",0,SUMIF(勘定入力!$F:$F,3&$A132,勘定入力!$J:$J)) -> 0 | I132: =IF($A132="",0,SUMIF(勘定入力!$F:$F,3&$A132,勘定入力!$K:$K)) -> 0 | J132: =IF($A132="",0,SUMIF(勘定入力!$F:$F,4&$A132,勘定入力!$J:$J)) -> 0 | K132: =IF($A132="",0,SUMIF(勘定入力!$F:$F,4&$A132,勘定入力!$K:$K)) -> 0 | L132: =IF($A132="",0,SUMIF(勘定入力!$F:$F,5&$A132,勘定入力!$J:$J)) -> 0 | M132: =IF($A132="",0,SUMIF(勘定入力!$F:$F,5&$A132,勘定入力!$K:$K)) -> 0 | N132: =IF($A132="",0,SUMIF(勘定入力!$F:$F,6&$A132,勘定入力!$J:$J)) -> 0 | O132: =IF($A132="",0,SUMIF(勘定入力!$F:$F,6&$A132,勘定入力!$K:$K)) -> 0 | P132: =IF($A132="",0,SUMIF(勘定入力!$F:$F,7&$A132,勘定入力!$J:$J)) -> 0 | Q132: =IF($A132="",0,SUMIF(勘定入力!$F:$F,7&$A132,勘定入力!$K:$K)) -> 3000 | R132: =IF($A132="",0,SUMIF(勘定入力!$F:$F,8&$A132,勘定入力!$J:$J)) -> 0 | S132: =IF($A132="",0,SUMIF(勘定入力!$F:$F,8&$A132,勘定入力!$K:$K)) -> 3000 | T132: =IF($A132="",0,SUMIF(勘定入力!$F:$F,9&$A132,勘定入力!$J:$J)) -> 0 | U132: =IF($A132="",0,SUMIF(勘定入力!$F:$F,9&$A132,勘定入力!$K:$K)) -> 0 | V132: =IF($A132="",0,SUMIF(勘定入力!$F:$F,10&$A132,勘定入力!$J:$J)) -> 0 | W132: =IF($A132="",0,SUMIF(勘定入力!$F:$F,10&$A132,勘定入力!$K:$K)) -> 0 | X132: =IF($A132="",0,SUMIF(勘定入力!$F:$F,11&$A132,勘定入力!$J:$J)) -> 0 | Y132: =IF($A132="",0,SUMIF(勘定入力!$F:$F,11&$A132,勘定入力!$K:$K)) -> 0 | Z132: =IF($A132="",0,SUMIF(勘定入力!$F:$F,12&$A132,勘定入力!$J:$J)) -> 0 | AA132: =IF($A132="",0,SUMIF(勘定入力!$F:$F,12&$A132,勘定入力!$K:$K)) -> 0
A133: =入力補助!M11 -> B5社 | B133: 0 | C133: 4000 | D133: =IF($A133="",0,SUMIF(勘定入力!$F:$F,1&$A133,勘定入力!$J:$J)) -> 0 | E133: =IF($A133="",0,SUMIF(勘定入力!$F:$F,1&$A133,勘定入力!$K:$K)) -> 0 | F133: =IF($A133="",0,SUMIF(勘定入力!$F:$F,2&$A133,勘定入力!$J:$J)) -> 0 | G133: =IF($A133="",0,SUMIF(勘定入力!$F:$F,2&$A133,勘定入力!$K:$K)) -> 0 | H133: =IF($A133="",0,SUMIF(勘定入力!$F:$F,3&$A133,勘定入力!$J:$J)) -> 0 | I133: =IF($A133="",0,SUMIF(勘定入力!$F:$F,3&$A133,勘定入力!$K:$K)) -> 0 | J133: =IF($A133="",0,SUMIF(勘定入力!$F:$F,4&$A133,勘定入力!$J:$J)) -> 0 | K133: =IF($A133="",0,SUMIF(勘定入力!$F:$F,4&$A133,勘定入力!$K:$K)) -> 2000 | L133: =IF($A133="",0,SUMIF(勘定入力!$F:$F,5&$A133,勘定入力!$J:$J)) -> 0 | M133: =IF($A133="",0,SUMIF(勘定入力!$F:$F,5&$A133,勘定入力!$K:$K)) -> 2000 | N133: =IF($A133="",0,SUMIF(勘定入力!$F:$F,6&$A133,勘定入力!$J:$J)) -> 0 | O133: =IF($A133="",0,SUMIF(勘定入力!$F:$F,6&$A133,勘定入力!$K:$K)) -> 0 | P133: =IF($A133="",0,SUMIF(勘定入力!$F:$F,7&$A133,勘定入力!$J:$J)) -> 0 | Q133: =IF($A133="",0,SUMIF(勘定入力!$F:$F,7&$A133,勘定入力!$K:$K)) -> 0 | R133: =IF($A133="",0,SUMIF(勘定入力!$F:$F,8&$A133,勘定入力!$J:$J)) -> 0 | S133: =IF($A133="",0,SUMIF(勘定入力!$F:$F,8&$A133,勘定入力!$K:$K)) -> 0 | T133: =IF($A133="",0,SUMIF(勘定入力!$F:$F,9&$A133,勘定入力!$J:$J)) -> 0 | U133: =IF($A133="",0,SUMIF(勘定入力!$F:$F,9&$A133,勘定入力!$K:$K)) -> 0 | V133: =IF($A133="",0,SUMIF(勘定入力!$F:$F,10&$A133,勘定入力!$J:$J)) -> 0 | W133: =IF($A133="",0,SUMIF(勘定入力!$F:$F,10&$A133,勘定入力!$K:$K)) -> 0 | X133: =IF($A133="",0,SUMIF(勘定入力!$F:$F,11&$A133,勘定入力!$J:$J)) -> 0 | Y133: =IF($A133="",0,SUMIF(勘定入力!$F:$F,11&$A133,勘定入力!$K:$K)) -> 0 | Z133: =IF($A133="",0,SUMIF(勘定入力!$F:$F,12&$A133,勘定入力!$J:$J)) -> 0 | AA133: =IF($A133="",0,SUMIF(勘定入力!$F:$F,12&$A133,勘定入力!$K:$K)) -> 0
A134: =入力補助!M12 -> B6社 | B134: 0 | C134: 0 | D134: =IF($A134="",0,SUMIF(勘定入力!$F:$F,1&$A134,勘定入力!$J:$J)) -> 0 | E134: =IF($A134="",0,SUMIF(勘定入力!$F:$F,1&$A134,勘定入力!$K:$K)) -> 0 | F134: =IF($A134="",0,SUMIF(勘定入力!$F:$F,2&$A134,勘定入力!$J:$J)) -> 0 | G134: =IF($A134="",0,SUMIF(勘定入力!$F:$F,2&$A134,勘定入力!$K:$K)) -> 0 | H134: =IF($A134="",0,SUMIF(勘定入力!$F:$F,3&$A134,勘定入力!$J:$J)) -> 0 | I134: =IF($A134="",0,SUMIF(勘定入力!$F:$F,3&$A134,勘定入力!$K:$K)) -> 0 | J134: =IF($A134="",0,SUMIF(勘定入力!$F:$F,4&$A134,勘定入力!$J:$J)) -> 0 | K134: =IF($A134="",0,SUMIF(勘定入力!$F:$F,4&$A134,勘定入力!$K:$K)) -> 0 | L134: =IF($A134="",0,SUMIF(勘定入力!$F:$F,5&$A134,勘定入力!$J:$J)) -> 0 | M134: =IF($A134="",0,SUMIF(勘定入力!$F:$F,5&$A134,勘定入力!$K:$K)) -> 0 | N134: =IF($A134="",0,SUMIF(勘定入力!$F:$F,6&$A134,勘定入力!$J:$J)) -> 0 | O134: =IF($A134="",0,SUMIF(勘定入力!$F:$F,6&$A134,勘定入力!$K:$K)) -> 0 | P134: =IF($A134="",0,SUMIF(勘定入力!$F:$F,7&$A134,勘定入力!$J:$J)) -> 0 | Q134: =IF($A134="",0,SUMIF(勘定入力!$F:$F,7&$A134,勘定入力!$K:$K)) -> 0 | R134: =IF($A134="",0,SUMIF(勘定入力!$F:$F,8&$A134,勘定入力!$J:$J)) -> 0 | S134: =IF($A134="",0,SUMIF(勘定入力!$F:$F,8&$A134,勘定入力!$K:$K)) -> 0 | T134: =IF($A134="",0,SUMIF(勘定入力!$F:$F,9&$A134,勘定入力!$J:$J)) -> 0 | U134: =IF($A134="",0,SUMIF(勘定入力!$F:$F,9&$A134,勘定入力!$K:$K)) -> 0 | V134: =IF($A134="",0,SUMIF(勘定入力!$F:$F,10&$A134,勘定入力!$J:$J)) -> 0 | W134: =IF($A134="",0,SUMIF(勘定入力!$F:$F,10&$A134,勘定入力!$K:$K)) -> 0 | X134: =IF($A134="",0,SUMIF(勘定入力!$F:$F,11&$A134,勘定入力!$J:$J)) -> 0 | Y134: =IF($A134="",0,SUMIF(勘定入力!$F:$F,11&$A134,勘定入力!$K:$K)) -> 0 | Z134: =IF($A134="",0,SUMIF(勘定入力!$F:$F,12&$A134,勘定入力!$J:$J)) -> 0 | AA134: =IF($A134="",0,SUMIF(勘定入力!$F:$F,12&$A134,勘定入力!$K:$K)) -> 0
A135: =入力補助!M13 -> B7社 | B135: 0 | C135: 0 | D135: =IF($A135="",0,SUMIF(勘定入力!$F:$F,1&$A135,勘定入力!$J:$J)) -> 0 | E135: =IF($A135="",0,SUMIF(勘定入力!$F:$F,1&$A135,勘定入力!$K:$K)) -> 0 | F135: =IF($A135="",0,SUMIF(勘定入力!$F:$F,2&$A135,勘定入力!$J:$J)) -> 0 | G135: =IF($A135="",0,SUMIF(勘定入力!$F:$F,2&$A135,勘定入力!$K:$K)) -> 0 | H135: =IF($A135="",0,SUMIF(勘定入力!$F:$F,3&$A135,勘定入力!$J:$J)) -> 0 | I135: =IF($A135="",0,SUMIF(勘定入力!$F:$F,3&$A135,勘定入力!$K:$K)) -> 0 | J135: =IF($A135="",0,SUMIF(勘定入力!$F:$F,4&$A135,勘定入力!$J:$J)) -> 0 | K135: =IF($A135="",0,SUMIF(勘定入力!$F:$F,4&$A135,勘定入力!$K:$K)) -> 0 | L135: =IF($A135="",0,SUMIF(勘定入力!$F:$F,5&$A135,勘定入力!$J:$J)) -> 0 | M135: =IF($A135="",0,SUMIF(勘定入力!$F:$F,5&$A135,勘定入力!$K:$K)) -> 0 | N135: =IF($A135="",0,SUMIF(勘定入力!$F:$F,6&$A135,勘定入力!$J:$J)) -> 0 | O135: =IF($A135="",0,SUMIF(勘定入力!$F:$F,6&$A135,勘定入力!$K:$K)) -> 0 | P135: =IF($A135="",0,SUMIF(勘定入力!$F:$F,7&$A135,勘定入力!$J:$J)) -> 0 | Q135: =IF($A135="",0,SUMIF(勘定入力!$F:$F,7&$A135,勘定入力!$K:$K)) -> 0 | R135: =IF($A135="",0,SUMIF(勘定入力!$F:$F,8&$A135,勘定入力!$J:$J)) -> 0 | S135: =IF($A135="",0,SUMIF(勘定入力!$F:$F,8&$A135,勘定入力!$K:$K)) -> 0 | T135: =IF($A135="",0,SUMIF(勘定入力!$F:$F,9&$A135,勘定入力!$J:$J)) -> 0 | U135: =IF($A135="",0,SUMIF(勘定入力!$F:$F,9&$A135,勘定入力!$K:$K)) -> 0 | V135: =IF($A135="",0,SUMIF(勘定入力!$F:$F,10&$A135,勘定入力!$J:$J)) -> 0 | W135: =IF($A135="",0,SUMIF(勘定入力!$F:$F,10&$A135,勘定入力!$K:$K)) -> 0 | X135: =IF($A135="",0,SUMIF(勘定入力!$F:$F,11&$A135,勘定入力!$J:$J)) -> 0 | Y135: =IF($A135="",0,SUMIF(勘定入力!$F:$F,11&$A135,勘定入力!$K:$K)) -> 0 | Z135: =IF($A135="",0,SUMIF(勘定入力!$F:$F,12&$A135,勘定入力!$J:$J)) -> 0 | AA135: =IF($A135="",0,SUMIF(勘定入力!$F:$F,12&$A135,勘定入力!$K:$K)) -> 0
A136: =入力補助!M14 -> B8社 | B136: 0 | C136: 0 | D136: =IF($A136="",0,SUMIF(勘定入力!$F:$F,1&$A136,勘定入力!$J:$J)) -> 0 | E136: =IF($A136="",0,SUMIF(勘定入力!$F:$F,1&$A136,勘定入力!$K:$K)) -> 0 | F136: =IF($A136="",0,SUMIF(勘定入力!$F:$F,2&$A136,勘定入力!$J:$J)) -> 0 | G136: =IF($A136="",0,SUMIF(勘定入力!$F:$F,2&$A136,勘定入力!$K:$K)) -> 0 | H136: =IF($A136="",0,SUMIF(勘定入力!$F:$F,3&$A136,勘定入力!$J:$J)) -> 0 | I136: =IF($A136="",0,SUMIF(勘定入力!$F:$F,3&$A136,勘定入力!$K:$K)) -> 0 | J136: =IF($A136="",0,SUMIF(勘定入力!$F:$F,4&$A136,勘定入力!$J:$J)) -> 0 | K136: =IF($A136="",0,SUMIF(勘定入力!$F:$F,4&$A136,勘定入力!$K:$K)) -> 0 | L136: =IF($A136="",0,SUMIF(勘定入力!$F:$F,5&$A136,勘定入力!$J:$J)) -> 0 | M136: =IF($A136="",0,SUMIF(勘定入力!$F:$F,5&$A136,勘定入力!$K:$K)) -> 0 | N136: =IF($A136="",0,SUMIF(勘定入力!$F:$F,6&$A136,勘定入力!$J:$J)) -> 0 | O136: =IF($A136="",0,SUMIF(勘定入力!$F:$F,6&$A136,勘定入力!$K:$K)) -> 0 | P136: =IF($A136="",0,SUMIF(勘定入力!$F:$F,7&$A136,勘定入力!$J:$J)) -> 0 | Q136: =IF($A136="",0,SUMIF(勘定入力!$F:$F,7&$A136,勘定入力!$K:$K)) -> 0 | R136: =IF($A136="",0,SUMIF(勘定入力!$F:$F,8&$A136,勘定入力!$J:$J)) -> 0 | S136: =IF($A136="",0,SUMIF(勘定入力!$F:$F,8&$A136,勘定入力!$K:$K)) -> 0 | T136: =IF($A136="",0,SUMIF(勘定入力!$F:$F,9&$A136,勘定入力!$J:$J)) -> 0 | U136: =IF($A136="",0,SUMIF(勘定入力!$F:$F,9&$A136,勘定入力!$K:$K)) -> 0 | V136: =IF($A136="",0,SUMIF(勘定入力!$F:$F,10&$A136,勘定入力!$J:$J)) -> 0 | W136: =IF($A136="",0,SUMIF(勘定入力!$F:$F,10&$A136,勘定入力!$K:$K)) -> 0 | X136: =IF($A136="",0,SUMIF(勘定入力!$F:$F,11&$A136,勘定入力!$J:$J)) -> 0 | Y136: =IF($A136="",0,SUMIF(勘定入力!$F:$F,11&$A136,勘定入力!$K:$K)) -> 0 | Z136: =IF($A136="",0,SUMIF(勘定入力!$F:$F,12&$A136,勘定入力!$J:$J)) -> 0 | AA136: =IF($A136="",0,SUMIF(勘定入力!$F:$F,12&$A136,勘定入力!$K:$K)) -> 0
A137: =入力補助!M15 -> B9社 | B137: 0 | C137: 0 | D137: =IF($A137="",0,SUMIF(勘定入力!$F:$F,1&$A137,勘定入力!$J:$J)) -> 0 | E137: =IF($A137="",0,SUMIF(勘定入力!$F:$F,1&$A137,勘定入力!$K:$K)) -> 0 | F137: =IF($A137="",0,SUMIF(勘定入力!$F:$F,2&$A137,勘定入力!$J:$J)) -> 0 | G137: =IF($A137="",0,SUMIF(勘定入力!$F:$F,2&$A137,勘定入力!$K:$K)) -> 0 | H137: =IF($A137="",0,SUMIF(勘定入力!$F:$F,3&$A137,勘定入力!$J:$J)) -> 0 | I137: =IF($A137="",0,SUMIF(勘定入力!$F:$F,3&$A137,勘定入力!$K:$K)) -> 0 | J137: =IF($A137="",0,SUMIF(勘定入力!$F:$F,4&$A137,勘定入力!$J:$J)) -> 0 | K137: =IF($A137="",0,SUMIF(勘定入力!$F:$F,4&$A137,勘定入力!$K:$K)) -> 0 | L137: =IF($A137="",0,SUMIF(勘定入力!$F:$F,5&$A137,勘定入力!$J:$J)) -> 0 | M137: =IF($A137="",0,SUMIF(勘定入力!$F:$F,5&$A137,勘定入力!$K:$K)) -> 0 | N137: =IF($A137="",0,SUMIF(勘定入力!$F:$F,6&$A137,勘定入力!$J:$J)) -> 0 | O137: =IF($A137="",0,SUMIF(勘定入力!$F:$F,6&$A137,勘定入力!$K:$K)) -> 0 | P137: =IF($A137="",0,SUMIF(勘定入力!$F:$F,7&$A137,勘定入力!$J:$J)) -> 0 | Q137: =IF($A137="",0,SUMIF(勘定入力!$F:$F,7&$A137,勘定入力!$K:$K)) -> 0 | R137: =IF($A137="",0,SUMIF(勘定入力!$F:$F,8&$A137,勘定入力!$J:$J)) -> 0 | S137: =IF($A137="",0,SUMIF(勘定入力!$F:$F,8&$A137,勘定入力!$K:$K)) -> 0 | T137: =IF($A137="",0,SUMIF(勘定入力!$F:$F,9&$A137,勘定入力!$J:$J)) -> 0 | U137: =IF($A137="",0,SUMIF(勘定入力!$F:$F,9&$A137,勘定入力!$K:$K)) -> 0 | V137: =IF($A137="",0,SUMIF(勘定入力!$F:$F,10&$A137,勘定入力!$J:$J)) -> 0 | W137: =IF($A137="",0,SUMIF(勘定入力!$F:$F,10&$A137,勘定入力!$K:$K)) -> 0 | X137: =IF($A137="",0,SUMIF(勘定入力!$F:$F,11&$A137,勘定入力!$J:$J)) -> 0 | Y137: =IF($A137="",0,SUMIF(勘定入力!$F:$F,11&$A137,勘定入力!$K:$K)) -> 0 | Z137: =IF($A137="",0,SUMIF(勘定入力!$F:$F,12&$A137,勘定入力!$J:$J)) -> 0 | AA137: =IF($A137="",0,SUMIF(勘定入力!$F:$F,12&$A137,勘定入力!$K:$K)) -> 0
A138: =入力補助!M16 -> B10社 | B138: 0 | C138: 0 | D138: =IF($A138="",0,SUMIF(勘定入力!$F:$F,1&$A138,勘定入力!$J:$J)) -> 0 | E138: =IF($A138="",0,SUMIF(勘定入力!$F:$F,1&$A138,勘定入力!$K:$K)) -> 0 | F138: =IF($A138="",0,SUMIF(勘定入力!$F:$F,2&$A138,勘定入力!$J:$J)) -> 0 | G138: =IF($A138="",0,SUMIF(勘定入力!$F:$F,2&$A138,勘定入力!$K:$K)) -> 0 | H138: =IF($A138="",0,SUMIF(勘定入力!$F:$F,3&$A138,勘定入力!$J:$J)) -> 0 | I138: =IF($A138="",0,SUMIF(勘定入力!$F:$F,3&$A138,勘定入力!$K:$K)) -> 0 | J138: =IF($A138="",0,SUMIF(勘定入力!$F:$F,4&$A138,勘定入力!$J:$J)) -> 0 | K138: =IF($A138="",0,SUMIF(勘定入力!$F:$F,4&$A138,勘定入力!$K:$K)) -> 0 | L138: =IF($A138="",0,SUMIF(勘定入力!$F:$F,5&$A138,勘定入力!$J:$J)) -> 0 | M138: =IF($A138="",0,SUMIF(勘定入力!$F:$F,5&$A138,勘定入力!$K:$K)) -> 0 | N138: =IF($A138="",0,SUMIF(勘定入力!$F:$F,6&$A138,勘定入力!$J:$J)) -> 0 | O138: =IF($A138="",0,SUMIF(勘定入力!$F:$F,6&$A138,勘定入力!$K:$K)) -> 0 | P138: =IF($A138="",0,SUMIF(勘定入力!$F:$F,7&$A138,勘定入力!$J:$J)) -> 0 | Q138: =IF($A138="",0,SUMIF(勘定入力!$F:$F,7&$A138,勘定入力!$K:$K)) -> 0 | R138: =IF($A138="",0,SUMIF(勘定入力!$F:$F,8&$A138,勘定入力!$J:$J)) -> 0 | S138: =IF($A138="",0,SUMIF(勘定入力!$F:$F,8&$A138,勘定入力!$K:$K)) -> 0 | T138: =IF($A138="",0,SUMIF(勘定入力!$F:$F,9&$A138,勘定入力!$J:$J)) -> 0 | U138: =IF($A138="",0,SUMIF(勘定入力!$F:$F,9&$A138,勘定入力!$K:$K)) -> 0 | V138: =IF($A138="",0,SUMIF(勘定入力!$F:$F,10&$A138,勘定入力!$J:$J)) -> 0 | W138: =IF($A138="",0,SUMIF(勘定入力!$F:$F,10&$A138,勘定入力!$K:$K)) -> 0 | X138: =IF($A138="",0,SUMIF(勘定入力!$F:$F,11&$A138,勘定入力!$J:$J)) -> 0 | Y138: =IF($A138="",0,SUMIF(勘定入力!$F:$F,11&$A138,勘定入力!$K:$K)) -> 0 | Z138: =IF($A138="",0,SUMIF(勘定入力!$F:$F,12&$A138,勘定入力!$J:$J)) -> 0 | AA138: =IF($A138="",0,SUMIF(勘定入力!$F:$F,12&$A138,勘定入力!$K:$K)) -> 0
A139: =入力補助!M17 -> B11社 | B139: 0 | C139: 0 | D139: =IF($A139="",0,SUMIF(勘定入力!$F:$F,1&$A139,勘定入力!$J:$J)) -> 0 | E139: =IF($A139="",0,SUMIF(勘定入力!$F:$F,1&$A139,勘定入力!$K:$K)) -> 0 | F139: =IF($A139="",0,SUMIF(勘定入力!$F:$F,2&$A139,勘定入力!$J:$J)) -> 0 | G139: =IF($A139="",0,SUMIF(勘定入力!$F:$F,2&$A139,勘定入力!$K:$K)) -> 0 | H139: =IF($A139="",0,SUMIF(勘定入力!$F:$F,3&$A139,勘定入力!$J:$J)) -> 0 | I139: =IF($A139="",0,SUMIF(勘定入力!$F:$F,3&$A139,勘定入力!$K:$K)) -> 0 | J139: =IF($A139="",0,SUMIF(勘定入力!$F:$F,4&$A139,勘定入力!$J:$J)) -> 0 | K139: =IF($A139="",0,SUMIF(勘定入力!$F:$F,4&$A139,勘定入力!$K:$K)) -> 0 | L139: =IF($A139="",0,SUMIF(勘定入力!$F:$F,5&$A139,勘定入力!$J:$J)) -> 0 | M139: =IF($A139="",0,SUMIF(勘定入力!$F:$F,5&$A139,勘定入力!$K:$K)) -> 0 | N139: =IF($A139="",0,SUMIF(勘定入力!$F:$F,6&$A139,勘定入力!$J:$J)) -> 0 | O139: =IF($A139="",0,SUMIF(勘定入力!$F:$F,6&$A139,勘定入力!$K:$K)) -> 0 | P139: =IF($A139="",0,SUMIF(勘定入力!$F:$F,7&$A139,勘定入力!$J:$J)) -> 0 | Q139: =IF($A139="",0,SUMIF(勘定入力!$F:$F,7&$A139,勘定入力!$K:$K)) -> 0 | R139: =IF($A139="",0,SUMIF(勘定入力!$F:$F,8&$A139,勘定入力!$J:$J)) -> 0 | S139: =IF($A139="",0,SUMIF(勘定入力!$F:$F,8&$A139,勘定入力!$K:$K)) -> 0 | T139: =IF($A139="",0,SUMIF(勘定入力!$F:$F,9&$A139,勘定入力!$J:$J)) -> 0 | U139: =IF($A139="",0,SUMIF(勘定入力!$F:$F,9&$A139,勘定入力!$K:$K)) -> 0 | V139: =IF($A139="",0,SUMIF(勘定入力!$F:$F,10&$A139,勘定入力!$J:$J)) -> 0 | W139: =IF($A139="",0,SUMIF(勘定入力!$F:$F,10&$A139,勘定入力!$K:$K)) -> 0 | X139: =IF($A139="",0,SUMIF(勘定入力!$F:$F,11&$A139,勘定入力!$J:$J)) -> 0 | Y139: =IF($A139="",0,SUMIF(勘定入力!$F:$F,11&$A139,勘定入力!$K:$K)) -> 0 | Z139: =IF($A139="",0,SUMIF(勘定入力!$F:$F,12&$A139,勘定入力!$J:$J)) -> 0 | AA139: =IF($A139="",0,SUMIF(勘定入力!$F:$F,12&$A139,勘定入力!$K:$K)) -> 0
A140: =入力補助!M18 -> B12社 | B140: 0 | C140: 0 | D140: =IF($A140="",0,SUMIF(勘定入力!$F:$F,1&$A140,勘定入力!$J:$J)) -> 0 | E140: =IF($A140="",0,SUMIF(勘定入力!$F:$F,1&$A140,勘定入力!$K:$K)) -> 0 | F140: =IF($A140="",0,SUMIF(勘定入力!$F:$F,2&$A140,勘定入力!$J:$J)) -> 0 | G140: =IF($A140="",0,SUMIF(勘定入力!$F:$F,2&$A140,勘定入力!$K:$K)) -> 0 | H140: =IF($A140="",0,SUMIF(勘定入力!$F:$F,3&$A140,勘定入力!$J:$J)) -> 0 | I140: =IF($A140="",0,SUMIF(勘定入力!$F:$F,3&$A140,勘定入力!$K:$K)) -> 0 | J140: =IF($A140="",0,SUMIF(勘定入力!$F:$F,4&$A140,勘定入力!$J:$J)) -> 0 | K140: =IF($A140="",0,SUMIF(勘定入力!$F:$F,4&$A140,勘定入力!$K:$K)) -> 0 | L140: =IF($A140="",0,SUMIF(勘定入力!$F:$F,5&$A140,勘定入力!$J:$J)) -> 0 | M140: =IF($A140="",0,SUMIF(勘定入力!$F:$F,5&$A140,勘定入力!$K:$K)) -> 0 | N140: =IF($A140="",0,SUMIF(勘定入力!$F:$F,6&$A140,勘定入力!$J:$J)) -> 0 | O140: =IF($A140="",0,SUMIF(勘定入力!$F:$F,6&$A140,勘定入力!$K:$K)) -> 0 | P140: =IF($A140="",0,SUMIF(勘定入力!$F:$F,7&$A140,勘定入力!$J:$J)) -> 0 | Q140: =IF($A140="",0,SUMIF(勘定入力!$F:$F,7&$A140,勘定入力!$K:$K)) -> 0 | R140: =IF($A140="",0,SUMIF(勘定入力!$F:$F,8&$A140,勘定入力!$J:$J)) -> 0 | S140: =IF($A140="",0,SUMIF(勘定入力!$F:$F,8&$A140,勘定入力!$K:$K)) -> 0 | T140: =IF($A140="",0,SUMIF(勘定入力!$F:$F,9&$A140,勘定入力!$J:$J)) -> 0 | U140: =IF($A140="",0,SUMIF(勘定入力!$F:$F,9&$A140,勘定入力!$K:$K)) -> 0 | V140: =IF($A140="",0,SUMIF(勘定入力!$F:$F,10&$A140,勘定入力!$J:$J)) -> 0 | W140: =IF($A140="",0,SUMIF(勘定入力!$F:$F,10&$A140,勘定入力!$K:$K)) -> 0 | X140: =IF($A140="",0,SUMIF(勘定入力!$F:$F,11&$A140,勘定入力!$J:$J)) -> 0 | Y140: =IF($A140="",0,SUMIF(勘定入力!$F:$F,11&$A140,勘定入力!$K:$K)) -> 0 | Z140: =IF($A140="",0,SUMIF(勘定入力!$F:$F,12&$A140,勘定入力!$J:$J)) -> 0 | AA140: =IF($A140="",0,SUMIF(勘定入力!$F:$F,12&$A140,勘定入力!$K:$K)) -> 0
A141: =入力補助!M19 -> B13社 | B141: 0 | C141: 0 | D141: =IF($A141="",0,SUMIF(勘定入力!$F:$F,1&$A141,勘定入力!$J:$J)) -> 0 | E141: =IF($A141="",0,SUMIF(勘定入力!$F:$F,1&$A141,勘定入力!$K:$K)) -> 0 | F141: =IF($A141="",0,SUMIF(勘定入力!$F:$F,2&$A141,勘定入力!$J:$J)) -> 0 | G141: =IF($A141="",0,SUMIF(勘定入力!$F:$F,2&$A141,勘定入力!$K:$K)) -> 0 | H141: =IF($A141="",0,SUMIF(勘定入力!$F:$F,3&$A141,勘定入力!$J:$J)) -> 0 | I141: =IF($A141="",0,SUMIF(勘定入力!$F:$F,3&$A141,勘定入力!$K:$K)) -> 0 | J141: =IF($A141="",0,SUMIF(勘定入力!$F:$F,4&$A141,勘定入力!$J:$J)) -> 0 | K141: =IF($A141="",0,SUMIF(勘定入力!$F:$F,4&$A141,勘定入力!$K:$K)) -> 0 | L141: =IF($A141="",0,SUMIF(勘定入力!$F:$F,5&$A141,勘定入力!$J:$J)) -> 0 | M141: =IF($A141="",0,SUMIF(勘定入力!$F:$F,5&$A141,勘定入力!$K:$K)) -> 0 | N141: =IF($A141="",0,SUMIF(勘定入力!$F:$F,6&$A141,勘定入力!$J:$J)) -> 0 | O141: =IF($A141="",0,SUMIF(勘定入力!$F:$F,6&$A141,勘定入力!$K:$K)) -> 0 | P141: =IF($A141="",0,SUMIF(勘定入力!$F:$F,7&$A141,勘定入力!$J:$J)) -> 0 | Q141: =IF($A141="",0,SUMIF(勘定入力!$F:$F,7&$A141,勘定入力!$K:$K)) -> 0 | R141: =IF($A141="",0,SUMIF(勘定入力!$F:$F,8&$A141,勘定入力!$J:$J)) -> 0 | S141: =IF($A141="",0,SUMIF(勘定入力!$F:$F,8&$A141,勘定入力!$K:$K)) -> 0 | T141: =IF($A141="",0,SUMIF(勘定入力!$F:$F,9&$A141,勘定入力!$J:$J)) -> 0 | U141: =IF($A141="",0,SUMIF(勘定入力!$F:$F,9&$A141,勘定入力!$K:$K)) -> 0 | V141: =IF($A141="",0,SUMIF(勘定入力!$F:$F,10&$A141,勘定入力!$J:$J)) -> 0 | W141: =IF($A141="",0,SUMIF(勘定入力!$F:$F,10&$A141,勘定入力!$K:$K)) -> 0 | X141: =IF($A141="",0,SUMIF(勘定入力!$F:$F,11&$A141,勘定入力!$J:$J)) -> 0 | Y141: =IF($A141="",0,SUMIF(勘定入力!$F:$F,11&$A141,勘定入力!$K:$K)) -> 0 | Z141: =IF($A141="",0,SUMIF(勘定入力!$F:$F,12&$A141,勘定入力!$J:$J)) -> 0 | AA141: =IF($A141="",0,SUMIF(勘定入力!$F:$F,12&$A141,勘定入力!$K:$K)) -> 0
A142: =入力補助!M20 -> B14社 | B142: 0 | C142: 0 | D142: =IF($A142="",0,SUMIF(勘定入力!$F:$F,1&$A142,勘定入力!$J:$J)) -> 0 | E142: =IF($A142="",0,SUMIF(勘定入力!$F:$F,1&$A142,勘定入力!$K:$K)) -> 0 | F142: =IF($A142="",0,SUMIF(勘定入力!$F:$F,2&$A142,勘定入力!$J:$J)) -> 0 | G142: =IF($A142="",0,SUMIF(勘定入力!$F:$F,2&$A142,勘定入力!$K:$K)) -> 0 | H142: =IF($A142="",0,SUMIF(勘定入力!$F:$F,3&$A142,勘定入力!$J:$J)) -> 0 | I142: =IF($A142="",0,SUMIF(勘定入力!$F:$F,3&$A142,勘定入力!$K:$K)) -> 0 | J142: =IF($A142="",0,SUMIF(勘定入力!$F:$F,4&$A142,勘定入力!$J:$J)) -> 0 | K142: =IF($A142="",0,SUMIF(勘定入力!$F:$F,4&$A142,勘定入力!$K:$K)) -> 0 | L142: =IF($A142="",0,SUMIF(勘定入力!$F:$F,5&$A142,勘定入力!$J:$J)) -> 0 | M142: =IF($A142="",0,SUMIF(勘定入力!$F:$F,5&$A142,勘定入力!$K:$K)) -> 0 | N142: =IF($A142="",0,SUMIF(勘定入力!$F:$F,6&$A142,勘定入力!$J:$J)) -> 0 | O142: =IF($A142="",0,SUMIF(勘定入力!$F:$F,6&$A142,勘定入力!$K:$K)) -> 0 | P142: =IF($A142="",0,SUMIF(勘定入力!$F:$F,7&$A142,勘定入力!$J:$J)) -> 0 | Q142: =IF($A142="",0,SUMIF(勘定入力!$F:$F,7&$A142,勘定入力!$K:$K)) -> 0 | R142: =IF($A142="",0,SUMIF(勘定入力!$F:$F,8&$A142,勘定入力!$J:$J)) -> 0 | S142: =IF($A142="",0,SUMIF(勘定入力!$F:$F,8&$A142,勘定入力!$K:$K)) -> 0 | T142: =IF($A142="",0,SUMIF(勘定入力!$F:$F,9&$A142,勘定入力!$J:$J)) -> 0 | U142: =IF($A142="",0,SUMIF(勘定入力!$F:$F,9&$A142,勘定入力!$K:$K)) -> 0 | V142: =IF($A142="",0,SUMIF(勘定入力!$F:$F,10&$A142,勘定入力!$J:$J)) -> 0 | W142: =IF($A142="",0,SUMIF(勘定入力!$F:$F,10&$A142,勘定入力!$K:$K)) -> 0 | X142: =IF($A142="",0,SUMIF(勘定入力!$F:$F,11&$A142,勘定入力!$J:$J)) -> 0 | Y142: =IF($A142="",0,SUMIF(勘定入力!$F:$F,11&$A142,勘定入力!$K:$K)) -> 0 | Z142: =IF($A142="",0,SUMIF(勘定入力!$F:$F,12&$A142,勘定入力!$J:$J)) -> 0 | AA142: =IF($A142="",0,SUMIF(勘定入力!$F:$F,12&$A142,勘定入力!$K:$K)) -> 0
A143: =入力補助!M21 -> B15社 | B143: 0 | C143: 0 | D143: =IF($A143="",0,SUMIF(勘定入力!$F:$F,1&$A143,勘定入力!$J:$J)) -> 0 | E143: =IF($A143="",0,SUMIF(勘定入力!$F:$F,1&$A143,勘定入力!$K:$K)) -> 0 | F143: =IF($A143="",0,SUMIF(勘定入力!$F:$F,2&$A143,勘定入力!$J:$J)) -> 0 | G143: =IF($A143="",0,SUMIF(勘定入力!$F:$F,2&$A143,勘定入力!$K:$K)) -> 0 | H143: =IF($A143="",0,SUMIF(勘定入力!$F:$F,3&$A143,勘定入力!$J:$J)) -> 0 | I143: =IF($A143="",0,SUMIF(勘定入力!$F:$F,3&$A143,勘定入力!$K:$K)) -> 0 | J143: =IF($A143="",0,SUMIF(勘定入力!$F:$F,4&$A143,勘定入力!$J:$J)) -> 0 | K143: =IF($A143="",0,SUMIF(勘定入力!$F:$F,4&$A143,勘定入力!$K:$K)) -> 0 | L143: =IF($A143="",0,SUMIF(勘定入力!$F:$F,5&$A143,勘定入力!$J:$J)) -> 0 | M143: =IF($A143="",0,SUMIF(勘定入力!$F:$F,5&$A143,勘定入力!$K:$K)) -> 0 | N143: =IF($A143="",0,SUMIF(勘定入力!$F:$F,6&$A143,勘定入力!$J:$J)) -> 0 | O143: =IF($A143="",0,SUMIF(勘定入力!$F:$F,6&$A143,勘定入力!$K:$K)) -> 0 | P143: =IF($A143="",0,SUMIF(勘定入力!$F:$F,7&$A143,勘定入力!$J:$J)) -> 0 | Q143: =IF($A143="",0,SUMIF(勘定入力!$F:$F,7&$A143,勘定入力!$K:$K)) -> 0 | R143: =IF($A143="",0,SUMIF(勘定入力!$F:$F,8&$A143,勘定入力!$J:$J)) -> 0 | S143: =IF($A143="",0,SUMIF(勘定入力!$F:$F,8&$A143,勘定入力!$K:$K)) -> 0 | T143: =IF($A143="",0,SUMIF(勘定入力!$F:$F,9&$A143,勘定入力!$J:$J)) -> 0 | U143: =IF($A143="",0,SUMIF(勘定入力!$F:$F,9&$A143,勘定入力!$K:$K)) -> 0 | V143: =IF($A143="",0,SUMIF(勘定入力!$F:$F,10&$A143,勘定入力!$J:$J)) -> 0 | W143: =IF($A143="",0,SUMIF(勘定入力!$F:$F,10&$A143,勘定入力!$K:$K)) -> 0 | X143: =IF($A143="",0,SUMIF(勘定入力!$F:$F,11&$A143,勘定入力!$J:$J)) -> 0 | Y143: =IF($A143="",0,SUMIF(勘定入力!$F:$F,11&$A143,勘定入力!$K:$K)) -> 0 | Z143: =IF($A143="",0,SUMIF(勘定入力!$F:$F,12&$A143,勘定入力!$J:$J)) -> 0 | AA143: =IF($A143="",0,SUMIF(勘定入力!$F:$F,12&$A143,勘定入力!$K:$K)) -> 0
A144: =入力補助!M22 -> B16社 | B144: 0 | C144: 0 | D144: =IF($A144="",0,SUMIF(勘定入力!$F:$F,1&$A144,勘定入力!$J:$J)) -> 0 | E144: =IF($A144="",0,SUMIF(勘定入力!$F:$F,1&$A144,勘定入力!$K:$K)) -> 0 | F144: =IF($A144="",0,SUMIF(勘定入力!$F:$F,2&$A144,勘定入力!$J:$J)) -> 0 | G144: =IF($A144="",0,SUMIF(勘定入力!$F:$F,2&$A144,勘定入力!$K:$K)) -> 0 | H144: =IF($A144="",0,SUMIF(勘定入力!$F:$F,3&$A144,勘定入力!$J:$J)) -> 0 | I144: =IF($A144="",0,SUMIF(勘定入力!$F:$F,3&$A144,勘定入力!$K:$K)) -> 0 | J144: =IF($A144="",0,SUMIF(勘定入力!$F:$F,4&$A144,勘定入力!$J:$J)) -> 0 | K144: =IF($A144="",0,SUMIF(勘定入力!$F:$F,4&$A144,勘定入力!$K:$K)) -> 0 | L144: =IF($A144="",0,SUMIF(勘定入力!$F:$F,5&$A144,勘定入力!$J:$J)) -> 0 | M144: =IF($A144="",0,SUMIF(勘定入力!$F:$F,5&$A144,勘定入力!$K:$K)) -> 0 | N144: =IF($A144="",0,SUMIF(勘定入力!$F:$F,6&$A144,勘定入力!$J:$J)) -> 0 | O144: =IF($A144="",0,SUMIF(勘定入力!$F:$F,6&$A144,勘定入力!$K:$K)) -> 0 | P144: =IF($A144="",0,SUMIF(勘定入力!$F:$F,7&$A144,勘定入力!$J:$J)) -> 0 | Q144: =IF($A144="",0,SUMIF(勘定入力!$F:$F,7&$A144,勘定入力!$K:$K)) -> 0 | R144: =IF($A144="",0,SUMIF(勘定入力!$F:$F,8&$A144,勘定入力!$J:$J)) -> 0 | S144: =IF($A144="",0,SUMIF(勘定入力!$F:$F,8&$A144,勘定入力!$K:$K)) -> 0 | T144: =IF($A144="",0,SUMIF(勘定入力!$F:$F,9&$A144,勘定入力!$J:$J)) -> 0 | U144: =IF($A144="",0,SUMIF(勘定入力!$F:$F,9&$A144,勘定入力!$K:$K)) -> 0 | V144: =IF($A144="",0,SUMIF(勘定入力!$F:$F,10&$A144,勘定入力!$J:$J)) -> 0 | W144: =IF($A144="",0,SUMIF(勘定入力!$F:$F,10&$A144,勘定入力!$K:$K)) -> 0 | X144: =IF($A144="",0,SUMIF(勘定入力!$F:$F,11&$A144,勘定入力!$J:$J)) -> 0 | Y144: =IF($A144="",0,SUMIF(勘定入力!$F:$F,11&$A144,勘定入力!$K:$K)) -> 0 | Z144: =IF($A144="",0,SUMIF(勘定入力!$F:$F,12&$A144,勘定入力!$J:$J)) -> 0 | AA144: =IF($A144="",0,SUMIF(勘定入力!$F:$F,12&$A144,勘定入力!$K:$K)) -> 0
A145: =入力補助!M23 -> 0 | B145: 0 | C145: 0 | D145: =IF($A145="",0,SUMIF(勘定入力!$F:$F,1&$A145,勘定入力!$J:$J)) -> 0 | E145: =IF($A145="",0,SUMIF(勘定入力!$F:$F,1&$A145,勘定入力!$K:$K)) -> 0 | F145: =IF($A145="",0,SUMIF(勘定入力!$F:$F,2&$A145,勘定入力!$J:$J)) -> 0 | G145: =IF($A145="",0,SUMIF(勘定入力!$F:$F,2&$A145,勘定入力!$K:$K)) -> 0 | H145: =IF($A145="",0,SUMIF(勘定入力!$F:$F,3&$A145,勘定入力!$J:$J)) -> 0 | I145: =IF($A145="",0,SUMIF(勘定入力!$F:$F,3&$A145,勘定入力!$K:$K)) -> 0 | J145: =IF($A145="",0,SUMIF(勘定入力!$F:$F,4&$A145,勘定入力!$J:$J)) -> 0 | K145: =IF($A145="",0,SUMIF(勘定入力!$F:$F,4&$A145,勘定入力!$K:$K)) -> 0 | L145: =IF($A145="",0,SUMIF(勘定入力!$F:$F,5&$A145,勘定入力!$J:$J)) -> 0 | M145: =IF($A145="",0,SUMIF(勘定入力!$F:$F,5&$A145,勘定入力!$K:$K)) -> 0 | N145: =IF($A145="",0,SUMIF(勘定入力!$F:$F,6&$A145,勘定入力!$J:$J)) -> 0 | O145: =IF($A145="",0,SUMIF(勘定入力!$F:$F,6&$A145,勘定入力!$K:$K)) -> 0 | P145: =IF($A145="",0,SUMIF(勘定入力!$F:$F,7&$A145,勘定入力!$J:$J)) -> 0 | Q145: =IF($A145="",0,SUMIF(勘定入力!$F:$F,7&$A145,勘定入力!$K:$K)) -> 0 | R145: =IF($A145="",0,SUMIF(勘定入力!$F:$F,8&$A145,勘定入力!$J:$J)) -> 0 | S145: =IF($A145="",0,SUMIF(勘定入力!$F:$F,8&$A145,勘定入力!$K:$K)) -> 0 | T145: =IF($A145="",0,SUMIF(勘定入力!$F:$F,9&$A145,勘定入力!$J:$J)) -> 0 | U145: =IF($A145="",0,SUMIF(勘定入力!$F:$F,9&$A145,勘定入力!$K:$K)) -> 0 | V145: =IF($A145="",0,SUMIF(勘定入力!$F:$F,10&$A145,勘定入力!$J:$J)) -> 0 | W145: =IF($A145="",0,SUMIF(勘定入力!$F:$F,10&$A145,勘定入力!$K:$K)) -> 0 | X145: =IF($A145="",0,SUMIF(勘定入力!$F:$F,11&$A145,勘定入力!$J:$J)) -> 0 | Y145: =IF($A145="",0,SUMIF(勘定入力!$F:$F,11&$A145,勘定入力!$K:$K)) -> 0 | Z145: =IF($A145="",0,SUMIF(勘定入力!$F:$F,12&$A145,勘定入力!$J:$J)) -> 0 | AA145: =IF($A145="",0,SUMIF(勘定入力!$F:$F,12&$A145,勘定入力!$K:$K)) -> 0
A146: =入力補助!M24 -> 0 | B146: 0 | C146: 0 | D146: =IF($A146="",0,SUMIF(勘定入力!$F:$F,1&$A146,勘定入力!$J:$J)) -> 0 | E146: =IF($A146="",0,SUMIF(勘定入力!$F:$F,1&$A146,勘定入力!$K:$K)) -> 0 | F146: =IF($A146="",0,SUMIF(勘定入力!$F:$F,2&$A146,勘定入力!$J:$J)) -> 0 | G146: =IF($A146="",0,SUMIF(勘定入力!$F:$F,2&$A146,勘定入力!$K:$K)) -> 0 | H146: =IF($A146="",0,SUMIF(勘定入力!$F:$F,3&$A146,勘定入力!$J:$J)) -> 0 | I146: =IF($A146="",0,SUMIF(勘定入力!$F:$F,3&$A146,勘定入力!$K:$K)) -> 0 | J146: =IF($A146="",0,SUMIF(勘定入力!$F:$F,4&$A146,勘定入力!$J:$J)) -> 0 | K146: =IF($A146="",0,SUMIF(勘定入力!$F:$F,4&$A146,勘定入力!$K:$K)) -> 0 | L146: =IF($A146="",0,SUMIF(勘定入力!$F:$F,5&$A146,勘定入力!$J:$J)) -> 0 | M146: =IF($A146="",0,SUMIF(勘定入力!$F:$F,5&$A146,勘定入力!$K:$K)) -> 0 | N146: =IF($A146="",0,SUMIF(勘定入力!$F:$F,6&$A146,勘定入力!$J:$J)) -> 0 | O146: =IF($A146="",0,SUMIF(勘定入力!$F:$F,6&$A146,勘定入力!$K:$K)) -> 0 | P146: =IF($A146="",0,SUMIF(勘定入力!$F:$F,7&$A146,勘定入力!$J:$J)) -> 0 | Q146: =IF($A146="",0,SUMIF(勘定入力!$F:$F,7&$A146,勘定入力!$K:$K)) -> 0 | R146: =IF($A146="",0,SUMIF(勘定入力!$F:$F,8&$A146,勘定入力!$J:$J)) -> 0 | S146: =IF($A146="",0,SUMIF(勘定入力!$F:$F,8&$A146,勘定入力!$K:$K)) -> 0 | T146: =IF($A146="",0,SUMIF(勘定入力!$F:$F,9&$A146,勘定入力!$J:$J)) -> 0 | U146: =IF($A146="",0,SUMIF(勘定入力!$F:$F,9&$A146,勘定入力!$K:$K)) -> 0 | V146: =IF($A146="",0,SUMIF(勘定入力!$F:$F,10&$A146,勘定入力!$J:$J)) -> 0 | W146: =IF($A146="",0,SUMIF(勘定入力!$F:$F,10&$A146,勘定入力!$K:$K)) -> 0 | X146: =IF($A146="",0,SUMIF(勘定入力!$F:$F,11&$A146,勘定入力!$J:$J)) -> 0 | Y146: =IF($A146="",0,SUMIF(勘定入力!$F:$F,11&$A146,勘定入力!$K:$K)) -> 0 | Z146: =IF($A146="",0,SUMIF(勘定入力!$F:$F,12&$A146,勘定入力!$J:$J)) -> 0 | AA146: =IF($A146="",0,SUMIF(勘定入力!$F:$F,12&$A146,勘定入力!$K:$K)) -> 0
A147: =入力補助!M25 -> 0 | B147: 0 | C147: 0 | D147: =IF($A147="",0,SUMIF(勘定入力!$F:$F,1&$A147,勘定入力!$J:$J)) -> 0 | E147: =IF($A147="",0,SUMIF(勘定入力!$F:$F,1&$A147,勘定入力!$K:$K)) -> 0 | F147: =IF($A147="",0,SUMIF(勘定入力!$F:$F,2&$A147,勘定入力!$J:$J)) -> 0 | G147: =IF($A147="",0,SUMIF(勘定入力!$F:$F,2&$A147,勘定入力!$K:$K)) -> 0 | H147: =IF($A147="",0,SUMIF(勘定入力!$F:$F,3&$A147,勘定入力!$J:$J)) -> 0 | I147: =IF($A147="",0,SUMIF(勘定入力!$F:$F,3&$A147,勘定入力!$K:$K)) -> 0 | J147: =IF($A147="",0,SUMIF(勘定入力!$F:$F,4&$A147,勘定入力!$J:$J)) -> 0 | K147: =IF($A147="",0,SUMIF(勘定入力!$F:$F,4&$A147,勘定入力!$K:$K)) -> 0 | L147: =IF($A147="",0,SUMIF(勘定入力!$F:$F,5&$A147,勘定入力!$J:$J)) -> 0 | M147: =IF($A147="",0,SUMIF(勘定入力!$F:$F,5&$A147,勘定入力!$K:$K)) -> 0 | N147: =IF($A147="",0,SUMIF(勘定入力!$F:$F,6&$A147,勘定入力!$J:$J)) -> 0 | O147: =IF($A147="",0,SUMIF(勘定入力!$F:$F,6&$A147,勘定入力!$K:$K)) -> 0 | P147: =IF($A147="",0,SUMIF(勘定入力!$F:$F,7&$A147,勘定入力!$J:$J)) -> 0 | Q147: =IF($A147="",0,SUMIF(勘定入力!$F:$F,7&$A147,勘定入力!$K:$K)) -> 0 | R147: =IF($A147="",0,SUMIF(勘定入力!$F:$F,8&$A147,勘定入力!$J:$J)) -> 0 | S147: =IF($A147="",0,SUMIF(勘定入力!$F:$F,8&$A147,勘定入力!$K:$K)) -> 0 | T147: =IF($A147="",0,SUMIF(勘定入力!$F:$F,9&$A147,勘定入力!$J:$J)) -> 0 | U147: =IF($A147="",0,SUMIF(勘定入力!$F:$F,9&$A147,勘定入力!$K:$K)) -> 0 | V147: =IF($A147="",0,SUMIF(勘定入力!$F:$F,10&$A147,勘定入力!$J:$J)) -> 0 | W147: =IF($A147="",0,SUMIF(勘定入力!$F:$F,10&$A147,勘定入力!$K:$K)) -> 0 | X147: =IF($A147="",0,SUMIF(勘定入力!$F:$F,11&$A147,勘定入力!$J:$J)) -> 0 | Y147: =IF($A147="",0,SUMIF(勘定入力!$F:$F,11&$A147,勘定入力!$K:$K)) -> 0 | Z147: =IF($A147="",0,SUMIF(勘定入力!$F:$F,12&$A147,勘定入力!$J:$J)) -> 0 | AA147: =IF($A147="",0,SUMIF(勘定入力!$F:$F,12&$A147,勘定入力!$K:$K)) -> 0
A148: =入力補助!M26 -> 0 | B148: 0 | C148: 0 | D148: =IF($A148="",0,SUMIF(勘定入力!$F:$F,1&$A148,勘定入力!$J:$J)) -> 0 | E148: =IF($A148="",0,SUMIF(勘定入力!$F:$F,1&$A148,勘定入力!$K:$K)) -> 0 | F148: =IF($A148="",0,SUMIF(勘定入力!$F:$F,2&$A148,勘定入力!$J:$J)) -> 0 | G148: =IF($A148="",0,SUMIF(勘定入力!$F:$F,2&$A148,勘定入力!$K:$K)) -> 0 | H148: =IF($A148="",0,SUMIF(勘定入力!$F:$F,3&$A148,勘定入力!$J:$J)) -> 0 | I148: =IF($A148="",0,SUMIF(勘定入力!$F:$F,3&$A148,勘定入力!$K:$K)) -> 0 | J148: =IF($A148="",0,SUMIF(勘定入力!$F:$F,4&$A148,勘定入力!$J:$J)) -> 0 | K148: =IF($A148="",0,SUMIF(勘定入力!$F:$F,4&$A148,勘定入力!$K:$K)) -> 0 | L148: =IF($A148="",0,SUMIF(勘定入力!$F:$F,5&$A148,勘定入力!$J:$J)) -> 0 | M148: =IF($A148="",0,SUMIF(勘定入力!$F:$F,5&$A148,勘定入力!$K:$K)) -> 0 | N148: =IF($A148="",0,SUMIF(勘定入力!$F:$F,6&$A148,勘定入力!$J:$J)) -> 0 | O148: =IF($A148="",0,SUMIF(勘定入力!$F:$F,6&$A148,勘定入力!$K:$K)) -> 0 | P148: =IF($A148="",0,SUMIF(勘定入力!$F:$F,7&$A148,勘定入力!$J:$J)) -> 0 | Q148: =IF($A148="",0,SUMIF(勘定入力!$F:$F,7&$A148,勘定入力!$K:$K)) -> 0 | R148: =IF($A148="",0,SUMIF(勘定入力!$F:$F,8&$A148,勘定入力!$J:$J)) -> 0 | S148: =IF($A148="",0,SUMIF(勘定入力!$F:$F,8&$A148,勘定入力!$K:$K)) -> 0 | T148: =IF($A148="",0,SUMIF(勘定入力!$F:$F,9&$A148,勘定入力!$J:$J)) -> 0 | U148: =IF($A148="",0,SUMIF(勘定入力!$F:$F,9&$A148,勘定入力!$K:$K)) -> 0 | V148: =IF($A148="",0,SUMIF(勘定入力!$F:$F,10&$A148,勘定入力!$J:$J)) -> 0 | W148: =IF($A148="",0,SUMIF(勘定入力!$F:$F,10&$A148,勘定入力!$K:$K)) -> 0 | X148: =IF($A148="",0,SUMIF(勘定入力!$F:$F,11&$A148,勘定入力!$J:$J)) -> 0 | Y148: =IF($A148="",0,SUMIF(勘定入力!$F:$F,11&$A148,勘定入力!$K:$K)) -> 0 | Z148: =IF($A148="",0,SUMIF(勘定入力!$F:$F,12&$A148,勘定入力!$J:$J)) -> 0 | AA148: =IF($A148="",0,SUMIF(勘定入力!$F:$F,12&$A148,勘定入力!$K:$K)) -> 0
A149: =入力補助!M27 -> 0 | B149: 0 | C149: 0 | D149: =IF($A149="",0,SUMIF(勘定入力!$F:$F,1&$A149,勘定入力!$J:$J)) -> 0 | E149: =IF($A149="",0,SUMIF(勘定入力!$F:$F,1&$A149,勘定入力!$K:$K)) -> 0 | F149: =IF($A149="",0,SUMIF(勘定入力!$F:$F,2&$A149,勘定入力!$J:$J)) -> 0 | G149: =IF($A149="",0,SUMIF(勘定入力!$F:$F,2&$A149,勘定入力!$K:$K)) -> 0 | H149: =IF($A149="",0,SUMIF(勘定入力!$F:$F,3&$A149,勘定入力!$J:$J)) -> 0 | I149: =IF($A149="",0,SUMIF(勘定入力!$F:$F,3&$A149,勘定入力!$K:$K)) -> 0 | J149: =IF($A149="",0,SUMIF(勘定入力!$F:$F,4&$A149,勘定入力!$J:$J)) -> 0 | K149: =IF($A149="",0,SUMIF(勘定入力!$F:$F,4&$A149,勘定入力!$K:$K)) -> 0 | L149: =IF($A149="",0,SUMIF(勘定入力!$F:$F,5&$A149,勘定入力!$J:$J)) -> 0 | M149: =IF($A149="",0,SUMIF(勘定入力!$F:$F,5&$A149,勘定入力!$K:$K)) -> 0 | N149: =IF($A149="",0,SUMIF(勘定入力!$F:$F,6&$A149,勘定入力!$J:$J)) -> 0 | O149: =IF($A149="",0,SUMIF(勘定入力!$F:$F,6&$A149,勘定入力!$K:$K)) -> 0 | P149: =IF($A149="",0,SUMIF(勘定入力!$F:$F,7&$A149,勘定入力!$J:$J)) -> 0 | Q149: =IF($A149="",0,SUMIF(勘定入力!$F:$F,7&$A149,勘定入力!$K:$K)) -> 0 | R149: =IF($A149="",0,SUMIF(勘定入力!$F:$F,8&$A149,勘定入力!$J:$J)) -> 0 | S149: =IF($A149="",0,SUMIF(勘定入力!$F:$F,8&$A149,勘定入力!$K:$K)) -> 0 | T149: =IF($A149="",0,SUMIF(勘定入力!$F:$F,9&$A149,勘定入力!$J:$J)) -> 0 | U149: =IF($A149="",0,SUMIF(勘定入力!$F:$F,9&$A149,勘定入力!$K:$K)) -> 0 | V149: =IF($A149="",0,SUMIF(勘定入力!$F:$F,10&$A149,勘定入力!$J:$J)) -> 0 | W149: =IF($A149="",0,SUMIF(勘定入力!$F:$F,10&$A149,勘定入力!$K:$K)) -> 0 | X149: =IF($A149="",0,SUMIF(勘定入力!$F:$F,11&$A149,勘定入力!$J:$J)) -> 0 | Y149: =IF($A149="",0,SUMIF(勘定入力!$F:$F,11&$A149,勘定入力!$K:$K)) -> 0 | Z149: =IF($A149="",0,SUMIF(勘定入力!$F:$F,12&$A149,勘定入力!$J:$J)) -> 0 | AA149: =IF($A149="",0,SUMIF(勘定入力!$F:$F,12&$A149,勘定入力!$K:$K)) -> 0
A150: =入力補助!M28 -> 0 | B150: 0 | C150: 0 | D150: =IF($A150="",0,SUMIF(勘定入力!$F:$F,1&$A150,勘定入力!$J:$J)) -> 0 | E150: =IF($A150="",0,SUMIF(勘定入力!$F:$F,1&$A150,勘定入力!$K:$K)) -> 0 | F150: =IF($A150="",0,SUMIF(勘定入力!$F:$F,2&$A150,勘定入力!$J:$J)) -> 0 | G150: =IF($A150="",0,SUMIF(勘定入力!$F:$F,2&$A150,勘定入力!$K:$K)) -> 0 | H150: =IF($A150="",0,SUMIF(勘定入力!$F:$F,3&$A150,勘定入力!$J:$J)) -> 0 | I150: =IF($A150="",0,SUMIF(勘定入力!$F:$F,3&$A150,勘定入力!$K:$K)) -> 0 | J150: =IF($A150="",0,SUMIF(勘定入力!$F:$F,4&$A150,勘定入力!$J:$J)) -> 0 | K150: =IF($A150="",0,SUMIF(勘定入力!$F:$F,4&$A150,勘定入力!$K:$K)) -> 0 | L150: =IF($A150="",0,SUMIF(勘定入力!$F:$F,5&$A150,勘定入力!$J:$J)) -> 0 | M150: =IF($A150="",0,SUMIF(勘定入力!$F:$F,5&$A150,勘定入力!$K:$K)) -> 0 | N150: =IF($A150="",0,SUMIF(勘定入力!$F:$F,6&$A150,勘定入力!$J:$J)) -> 0 | O150: =IF($A150="",0,SUMIF(勘定入力!$F:$F,6&$A150,勘定入力!$K:$K)) -> 0 | P150: =IF($A150="",0,SUMIF(勘定入力!$F:$F,7&$A150,勘定入力!$J:$J)) -> 0 | Q150: =IF($A150="",0,SUMIF(勘定入力!$F:$F,7&$A150,勘定入力!$K:$K)) -> 0 | R150: =IF($A150="",0,SUMIF(勘定入力!$F:$F,8&$A150,勘定入力!$J:$J)) -> 0 | S150: =IF($A150="",0,SUMIF(勘定入力!$F:$F,8&$A150,勘定入力!$K:$K)) -> 0 | T150: =IF($A150="",0,SUMIF(勘定入力!$F:$F,9&$A150,勘定入力!$J:$J)) -> 0 | U150: =IF($A150="",0,SUMIF(勘定入力!$F:$F,9&$A150,勘定入力!$K:$K)) -> 0 | V150: =IF($A150="",0,SUMIF(勘定入力!$F:$F,10&$A150,勘定入力!$J:$J)) -> 0 | W150: =IF($A150="",0,SUMIF(勘定入力!$F:$F,10&$A150,勘定入力!$K:$K)) -> 0 | X150: =IF($A150="",0,SUMIF(勘定入力!$F:$F,11&$A150,勘定入力!$J:$J)) -> 0 | Y150: =IF($A150="",0,SUMIF(勘定入力!$F:$F,11&$A150,勘定入力!$K:$K)) -> 0 | Z150: =IF($A150="",0,SUMIF(勘定入力!$F:$F,12&$A150,勘定入力!$J:$J)) -> 0 | AA150: =IF($A150="",0,SUMIF(勘定入力!$F:$F,12&$A150,勘定入力!$K:$K)) -> 0
A151: =入力補助!M29 -> 0 | B151: 0 | C151: 0 | D151: =IF($A151="",0,SUMIF(勘定入力!$F:$F,1&$A151,勘定入力!$J:$J)) -> 0 | E151: =IF($A151="",0,SUMIF(勘定入力!$F:$F,1&$A151,勘定入力!$K:$K)) -> 0 | F151: =IF($A151="",0,SUMIF(勘定入力!$F:$F,2&$A151,勘定入力!$J:$J)) -> 0 | G151: =IF($A151="",0,SUMIF(勘定入力!$F:$F,2&$A151,勘定入力!$K:$K)) -> 0 | H151: =IF($A151="",0,SUMIF(勘定入力!$F:$F,3&$A151,勘定入力!$J:$J)) -> 0 | I151: =IF($A151="",0,SUMIF(勘定入力!$F:$F,3&$A151,勘定入力!$K:$K)) -> 0 | J151: =IF($A151="",0,SUMIF(勘定入力!$F:$F,4&$A151,勘定入力!$J:$J)) -> 0 | K151: =IF($A151="",0,SUMIF(勘定入力!$F:$F,4&$A151,勘定入力!$K:$K)) -> 0 | L151: =IF($A151="",0,SUMIF(勘定入力!$F:$F,5&$A151,勘定入力!$J:$J)) -> 0 | M151: =IF($A151="",0,SUMIF(勘定入力!$F:$F,5&$A151,勘定入力!$K:$K)) -> 0 | N151: =IF($A151="",0,SUMIF(勘定入力!$F:$F,6&$A151,勘定入力!$J:$J)) -> 0 | O151: =IF($A151="",0,SUMIF(勘定入力!$F:$F,6&$A151,勘定入力!$K:$K)) -> 0 | P151: =IF($A151="",0,SUMIF(勘定入力!$F:$F,7&$A151,勘定入力!$J:$J)) -> 0 | Q151: =IF($A151="",0,SUMIF(勘定入力!$F:$F,7&$A151,勘定入力!$K:$K)) -> 0 | R151: =IF($A151="",0,SUMIF(勘定入力!$F:$F,8&$A151,勘定入力!$J:$J)) -> 0 | S151: =IF($A151="",0,SUMIF(勘定入力!$F:$F,8&$A151,勘定入力!$K:$K)) -> 0 | T151: =IF($A151="",0,SUMIF(勘定入力!$F:$F,9&$A151,勘定入力!$J:$J)) -> 0 | U151: =IF($A151="",0,SUMIF(勘定入力!$F:$F,9&$A151,勘定入力!$K:$K)) -> 0 | V151: =IF($A151="",0,SUMIF(勘定入力!$F:$F,10&$A151,勘定入力!$J:$J)) -> 0 | W151: =IF($A151="",0,SUMIF(勘定入力!$F:$F,10&$A151,勘定入力!$K:$K)) -> 0 | X151: =IF($A151="",0,SUMIF(勘定入力!$F:$F,11&$A151,勘定入力!$J:$J)) -> 0 | Y151: =IF($A151="",0,SUMIF(勘定入力!$F:$F,11&$A151,勘定入力!$K:$K)) -> 0 | Z151: =IF($A151="",0,SUMIF(勘定入力!$F:$F,12&$A151,勘定入力!$J:$J)) -> 0 | AA151: =IF($A151="",0,SUMIF(勘定入力!$F:$F,12&$A151,勘定入力!$K:$K)) -> 0
A152: =入力補助!M30 -> 0 | B152: 0 | C152: 0 | D152: =IF($A152="",0,SUMIF(勘定入力!$F:$F,1&$A152,勘定入力!$J:$J)) -> 0 | E152: =IF($A152="",0,SUMIF(勘定入力!$F:$F,1&$A152,勘定入力!$K:$K)) -> 0 | F152: =IF($A152="",0,SUMIF(勘定入力!$F:$F,2&$A152,勘定入力!$J:$J)) -> 0 | G152: =IF($A152="",0,SUMIF(勘定入力!$F:$F,2&$A152,勘定入力!$K:$K)) -> 0 | H152: =IF($A152="",0,SUMIF(勘定入力!$F:$F,3&$A152,勘定入力!$J:$J)) -> 0 | I152: =IF($A152="",0,SUMIF(勘定入力!$F:$F,3&$A152,勘定入力!$K:$K)) -> 0 | J152: =IF($A152="",0,SUMIF(勘定入力!$F:$F,4&$A152,勘定入力!$J:$J)) -> 0 | K152: =IF($A152="",0,SUMIF(勘定入力!$F:$F,4&$A152,勘定入力!$K:$K)) -> 0 | L152: =IF($A152="",0,SUMIF(勘定入力!$F:$F,5&$A152,勘定入力!$J:$J)) -> 0 | M152: =IF($A152="",0,SUMIF(勘定入力!$F:$F,5&$A152,勘定入力!$K:$K)) -> 0 | N152: =IF($A152="",0,SUMIF(勘定入力!$F:$F,6&$A152,勘定入力!$J:$J)) -> 0 | O152: =IF($A152="",0,SUMIF(勘定入力!$F:$F,6&$A152,勘定入力!$K:$K)) -> 0 | P152: =IF($A152="",0,SUMIF(勘定入力!$F:$F,7&$A152,勘定入力!$J:$J)) -> 0 | Q152: =IF($A152="",0,SUMIF(勘定入力!$F:$F,7&$A152,勘定入力!$K:$K)) -> 0 | R152: =IF($A152="",0,SUMIF(勘定入力!$F:$F,8&$A152,勘定入力!$J:$J)) -> 0 | S152: =IF($A152="",0,SUMIF(勘定入力!$F:$F,8&$A152,勘定入力!$K:$K)) -> 0 | T152: =IF($A152="",0,SUMIF(勘定入力!$F:$F,9&$A152,勘定入力!$J:$J)) -> 0 | U152: =IF($A152="",0,SUMIF(勘定入力!$F:$F,9&$A152,勘定入力!$K:$K)) -> 0 | V152: =IF($A152="",0,SUMIF(勘定入力!$F:$F,10&$A152,勘定入力!$J:$J)) -> 0 | W152: =IF($A152="",0,SUMIF(勘定入力!$F:$F,10&$A152,勘定入力!$K:$K)) -> 0 | X152: =IF($A152="",0,SUMIF(勘定入力!$F:$F,11&$A152,勘定入力!$J:$J)) -> 0 | Y152: =IF($A152="",0,SUMIF(勘定入力!$F:$F,11&$A152,勘定入力!$K:$K)) -> 0 | Z152: =IF($A152="",0,SUMIF(勘定入力!$F:$F,12&$A152,勘定入力!$J:$J)) -> 0 | AA152: =IF($A152="",0,SUMIF(勘定入力!$F:$F,12&$A152,勘定入力!$K:$K)) -> 0
A153: =入力補助!M31 -> 0 | B153: 0 | C153: 0 | D153: =IF($A153="",0,SUMIF(勘定入力!$F:$F,1&$A153,勘定入力!$J:$J)) -> 0 | E153: =IF($A153="",0,SUMIF(勘定入力!$F:$F,1&$A153,勘定入力!$K:$K)) -> 0 | F153: =IF($A153="",0,SUMIF(勘定入力!$F:$F,2&$A153,勘定入力!$J:$J)) -> 0 | G153: =IF($A153="",0,SUMIF(勘定入力!$F:$F,2&$A153,勘定入力!$K:$K)) -> 0 | H153: =IF($A153="",0,SUMIF(勘定入力!$F:$F,3&$A153,勘定入力!$J:$J)) -> 0 | I153: =IF($A153="",0,SUMIF(勘定入力!$F:$F,3&$A153,勘定入力!$K:$K)) -> 0 | J153: =IF($A153="",0,SUMIF(勘定入力!$F:$F,4&$A153,勘定入力!$J:$J)) -> 0 | K153: =IF($A153="",0,SUMIF(勘定入力!$F:$F,4&$A153,勘定入力!$K:$K)) -> 0 | L153: =IF($A153="",0,SUMIF(勘定入力!$F:$F,5&$A153,勘定入力!$J:$J)) -> 0 | M153: =IF($A153="",0,SUMIF(勘定入力!$F:$F,5&$A153,勘定入力!$K:$K)) -> 0 | N153: =IF($A153="",0,SUMIF(勘定入力!$F:$F,6&$A153,勘定入力!$J:$J)) -> 0 | O153: =IF($A153="",0,SUMIF(勘定入力!$F:$F,6&$A153,勘定入力!$K:$K)) -> 0 | P153: =IF($A153="",0,SUMIF(勘定入力!$F:$F,7&$A153,勘定入力!$J:$J)) -> 0 | Q153: =IF($A153="",0,SUMIF(勘定入力!$F:$F,7&$A153,勘定入力!$K:$K)) -> 0 | R153: =IF($A153="",0,SUMIF(勘定入力!$F:$F,8&$A153,勘定入力!$J:$J)) -> 0 | S153: =IF($A153="",0,SUMIF(勘定入力!$F:$F,8&$A153,勘定入力!$K:$K)) -> 0 | T153: =IF($A153="",0,SUMIF(勘定入力!$F:$F,9&$A153,勘定入力!$J:$J)) -> 0 | U153: =IF($A153="",0,SUMIF(勘定入力!$F:$F,9&$A153,勘定入力!$K:$K)) -> 0 | V153: =IF($A153="",0,SUMIF(勘定入力!$F:$F,10&$A153,勘定入力!$J:$J)) -> 0 | W153: =IF($A153="",0,SUMIF(勘定入力!$F:$F,10&$A153,勘定入力!$K:$K)) -> 0 | X153: =IF($A153="",0,SUMIF(勘定入力!$F:$F,11&$A153,勘定入力!$J:$J)) -> 0 | Y153: =IF($A153="",0,SUMIF(勘定入力!$F:$F,11&$A153,勘定入力!$K:$K)) -> 0 | Z153: =IF($A153="",0,SUMIF(勘定入力!$F:$F,12&$A153,勘定入力!$J:$J)) -> 0 | AA153: =IF($A153="",0,SUMIF(勘定入力!$F:$F,12&$A153,勘定入力!$K:$K)) -> 0
A154: =入力補助!M32 -> 0 | B154: 0 | C154: 0 | D154: =IF($A154="",0,SUMIF(勘定入力!$F:$F,1&$A154,勘定入力!$J:$J)) -> 0 | E154: =IF($A154="",0,SUMIF(勘定入力!$F:$F,1&$A154,勘定入力!$K:$K)) -> 0 | F154: =IF($A154="",0,SUMIF(勘定入力!$F:$F,2&$A154,勘定入力!$J:$J)) -> 0 | G154: =IF($A154="",0,SUMIF(勘定入力!$F:$F,2&$A154,勘定入力!$K:$K)) -> 0 | H154: =IF($A154="",0,SUMIF(勘定入力!$F:$F,3&$A154,勘定入力!$J:$J)) -> 0 | I154: =IF($A154="",0,SUMIF(勘定入力!$F:$F,3&$A154,勘定入力!$K:$K)) -> 0 | J154: =IF($A154="",0,SUMIF(勘定入力!$F:$F,4&$A154,勘定入力!$J:$J)) -> 0 | K154: =IF($A154="",0,SUMIF(勘定入力!$F:$F,4&$A154,勘定入力!$K:$K)) -> 0 | L154: =IF($A154="",0,SUMIF(勘定入力!$F:$F,5&$A154,勘定入力!$J:$J)) -> 0 | M154: =IF($A154="",0,SUMIF(勘定入力!$F:$F,5&$A154,勘定入力!$K:$K)) -> 0 | N154: =IF($A154="",0,SUMIF(勘定入力!$F:$F,6&$A154,勘定入力!$J:$J)) -> 0 | O154: =IF($A154="",0,SUMIF(勘定入力!$F:$F,6&$A154,勘定入力!$K:$K)) -> 0 | P154: =IF($A154="",0,SUMIF(勘定入力!$F:$F,7&$A154,勘定入力!$J:$J)) -> 0 | Q154: =IF($A154="",0,SUMIF(勘定入力!$F:$F,7&$A154,勘定入力!$K:$K)) -> 0 | R154: =IF($A154="",0,SUMIF(勘定入力!$F:$F,8&$A154,勘定入力!$J:$J)) -> 0 | S154: =IF($A154="",0,SUMIF(勘定入力!$F:$F,8&$A154,勘定入力!$K:$K)) -> 0 | T154: =IF($A154="",0,SUMIF(勘定入力!$F:$F,9&$A154,勘定入力!$J:$J)) -> 0 | U154: =IF($A154="",0,SUMIF(勘定入力!$F:$F,9&$A154,勘定入力!$K:$K)) -> 0 | V154: =IF($A154="",0,SUMIF(勘定入力!$F:$F,10&$A154,勘定入力!$J:$J)) -> 0 | W154: =IF($A154="",0,SUMIF(勘定入力!$F:$F,10&$A154,勘定入力!$K:$K)) -> 0 | X154: =IF($A154="",0,SUMIF(勘定入力!$F:$F,11&$A154,勘定入力!$J:$J)) -> 0 | Y154: =IF($A154="",0,SUMIF(勘定入力!$F:$F,11&$A154,勘定入力!$K:$K)) -> 0 | Z154: =IF($A154="",0,SUMIF(勘定入力!$F:$F,12&$A154,勘定入力!$J:$J)) -> 0 | AA154: =IF($A154="",0,SUMIF(勘定入力!$F:$F,12&$A154,勘定入力!$K:$K)) -> 0
A155: =入力補助!M33 -> 0 | B155: 0 | C155: 0 | D155: =IF($A155="",0,SUMIF(勘定入力!$F:$F,1&$A155,勘定入力!$J:$J)) -> 0 | E155: =IF($A155="",0,SUMIF(勘定入力!$F:$F,1&$A155,勘定入力!$K:$K)) -> 0 | F155: =IF($A155="",0,SUMIF(勘定入力!$F:$F,2&$A155,勘定入力!$J:$J)) -> 0 | G155: =IF($A155="",0,SUMIF(勘定入力!$F:$F,2&$A155,勘定入力!$K:$K)) -> 0 | H155: =IF($A155="",0,SUMIF(勘定入力!$F:$F,3&$A155,勘定入力!$J:$J)) -> 0 | I155: =IF($A155="",0,SUMIF(勘定入力!$F:$F,3&$A155,勘定入力!$K:$K)) -> 0 | J155: =IF($A155="",0,SUMIF(勘定入力!$F:$F,4&$A155,勘定入力!$J:$J)) -> 0 | K155: =IF($A155="",0,SUMIF(勘定入力!$F:$F,4&$A155,勘定入力!$K:$K)) -> 0 | L155: =IF($A155="",0,SUMIF(勘定入力!$F:$F,5&$A155,勘定入力!$J:$J)) -> 0 | M155: =IF($A155="",0,SUMIF(勘定入力!$F:$F,5&$A155,勘定入力!$K:$K)) -> 0 | N155: =IF($A155="",0,SUMIF(勘定入力!$F:$F,6&$A155,勘定入力!$J:$J)) -> 0 | O155: =IF($A155="",0,SUMIF(勘定入力!$F:$F,6&$A155,勘定入力!$K:$K)) -> 0 | P155: =IF($A155="",0,SUMIF(勘定入力!$F:$F,7&$A155,勘定入力!$J:$J)) -> 0 | Q155: =IF($A155="",0,SUMIF(勘定入力!$F:$F,7&$A155,勘定入力!$K:$K)) -> 0 | R155: =IF($A155="",0,SUMIF(勘定入力!$F:$F,8&$A155,勘定入力!$J:$J)) -> 0 | S155: =IF($A155="",0,SUMIF(勘定入力!$F:$F,8&$A155,勘定入力!$K:$K)) -> 0 | T155: =IF($A155="",0,SUMIF(勘定入力!$F:$F,9&$A155,勘定入力!$J:$J)) -> 0 | U155: =IF($A155="",0,SUMIF(勘定入力!$F:$F,9&$A155,勘定入力!$K:$K)) -> 0 | V155: =IF($A155="",0,SUMIF(勘定入力!$F:$F,10&$A155,勘定入力!$J:$J)) -> 0 | W155: =IF($A155="",0,SUMIF(勘定入力!$F:$F,10&$A155,勘定入力!$K:$K)) -> 0 | X155: =IF($A155="",0,SUMIF(勘定入力!$F:$F,11&$A155,勘定入力!$J:$J)) -> 0 | Y155: =IF($A155="",0,SUMIF(勘定入力!$F:$F,11&$A155,勘定入力!$K:$K)) -> 0 | Z155: =IF($A155="",0,SUMIF(勘定入力!$F:$F,12&$A155,勘定入力!$J:$J)) -> 0 | AA155: =IF($A155="",0,SUMIF(勘定入力!$F:$F,12&$A155,勘定入力!$K:$K)) -> 0
A156: =入力補助!M34 -> 0 | B156: 0 | C156: 0 | D156: =IF($A156="",0,SUMIF(勘定入力!$F:$F,1&$A156,勘定入力!$J:$J)) -> 0 | E156: =IF($A156="",0,SUMIF(勘定入力!$F:$F,1&$A156,勘定入力!$K:$K)) -> 0 | F156: =IF($A156="",0,SUMIF(勘定入力!$F:$F,2&$A156,勘定入力!$J:$J)) -> 0 | G156: =IF($A156="",0,SUMIF(勘定入力!$F:$F,2&$A156,勘定入力!$K:$K)) -> 0 | H156: =IF($A156="",0,SUMIF(勘定入力!$F:$F,3&$A156,勘定入力!$J:$J)) -> 0 | I156: =IF($A156="",0,SUMIF(勘定入力!$F:$F,3&$A156,勘定入力!$K:$K)) -> 0 | J156: =IF($A156="",0,SUMIF(勘定入力!$F:$F,4&$A156,勘定入力!$J:$J)) -> 0 | K156: =IF($A156="",0,SUMIF(勘定入力!$F:$F,4&$A156,勘定入力!$K:$K)) -> 0 | L156: =IF($A156="",0,SUMIF(勘定入力!$F:$F,5&$A156,勘定入力!$J:$J)) -> 0 | M156: =IF($A156="",0,SUMIF(勘定入力!$F:$F,5&$A156,勘定入力!$K:$K)) -> 0 | N156: =IF($A156="",0,SUMIF(勘定入力!$F:$F,6&$A156,勘定入力!$J:$J)) -> 0 | O156: =IF($A156="",0,SUMIF(勘定入力!$F:$F,6&$A156,勘定入力!$K:$K)) -> 0 | P156: =IF($A156="",0,SUMIF(勘定入力!$F:$F,7&$A156,勘定入力!$J:$J)) -> 0 | Q156: =IF($A156="",0,SUMIF(勘定入力!$F:$F,7&$A156,勘定入力!$K:$K)) -> 0 | R156: =IF($A156="",0,SUMIF(勘定入力!$F:$F,8&$A156,勘定入力!$J:$J)) -> 0 | S156: =IF($A156="",0,SUMIF(勘定入力!$F:$F,8&$A156,勘定入力!$K:$K)) -> 0 | T156: =IF($A156="",0,SUMIF(勘定入力!$F:$F,9&$A156,勘定入力!$J:$J)) -> 0 | U156: =IF($A156="",0,SUMIF(勘定入力!$F:$F,9&$A156,勘定入力!$K:$K)) -> 0 | V156: =IF($A156="",0,SUMIF(勘定入力!$F:$F,10&$A156,勘定入力!$J:$J)) -> 0 | W156: =IF($A156="",0,SUMIF(勘定入力!$F:$F,10&$A156,勘定入力!$K:$K)) -> 0 | X156: =IF($A156="",0,SUMIF(勘定入力!$F:$F,11&$A156,勘定入力!$J:$J)) -> 0 | Y156: =IF($A156="",0,SUMIF(勘定入力!$F:$F,11&$A156,勘定入力!$K:$K)) -> 0 | Z156: =IF($A156="",0,SUMIF(勘定入力!$F:$F,12&$A156,勘定入力!$J:$J)) -> 0 | AA156: =IF($A156="",0,SUMIF(勘定入力!$F:$F,12&$A156,勘定入力!$K:$K)) -> 0
A157: =入力補助!M35 -> 0 | B157: 0 | C157: 0 | D157: =IF($A157="",0,SUMIF(勘定入力!$F:$F,1&$A157,勘定入力!$J:$J)) -> 0 | E157: =IF($A157="",0,SUMIF(勘定入力!$F:$F,1&$A157,勘定入力!$K:$K)) -> 0 | F157: =IF($A157="",0,SUMIF(勘定入力!$F:$F,2&$A157,勘定入力!$J:$J)) -> 0 | G157: =IF($A157="",0,SUMIF(勘定入力!$F:$F,2&$A157,勘定入力!$K:$K)) -> 0 | H157: =IF($A157="",0,SUMIF(勘定入力!$F:$F,3&$A157,勘定入力!$J:$J)) -> 0 | I157: =IF($A157="",0,SUMIF(勘定入力!$F:$F,3&$A157,勘定入力!$K:$K)) -> 0 | J157: =IF($A157="",0,SUMIF(勘定入力!$F:$F,4&$A157,勘定入力!$J:$J)) -> 0 | K157: =IF($A157="",0,SUMIF(勘定入力!$F:$F,4&$A157,勘定入力!$K:$K)) -> 0 | L157: =IF($A157="",0,SUMIF(勘定入力!$F:$F,5&$A157,勘定入力!$J:$J)) -> 0 | M157: =IF($A157="",0,SUMIF(勘定入力!$F:$F,5&$A157,勘定入力!$K:$K)) -> 0 | N157: =IF($A157="",0,SUMIF(勘定入力!$F:$F,6&$A157,勘定入力!$J:$J)) -> 0 | O157: =IF($A157="",0,SUMIF(勘定入力!$F:$F,6&$A157,勘定入力!$K:$K)) -> 0 | P157: =IF($A157="",0,SUMIF(勘定入力!$F:$F,7&$A157,勘定入力!$J:$J)) -> 0 | Q157: =IF($A157="",0,SUMIF(勘定入力!$F:$F,7&$A157,勘定入力!$K:$K)) -> 0 | R157: =IF($A157="",0,SUMIF(勘定入力!$F:$F,8&$A157,勘定入力!$J:$J)) -> 0 | S157: =IF($A157="",0,SUMIF(勘定入力!$F:$F,8&$A157,勘定入力!$K:$K)) -> 0 | T157: =IF($A157="",0,SUMIF(勘定入力!$F:$F,9&$A157,勘定入力!$J:$J)) -> 0 | U157: =IF($A157="",0,SUMIF(勘定入力!$F:$F,9&$A157,勘定入力!$K:$K)) -> 0 | V157: =IF($A157="",0,SUMIF(勘定入力!$F:$F,10&$A157,勘定入力!$J:$J)) -> 0 | W157: =IF($A157="",0,SUMIF(勘定入力!$F:$F,10&$A157,勘定入力!$K:$K)) -> 0 | X157: =IF($A157="",0,SUMIF(勘定入力!$F:$F,11&$A157,勘定入力!$J:$J)) -> 0 | Y157: =IF($A157="",0,SUMIF(勘定入力!$F:$F,11&$A157,勘定入力!$K:$K)) -> 0 | Z157: =IF($A157="",0,SUMIF(勘定入力!$F:$F,12&$A157,勘定入力!$J:$J)) -> 0 | AA157: =IF($A157="",0,SUMIF(勘定入力!$F:$F,12&$A157,勘定入力!$K:$K)) -> 0
